Workbook

Sheet Guide
A1: Guide to the model
B2: What does this model do?
C3: This model simulates the key calculations of the RFM, PTRM and Annual pricing processes over a 4 period (20 year) timeframe.
C4: Different expected inflation estimates can be modelled to show the different outcomes on Revenue, RAB, cash flows and returns.
D5: - 'Approach B' and 'Approach C' allow for different expected inflation estimates to be modelled).
C6: Six approaches that are changes to the current workings of the RFMs and PTRMs can also be modelled to show the outcomes of these changged
D7: - Three Approaches 'Approach D-F' model the impact of various options to targetting a nominal rate of return.
D8: - Three Approaches 'Approach G-I' model the impact of various options to targetting a nominal return on debt and real return on equity.
C9: Different actual inflation outcomes can be modelled to show how they impact the outcomes of each case.
C10: This simulator model avoids requiring multiple versions of the RFM and PTRM to be opened and adjusted to perform this analysis.
B13: How to use this model?
C14: 1. Input desired values into the blue cells on the input sheet.
D15: Inputs to be changed are (key inputs in bold):
D16: - Inflation estimates for each approach. Generally these would be the same for each period, but each period can be different if required.
D17: - Allowed rate of returns (gearing level, return on debt, and return on equity) for each approach. Generally these would be the same for each period, but each period can be different if required.
D18: - Opening RAB and remaining lives. Default values for capex aim to maintain the RAB in $real over time.
D19: - Opex. Annual opex values can be inserted. Note: changing this has little impact on the returns.
D20: - Actual inflation outcomes. May be a constant value each year (to see how approaches perform with systemic under/over-estimation, or may differ every year.
C21: 2. Run scenario
D22: Any time a change to inputs is made a red warning will show that the scenario needs updating.
D23: Press the 'Run scenario' button to update the calculations and outputs.
D24: - Pressing this button performs iterative tax calculations and runs the revenue smoothing process consistent with the default smoothing in the PTRM
C25: 3. Check outputs
D26: Key outputs over the long term (such as allowed revenue, RAB, cashflows, and consumer impact) are displayed in the 'Output | General' sheet.
D27: Charts of these key outputs are displayed on the 'Outputs | Charts' sheet, including comparisons of expected and actual rates of return.
B29: What are some things to try?
C30: 1. How does the framework perform if the estimate of expected inflation persistently over-estimates actual inflation?
C31: How to:
D32: 1. Leave inputs as default (2.50% base-case expected inflation estimate)
D33: 2. Overide each year's actual inflation value with 2.00%.
D34: 3. Run scenario
D35: 4. Check outputs
D36: It should show that (in the base case):
D37: - the achieved real rate of return is very close to the expected real rate of return (target is being achieved)
D38: - but the nominal rate achieved is lower than expected (target real rate + actual inflation)
C40: 2. How does the framework perform if the estimate of expected inflation persistently under-estimates actual inflation?
C41: How to:
D42: 1. Leave inputs as default (2.50% base-case expected inflation estimate)
D43: 2. Override each year's actual inflation value with 3.00%.
D44: 3. Run scenario
D45: 4. Check outputs
D46: It should show that (in the base case):
D47: - the achieved real rate of return is very close to the expected real rate of return (target is being achieved)
D48: - but the nominal rate achieved is higher than expected (target real rate + actual inflation)
C50: 3. What is the impact of a lower estimate of expected inflation on revenues and returns?
C51: How to:
D52: 1. Leave inputs as default (2.50% base-case expected inflation estimate)
D53: 2. Input a lower value for expected inflation in Approach B (name it something like 'low expectation')
D54: 3. Input actual inflation value for each year (whatever values you want constant or varying).
D55: 4. Run scenario
D56: 5. Check outputs
D57: It should show that:
D58: - the achieved real rate of return for both Approach B and the base case is very close to the expected real rate of return for that approach.
D59: - the expected real and nominal rates of return for Approach B are higher than the base case.
D60: - the achieved real and nominal rates of return for Approach B are higher than the base case.
D61: - allowed revenues for Approach B are consistently above the base case.
C63: 4. What might a 'nominal framework' look like?
C64: How to:
D65: 1. Ensure Approach D inflation estimate equals base case (as default)
D66: 2. Override each year's actual inflation value with anything (constant or varying)
D67: 3. Run scenario
D68: 4. Check outputs
D69: The outputs for Approach D show the result of an nominal return applied to an unindexed RAB.
D70: This is an approach that targets the expected nominal rate of return you should see:
D71: - the real rate of return may not match the expected real rate.
D72: - the nominal rate of return achieved should be very close to the expected nominal rate.
D73: - the difference observed should relate to the inflation lags (as per the difference in the real return for the base case).

Sheet Overview
A1: Overview of the model
V2: Change from adjacent cell
B3: 'Inputs' sheet | H3: Working sheets | N3: 'Output' sheets | V3: Change of input from base
V4: Change of formulae from base
U5: Change from V1
M30: * approaches explained:
M31: - 'unindexed RAB' does not index the RAB for forecast or actual inflation.
M32: - 'nominal - annually updated' does not estimate expected inflation but updates the PTRM each year for actual (lagged) inflation.
M33: - 'nominal - indexed' applies rolls forward the RAB using the estimate of expected inflation from the PTRM rather than actual (lagged) inflation.
M34: - 'hybrid - weighted CPI' applies a weighted inflation value (based on gearing of RAB) in annual pricing and in the RFM to roll forward the RAB. This is the option proposed be ENA.
M35: - 'hybrid - separate RABs' applies rolls forward the debt and equity RABs separately. Forecast inflation is used to index the debt RAB, actual inflation used for equity.
M36: - 'hybrid + swaps' applies the weighted CPI approach and combines it with a 'swaps' estimate for expected inflation.
M38: Notes:
M39: - no revenue adjustments (e.g. incentive schemes)
M40: - no debt raising costs
M41: - no equity raising costs
M42: - asset lives must be whole numbers between 1 and 50 years.

Sheet Inputs
A1: Inputs | C1: Year | D1: 1 | E1: 2 | F1: 3 | G1: 4 | H1: 5 | I1: 6 | J1: 7 | K1: 8 | L1: 9 | M1: 10 | N1: 11 | O1: 12 | P1: 13 | Q1: 14 | R1: 15 | S1: 16 | T1: 17 | U1: 18 | V1: 19 | W1: 20 | X1: 21 | Y1: 22 | Z1: 23 | AA1: 24 | AB1: 25 | AC1: 26 | AD1: 27 | AE1: 28 | AF1: 29 | AG1: 30 | AH1: 31 | AI1: 32 | AJ1: 33 | AK1: 34 | AL1: 35 | AM1: 36 | AN1: 37 | AO1: 38 | AP1: 39 | AQ1: 40 | AR1: 41 | AS1: 42 | AT1: 43 | AU1: 44 | AV1: 45 | AW1: 46 | AX1: 47 | AY1: 48 | AZ1: 49 | BA1: 50 | BB1: 51 | BC1: 52 | BD1: 53 | BE1: 54 | BF1: 55 | BG1: 56 | BH1: 57 | BI1: 58 | BJ1: 59 | BK1: 60 | BL1: 61 | BM1: 62 | BN1: 63 | BO1: 64 | BP1: 65 | BQ1: 66 | BR1: 67 | BS1: 68 | BT1: 69 | BU1: 70
A2: Expected inflation | B2: Name | C2: CPI-X | D2: Period 1 | I2: Period 2 | N2: Period 3 | S2: Period 4
A3: Base case | B3: base | C3: y2-5 | D3: =F51 -> 0.02299152851 | E3: =D3 -> 0.02299152851 | F3: 0.02299152851 | G3: 0.02299152851 | H3: 0.02299152851 | I3: =D3 -> 0.02299152851 | J3: =I3 -> 0.02299152851 | K3: 0.02299152851 | L3: 0.02299152851 | M3: 0.02299152851 | N3: =I3 -> 0.02299152851 | O3: =N3 -> 0.02299152851 | P3: 0.02299152851 | Q3: 0.02299152851 | R3: 0.02299152851 | S3: =N3 -> 0.02299152851 | T3: =S3 -> 0.02299152851 | U3: =T3 -> 0.02299152851 | V3: =U3 -> 0.02299152851 | W3: =V3 -> 0.02299152851 | X3: =W3 -> 0.02299152851 | Y3: =X3 -> 0.02299152851 | Z3: 0.02299152851 | AA3: 0.02299152851 | AB3: 0.02299152851 | AC3: 0.02299152851 | AD3: 0.02299152851 | AE3: 0.02299152851 | AF3: 0.02299152851 | AG3: 0.02299152851 | AH3: 0.02299152851 | AI3: 0.02299152851 | AJ3: 0.02299152851 | AK3: 0.02299152851 | AL3: 0.02299152851 | AM3: 0.02299152851 | AN3: 0.02299152851 | AO3: 0.02299152851 | AP3: 0.02299152851 | AQ3: 0.02299152851 | AR3: 0.02299152851 | AS3: 0.02299152851 | AT3: 0.02299152851 | AU3: 0.02299152851 | AV3: 0.02299152851 | AW3: 0.02299152851 | AX3: 0.02299152851 | AY3: 0.02299152851 | AZ3: 0.02299152851 | BA3: 0.02299152851 | BB3: 0.02299152851 | BC3: 0.02299152851 | BD3: 0.02299152851 | BE3: 0.02299152851 | BF3: 0.02299152851 | BG3: 0.02299152851 | BH3: 0.02299152851 | BI3: 0.02299152851 | BJ3: 0.02299152851 | BK3: 0.02299152851 | BL3: 0.02299152851 | BM3: 0.02299152851 | BN3: 0.02299152851 | BO3: 0.02299152851 | BP3: 0.02299152851 | BQ3: 0.02299152851 | BR3: 0.02299152851 | BS3: 0.02299152851 | BT3: 0.02299152851 | BU3: 0.02299152851
A4: - Approach B | B4: 5 year | C4: y2-5 | D4: =K51 -> 0.02098699258 | E4: 0.02098699258 | F4: 0.02098699258 | G4: 0.02098699258 | H4: 0.02098699258 | I4: 0.02098699258 | J4: 0.02098699258 | K4: 0.02098699258 | L4: 0.02098699258 | M4: 0.02098699258 | N4: 0.02098699258 | O4: 0.02098699258 | P4: 0.02098699258 | Q4: 0.02098699258 | R4: 0.02098699258 | S4: 0.02098699258 | T4: =S4 -> 0.02098699258 | U4: =T4 -> 0.02098699258 | V4: =U4 -> 0.02098699258 | W4: =V4 -> 0.02098699258 | X4: =W4 -> 0.02098699258 | Y4: 0.02098699258 | Z4: 0.02098699258 | AA4: 0.02098699258 | AB4: 0.02098699258 | AC4: 0.02098699258 | AD4: 0.02098699258 | AE4: 0.02098699258 | AF4: 0.02098699258 | AG4: 0.02098699258 | AH4: 0.02098699258 | AI4: 0.02098699258 | AJ4: 0.02098699258 | AK4: 0.02098699258 | AL4: 0.02098699258 | AM4: 0.02098699258 | AN4: 0.02098699258 | AO4: 0.02098699258 | AP4: 0.02098699258 | AQ4: 0.02098699258 | AR4: 0.02098699258 | AS4: 0.02098699258 | AT4: 0.02098699258 | AU4: 0.02098699258 | AV4: 0.02098699258 | AW4: 0.02098699258 | AX4: 0.02098699258 | AY4: 0.02098699258 | AZ4: 0.02098699258 | BA4: 0.02098699258 | BB4: 0.02098699258 | BC4: 0.02098699258 | BD4: 0.02098699258 | BE4: 0.02098699258 | BF4: 0.02098699258 | BG4: 0.02098699258 | BH4: 0.02098699258 | BI4: 0.02098699258 | BJ4: 0.02098699258 | BK4: 0.02098699258 | BL4: 0.02098699258 | BM4: 0.02098699258 | BN4: 0.02098699258 | BO4: 0.02098699258 | BP4: 0.02098699258 | BQ4: 0.02098699258 | BR4: 0.02098699258 | BS4: 0.02098699258 | BT4: 0.02098699258 | BU4: 0.02098699258
A5: - Approach C | B5: 5 year + glide | C5: y2-5 | D5: =U51 -> 0.0194909167 | E5: =D5 -> 0.0194909167 | F5: 0.0194909167 | G5: 0.0194909167 | H5: 0.0194909167 | I5: 0.0194909167 | J5: =I5 -> 0.0194909167 | K5: 0.0194909167 | L5: 0.0194909167 | M5: 0.0194909167 | N5: 0.0194909167 | O5: =N5 -> 0.0194909167 | P5: 0.0194909167 | Q5: 0.0194909167 | R5: 0.0194909167 | S5: 0.0194909167 | T5: =S5 -> 0.0194909167 | U5: 0.0194909167 | V5: 0.0194909167 | W5: 0.0194909167 | X5: 0.0194909167 | Y5: 0.0194909167 | Z5: 0.0194909167 | AA5: 0.0194909167 | AB5: 0.0194909167 | AC5: 0.0194909167 | AD5: 0.0194909167 | AE5: 0.0194909167 | AF5: 0.0194909167 | AG5: 0.0194909167 | AH5: 0.0194909167 | AI5: 0.0194909167 | AJ5: 0.0194909167 | AK5: 0.0194909167 | AL5: 0.0194909167 | AM5: 0.0194909167 | AN5: 0.0194909167 | AO5: 0.0194909167 | AP5: 0.0194909167 | AQ5: 0.0194909167 | AR5: 0.0194909167 | AS5: 0.0194909167 | AT5: 0.0194909167 | AU5: 0.0194909167 | AV5: 0.0194909167 | AW5: 0.0194909167 | AX5: 0.0194909167 | AY5: 0.0194909167 | AZ5: =AY5 -> 0.0194909167 | BA5: 0.0194909167 | BB5: 0.0194909167 | BC5: 0.0194909167 | BD5: 0.0194909167 | BE5: 0.0194909167 | BF5: 0.0194909167 | BG5: 0.0194909167 | BH5: 0.0194909167 | BI5: 0.0194909167 | BJ5: 0.0194909167 | BK5: 0.0194909167 | BL5: 0.0194909167 | BM5: 0.0194909167 | BN5: 0.0194909167 | BO5: 0.0194909167 | BP5: 0.0194909167 | BQ5: 0.0194909167 | BR5: 0.0194909167 | BS5: 0.0194909167 | BT5: 0.0194909167 | BU5: 0.0194909167
A6: - Approach D | B6: unindexed RAB | C6: y2-5 | D6: =D3 -> 0.02299152851 | E6: 0.02299152851 | F6: 0.02299152851 | G6: 0.02299152851 | H6: 0.02299152851 | I6: =I3 -> 0.02299152851 | J6: 0.02299152851 | K6: 0.02299152851 | L6: 0.02299152851 | M6: 0.02299152851 | N6: =N3 -> 0.02299152851 | O6: 0.02299152851 | P6: 0.02299152851 | Q6: 0.02299152851 | R6: 0.02299152851 | S6: =S3 -> 0.02299152851 | T6: =S6 -> 0.02299152851 | U6: 0.02299152851 | V6: 0.02299152851 | W6: 0.02299152851 | X6: 0.02299152851 | Y6: 0.02299152851 | Z6: 0.02299152851 | AA6: 0.02299152851 | AB6: 0.02299152851 | AC6: 0.02299152851 | AD6: 0.02299152851 | AE6: 0.02299152851 | AF6: 0.02299152851 | AG6: 0.02299152851 | AH6: 0.02299152851 | AI6: 0.02299152851 | AJ6: 0.02299152851 | AK6: 0.02299152851 | AL6: 0.02299152851 | AM6: 0.02299152851 | AN6: 0.02299152851 | AO6: 0.02299152851 | AP6: 0.02299152851 | AQ6: 0.02299152851 | AR6: 0.02299152851 | AS6: 0.02299152851 | AT6: 0.02299152851 | AU6: 0.02299152851 | AV6: 0.02299152851 | AW6: 0.02299152851 | AX6: 0.02299152851 | AY6: 0.02299152851 | AZ6: =AY6 -> 0.02299152851 | BA6: 0.02299152851 | BB6: 0.02299152851 | BC6: 0.02299152851 | BD6: 0.02299152851 | BE6: 0.02299152851 | BF6: 0.02299152851 | BG6: 0.02299152851 | BH6: 0.02299152851 | BI6: 0.02299152851 | BJ6: 0.02299152851 | BK6: 0.02299152851 | BL6: 0.02299152851 | BM6: 0.02299152851 | BN6: 0.02299152851 | BO6: 0.02299152851 | BP6: 0.02299152851 | BQ6: 0.02299152851 | BR6: 0.02299152851 | BS6: 0.02299152851 | BT6: 0.02299152851 | BU6: 0.02299152851
A7: - Approach E | B7: nominal - updated | C7: None | D7: =C34 -> 0.0297699594 | E7: =D34 -> 0.03285151117 | F7: 0.0203562341 | G7: 0.02369077307 | H7: 0.02923264312 | I7: 0.02485207101 | J7: 0.04272517321 | K7: 0.02436323367 | L7: 0.02918918919 | M7: 0.03256302521 | N7: 0.01627670397 | O7: 0.02502502503 | P7: 0.029296875 | Q7: 0.01328273245 | R7: 0.01310861423 | S7: 0.02125693161 | T7: 0.01900452489 | U7: 0.01332149201 | V7: 0.02191060473 | W7: 0.02191060473 | X7: 0.01332149201 | Y7: 0.01900452489 | Z7: 0.02125693161 | AA7: 0.01310861423 | AB7: 0.01328273245 | AC7: 0.029296875 | AD7: 0.02502502503 | AE7: 0.01627670397 | AF7: 0.03256302521 | AG7: 0.02918918919 | AH7: 0.02436323367 | AI7: 0.04272517321 | AJ7: 0.02485207101 | AK7: 0.02923264312 | AL7: 0.02369077307 | AM7: 0.0203562341 | AN7: 0.03285151117 | AO7: 0.0297699594 | AP7: 0.0297699594 | AQ7: 0.03285151117 | AR7: 0.0203562341 | AS7: 0.02369077307 | AT7: 0.02923264312 | AU7: 0.02485207101 | AV7: 0.04272517321 | AW7: 0.02436323367 | AX7: 0.02918918919 | AY7: 0.03256302521 | AZ7: 0.01627670397 | BA7: 0.02502502503 | BB7: 0.029296875 | BC7: 0.01328273245 | BD7: 0.01310861423 | BE7: 0.02125693161 | BF7: 0.01900452489 | BG7: 0.01332149201 | BH7: 0.02191060473 | BI7: 0.02191060473 | BJ7: 0.01332149201 | BK7: 0.01900452489 | BL7: 0.02125693161 | BM7: 0.01310861423 | BN7: 0.01328273245 | BO7: 0.029296875 | BP7: 0.02502502503 | BQ7: =BP34 -> 0.01627670397 | BR7: 0.03256302521 | BS7: 0.02918918919 | BT7: 0.02436323367 | BU7: 0.04272517321
A8: - Approach F | B8: nominal - indexed | C8: y2-5 | D8: =D3 -> 0.02299152851 | E8: =E3 -> 0.02299152851 | F8: 0.02299152851 | G8: 0.02299152851 | H8: 0.02299152851 | I8: 0.02299152851 | J8: 0.02299152851 | K8: 0.02299152851 | L8: 0.02299152851 | M8: 0.02299152851 | N8: 0.02299152851 | O8: 0.02299152851 | P8: 0.02299152851 | Q8: 0.02299152851 | R8: 0.02299152851 | S8: 0.02299152851 | T8: 0.02299152851 | U8: 0.02299152851 | V8: 0.02299152851 | W8: 0.02299152851 | X8: 0.02299152851 | Y8: 0.02299152851 | Z8: 0.02299152851 | AA8: 0.02299152851 | AB8: 0.02299152851 | AC8: 0.02299152851 | AD8: 0.02299152851 | AE8: 0.02299152851 | AF8: 0.02299152851 | AG8: 0.02299152851 | AH8: 0.02299152851 | AI8: 0.02299152851 | AJ8: 0.02299152851 | AK8: 0.02299152851 | AL8: 0.02299152851 | AM8: 0.02299152851 | AN8: 0.02299152851 | AO8: 0.02299152851 | AP8: 0.02299152851 | AQ8: 0.02299152851 | AR8: 0.02299152851 | AS8: 0.02299152851 | AT8: 0.02299152851 | AU8: 0.02299152851 | AV8: 0.02299152851 | AW8: 0.02299152851 | AX8: 0.02299152851 | AY8: 0.02299152851 | AZ8: 0.02299152851 | BA8: 0.02299152851 | BB8: 0.02299152851 | BC8: 0.02299152851 | BD8: 0.02299152851 | BE8: 0.02299152851 | BF8: 0.02299152851 | BG8: 0.02299152851 | BH8: 0.02299152851 | BI8: 0.02299152851 | BJ8: 0.02299152851 | BK8: 0.02299152851 | BL8: 0.02299152851 | BM8: 0.02299152851 | BN8: 0.02299152851 | BO8: 0.02299152851 | BP8: 0.02299152851 | BQ8: =BQ3 -> 0.02299152851 | BR8: =BR3 -> 0.02299152851 | BS8: =BS3 -> 0.02299152851 | BT8: =BT3 -> 0.02299152851 | BU8: =BU3 -> 0.02299152851
A9: - Approach G | B9: hybrid - weighted CPI | C9: y2-5 | D9: =D3 -> 0.02299152851 | E9: =E3 -> 0.02299152851 | F9: 0.02299152851 | G9: 0.02299152851 | H9: 0.02299152851 | I9: 0.02299152851 | J9: 0.02299152851 | K9: 0.02299152851 | L9: 0.02299152851 | M9: 0.02299152851 | N9: 0.02299152851 | O9: 0.02299152851 | P9: 0.02299152851 | Q9: 0.02299152851 | R9: 0.02299152851 | S9: 0.02299152851 | T9: 0.02299152851 | U9: 0.02299152851 | V9: 0.02299152851 | W9: 0.02299152851 | X9: 0.02299152851 | Y9: 0.02299152851 | Z9: 0.02299152851 | AA9: 0.02299152851 | AB9: 0.02299152851 | AC9: 0.02299152851 | AD9: 0.02299152851 | AE9: 0.02299152851 | AF9: 0.02299152851 | AG9: 0.02299152851 | AH9: 0.02299152851 | AI9: 0.02299152851 | AJ9: 0.02299152851 | AK9: 0.02299152851 | AL9: 0.02299152851 | AM9: 0.02299152851 | AN9: 0.02299152851 | AO9: 0.02299152851 | AP9: 0.02299152851 | AQ9: 0.02299152851 | AR9: 0.02299152851 | AS9: 0.02299152851 | AT9: 0.02299152851 | AU9: 0.02299152851 | AV9: 0.02299152851 | AW9: 0.02299152851 | AX9: 0.02299152851 | AY9: 0.02299152851 | AZ9: 0.02299152851 | BA9: 0.02299152851 | BB9: 0.02299152851 | BC9: 0.02299152851 | BD9: 0.02299152851 | BE9: 0.02299152851 | BF9: 0.02299152851 | BG9: 0.02299152851 | BH9: 0.02299152851 | BI9: 0.02299152851 | BJ9: 0.02299152851 | BK9: 0.02299152851 | BL9: 0.02299152851 | BM9: 0.02299152851 | BN9: 0.02299152851 | BO9: 0.02299152851 | BP9: 0.02299152851 | BQ9: =BQ3 -> 0.02299152851 | BR9: 0.02299152851 | BS9: 0.02299152851 | BT9: 0.02299152851 | BU9: 0.02299152851
A10: - Approach H | B10: hybrid - separate | C10: y2-5 | D10: =D3 -> 0.02299152851 | E10: =E3 -> 0.02299152851 | F10: 0.02299152851 | G10: 0.02299152851 | H10: 0.02299152851 | I10: 0.02299152851 | J10: 0.02299152851 | K10: 0.02299152851 | L10: 0.02299152851 | M10: 0.02299152851 | N10: 0.02299152851 | O10: 0.02299152851 | P10: 0.02299152851 | Q10: 0.02299152851 | R10: 0.02299152851 | S10: 0.02299152851 | T10: 0.02299152851 | U10: 0.02299152851 | V10: 0.02299152851 | W10: 0.02299152851 | X10: 0.02299152851 | Y10: 0.02299152851 | Z10: 0.02299152851 | AA10: 0.02299152851 | AB10: 0.02299152851 | AC10: 0.02299152851 | AD10: 0.02299152851 | AE10: 0.02299152851 | AF10: 0.02299152851 | AG10: 0.02299152851 | AH10: 0.02299152851 | AI10: 0.02299152851 | AJ10: 0.02299152851 | AK10: 0.02299152851 | AL10: 0.02299152851 | AM10: 0.02299152851 | AN10: 0.02299152851 | AO10: 0.02299152851 | AP10: 0.02299152851 | AQ10: 0.02299152851 | AR10: 0.02299152851 | AS10: 0.02299152851 | AT10: 0.02299152851 | AU10: 0.02299152851 | AV10: 0.02299152851 | AW10: 0.02299152851 | AX10: 0.02299152851 | AY10: 0.02299152851 | AZ10: 0.02299152851 | BA10: 0.02299152851 | BB10: 0.02299152851 | BC10: 0.02299152851 | BD10: 0.02299152851 | BE10: 0.02299152851 | BF10: 0.02299152851 | BG10: 0.02299152851 | BH10: 0.02299152851 | BI10: 0.02299152851 | BJ10: 0.02299152851 | BK10: 0.02299152851 | BL10: 0.02299152851 | BM10: 0.02299152851 | BN10: 0.02299152851 | BO10: 0.02299152851 | BP10: 0.02299152851 | BQ10: =BQ3 -> 0.02299152851 | BR10: 0.02299152851 | BS10: 0.02299152851 | BT10: 0.02299152851 | BU10: 0.02299152851
A11: - Approach I | B11: hybrid + 5y glide | C11: y2-5 | D11: =$U$51 -> 0.0194909167 | E11: =$U$51 -> 0.0194909167 | F11: 0.0194909167 | G11: 0.0194909167 | H11: 0.0194909167 | I11: 0.0194909167 | J11: 0.0194909167 | K11: 0.0194909167 | L11: 0.0194909167 | M11: 0.0194909167 | N11: 0.0194909167 | O11: 0.0194909167 | P11: 0.0194909167 | Q11: 0.0194909167 | R11: 0.0194909167 | S11: 0.0194909167 | T11: 0.0194909167 | U11: 0.0194909167 | V11: 0.0194909167 | W11: 0.0194909167 | X11: 0.0194909167 | Y11: 0.0194909167 | Z11: 0.0194909167 | AA11: 0.0194909167 | AB11: 0.0194909167 | AC11: 0.0194909167 | AD11: 0.0194909167 | AE11: 0.0194909167 | AF11: 0.0194909167 | AG11: 0.0194909167 | AH11: 0.0194909167 | AI11: 0.0194909167 | AJ11: 0.0194909167 | AK11: 0.0194909167 | AL11: 0.0194909167 | AM11: 0.0194909167 | AN11: 0.0194909167 | AO11: 0.0194909167 | AP11: 0.0194909167 | AQ11: 0.0194909167 | AR11: 0.0194909167 | AS11: 0.0194909167 | AT11: 0.0194909167 | AU11: 0.0194909167 | AV11: 0.0194909167 | AW11: 0.0194909167 | AX11: 0.0194909167 | AY11: 0.0194909167 | AZ11: 0.0194909167 | BA11: 0.0194909167 | BB11: 0.0194909167 | BC11: 0.0194909167 | BD11: 0.0194909167 | BE11: 0.0194909167 | BF11: 0.0194909167 | BG11: 0.0194909167 | BH11: 0.0194909167 | BI11: 0.0194909167 | BJ11: 0.0194909167 | BK11: 0.0194909167 | BL11: 0.0194909167 | BM11: 0.0194909167 | BN11: 0.0194909167 | BO11: 0.0194909167 | BP11: 0.0194909167 | BQ11: =$U$51 -> 0.0194909167 | BR11: 0.0194909167 | BS11: 0.0194909167 | BT11: 0.0194909167 | BU11: 0.0194909167
A12: Rate of return
A13: RoD | C13: 0.6 | D13: 0.043 | E13: =D13 -> 0.043 | F13: =E13 -> 0.043 | G13: 0.043 | H13: 0.043 | I13: =D13 -> 0.043 | J13: =I13 -> 0.043 | K13: =J13 -> 0.043 | L13: 0.043 | M13: 0.043 | N13: =I13 -> 0.043 | O13: =N13 -> 0.043 | P13: =O13 -> 0.043 | Q13: 0.043 | R13: 0.043 | S13: =N13 -> 0.043 | T13: =S13 -> 0.043 | U13: =T13 -> 0.043 | V13: 0.043 | W13: 0.043
A14: RoE | C14: =1-C13 -> 0.4 | D14: 0.05 | E14: =D14 -> 0.05 | F14: 0.05 | G14: 0.05 | H14: 0.05 | I14: =D14 -> 0.05 | J14: =I14 -> 0.05 | K14: 0.05 | L14: 0.05 | M14: 0.05 | N14: =I14 -> 0.05 | O14: =N14 -> 0.05 | P14: 0.05 | Q14: 0.05 | R14: 0.05 | S14: =N14 -> 0.05 | T14: =S14 -> 0.05 | U14: 0.05 | V14: 0.05 | W14: 0.05
A15: Nominal rate of return | D15: =(D13*$C$13)+(D14*$C$14) -> 0.0458 | E15: =(E13*$C$13)+(E14*$C$14) -> 0.0458 | F15: 0.0458 | G15: 0.0458 | H15: 0.0458 | I15: 0.0458 | J15: 0.0458 | K15: 0.0458 | L15: 0.0458 | M15: 0.0458 | N15: 0.0458 | O15: 0.0458 | P15: 0.0458 | Q15: 0.0458 | R15: 0.0458 | S15: 0.0458 | T15: 0.0458 | U15: 0.0458 | V15: 0.0458 | W15: 0.0458
A16: ="Real rate or return ("&A3&")" -> Real rate or return (Base case) | D16: =(1+D$15)/(1+D3)-1 -> 0.02229585569 | E16: 0.02229585569 | F16: 0.02229585569 | G16: 0.02229585569 | H16: 0.02229585569 | I16: 0.02229585569 | J16: 0.02229585569 | K16: 0.02229585569 | L16: 0.02229585569 | M16: 0.02229585569 | N16: 0.02229585569 | O16: 0.02229585569 | P16: 0.02229585569 | Q16: 0.02229585569 | R16: 0.02229585569 | S16: 0.02229585569 | T16: 0.02229585569 | U16: 0.02229585569 | V16: 0.02229585569 | W16: 0.02229585569
A17: =A4&" ("&B4&")" -> - Approach B (5 year) | D17: =(1+D$15)/(1+D4)-1 -> 0.02430296135 | E17: 0.02430296135 | F17: 0.02430296135 | G17: 0.02430296135 | H17: 0.02430296135 | I17: 0.02430296135 | J17: 0.02430296135 | K17: 0.02430296135 | L17: 0.02430296135 | M17: 0.02430296135 | N17: 0.02430296135 | O17: 0.02430296135 | P17: 0.02430296135 | Q17: 0.02430296135 | R17: 0.02430296135 | S17: 0.02430296135 | T17: 0.02430296135 | U17: 0.02430296135 | V17: 0.02430296135 | W17: 0.02430296135
A18: - Approach C (5 year + glide) | D18: =(1+D$15)/(1+D5)-1 -> 0.02580609878 | E18: 0.02580609878 | F18: 0.02580609878 | G18: 0.02580609878 | H18: 0.02580609878 | I18: 0.02580609878 | J18: 0.02580609878 | K18: 0.02580609878 | L18: 0.02580609878 | M18: 0.02580609878 | N18: 0.02580609878 | O18: 0.02580609878 | P18: 0.02580609878 | Q18: 0.02580609878 | R18: 0.02580609878 | S18: 0.02580609878 | T18: 0.02580609878 | U18: 0.02580609878 | V18: 0.02580609878 | W18: 0.02580609878
A19: - Approach D (unindexed RAB) | D19: =(1+D$15)/(1+D6)-1 -> 0.02229585569 | E19: 0.02229585569 | F19: 0.02229585569 | G19: 0.02229585569 | H19: 0.02229585569 | I19: 0.02229585569 | J19: 0.02229585569 | K19: 0.02229585569 | L19: 0.02229585569 | M19: 0.02229585569 | N19: 0.02229585569 | O19: 0.02229585569 | P19: 0.02229585569 | Q19: 0.02229585569 | R19: 0.02229585569 | S19: 0.02229585569 | T19: 0.02229585569 | U19: 0.02229585569 | V19: 0.02229585569 | W19: 0.02229585569
A20: - Approach E (nominal - updated) | D20: =(1+D$15)/(1+D7)-1 -> 0.01556662286 | E20: 0.01253664122 | F20: 0.0249361596 | G20: 0.02159756395 | H20: 0.01609680473 | I20: 0.02043995381 | J20: 0.002948837209 | K20: 0.02092691892 | L20: 0.01613970588 | M20: 0.01281953204 | N20: 0.02905045045 | O20: 0.02026777344 | P20: 0.01603339658 | Q20: 0.03209101124 | R20: 0.03226839187 | S20: 0.02403221719 | T20: 0.02629573712 | U20: 0.03205153374 | V20: 0.02337718696 | W20: 0.02337718696
A21: - Approach F (nominal - indexed) | D21: =(1+D$15)/(1+D8)-1 -> 0.02229585569 | E21: 0.02229585569 | F21: 0.02229585569 | G21: 0.02229585569 | H21: 0.02229585569 | I21: 0.02229585569 | J21: 0.02229585569 | K21: 0.02229585569 | L21: 0.02229585569 | M21: 0.02229585569 | N21: 0.02229585569 | O21: 0.02229585569 | P21: 0.02229585569 | Q21: 0.02229585569 | R21: 0.02229585569 | S21: 0.02229585569 | T21: 0.02229585569 | U21: 0.02229585569 | V21: 0.02229585569 | W21: 0.02229585569
A22: - Approach G (hybrid - weighted CPI) | D22: =(1+D$15)/(1+D9)-1 -> 0.02229585569 | E22: 0.02229585569 | F22: 0.02229585569 | G22: 0.02229585569 | H22: 0.02229585569 | I22: 0.02229585569 | J22: 0.02229585569 | K22: 0.02229585569 | L22: 0.02229585569 | M22: 0.02229585569 | N22: 0.02229585569 | O22: 0.02229585569 | P22: 0.02229585569 | Q22: 0.02229585569 | R22: 0.02229585569 | S22: 0.02229585569 | T22: 0.02229585569 | U22: 0.02229585569 | V22: 0.02229585569 | W22: 0.02229585569
A23: - Approach H (hybrid - separate) | D23: =(1+D$15)/(1+D10)-1 -> 0.02229585569 | E23: 0.02229585569 | F23: 0.02229585569 | G23: 0.02229585569 | H23: 0.02229585569 | I23: 0.02229585569 | J23: 0.02229585569 | K23: 0.02229585569 | L23: 0.02229585569 | M23: 0.02229585569 | N23: 0.02229585569 | O23: 0.02229585569 | P23: 0.02229585569 | Q23: 0.02229585569 | R23: 0.02229585569 | S23: 0.02229585569 | T23: 0.02229585569 | U23: 0.02229585569 | V23: 0.02229585569 | W23: 0.02229585569
A24: - Approach I (hybrid + 5y glide) | D24: =(1+D$15)/(1+D11)-1 -> 0.02580609878 | E24: 0.02580609878 | F24: 0.02580609878 | G24: 0.02580609878 | H24: 0.02580609878 | I24: 0.02580609878 | J24: 0.02580609878 | K24: 0.02580609878 | L24: 0.02580609878 | M24: 0.02580609878 | N24: 0.02580609878 | O24: 0.02580609878 | P24: 0.02580609878 | Q24: 0.02580609878 | R24: 0.02580609878 | S24: 0.02580609878 | T24: 0.02580609878 | U24: 0.02580609878 | V24: 0.02580609878 | W24: 0.02580609878
A25: RAB/capex
A26: Opening RAB | D26: 6000
A27: Remaining life (years) | D27: 30
A28: Capex (actual and forecast) ($real - EOY) | D28: =($D$26/$D$27)/((1+D16)^0.5) -> 197.8070179 | E28: =D28+(D28/D29) -> 204.4005851 | F28: =E28+(E28/E29) -> 211.213938 | G28: 218.2544026 | H28: 225.5295493 | I28: 233.0472009 | J28: 240.815441 | K28: 248.8426223 | L28: 257.1373764 | M28: 265.7086223 | N28: 274.5655764 | O28: 283.7177623 | P28: 293.175021 | Q28: 302.9475217 | R28: 313.0457724 | S28: 323.4806315 | T28: 334.2633192 | U28: 345.4054299 | V28: 356.9189442 | W28: 368.8162423
A29: Standard life (years) | D29: 30 | E29: =D29 -> 30 | F29: =E29 -> 30 | G29: 30 | H29: 30 | I29: 30 | J29: 30 | K29: 30 | L29: 30 | M29: 30 | N29: 30 | O29: 30 | P29: 30 | Q29: 30 | R29: 30 | S29: 30 | T29: 30 | U29: 30 | V29: 30 | W29: 30
A30: Opex
A31: Opex ($real) | D31: 50 | E31: 50 | F31: 50 | G31: 50 | H31: 50 | I31: 50 | J31: 50 | K31: 50 | L31: 50 | M31: 50 | N31: 50 | O31: 50 | P31: 50 | Q31: 50 | R31: 50 | S31: 50 | T31: 50 | U31: 50 | V31: 50 | W31: 50
A33: Actual inflation
A34: Actual inflation | C34: 0.0297699594 | D34: 0.03285151117 | E34: 0.0203562341 | F34: 0.02369077307 | G34: 0.02923264312 | H34: 0.02485207101 | I34: 0.04272517321 | J34: 0.02436323367 | K34: 0.02918918919 | L34: 0.03256302521 | M34: 0.01627670397 | N34: 0.02502502503 | O34: 0.029296875 | P34: 0.01328273245 | Q34: 0.01310861423 | R34: 0.02125693161 | S34: 0.01900452489 | T34: 0.01332149201 | U34: 0.02191060473 | V34: 0.02191060473 | W34: 0.01332149201 | X34: 0.01900452489 | Y34: 0.02125693161 | Z34: 0.01310861423 | AA34: 0.01328273245 | AB34: 0.029296875 | AC34: 0.02502502503 | AD34: 0.01627670397 | AE34: 0.03256302521 | AF34: 0.02918918919 | AG34: 0.02436323367 | AH34: 0.04272517321 | AI34: 0.02485207101 | AJ34: 0.02923264312 | AK34: 0.02369077307 | AL34: 0.0203562341 | AM34: 0.03285151117 | AN34: 0.0297699594 | AO34: 0.0297699594 | AP34: 0.03285151117 | AQ34: 0.0203562341 | AR34: 0.02369077307 | AS34: 0.02923264312 | AT34: 0.02485207101 | AU34: 0.04272517321 | AV34: 0.02436323367 | AW34: 0.02918918919 | AX34: 0.03256302521 | AY34: 0.01627670397 | AZ34: 0.02502502503 | BA34: 0.029296875 | BB34: 0.01328273245 | BC34: 0.01310861423 | BD34: 0.02125693161 | BE34: 0.01900452489 | BF34: 0.01332149201 | BG34: 0.02191060473 | BH34: 0.02191060473 | BI34: 0.01332149201 | BJ34: 0.01900452489 | BK34: 0.02125693161 | BL34: 0.01310861423 | BM34: 0.01328273245 | BN34: 0.029296875 | BO34: 0.02502502503 | BP34: 0.01627670397 | BQ34: 0.03256302521 | BR34: 0.02918918919 | BS34: 0.02436323367 | BT34: 0.04272517321 | BU34: 0.02485207101
A35: Actual inflation index (lagged) | C35: 1 | D35: =C35*(1+C34) -> 1.029769959 | E35: =D35*(1+D34) -> 1.063599459 | F35: 1.085250338 | G35: 1.110960758 | H35: 1.143437077 | I35: 1.171853857 | J35: 1.221921516 | K35: 1.251691475 | L35: 1.288227334 | M35: 1.330175913 | N35: 1.351826793 | O35: 1.385656292 | P35: 1.426251691 | Q35: 1.445196211 | R35: 1.464140731 | S35: 1.49526387 | T35: 1.52368065 | U35: 1.543978349 | V35: 1.577807848 | W35: 1.612378573 | X35: =W35*(1+W34) -> 1.633857861 | Y35: 1.664908553 | Z35: 1.7002994 | AA35: 1.722587969 | AB35: 1.745468644 | AC35: 1.796605421 | AD35: 1.841565517 | AE35: 1.871540134 | AF35: 1.932483142 | AG35: 1.988890758 | AH35: 2.037346568 | AI35: 2.124392553 | AJ35: 2.177188108 | AK35: 2.240833071 | AL35: 2.293920139 | AM35: 2.340615714 | AN35: 2.417508477 | AO35: 2.489477607 | AP35: 2.563589254 | AQ35: 2.647807035 | AR35: 2.701706415 | AS35: 2.765711928 | AT35: 2.846560998 | AU35: 2.917303934 | AV35: 3.04194625 | AW35: 3.116057897 | AX35: 3.207013101 | AY35: 3.311443149 | AZ35: 3.365342529 | BA35: 3.44956031 | BB35: 3.550621647 | BC35: 3.597783605 | BD35: =BC35*(1+BC34) -> 3.644945562 | BE35: 3.722425921 | BF35: 3.793168857 | BG35: 3.843699525 | BH35: 3.927917306 | BI35: 4.01398035 | BJ35: 4.067452557 | BK35: 4.14475256 | BL35: 4.232857282 | BM35: 4.288344175 | BN35: 4.345305103 | BO35: 4.472608964 | BP35: 4.584536115 | BQ35: 4.659157252 | BR35: 4.810873507 | BS35: 4.951299004 | BT35: 5.071928659 | BU35: 5.288627689
A36: Average actual inflation | C36: =GEOMEAN(1+Actual_Inflation)-1 -> 0.02408990953
A37: Nominal RoR (fixed real time varying) | D37: =(1+D16)*(1+D$34)-1 -> 0.05587981941 | E37: 0.04310594945 | F37: 0.04651483482 | G37: 0.0521802656 | H37: 0.04770202489 | I37: 0.0659736232 | J37: 0.0472022885 | K37: 0.05213584283 | L37: 0.05558490141 | M37: 0.0389354627 | N37: 0.04787883506 | O37: 0.05224592959 | P37: 0.03587473803 | Q37: 0.0356967377 | R37: 0.04402672878 | S37: 0.04172410272 | T37: 0.03591436176 | U37: 0.04469497611 | V37: 0.04469497611 | W37: 0.03591436176
A38: =A4&" ("&B4&")" -> - Approach B (5 year) | D38: =(1+D17)*(1+D$34)-1 -> 0.05795286152 | E38: 0.04515391222 | F38: 0.04856949036 | G38: 0.05424604426 | H38: 0.04975901128 | I38: 0.06806648279 | J38: 0.04925829374 | K38: 0.05420153427 | L38: 0.0576573645 | M38: 0.04097523742 | N38: 0.04993616859 | O38: 0.05431183717 | P38: 0.03790850353 | Q38: 0.03773015373 | R38: 0.04607649934 | S38: 0.04376935247 | T38: 0.03794820506 | U38: 0.04674605866 | V38: 0.04674605866 | W38: 0.03794820506
A39: - Approach C (5 year + glide) | D39: =(1+D18)*(1+D$34)-1 -> 0.05950537929 | E39: 0.04668764786 | F39: 0.05010823827 | G39: 0.05579312237 | H39: 0.05129950478 | I39: 0.06963384203 | J39: 0.05079805246 | K39: 0.05574854707 | L39: 0.05920944863 | M39: 0.04250284097 | N39: 0.05147692207 | O39: 0.05585901183 | P39: 0.03943160673 | Q39: 0.0392529952 | R39: 0.04761158886 | S39: 0.04530105631 | T39: 0.03947136652 | U39: 0.04828213074 | V39: 0.04828213074 | W39: 0.03947136652
A40: - Approach D (unindexed RAB) | D40: =(1+D19)*(1+D$34)-1 -> 0.05587981941 | E40: 0.04310594945 | F40: 0.04651483482 | G40: 0.0521802656 | H40: 0.04770202489 | I40: 0.0659736232 | J40: 0.0472022885 | K40: 0.05213584283 | L40: 0.05558490141 | M40: 0.0389354627 | N40: 0.04787883506 | O40: 0.05224592959 | P40: 0.03587473803 | Q40: 0.0356967377 | R40: 0.04402672878 | S40: 0.04172410272 | T40: 0.03591436176 | U40: 0.04469497611 | V40: 0.04469497611 | W40: 0.03591436176
A41: - Approach E (nominal - updated) | D41: =(1+D20)*(1+D$34)-1 -> 0.04892952112 | E41: 0.03314807412 | F41: 0.04921768957 | G41: 0.05146156094 | H41: 0.04134891467 | I41: 0.06403842759 | J41: 0.02738391408 | K41: 0.0507269479 | L41: 0.04922828874 | M41: 0.02930489574 | N41: 0.05480246372 | O41: 0.05015843086 | P41: 0.02952909635 | Q41: 0.04562029415 | R41: 0.05421125047 | S41: 0.04349346295 | T41: 0.03996752758 | U41: 0.05466440696 | V41: 0.0458 | W41: 0.03701009798
A42: - Approach F (nominal - indexed) | D42: =(1+D21)*(1+D$34)-1 -> 0.05587981941 | E42: 0.04310594945 | F42: 0.04651483482 | G42: 0.0521802656 | H42: 0.04770202489 | I42: 0.0659736232 | J42: 0.0472022885 | K42: 0.05213584283 | L42: 0.05558490141 | M42: 0.0389354627 | N42: 0.04787883506 | O42: 0.05224592959 | P42: 0.03587473803 | Q42: 0.0356967377 | R42: 0.04402672878 | S42: 0.04172410272 | T42: 0.03591436176 | U42: 0.04469497611 | V42: 0.04469497611 | W42: 0.03591436176
A43: - Approach G (hybrid - weighted CPI) | D43: =(1+D22)*(1+D$34)-1 -> 0.05587981941 | E43: 0.04310594945 | F43: 0.04651483482 | G43: 0.0521802656 | H43: 0.04770202489 | I43: 0.0659736232 | J43: 0.0472022885 | K43: 0.05213584283 | L43: 0.05558490141 | M43: 0.0389354627 | N43: 0.04787883506 | O43: 0.05224592959 | P43: 0.03587473803 | Q43: 0.0356967377 | R43: 0.04402672878 | S43: 0.04172410272 | T43: 0.03591436176 | U43: 0.04469497611 | V43: 0.04469497611 | W43: 0.03591436176
A44: - Approach H (hybrid - separate) | D44: =(1+D23)*(1+D$34)-1 -> 0.05587981941 | E44: 0.04310594945 | F44: 0.04651483482 | G44: 0.0521802656 | H44: 0.04770202489 | I44: 0.0659736232 | J44: 0.0472022885 | K44: 0.05213584283 | L44: 0.05558490141 | M44: 0.0389354627 | N44: 0.04787883506 | O44: 0.05224592959 | P44: 0.03587473803 | Q44: 0.0356967377 | R44: 0.04402672878 | S44: 0.04172410272 | T44: 0.03591436176 | U44: 0.04469497611 | V44: 0.04469497611 | W44: 0.03591436176
A45: - Approach I (hybrid + 5y glide) | D45: 0.05950537929 | E45: 0.04668764786 | F45: 0.05010823827 | G45: 0.05579312237 | H45: 0.05129950478 | I45: 0.06963384203 | J45: 0.05079805246 | K45: 0.05574854707 | L45: 0.05920944863 | M45: 0.04250284097 | N45: 0.05147692207 | O45: 0.05585901183 | P45: 0.03943160673 | Q45: 0.0392529952 | R45: 0.04761158886 | S45: 0.04530105631 | T45: 0.03947136652 | U45: 0.04828213074 | V45: 0.04828213074 | W45: 0.03947136652
C47: Randomised inflation formula -> | F47: =_xlfn.NORM.INV(RAND(),'Actual CPI'!$E$7,'Actual CPI'!$E$8) -> 0.002716816026
A49: =IF(ROUND(SUM(BaseSmooth1_NPVdiff,BaseSmooth2_NPVdiff,BaseSmooth3_NPVdiff,BaseSmooth4_NPVdiff, BSmooth1_NPVdiff,BSmooth2_NPVdiff,BSmooth3_NPVdiff,BSmooth4_NPVdiff, CSmooth1_NPVdiff,CSmooth2_NPVdiff,CSmooth3_NPVdiff,CSmooth4_NPVdiff, DSmooth1_NPVdiff,DSmooth2_NPVdiff,DSmooth3_NPVdiff,DSmooth4_NPVdiff, ESmooth1_NPVdiff,ESmooth2_NPVdiff,ESmooth3_NPVdiff,ESmooth4_NPVdiff, FSmooth1_NPVdiff,FSmooth2_NPVdiff,FSmooth3_NPVdiff,FSmooth4_NPVdiff, GSmooth1_NPVdiff,GSmooth2_NPVdiff,GSmooth3_NPVdiff,GSmooth4_NPVdiff, HSmooth1_NPVdiff,HSmooth2_NPVdiff,HSmooth3_NPVdiff,HSmooth4_NPVdiff, ISmooth1_NPVdiff,ISmooth2_NPVdiff,ISmooth3_NPVdiff,ISmooth4_NPVdiff),0)=0,"Scenario updated","Scenario changed - update") -> Scenario updated | C49: Current AER estimation approach | H49: 5 year RBA approach | M49: Linear glide path (2.5 @y6) | R49: 5 year + glide
A50: Check outputs | C50: Year | D50: Estimate | E50: Source | F50: Outcome | H50: Year | I50: Estimate | J50: Source | K50: Outcome | M50: Year | N50: Estimate | O50: Source | P50: Outcome | R50: Year | S50: Estimate | T50: Source | U50: Outcome
C51: 1 | D51: 0.0125 | E51: RBA SMP | F51: =GEOMEAN(1+D51:D60)-1 -> 0.02299152851 | H51: 1 | I51: =D51 -> 0.0125 | J51: RBA SMP | K51: =GEOMEAN(1+I51:I55)-1 -> 0.02098699258 | M51: 1 | N51: =I51 -> 0.0125 | O51: RBA SMP | P51: =GEOMEAN(1+N51:N60)-1 -> 0.02186694776 | R51: 1 | S51: =N51 -> 0.0125 | T51: RBA SMP | U51: =GEOMEAN(1+S51:S55)-1 -> 0.0194909167
C52: 2 | D52: 0.0175 | E52: RBA SMP | H52: 2 | I52: =D52 -> 0.0175 | J52: RBA SMP | M52: 2 | N52: =I52 -> 0.0175 | O52: RBA SMP | R52: 2 | S52: =N52 -> 0.0175 | T52: RBA SMP
C53: 3 | D53: 0.025 | E53: RBA mid-band | H53: 3 | I53: 0.025 | J53: RBA mid-band | M53: 3 | N53: =N52+($N$56-$N$52)/4 -> 0.019375 | O53: glide | R53: 3 | S53: =S52+($S$55-$S$52)/3 -> 0.02 | T53: glide
C54: 4 | D54: =D53 -> 0.025 | E54: RBA mid-band | H54: 4 | I54: =I53 -> 0.025 | J54: RBA mid-band | M54: 4 | N54: =N53+($N$56-$N$52)/4 -> 0.02125 | O54: glide | R54: 4 | S54: =S53+($S$55-$S$52)/3 -> 0.0225 | T54: glide
C55: 5 | D55: =D54 -> 0.025 | E55: RBA mid-band | H55: 5 | I55: =I54 -> 0.025 | J55: RBA mid-band | M55: 5 | N55: 0.023125 | O55: glide | R55: 5 | S55: 0.025 | T55: RBA mid-band
C56: 6 | D56: 0.025 | E56: RBA mid-band | M56: 6 | N56: 0.025 | O56: RBA mid-band
C57: 7 | D57: 0.025 | E57: RBA mid-band | M57: 7 | N57: =N56 -> 0.025 | O57: RBA mid-band
C58: 8 | D58: 0.025 | E58: RBA mid-band | M58: 8 | N58: =N57 -> 0.025 | O58: RBA mid-band
C59: 9 | D59: 0.025 | E59: RBA mid-band | M59: 9 | N59: 0.025 | O59: RBA mid-band
C60: 10 | D60: 0.025 | E60: RBA mid-band | M60: 10 | N60: 0.025 | O60: RBA mid-band
C61: ="Ex-ante rate of return = "&ROUND(D16*100,2)&"%" -> Ex-ante rate of return = 2.23% | H61: ="Ex-ante rate of return = "&ROUND(D17*100,2)&"%" -> Ex-ante rate of return = 2.43% | M61: ="Ex-ante rate of return = "&ROUND(D18*100,2)&"%" -> Ex-ante rate of return = 2.58% | R61: ="Ex-ante rate of return = "&ROUND(I18*100,2)&"%" -> Ex-ante rate of return = 2.58%

Sheet Output | General
A2: Regulatory asset base | B2: Year | C2: 0 | D2: 1 | E2: 2 | F2: 3 | G2: 4 | H2: 5 | I2: 6 | J2: 7 | K2: 8 | L2: 9 | M2: 10 | N2: 11 | O2: 12 | P2: 13 | Q2: 14 | R2: 15 | S2: 16 | T2: 17 | U2: 18 | V2: 19 | W2: 20
A3: Nominal (actual) opening RAB
A4: =Inputs!A3 -> Base case | D4: ='Working | Base case'!D121 -> 6000 | E4: ='Working | Base case'!E121 -> 6197.109067 | F4: ='Working | Base case'!F121 -> 6323.25887 | G4: ='Working | Base case'!G121 -> 6473.061761 | H4: ='Working | Base case'!H121 -> 6662.286465 | I4: ='Working | Base case'!I257 -> 6827.858081 | J4: ='Working | Base case'!J257 -> 7120.898195 | K4: ='Working | Base case'!K257 -> 7295.761337 | L4: ='Working | Base case'!L257 -> 7510.127231 | M4: ='Working | Base case'!M257 -> 7756.129343 | N4: ='Working | Base case'!N393 -> 7883.87042 | O4: ='Working | Base case'!O393 -> 8085.814479 | P4: ='Working | Base case'!P393 -> 8327.469946 | Q4: ='Working | Base case'!Q393 -> 8442.987512 | R4: ='Working | Base case'!R393 -> 8558.634554 | S4: ='Working | Base case'!S529 -> 8745.601205 | T4: ='Working | Base case'!T529 -> 8914.584848 | U4: ='Working | Base case'!U529 -> 9036.170854 | V4: ='Working | Base case'!V529 -> 9237.026962 | W4: ='Working | Base case'!W529 -> 9442.346792
A5: =RIGHT(Inputs!A4,LEN(Inputs!A4)-3)&" ("&Inputs!B4&")" -> Approach B (5 year) | D5: ='Working | Approach B'!D121 -> 6000 | E5: ='Working | Approach B'!E121 -> 6197.311146 | F5: ='Working | Approach B'!F121 -> 6323.67378 | G5: ='Working | Approach B'!G121 -> 6473.699466 | H5: ='Working | Approach B'!H121 -> 6663.160824 | I5: ='Working | Approach B'!I257 -> 6828.978554 | J5: ='Working | Approach B'!J257 -> 7122.29654 | K5: ='Working | Approach B'!K257 -> 7297.433576 | L5: ='Working | Approach B'!L257 -> 7512.09395 | M5: ='Working | Approach B'!M257 -> 7758.412945 | N5: ='Working | Approach B'!N393 -> 7886.452264 | O5: ='Working | Approach B'!O393 -> 8088.727359 | P5: ='Working | Approach B'!P393 -> 8330.741257 | Q5: ='Working | Approach B'!Q393 -> 8446.583369 | R5: ='Working | Approach B'!R393 -> 8562.562376 | S5: ='Working | Approach B'!S529 -> 8749.901081 | T5: ='Working | Approach B'!T529 -> 8919.26055 | U5: ='Working | Approach B'!U529 -> 9041.208542 | V5: ='Working | Approach B'!V529 -> 9242.47872 | W5: ='Working | Approach B'!W529 -> 9448.228347
A6: =RIGHT(Inputs!A5,LEN(Inputs!A5)-3)&" ("&Inputs!B5&")" -> Approach C (5 year + glide) | D6: ='Working | Approach C'!D121 -> 6000 | E6: ='Working | Approach C'!E121 -> 6197.462355 | F6: ='Working | Approach C'!F121 -> 6323.984243 | G6: ='Working | Approach C'!G121 -> 6474.17664 | H6: ='Working | Approach C'!H121 -> 6663.815077 | I6: ='Working | Approach C'!I257 -> 6829.816967 | J6: ='Working | Approach C'!J257 -> 7123.342874 | K6: ='Working | Approach C'!K257 -> 7298.684856 | L6: ='Working | Approach C'!L257 -> 7513.56558 | M6: ='Working | Approach C'!M257 -> 7760.121687 | N6: ='Working | Approach C'!N393 -> 7888.384171 | O6: ='Working | Approach C'!O393 -> 8090.90697 | P6: ='Working | Approach C'!P393 -> 8333.18907 | Q6: ='Working | Approach C'!Q393 -> 8449.274029 | R6: ='Working | Approach C'!R393 -> 8565.501433 | S6: ='Working | Approach C'!S529 -> 8753.118534 | T6: ='Working | Approach C'!T529 -> 8922.759222 | U6: ='Working | Approach C'!U529 -> 9044.978075 | V6: ='Working | Approach C'!V529 -> 9246.558088 | W6: ='Working | Approach C'!W529 -> 9452.629317
A7: =RIGHT(Inputs!A6,LEN(Inputs!A6)-3)&" ("&Inputs!B6&")" -> Approach D (unindexed RAB) | D7: ='Working | Approach D'!D121 -> 6000 | E7: ='Working | Approach D'!E121 -> 6005.953992 | F7: ='Working | Approach D'!F121 -> 6018.944603 | G7: ='Working | Approach D'!G121 -> 6036.676596 | H7: ='Working | Approach D'!H121 -> 6060.186696 | I7: ='Working | Approach D'!I257 -> 6091.218398 | J7: ='Working | Approach D'!J257 -> 6128.463919 | K7: ='Working | Approach D'!K257 -> 6177.916886 | L7: ='Working | Approach D'!L257 -> 6235.065366 | M7: ='Working | Approach D'!M257 -> 6301.943866 | N7: ='Working | Approach D'!N393 -> 6380.403591 | O7: ='Working | Approach D'!O393 -> 6463.659702 | P7: ='Working | Approach D'!P393 -> 6556.537599 | Q7: ='Working | Approach D'!Q393 -> 6661.387913 | R7: ='Working | Approach D'!R393 -> 6772.062806 | S7: ='Working | Approach D'!S529 -> 6888.615564 | T7: ='Working | Approach D'!T529 -> 7015.885144 | U7: ='Working | Approach D'!U529 -> 7152.73103 | V7: ='Working | Approach D'!V529 -> 7296.569147 | W7: ='Working | Approach D'!W529 -> 7452.342059
A8: =RIGHT(Inputs!A7,LEN(Inputs!A7)-3)&" ("&Inputs!B7&")" -> Approach E (nominal - updated) | D8: ='Working | Approach E'!D121 -> 6000 | E8: ='Working | Approach E'!E121 -> 6177.940794 | F8: ='Working | Approach E'!F121 -> 6379.867148 | G8: ='Working | Approach E'!G121 -> 6510.095934 | H8: ='Working | Approach E'!H121 -> 6664.292224 | I8: ='Working | Approach E'!I257 -> 6858.370548 | J8: ='Working | Approach E'!J257 -> 7028.64811 | K8: ='Working | Approach E'!K257 -> 7326.215473 | L8: ='Working | Approach E'!L257 -> 7504.689664 | M8: ='Working | Approach E'!M257 -> 7722.943252 | N8: ='Working | Approach E'!N393 -> 7973.01477 | O8: ='Working | Approach E'!O393 -> 8104.336484 | P8: ='Working | Approach E'!P393 -> 8307.028248 | Q8: ='Working | Approach E'!Q393 -> 8549.397898 | R8: ='Working | Approach E'!R393 -> 8665.417303 | S8: ='Working | Approach E'!S529 -> 8781.541216 | T8: ='Working | Approach E'!T529 -> 8968.831546 | U8: ='Working | Approach E'!U529 -> 9140.482752 | V8: ='Working | Approach E'!V529 -> 9264.979338 | W8: ='Working | Approach E'!W529 -> 9468.362885
A9: =RIGHT(Inputs!A8,LEN(Inputs!A8)-3)&" ("&Inputs!B8&")" -> Approach F (nominal - indexed) | D9: ='Working | Approach F'!D121 -> 6000 | E9: ='Working | Approach F'!E121 -> 6197.109067 | F9: ='Working | Approach F'!F121 -> 6323.25887 | G9: ='Working | Approach F'!G121 -> 6473.061761 | H9: ='Working | Approach F'!H121 -> 6662.286465 | I9: ='Working | Approach F'!I257 -> 6827.858081 | J9: ='Working | Approach F'!J257 -> 7125.150695 | K9: ='Working | Approach F'!K257 -> 7304.551632 | L9: ='Working | Approach F'!L257 -> 7523.716328 | M9: ='Working | Approach F'!M257 -> 7774.835746 | N9: ='Working | Approach F'!N393 -> 7907.708331 | O9: ='Working | Approach F'!O393 -> 8125.610786 | P9: ='Working | Approach F'!P393 -> 8384.178442 | Q9: ='Working | Approach F'!Q393 -> 8516.65685 | R9: ='Working | Approach F'!R393 -> 8649.692475 | S9: ='Working | Approach F'!S529 -> 8855.232898 | T9: ='Working | Approach F'!T529 -> 9037.36315 | U9: ='Working | Approach F'!U529 -> 9171.858107 | V9: ='Working | Approach F'!V529 -> 9387.110743 | W9: ='Working | Approach F'!W529 -> 9607.392834
A10: =RIGHT(Inputs!A9,LEN(Inputs!A9)-3)&" ("&Inputs!B9&")" -> Approach G (hybrid - weighted CPI) | D10: ='Working | Approach G'!D121 -> 6000 | E10: ='Working | Approach G'!E121 -> 6161.613129 | F10: ='Working | Approach G'!F121 -> 6296.782967 | G10: ='Working | Approach G'!G121 -> 6443.316829 | H10: ='Working | Approach G'!H121 -> 6607.543923 | I10: ='Working | Approach G'!I257 -> 6764.378904 | J10: ='Working | Approach G'!J257 -> 6977.170246 | K10: ='Working | Approach G'!K257 -> 7145.453394 | L10: ='Working | Approach G'!L257 -> 7331.589824 | M10: ='Working | Approach G'!M257 -> 7532.482262 | N10: ='Working | Approach G'!N393 -> 7689.830753 | O10: ='Working | Approach G'!O393 -> 7886.811998 | P10: ='Working | Approach G'!P393 -> 8102.307361 | Q10: ='Working | Approach G'!Q393 -> 8271.81838 | R10: ='Working | Approach G'!R393 -> 8444.187457 | S10: ='Working | Approach G'!S529 -> 8647.555677 | T10: ='Working | Approach G'!T529 -> 8842.005967 | U10: ='Working | Approach G'!U529 -> 9020.696133 | V10: ='Working | Approach G'!V529 -> 9233.923278 | W10: ='Working | Approach G'!W529 -> 9452.173791
A11: =RIGHT(Inputs!A10,LEN(Inputs!A10)-3)&" ("&Inputs!B10&")" -> Approach H (hybrid - separate) | D11: ='Working | Approach H'!D133 -> 6000 | E11: ='Working | Approach H'!E133 -> 6161.613129 | F11: ='Working | Approach H'!F133 -> 6296.745551 | G11: ='Working | Approach H'!G133 -> 6443.285957 | H11: ='Working | Approach H'!H133 -> 6607.586598 | I11: ='Working | Approach H'!I282 -> 6764.463301 | J11: ='Working | Approach H'!J282 -> 6977.75004 | K11: ='Working | Approach H'!K282 -> 7146.073101 | L11: ='Working | Approach H'!L282 -> 7332.551239 | M11: ='Working | Approach H'!M282 -> 7534.105574 | N11: ='Working | Approach H'!N431 -> 7690.759375 | O11: ='Working | Approach H'!O431 -> 7887.942625 | P11: ='Working | Approach H'!P431 -> 8104.020575 | Q11: ='Working | Approach H'!Q431 -> 8272.504485 | R11: ='Working | Approach H'!R431 -> 8444.062329 | S11: ='Working | Approach H'!S580 -> 8647.423909 | T11: ='Working | Approach H'!T580 -> 8841.621656 | U11: ='Working | Approach H'!U580 -> 9019.771651 | V11: ='Working | Approach H'!V580 -> 9233.026781 | W11: ='Working | Approach H'!W580 -> 9451.315936
A12: =RIGHT(Inputs!A11,LEN(Inputs!A11)-3)&" ("&Inputs!B11&")" -> Approach I (hybrid + 5y glide) | D12: ='Working | Approach I'!D121 -> 6000 | E12: ='Working | Approach I'!E121 -> 6149.364215 | F12: ='Working | Approach I'!F121 -> 6271.714315 | G12: ='Working | Approach I'!G121 -> 6404.864217 | H12: ='Working | Approach I'!H121 -> 6555.039808 | I12: ='Working | Approach I'!I257 -> 6697.252859 | J12: ='Working | Approach I'!J257 -> 6897.086799 | K12: ='Working | Approach I'!K257 -> 7052.316799 | L12: ='Working | Approach I'!L257 -> 7224.667826 | M12: ='Working | Approach I'!M257 -> 7411.016665 | N12: ='Working | Approach I'!N393 -> 7553.945309 | O12: ='Working | Approach I'!O393 -> 7739.054382 | P12: ='Working | Approach I'!P393 -> 7941.934578 | Q12: ='Working | Approach I'!Q393 -> 8099.326816 | R12: ='Working | Approach I'!R393 -> 8259.128281 | S12: ='Working | Approach I'!S529 -> 8448.852115 | T12: ='Working | Approach I'!T529 -> 8634.199458 | U12: ='Working | Approach I'!U529 -> 8803.920046 | V12: ='Working | Approach I'!V529 -> 9007.079878 | W12: ='Working | Approach I'!W529 -> 9214.900986
A14: Real (actual) opening RAB ($y1)
A15: =A4 -> Base case | D15: =D4/(Inputs!D$35/Inputs!$D$35) -> 6000 | E15: =E4/(Inputs!E$35/Inputs!$D$35) -> 6000 | F15: =F4/(Inputs!F$35/Inputs!$D$35) -> 6000 | G15: =G4/(Inputs!G$35/Inputs!$D$35) -> 6000 | H15: =H4/(Inputs!H$35/Inputs!$D$35) -> 6000 | I15: =I4/(Inputs!I$35/Inputs!$D$35) -> 6000 | J15: =J4/(Inputs!J$35/Inputs!$D$35) -> 6001.111325 | K15: =K4/(Inputs!K$35/Inputs!$D$35) -> 6002.24257 | L15: =L4/(Inputs!L$35/Inputs!$D$35) -> 6003.368511 | M15: =M4/(Inputs!M$35/Inputs!$D$35) -> 6004.490773 | N15: =N4/(Inputs!N$35/Inputs!$D$35) -> 6005.63102 | O15: =O4/(Inputs!O$35/Inputs!$D$35) -> 6009.086737 | P15: =P4/(Inputs!P$35/Inputs!$D$35) -> 6012.528111 | Q15: =Q4/(Inputs!Q$35/Inputs!$D$35) -> 6016.023873 | R15: =R4/(Inputs!R$35/Inputs!$D$35) -> 6019.520236 | S15: =S4/(Inputs!S$35/Inputs!$D$35) -> 6022.988703 | T15: =T4/(Inputs!T$35/Inputs!$D$35) -> 6024.865958 | U15: =U4/(Inputs!U$35/Inputs!$D$35) -> 6026.753742 | V15: =V4/(Inputs!V$35/Inputs!$D$35) -> 6028.625659 | W15: =W4/(Inputs!W$35/Inputs!$D$35) -> 6030.497576
A16: Approach B (5 year) | D16: =D5/(Inputs!D$35/Inputs!$D$35) -> 6000 | E16: =E5/(Inputs!E$35/Inputs!$D$35) -> 6000.195651 | F16: =F5/(Inputs!F$35/Inputs!$D$35) -> 6000.393699 | G16: =G5/(Inputs!G$35/Inputs!$D$35) -> 6000.591101 | H16: =H5/(Inputs!H$35/Inputs!$D$35) -> 6000.78744 | I16: =I5/(Inputs!I$35/Inputs!$D$35) -> 6000.984619 | J16: =J5/(Inputs!J$35/Inputs!$D$35) -> 6002.289775 | K16: =K5/(Inputs!K$35/Inputs!$D$35) -> 6003.618326 | L16: =L5/(Inputs!L$35/Inputs!$D$35) -> 6004.940647 | M16: =M5/(Inputs!M$35/Inputs!$D$35) -> 6006.258648 | N16: =N5/(Inputs!N$35/Inputs!$D$35) -> 6007.59777 | O16: =O5/(Inputs!O$35/Inputs!$D$35) -> 6011.251485 | P16: =P5/(Inputs!P$35/Inputs!$D$35) -> 6014.890035 | Q16: =Q5/(Inputs!Q$35/Inputs!$D$35) -> 6018.58609 | R16: =R5/(Inputs!R$35/Inputs!$D$35) -> 6022.28278 | S16: =S5/(Inputs!S$35/Inputs!$D$35) -> 6025.949975 | T16: =T5/(Inputs!T$35/Inputs!$D$35) -> 6028.026002 | U16: =U5/(Inputs!U$35/Inputs!$D$35) -> 6030.113673 | V16: =V5/(Inputs!V$35/Inputs!$D$35) -> 6032.183796 | W16: =W5/(Inputs!W$35/Inputs!$D$35) -> 6034.25392
A17: Approach C (5 year + glide) | D17: =D6/(Inputs!D$35/Inputs!$D$35) -> 6000 | E17: =E6/(Inputs!E$35/Inputs!$D$35) -> 6000.342051 | F17: =F6/(Inputs!F$35/Inputs!$D$35) -> 6000.68829 | G17: =G6/(Inputs!G$35/Inputs!$D$35) -> 6001.033402 | H17: =H6/(Inputs!H$35/Inputs!$D$35) -> 6001.376655 | I17: =I6/(Inputs!I$35/Inputs!$D$35) -> 6001.721376 | J17: =J6/(Inputs!J$35/Inputs!$D$35) -> 6003.171569 | K17: =K6/(Inputs!K$35/Inputs!$D$35) -> 6004.647758 | L17: =L6/(Inputs!L$35/Inputs!$D$35) -> 6006.117024 | M17: =M6/(Inputs!M$35/Inputs!$D$35) -> 6007.581489 | N17: =N6/(Inputs!N$35/Inputs!$D$35) -> 6009.069424 | O17: =O6/(Inputs!O$35/Inputs!$D$35) -> 6012.871293 | P17: =P6/(Inputs!P$35/Inputs!$D$35) -> 6016.657384 | Q17: =Q6/(Inputs!Q$35/Inputs!$D$35) -> 6020.503311 | R17: =R6/(Inputs!R$35/Inputs!$D$35) -> 6024.349899 | S17: =S6/(Inputs!S$35/Inputs!$D$35) -> 6028.165796 | T17: =T6/(Inputs!T$35/Inputs!$D$35) -> 6030.390557 | U17: =U6/(Inputs!U$35/Inputs!$D$35) -> 6032.627796 | V17: =V6/(Inputs!V$35/Inputs!$D$35) -> 6034.846231 | W17: =W6/(Inputs!W$35/Inputs!$D$35) -> 6037.064666
A18: Approach D (unindexed RAB) | D18: =D7/(Inputs!D$35/Inputs!$D$35) -> 6000 | E18: =E7/(Inputs!E$35/Inputs!$D$35) -> 5814.924921 | F18: =F7/(Inputs!F$35/Inputs!$D$35) -> 5711.242946 | G18: =G7/(Inputs!G$35/Inputs!$D$35) -> 5595.506565 | H18: =H7/(Inputs!H$35/Inputs!$D$35) -> 5457.753935 | I18: =I7/(Inputs!I$35/Inputs!$D$35) -> 5352.675751 | J18: =J7/(Inputs!J$35/Inputs!$D$35) -> 5164.740911 | K18: =K7/(Inputs!K$35/Inputs!$D$35) -> 5082.588919 | L18: =L7/(Inputs!L$35/Inputs!$D$35) -> 4984.12263 | M18: =M7/(Inputs!M$35/Inputs!$D$35) -> 4878.717479 | N18: =N7/(Inputs!N$35/Inputs!$D$35) -> 4860.347481 | O18: =O7/(Inputs!O$35/Inputs!$D$35) -> 4803.559603 | P18: =P7/(Inputs!P$35/Inputs!$D$35) -> 4733.894794 | Q18: =Q7/(Inputs!Q$35/Inputs!$D$35) -> 4746.550751 | R18: =R7/(Inputs!R$35/Inputs!$D$35) -> 4762.975781 | S18: =S7/(Inputs!S$35/Inputs!$D$35) -> 4744.105379 | T18: =T7/(Inputs!T$35/Inputs!$D$35) -> 4741.641736 | U18: =U7/(Inputs!U$35/Inputs!$D$35) -> 4770.576962 | V18: =V7/(Inputs!V$35/Inputs!$D$35) -> 4762.169057 | W18: =W7/(Inputs!W$35/Inputs!$D$35) -> 4759.550958
A19: Approach E (nominal - updated) | D19: =D8/(Inputs!D$35/Inputs!$D$35) -> 6000 | E19: =E8/(Inputs!E$35/Inputs!$D$35) -> 5981.441405 | F19: =F8/(Inputs!F$35/Inputs!$D$35) -> 6053.714339 | G19: =G8/(Inputs!G$35/Inputs!$D$35) -> 6034.327656 | H19: =H8/(Inputs!H$35/Inputs!$D$35) -> 6001.806369 | I19: =I8/(Inputs!I$35/Inputs!$D$35) -> 6026.812918 | J19: =J8/(Inputs!J$35/Inputs!$D$35) -> 5923.367898 | K19: =K8/(Inputs!K$35/Inputs!$D$35) -> 6027.29727 | L19: =L8/(Inputs!L$35/Inputs!$D$35) -> 5999.021884 | M19: =M8/(Inputs!M$35/Inputs!$D$35) -> 5978.799405 | N19: =N8/(Inputs!N$35/Inputs!$D$35) -> 6073.537778 | O19: =O8/(Inputs!O$35/Inputs!$D$35) -> 6022.851625 | P19: =P8/(Inputs!P$35/Inputs!$D$35) -> 5997.768972 | Q19: =Q8/(Inputs!Q$35/Inputs!$D$35) -> 6091.846255 | R19: =R8/(Inputs!R$35/Inputs!$D$35) -> 6094.623445 | S19: =S8/(Inputs!S$35/Inputs!$D$35) -> 6047.740149 | T19: =T8/(Inputs!T$35/Inputs!$D$35) -> 6061.528247 | U19: =U8/(Inputs!U$35/Inputs!$D$35) -> 6096.325481 | V19: =V8/(Inputs!V$35/Inputs!$D$35) -> 6046.869019 | W19: =W8/(Inputs!W$35/Inputs!$D$35) -> 6047.113147
A20: Approach F (nominal - indexed) | D20: =D9/(Inputs!D$35/Inputs!$D$35) -> 6000 | E20: =E9/(Inputs!E$35/Inputs!$D$35) -> 6000 | F20: =F9/(Inputs!F$35/Inputs!$D$35) -> 6000 | G20: =G9/(Inputs!G$35/Inputs!$D$35) -> 6000 | H20: =H9/(Inputs!H$35/Inputs!$D$35) -> 6000 | I20: =I9/(Inputs!I$35/Inputs!$D$35) -> 6000 | J20: =J9/(Inputs!J$35/Inputs!$D$35) -> 6004.695104 | K20: =K9/(Inputs!K$35/Inputs!$D$35) -> 6009.474369 | L20: =L9/(Inputs!L$35/Inputs!$D$35) -> 6014.231224 | M20: =M9/(Inputs!M$35/Inputs!$D$35) -> 6018.972536 | N20: =N9/(Inputs!N$35/Inputs!$D$35) -> 6023.78983 | O20: =O9/(Inputs!O$35/Inputs!$D$35) -> 6038.661922 | P20: =P9/(Inputs!P$35/Inputs!$D$35) -> 6053.47229 | Q20: =Q9/(Inputs!Q$35/Inputs!$D$35) -> 6068.516726 | R20: =R9/(Inputs!R$35/Inputs!$D$35) -> 6083.563746 | S20: =S9/(Inputs!S$35/Inputs!$D$35) -> 6098.490711 | T20: =T9/(Inputs!T$35/Inputs!$D$35) -> 6107.8449 | U20: =U9/(Inputs!U$35/Inputs!$D$35) -> 6117.25155 | V20: =V9/(Inputs!V$35/Inputs!$D$35) -> 6126.579138 | W20: =W9/(Inputs!W$35/Inputs!$D$35) -> 6135.906726
A21: Approach G (hybrid - weighted CPI) | D21: =D10/(Inputs!D$35/Inputs!$D$35) -> 6000 | E21: =E10/(Inputs!E$35/Inputs!$D$35) -> 5965.633068 | F21: =F10/(Inputs!F$35/Inputs!$D$35) -> 5974.877604 | G21: =G10/(Inputs!G$35/Inputs!$D$35) -> 5972.428876 | H21: =H10/(Inputs!H$35/Inputs!$D$35) -> 5950.69932 | I21: =I10/(Inputs!I$35/Inputs!$D$35) -> 5944.21749 | J21: =J10/(Inputs!J$35/Inputs!$D$35) -> 5879.985113 | K21: =K10/(Inputs!K$35/Inputs!$D$35) -> 5878.583819 | L21: =L10/(Inputs!L$35/Inputs!$D$35) -> 5860.651109 | M21: =M10/(Inputs!M$35/Inputs!$D$35) -> 5831.351985 | N21: =N10/(Inputs!N$35/Inputs!$D$35) -> 5857.819022 | O21: =O10/(Inputs!O$35/Inputs!$D$35) -> 5861.195245 | P21: =P10/(Inputs!P$35/Inputs!$D$35) -> 5849.958161 | Q21: =Q10/(Inputs!Q$35/Inputs!$D$35) -> 5894.057853 | R21: =R10/(Inputs!R$35/Inputs!$D$35) -> 5939.026483 | S21: =S10/(Inputs!S$35/Inputs!$D$35) -> 5955.465946 | T21: =T10/(Inputs!T$35/Inputs!$D$35) -> 5975.81398 | U21: =U10/(Inputs!U$35/Inputs!$D$35) -> 6016.432741 | V21: =V10/(Inputs!V$35/Inputs!$D$35) -> 6026.600013 | W21: =W10/(Inputs!W$35/Inputs!$D$35) -> 6036.773737
A22: Approach H (hybrid - separate) | D22: =D11/(Inputs!D$35/Inputs!$D$35) -> 6000 | E22: =E11/(Inputs!E$35/Inputs!$D$35) -> 5965.633068 | F22: =F11/(Inputs!F$35/Inputs!$D$35) -> 5974.8421 | G22: =G11/(Inputs!G$35/Inputs!$D$35) -> 5972.40026 | H22: =H11/(Inputs!H$35/Inputs!$D$35) -> 5950.737753 | I22: =I11/(Inputs!I$35/Inputs!$D$35) -> 5944.291653 | J22: =J11/(Inputs!J$35/Inputs!$D$35) -> 5880.473733 | K22: =K11/(Inputs!K$35/Inputs!$D$35) -> 5879.093654 | L22: =L11/(Inputs!L$35/Inputs!$D$35) -> 5861.419635 | M22: =M11/(Inputs!M$35/Inputs!$D$35) -> 5832.608689 | N22: =N11/(Inputs!N$35/Inputs!$D$35) -> 5858.526411 | O22: =O11/(Inputs!O$35/Inputs!$D$35) -> 5862.035486 | P22: =P11/(Inputs!P$35/Inputs!$D$35) -> 5851.195121 | Q22: =Q11/(Inputs!Q$35/Inputs!$D$35) -> 5894.546735 | R22: =R11/(Inputs!R$35/Inputs!$D$35) -> 5938.938477 | S22: =S11/(Inputs!S$35/Inputs!$D$35) -> 5955.375199 | T22: =T11/(Inputs!T$35/Inputs!$D$35) -> 5975.554245 | U22: =U11/(Inputs!U$35/Inputs!$D$35) -> 6015.81615 | V22: =V11/(Inputs!V$35/Inputs!$D$35) -> 6026.014906 | W22: =W11/(Inputs!W$35/Inputs!$D$35) -> 6036.225855
A23: Approach I (hybrid + 5y glide) | D23: =D12/(Inputs!D$35/Inputs!$D$35) -> 6000 | E23: =E12/(Inputs!E$35/Inputs!$D$35) -> 5953.77375 | F23: =F12/(Inputs!F$35/Inputs!$D$35) -> 5951.090516 | G23: =G12/(Inputs!G$35/Inputs!$D$35) -> 5936.786443 | H23: =H12/(Inputs!H$35/Inputs!$D$35) -> 5903.414549 | I23: =I12/(Inputs!I$35/Inputs!$D$35) -> 5885.230284 | J23: =J12/(Inputs!J$35/Inputs!$D$35) -> 5812.495077 | K23: =K12/(Inputs!K$35/Inputs!$D$35) -> 5801.960091 | L23: =L12/(Inputs!L$35/Inputs!$D$35) -> 5775.180898 | M23: =M12/(Inputs!M$35/Inputs!$D$35) -> 5737.31809 | N23: =N12/(Inputs!N$35/Inputs!$D$35) -> 5754.306687 | O23: =O12/(Inputs!O$35/Inputs!$D$35) -> 5751.387095 | P23: =P12/(Inputs!P$35/Inputs!$D$35) -> 5734.167186 | Q23: =Q12/(Inputs!Q$35/Inputs!$D$35) -> 5771.149538 | R23: =R12/(Inputs!R$35/Inputs!$D$35) -> 5808.869336 | S23: =S12/(Inputs!S$35/Inputs!$D$35) -> 5818.62123 | T23: =T12/(Inputs!T$35/Inputs!$D$35) -> 5835.369261 | U23: =U12/(Inputs!U$35/Inputs!$D$35) -> 5871.85202 | V23: =V12/(Inputs!V$35/Inputs!$D$35) -> 5878.548703 | W23: =W12/(Inputs!W$35/Inputs!$D$35) -> 5885.235872
A25: Revenues | B25: Year | C25: 0 | D25: 1 | E25: 2 | F25: 3 | G25: 4 | H25: 5 | I25: 6 | J25: 7 | K25: 8 | L25: 9 | M25: 10 | N25: 11 | O25: 12 | P25: 13 | Q25: 14 | R25: 15 | S25: 16 | T25: 17 | U25: 18 | V25: 19 | W25: 20
A26: Nominal allowed revenue
A27: =A4 -> Base case | C27: ='Working | Base case'!$C$111 -> 480 | D27: ='Working | Base case'!D111 -> 392.5987111 | E27: ='Working | Base case'!E111 -> 412.650308 | F27: ='Working | Base case'!F111 -> 428.4788707 | G27: ='Working | Base case'!G111 -> 446.3685774 | H27: ='Working | Base case'!H111 -> 467.5225694 | I27: ='Working | Base case'!I247 -> 488.5266907 | J27: ='Working | Base case'!J247 -> 519.1445885 | K27: ='Working | Base case'!K247 -> 541.9665595 | L27: ='Working | Base case'!L247 -> 568.4573455 | M27: ='Working | Base case'!M247 -> 598.1975484 | N27: ='Working | Base case'!N383 -> 622.5565335 | O27: ='Working | Base case'!O383 -> 652.0638772 | P27: ='Working | Base case'!P383 -> 685.8160973 | Q27: ='Working | Base case'!Q383 -> 710.0929399 | R27: ='Working | Base case'!R383 -> 735.102807 | S27: ='Working | Base case'!S519 -> 767.4582336 | T27: ='Working | Base case'!T519 -> 800.1704791 | U27: ='Working | Base case'!U519 -> 829.6242563 | V27: ='Working | Base case'!V519 -> 867.453113 | W27: ='Working | Base case'!W519 -> 907.006874
A28: Approach B (5 year) | C28: =C27 -> 480 | D28: ='Working | Approach B'!D111 -> 404.1247927 | E28: ='Working | Approach B'!E111 -> 424.5563914 | F28: ='Working | Approach B'!F111 -> 440.6250713 | G28: ='Working | Approach B'!G111 -> 458.7963906 | H28: ='Working | Approach B'!H111 -> 480.3032702 | I28: ='Working | Approach B'!I247 -> 501.6298516 | J28: ='Working | Approach B'!J247 -> 532.8111123 | K28: ='Working | Approach B'!K247 -> 555.9648038 | L28: ='Working | Approach B'!L247 -> 582.8577251 | M28: ='Working | Approach B'!M247 -> 613.0546189 | N28: ='Working | Approach B'!N383 -> 639.8195528 | O28: ='Working | Approach B'!O383 -> 669.682901 | P28: ='Working | Approach B'!P383 -> 703.861318 | Q28: ='Working | Approach B'!Q383 -> 728.2742826 | R28: ='Working | Approach B'!R383 -> 753.4045107 | S28: ='Working | Approach B'!S519 -> 786.5633209 | T28: ='Working | Approach B'!T519 -> 819.5390864 | U28: ='Working | Approach B'!U519 -> 849.1351004 | V28: ='Working | Approach B'!V519 -> 887.2572726 | W28: ='Working | Approach B'!W519 -> 927.0909511
A29: Approach C (5 year + glide) | C29: =C28 -> 480 | D29: ='Working | Approach C'!D111 -> 413.7159315 | E29: ='Working | Approach C'!E111 -> 434.2130062 | F29: ='Working | Approach C'!F111 -> 450.2122874 | G29: ='Working | Approach C'!G111 -> 468.3266008 | H29: ='Working | Approach C'!H111 -> 489.8070949 | I29: ='Working | Approach C'!I247 -> 512.8487585 | J29: ='Working | Approach C'!J247 -> 544.7290481 | K29: ='Working | Approach C'!K247 -> 568.4023772 | L29: ='Working | Approach C'!L247 -> 595.8987432 | M29: ='Working | Approach C'!M247 -> 626.7731837 | N29: ='Working | Approach C'!N383 -> 652.7114862 | O29: ='Working | Approach C'!O383 -> 682.8406678 | P29: ='Working | Approach C'!P383 -> 717.3377516 | Q29: ='Working | Approach C'!Q383 -> 741.8532159 | R29: ='Working | Approach C'!R383 -> 767.0746778 | S29: ='Working | Approach C'!S519 -> 800.835226 | T29: ='Working | Approach C'!T519 -> 834.0077624 | U29: ='Working | Approach C'!U519 -> 863.7104197 | V29: ='Working | Approach C'!V519 -> 902.0526302 | W29: ='Working | Approach C'!W519 -> 942.0969448
A30: Approach D (unindexed RAB) | C30: 480 | D30: ='Working | Approach D'!D111 -> 543.014111 | E30: ='Working | Approach D'!E111 -> 556.208042 | F30: ='Working | Approach D'!F111 -> 562.8301387 | G30: ='Working | Approach D'!G111 -> 571.3923126 | H30: ='Working | Approach D'!H111 -> 583.2250972 | I30: ='Working | Approach D'!I247 -> 589.6948962 | J30: ='Working | Approach D'!J247 -> 613.6604662 | K30: ='Working | Approach D'!K247 -> 627.3545418 | L30: ='Working | Approach D'!L247 -> 644.3757386 | M30: ='Working | Approach D'!M247 -> 664.0284214 | N30: ='Working | Approach D'!N383 -> 663.8789481 | O30: ='Working | Approach D'!O383 -> 683.8469364 | P30: ='Working | Approach D'!P383 -> 707.3512087 | Q30: ='Working | Approach D'!Q383 -> 720.2798773 | R30: ='Working | Approach D'!R383 -> 733.3188186 | S30: ='Working | Approach D'!S519 -> 763.6566982 | T30: ='Working | Approach D'!T519 -> 785.4471938 | U30: ='Working | Approach D'!U519 -> 803.3540008 | V30: ='Working | Approach D'!V519 -> 828.6336801 | W30: ='Working | Approach D'!W519 -> 854.7088521
A31: Approach E (nominal - updated) | C31: 480 | D31: ='Working | Approach E'!D111 -> 353.6227334 | E31: ='Working | Approach E'!E111 -> 380.1665187 | F31: ='Working | Approach E'!F111 -> 403.758323 | G31: ='Working | Approach E'!G111 -> 430.215523 | H31: ='Working | Approach E'!H111 -> 460.8880291 | I31: ='Working | Approach E'!I247 -> 478.3026924 | J31: ='Working | Approach E'!J247 -> 486.7633047 | K31: ='Working | Approach E'!K247 -> 486.6502609 | L31: ='Working | Approach E'!L247 -> 488.8294059 | M31: ='Working | Approach E'!M247 -> 492.6279402 | N31: ='Working | Approach E'!N383 -> 687.4382642 | O31: ='Working | Approach E'!O383 -> 703.097432 | P31: ='Working | Approach E'!P383 -> 722.1102458 | Q31: ='Working | Approach E'!Q383 -> 730.0985569 | R31: ='Working | Approach E'!R383 -> 738.0483934 | S31: ='Working | Approach E'!S519 -> 787.5353161 | T31: ='Working | Approach E'!T519 -> 829.5037237 | U31: ='Working | Approach E'!U519 -> 868.8359509 | V31: ='Working | Approach E'!V519 -> 917.7467983 | W31: ='Working | Approach E'!W519 -> 969.4110666
A32: Approach F (nominal - indexed) | C32: 480 | D32: ='Working | Approach F'!D111 -> 392.5987111 | E32: ='Working | Approach F'!E111 -> 412.650308 | F32: ='Working | Approach F'!F111 -> 428.4788707 | G32: ='Working | Approach F'!G111 -> 446.3685774 | H32: ='Working | Approach F'!H111 -> 467.5225694 | I32: ='Working | Approach F'!I247 -> 481.8720135 | J32: ='Working | Approach F'!J247 -> 512.2980622 | K32: ='Working | Approach F'!K247 -> 535.0542853 | L32: ='Working | Approach F'!L247 -> 561.4540429 | M32: ='Working | Approach F'!M247 -> 591.0877161 | N32: ='Working | Approach F'!N383 -> 598.1417499 | O32: ='Working | Approach F'!O383 -> 627.3089883 | P32: ='Working | Approach F'!P383 -> 660.6403407 | Q32: ='Working | Approach F'!Q383 -> 684.9181205 | R32: ='Working | Approach F'!R383 -> 709.9660625 | S32: ='Working | Approach F'!S519 -> 751.3001123 | T32: ='Working | Approach F'!T519 -> 783.9201723 | U32: ='Working | Approach F'!U519 -> 813.3947555 | V32: ='Working | Approach F'!V519 -> 851.1312725 | W32: ='Working | Approach F'!W519 -> 890.6185319
A33: Approach G (hybrid - weighted CPI) | C33: 480 | D33: ='Working | Approach G'!D111 -> 392.5987111 | E33: ='Working | Approach G'!E111 -> 411.1235751 | F33: ='Working | Approach G'!F111 -> 427.3134729 | G33: ='Working | Approach G'!G111 -> 445.040758 | H33: ='Working | Approach G'!H111 -> 465.0931838 | I33: ='Working | Approach G'!I247 -> 484.5285688 | J33: ='Working | Approach G'!J247 -> 511.5844905 | K33: ='Working | Approach G'!K247 -> 533.9662054 | L33: ='Working | Approach G'!L247 -> 559.0641866 | M33: ='Working | Approach G'!M247 -> 586.6450284 | N33: ='Working | Approach G'!N383 -> 607.548951 | O33: ='Working | Approach G'!O383 -> 636.4695132 | P33: ='Working | Approach G'!P383 -> 668.6844289 | Q33: ='Working | Approach G'!Q383 -> 694.968078 | R33: ='Working | Approach G'!R383 -> 722.1537815 | S33: ='Working | Approach G'!S519 -> 757.6628315 | T33: ='Working | Approach G'!T519 -> 791.2160162 | U33: ='Working | Approach G'!U519 -> 822.9282495 | V33: ='Working | Approach G'!V519 -> 861.1031369 | W33: ='Working | Approach G'!W519 -> 901.0430099
A34: =A11 -> Approach H (hybrid - separate) | C34: 480 | D34: ='Working | Approach H'!D111 -> 392.5987111 | E34: ='Working | Approach H'!E111 -> 411.0454486 | F34: ='Working | Approach H'!F111 -> 427.2577278 | G34: ='Working | Approach H'!G111 -> 445.0891467 | H34: ='Working | Approach H'!H111 -> 465.3492229 | I34: ='Working | Approach H'!I260 -> 484.7113898 | J34: ='Working | Approach H'!J260 -> 511.7021472 | K34: ='Working | Approach H'!K260 -> 534.156629 | L34: ='Working | Approach H'!L260 -> 559.4598928 | M34: ='Working | Approach H'!M260 -> 587.4151565 | N34: ='Working | Approach H'!N409 -> 608.7908064 | O34: ='Working | Approach H'!O409 -> 637.6301319 | P34: ='Working | Approach H'!P409 -> 669.9118642 | Q34: ='Working | Approach H'!Q409 -> 696.3306047 | R34: ='Working | Approach H'!R409 -> 723.7661759 | S34: ='Working | Approach H'!S558 -> 758.5831039 | T34: ='Working | Approach H'!T558 -> 791.9903969 | U34: ='Working | Approach H'!U558 -> 823.6685131 | V34: ='Working | Approach H'!V558 -> 861.9495111 | W34: ='Working | Approach H'!W558 -> 902.1704274
A35: Approach I (hybrid + 5y glide) | C35: 480 | D35: ='Working | Approach I'!D111 -> 413.7159315 | E35: ='Working | Approach I'!E111 -> 430.8429126 | F35: ='Working | Approach I'!F111 -> 446.4907126 | G35: ='Working | Approach I'!G111 -> 463.3119865 | H35: ='Working | Approach I'!H111 -> 481.8106365 | I35: ='Working | Approach I'!I247 -> 503.2937112 | J35: ='Working | Approach I'!J247 -> 527.7487243 | K35: ='Working | Approach I'!K247 -> 549.4411877 | L35: ='Working | Approach I'!L247 -> 573.1063431 | M35: ='Working | Approach I'!M247 -> 598.5791041 | N35: ='Working | Approach I'!N383 -> 625.533398 | O35: ='Working | Approach I'!O383 -> 653.2546743 | P35: ='Working | Approach I'!P383 -> 683.3453991 | Q35: ='Working | Approach I'!Q383 -> 710.3480352 | R35: ='Working | Approach I'!R383 -> 738.3671213 | S35: ='Working | Approach I'!S519 -> 771.1249062 | T35: ='Working | Approach I'!T519 -> 804.426384 | U35: ='Working | Approach I'!U519 -> 837.2945151 | V35: ='Working | Approach I'!V519 -> 874.449675 | W35: ='Working | Approach I'!W519 -> 913.2536046
A37: Real allowed revenue ($y0)
A38: =A27 -> Base case | C38: =C27/Inputs!C$35 -> 480 | D38: =D27/Inputs!D$35 -> 381.2489455 | E38: =E27/Inputs!E$35 -> 387.9752896 | F38: =F27/Inputs!F$35 -> 394.820306 | G38: =G27/Inputs!G$35 -> 401.7860885 | H38: =H27/Inputs!H$35 -> 408.8747678 | I38: =I27/Inputs!I$35 -> 416.883631 | J38: =J27/Inputs!J$35 -> 424.8591926 | K38: =K27/Inputs!K$35 -> 432.9873378 | L38: =L27/Inputs!L$35 -> 441.2709856 | M38: =M27/Inputs!M$35 -> 449.7131111 | N38: =N27/Inputs!N$35 -> 460.5298081 | O38: =O27/Inputs!O$35 -> 470.5812551 | P38: =P27/Inputs!P$35 -> 480.8520834 | Q38: =Q27/Inputs!Q$35 -> 491.3470811 | R38: =R27/Inputs!R$35 -> 502.0711408 | S38: =S27/Inputs!S$35 -> 513.2593979 | T38: =T27/Inputs!T$35 -> 525.1562914 | U38: =U27/Inputs!U$35 -> 537.3289442 | V38: =V27/Inputs!V$35 -> 549.7837483 | W38: =W27/Inputs!W$35 -> 562.5272436
A39: Approach B (5 year) | C39: =C28/Inputs!C$35 -> 480 | D39: =D28/Inputs!D$35 -> 392.4418157 | E39: =E28/Inputs!E$35 -> 399.1694316 | F39: =F28/Inputs!F$35 -> 406.0123787 | G39: =G28/Inputs!G$35 -> 412.9726342 | H39: =H28/Inputs!H$35 -> 420.0522091 | I39: =I28/Inputs!I$35 -> 428.0651967 | J39: =J28/Inputs!J$35 -> 436.0436456 | K39: =K28/Inputs!K$35 -> 444.1708 | L39: =L28/Inputs!L$35 -> 452.4494316 | M39: =M28/Inputs!M$35 -> 460.8823635 | N39: =N28/Inputs!N$35 -> 473.2999495 | O39: =O28/Inputs!O$35 -> 483.2965467 | P39: =P28/Inputs!P$35 -> 493.5042827 | Q39: =Q28/Inputs!Q$35 -> 503.9276169 | R39: =R28/Inputs!R$35 -> 514.571103 | S39: =S28/Inputs!S$35 -> 526.0364653 | T39: =T28/Inputs!T$35 -> 537.868015 | U39: =U28/Inputs!U$35 -> 549.9656785 | V39: =V28/Inputs!V$35 -> 562.3354412 | W39: =W28/Inputs!W$35 -> 574.9834232
A40: Approach C (5 year + glide) | C40: =C29/Inputs!C$35 -> 480 | D40: =D29/Inputs!D$35 -> 401.7556812 | E40: =E29/Inputs!E$35 -> 408.2486153 | F40: =F29/Inputs!F$35 -> 414.8464843 | G40: =G29/Inputs!G$35 -> 421.5509841 | H40: =H29/Inputs!H$35 -> 428.3638381 | I40: =I29/Inputs!I$35 -> 437.6388367 | J40: =J29/Inputs!J$35 -> 445.7970837 | K40: =K29/Inputs!K$35 -> 454.1074127 | L40: =L29/Inputs!L$35 -> 462.5726588 | M40: =M29/Inputs!M$35 -> 471.1957099 | N40: =N29/Inputs!N$35 -> 482.836625 | O40: =O29/Inputs!O$35 -> 492.7922397 | P40: =P29/Inputs!P$35 -> 502.9531295 | Q40: =Q29/Inputs!Q$35 -> 513.3235267 | R40: =R29/Inputs!R$35 -> 523.9077513 | S40: =S29/Inputs!S$35 -> 535.5812055 | T40: =T29/Inputs!T$35 -> 547.3638867 | U40: =U29/Inputs!U$35 -> 559.4057846 | V40: =V29/Inputs!V$35 -> 571.7126018 | W40: =W29/Inputs!W$35 -> 584.2901666
A41: Approach D (unindexed RAB) | C41: =C30/Inputs!C$35 -> 480 | D41: =D30/Inputs!D$35 -> 527.3159369 | E41: =E30/Inputs!E$35 -> 522.9487825 | F41: =F30/Inputs!F$35 -> 518.6177962 | G41: =G30/Inputs!G$35 -> 514.3226785 | H41: =H30/Inputs!H$35 -> 510.0631323 | I41: =I30/Inputs!I$35 -> 503.2153907 | J41: =J30/Inputs!J$35 -> 502.2093959 | K41: =K30/Inputs!K$35 -> 501.2054123 | L41: =L30/Inputs!L$35 -> 500.2034358 | M41: =M30/Inputs!M$35 -> 499.2034623 | N41: =N30/Inputs!N$35 -> 491.0976403 | O41: =O30/Inputs!O$35 -> 493.5184434 | P41: =P30/Inputs!P$35 -> 495.9511796 | Q41: =Q30/Inputs!Q$35 -> 498.3959076 | R41: =R30/Inputs!R$35 -> 500.8526866 | S41: =S30/Inputs!S$35 -> 510.7170136 | T41: =T30/Inputs!T$35 -> 515.4933181 | U41: =U30/Inputs!U$35 -> 520.3142915 | V41: =V30/Inputs!V$35 -> 525.1803513 | W41: =W30/Inputs!W$35 -> 530.0919193
A42: Approach E (nominal - updated) | C42: =C31/Inputs!C$35 -> 480 | D42: =D31/Inputs!D$35 -> 343.3997372 | E42: =E31/Inputs!E$35 -> 357.4339152 | F42: =F31/Inputs!F$35 -> 372.0416467 | G42: =G31/Inputs!G$35 -> 387.2463721 | H42: =H31/Inputs!H$35 -> 403.0724894 | I42: =I31/Inputs!I$35 -> 408.158995 | J42: =J31/Inputs!J$35 -> 398.358895 | K42: =K31/Inputs!K$35 -> 388.7941003 | L42: =L31/Inputs!L$35 -> 379.4589611 | M42: =M31/Inputs!M$35 -> 370.3479632 | N42: =N31/Inputs!N$35 -> 508.5254027 | O42: =O31/Inputs!O$35 -> 507.411135 | P42: =P31/Inputs!P$35 -> 506.2993089 | Q42: =Q31/Inputs!Q$35 -> 505.189919 | R42: =R31/Inputs!R$35 -> 504.08296 | S42: =S31/Inputs!S$35 -> 526.6865145 | T42: =T31/Inputs!T$35 -> 544.4078613 | U42: =U31/Inputs!U$35 -> 562.7254757 | V42: =V31/Inputs!V$35 -> 581.6594202 | W42: =W31/Inputs!W$35 -> 601.2304325
A43: Approach F (nominal - indexed) | C43: =C32/Inputs!C$35 -> 480 | D43: =D32/Inputs!D$35 -> 381.2489455 | E43: =E32/Inputs!E$35 -> 387.9752896 | F43: =F32/Inputs!F$35 -> 394.820306 | G43: =G32/Inputs!G$35 -> 401.7860885 | H43: =H32/Inputs!H$35 -> 408.8747678 | I43: =I32/Inputs!I$35 -> 411.2048706 | J43: =J32/Inputs!J$35 -> 419.2561107 | K43: =K32/Inputs!K$35 -> 427.4649912 | L43: =L32/Inputs!L$35 -> 435.8345984 | M43: =M32/Inputs!M$35 -> 444.3680796 | N43: =N32/Inputs!N$35 -> 442.4692224 | O43: =O32/Inputs!O$35 -> 452.7161547 | P43: =P32/Inputs!P$35 -> 463.2003907 | Q43: =Q32/Inputs!Q$35 -> 473.9274261 | R43: =R32/Inputs!R$35 -> 484.9028838 | S43: =S32/Inputs!S$35 -> 502.4531973 | T43: =T32/Inputs!T$35 -> 514.4911255 | U43: =U32/Inputs!U$35 -> 526.8174622 | V43: =V32/Inputs!V$35 -> 539.439117 | W43: =W32/Inputs!W$35 -> 552.3631652
A44: Approach G (hybrid - weighted CPI) | C44: =C33/Inputs!C$35 -> 480 | D44: =D33/Inputs!D$35 -> 381.2489455 | E44: =E33/Inputs!E$35 -> 386.5398499 | F44: =F33/Inputs!F$35 -> 393.7464544 | G44: =G33/Inputs!G$35 -> 400.5908893 | H44: =H33/Inputs!H$35 -> 406.7501335 | I44: =I33/Inputs!I$35 -> 413.4718387 | J44: =J33/Inputs!J$35 -> 418.6721357 | K44: =K33/Inputs!K$35 -> 426.5957036 | L44: =L33/Inputs!L$35 -> 433.9794474 | M44: =M33/Inputs!M$35 -> 441.0281546 | N44: =N33/Inputs!N$35 -> 449.4281029 | O44: =O33/Inputs!O$35 -> 459.3271194 | P44: =P33/Inputs!P$35 -> 468.8404108 | Q44: =Q33/Inputs!Q$35 -> 480.8814697 | R44: =R33/Inputs!R$35 -> 493.2270282 | S44: =S33/Inputs!S$35 -> 506.7084457 | T44: =T33/Inputs!T$35 -> 519.279428 | U44: =U33/Inputs!U$35 -> 532.9920915 | V44: =V33/Inputs!V$35 -> 545.7591922 | W44: =W33/Inputs!W$35 -> 558.8284447
A45: =A34 -> Approach H (hybrid - separate) | C45: =C34/Inputs!C$35 -> 480 | D45: =D34/Inputs!D$35 -> 381.2489455 | E45: =E34/Inputs!E$35 -> 386.466395 | F45: =F34/Inputs!F$35 -> 393.6950884 | G45: =G34/Inputs!G$35 -> 400.6344451 | H45: =H34/Inputs!H$35 -> 406.9740541 | I45: =I34/Inputs!I$35 -> 413.6278488 | J45: =J34/Inputs!J$35 -> 418.7684239 | K45: =K34/Inputs!K$35 -> 426.7478366 | L45: =L34/Inputs!L$35 -> 434.2866185 | M45: =M34/Inputs!M$35 -> 441.6071217 | N45: =N34/Inputs!N$35 -> 450.3467527 | O45: =O34/Inputs!O$35 -> 460.1647143 | P45: =P34/Inputs!P$35 -> 469.701013 | Q45: =Q34/Inputs!Q$35 -> 481.8242667 | R45: =R34/Inputs!R$35 -> 494.3282847 | S45: =S34/Inputs!S$35 -> 507.3239039 | T45: =T34/Inputs!T$35 -> 519.7876584 | U45: =U34/Inputs!U$35 -> 533.4715435 | V45: =V34/Inputs!V$35 -> 546.2956164 | W45: =W34/Inputs!W$35 -> 559.527671
A46: Approach I (hybrid + 5y glide) | C46: =C35/Inputs!C$35 -> 480 | D46: =D35/Inputs!D$35 -> 401.7556812 | E46: =E35/Inputs!E$35 -> 405.0800412 | F46: =F35/Inputs!F$35 -> 411.4172526 | G46: =G35/Inputs!G$35 -> 417.0372205 | H46: =H35/Inputs!H$35 -> 421.3704857 | I46: =I35/Inputs!I$35 -> 429.4850491 | J46: =J35/Inputs!J$35 -> 431.9006725 | K46: =K35/Inputs!K$35 -> 438.9589597 | L46: =L35/Inputs!L$35 -> 444.8798189 | M46: =M35/Inputs!M$35 -> 449.9999572 | N46: =N35/Inputs!N$35 -> 462.731913 | O46: =O35/Inputs!O$35 -> 471.4406292 | P46: =P35/Inputs!P$35 -> 479.1197817 | Q46: =Q35/Inputs!Q$35 -> 491.5235936 | R46: =R35/Inputs!R$35 -> 504.3006494 | S46: =S35/Inputs!S$35 -> 515.7115889 | T46: =T35/Inputs!T$35 -> 527.9494651 | U46: =U35/Inputs!U$35 -> 542.2967982 | V46: =V35/Inputs!V$35 -> 554.2181045 | W46: =W35/Inputs!W$35 -> 566.4014768
A48: Achieved cash flows | B48: Year | C48: 0 | D48: 1 | E48: 2 | F48: 3 | G48: 4 | H48: 5 | I48: 6 | J48: 7 | K48: 8 | L48: 9 | M48: 10 | N48: 11 | O48: 12 | P48: 13 | Q48: 14 | R48: 15 | S48: 16 | T48: 17 | U48: 18 | V48: 19 | W48: 20 | X48: 21 | Y48: 22 | Z48: 23 | AA48: 24 | AB48: 25 | AC48: 26 | AD48: 27 | AE48: 28 | AF48: 29 | AG48: 30 | AH48: 31 | AI48: 32 | AJ48: 33 | AK48: 34 | AL48: 35 | AM48: 36 | AN48: 37 | AO48: 38 | AP48: 39 | AQ48: 40 | AR48: 41 | AS48: 42 | AT48: 43 | AU48: 44 | AV48: 45 | AW48: 46 | AX48: 47 | AY48: 48 | AZ48: 49 | BA48: 50 | BB48: 51 | BC48: 52 | BD48: 53 | BE48: 54 | BF48: 55 | BG48: 56 | BH48: 57 | BI48: 58 | BJ48: 59 | BK48: 60 | BL48: 61 | BM48: 62 | BN48: 63 | BO48: 64 | BP48: 65 | BQ48: 66 | BR48: 67 | BS48: 68 | BT48: 69 | BU48: 70
A49: =Inputs!A3 -> Base case
A50: Revenue | C50: 0 | D50: ='Working | Base case'!D111 -> 392.5987111 | E50: ='Working | Base case'!E111 -> 412.650308 | F50: ='Working | Base case'!F111 -> 428.4788707 | G50: ='Working | Base case'!G111 -> 446.3685774 | H50: ='Working | Base case'!H111 -> 467.5225694 | I50: ='Working | Base case'!I247 -> 488.5266907 | J50: ='Working | Base case'!J247 -> 519.1445885 | K50: ='Working | Base case'!K247 -> 541.9665595 | L50: ='Working | Base case'!L247 -> 568.4573455 | M50: ='Working | Base case'!M247 -> 598.1975484 | N50: ='Working | Base case'!N383 -> 622.5565335 | O50: ='Working | Base case'!O383 -> 652.0638772 | P50: ='Working | Base case'!P383 -> 685.8160973 | Q50: ='Working | Base case'!Q383 -> 710.0929399 | R50: ='Working | Base case'!R383 -> 735.102807 | S50: ='Working | Base case'!S519 -> 767.4582336 | T50: ='Working | Base case'!T519 -> 800.1704791 | U50: ='Working | Base case'!U519 -> 829.6242563 | V50: ='Working | Base case'!V519 -> 867.453113 | W50: ='Working | Base case'!W519 -> 907.006874 | X50: ='Working | Base case'!X551 -> 866.4521734 | Y50: ='Working | Base case'!Y551 -> 873.3835841 | Z50: ='Working | Base case'!Z551 -> 881.8450315 | AA50: ='Working | Base case'!AA551 -> 882.8288674 | AB50: ='Working | Base case'!AB551 -> 883.5240439 | AC50: ='Working | Base case'!AC551 -> 883.8237633 | AD50: ='Working | Base case'!AD551 -> 893.9102819 | AE50: ='Working | Base case'!AE551 -> 895.9781586 | AF50: ='Working | Base case'!AF551 -> 912.0242314 | AG50: ='Working | Base case'!AG551 -> 924.9051042 | AH50: ='Working | Base case'!AH551 -> 504.1758814 | AI50: ='Working | Base case'!AI551 -> 499.7772387 | AJ50: ='Working | Base case'!AJ551 -> 488.6430931 | AK50: ='Working | Base case'!AK551 -> 478.3279743 | AL50: ='Working | Base case'!AL551 -> 464.0353647 | AM50: ='Working | Base case'!AM551 -> 448.6108725 | AN50: ='Working | Base case'!AN551 -> 435.2573069 | AO50: ='Working | Base case'!AO551 -> 418.6597404 | AP50: ='Working | Base case'!AP551 -> 400.3668987 | AQ50: ='Working | Base case'!AQ551 -> 381.2357301 | AR50: ='Working | Base case'!AR551 -> 355.4803727 | AS50: ='Working | Base case'!AS551 -> 329.0107609 | AT50: ='Working | Base case'!AT551 -> 302.1094908 | AU50: ='Working | Base case'!AU551 -> 271.5362742 | AV50: ='Working | Base case'!AV551 -> 308.1737216 | AW50: ='Working | Base case'!AW551 -> 206.4699068 | AX50: ='Working | Base case'!AX551 -> 169.1378956 | AY50: ='Working | Base case'!AY551 -> 129.3079318 | AZ50: ='Working | Base case'!AZ551 -> 84.96815822 | BA50: ='Working | Base case'!BA551 -> 43.7759401 | BB50: ='Working | Base case'!BB551 -> 1.491554076e-14 | BC50: ='Working | Base case'!BC551 -> 1.721701899e-14 | BD50: ='Working | Base case'!BD551 -> 1.744271025e-14 | BE50: ='Working | Base case'!BE551 -> 1.781348875e-14 | BF50: ='Working | Base case'!BF551 -> 1.815202564e-14 | BG50: ='Working | Base case'!BG551 -> 1.868382327e-14 | BH50: ='Working | Base case'!BH551 -> 1.909319714e-14 | BI50: ='Working | Base case'!BI551 -> 1.951154063e-14 | BJ50: ='Working | Base case'!BJ551 -> 1.977146346e-14 | BK50: ='Working | Base case'!BK551 -> 2.014721073e-14 | BL50: ='Working | Base case'!BL551 -> 2.041560164e-14 | BM50: ='Working | Base case'!BM551 -> 2.068322189e-14 | BN50: ='Working | Base case'!BN551 -> 2.095795159e-14 | BO50: ='Working | Base case'!BO551 -> 2.157195408e-14 | BP50: ='Working | Base case'!BP551 -> 2.211179277e-14 | BQ50: ='Working | Base case'!BQ551 -> 2.258182163e-14 | BR50: ='Working | Base case'!BR551 -> 2.331715406e-14 | BS50: ='Working | Base case'!BS551 -> 2.399776288e-14 | BT50: ='Working | Base case'!BT551 -> 2.458242599e-14 | BU50: ='Working | Base case'!BU551 -> 2.56327144e-14
A51: Capex | C51: ='Working | Base case'!D121 -> 6000 | D51: ='Working | Base case'!D122 -> 205.9539919 | E51: ='Working | Base case'!E122 -> 219.8105548 | F51: ='Working | Base case'!F122 -> 231.7612389 | G51: ='Working | Base case'!G122 -> 245.1602366 | H51: ='Working | Base case'!H122 -> 260.7378155 | I51: ='Working | Base case'!I258 -> 276.1249466 | J51: ='Working | Base case'!J258 -> 297.5198472 | K51: ='Working | Base case'!K258 -> 314.9273392 | L51: ='Working | Base case'!L258 -> 334.9238066 | M51: ='Working | Base case'!M258 -> 357.3576036 | N51: ='Working | Base case'!N394 -> 375.2800144 | O51: ='Working | Base case'!O394 -> 397.4937864 | P51: ='Working | Base case'!P394 -> 422.7770826 | Q51: ='Working | Base case'!Q394 -> 442.6724747 | R51: ='Working | Base case'!R394 -> 463.424474 | S51: ='Working | Base case'!S530 -> 489.0513049 | T51: ='Working | Base case'!T530 -> 514.957009 | U51: ='Working | Base case'!U530 -> 539.2109048 | V51: ='Working | Base case'!V530 -> 569.3928532 | W51: ='Working | Base case'!W530 -> 601.2642148 | X51: 0 | Y51: 0 | Z51: 0 | AA51: 0 | AB51: 0 | AC51: 0 | AD51: 0 | AE51: 0 | AF51: 0 | AG51: 0 | AH51: 0 | AI51: 0 | AJ51: 0 | AK51: 0 | AL51: 0 | AM51: 0 | AN51: 0 | AO51: 0 | AP51: 0 | AQ51: 0 | AR51: 0 | AS51: 0 | AT51: 0 | AU51: 0 | AV51: 0 | AW51: 0 | AX51: 0 | AY51: 0 | AZ51: 0 | BA51: 0 | BB51: 0 | BC51: 0 | BD51: 0 | BE51: 0 | BF51: 0 | BG51: 0 | BH51: 0 | BI51: 0 | BJ51: 0 | BK51: 0 | BL51: 0 | BM51: 0 | BN51: 0 | BO51: 0 | BP51: 0 | BQ51: 0 | BR51: 0 | BS51: 0 | BT51: 0 | BU51: 0
A52: Interest Payments | C52: 0 | D52: =('Working | Base case'!D121*Inputs!$C$13)*Inputs!D13 -> 154.8 | E52: =('Working | Base case'!E121*Inputs!$C$13)*Inputs!E13 -> 159.8854139 | F52: =('Working | Base case'!F121*Inputs!$C$13)*Inputs!F13 -> 163.1400788 | G52: =('Working | Base case'!G121*Inputs!$C$13)*Inputs!G13 -> 167.0049934 | H52: =('Working | Base case'!H121*Inputs!$C$13)*Inputs!H13 -> 171.8869908 | I52: =('Working | Base case'!I257*Inputs!$C$13)*Inputs!I13 -> 176.1587385 | J52: =('Working | Base case'!J257*Inputs!$C$13)*Inputs!J13 -> 183.7191734 | K52: =('Working | Base case'!K257*Inputs!$C$13)*Inputs!K13 -> 188.2306425 | L52: =('Working | Base case'!L257*Inputs!$C$13)*Inputs!L13 -> 193.7612826 | M52: =('Working | Base case'!M257*Inputs!$C$13)*Inputs!M13 -> 200.1081371 | N52: =('Working | Base case'!N393*Inputs!$C$13)*Inputs!N13 -> 203.4038568 | O52: =('Working | Base case'!O393*Inputs!$C$13)*Inputs!O13 -> 208.6140135 | P52: =('Working | Base case'!P393*Inputs!$C$13)*Inputs!P13 -> 214.8487246 | Q52: =('Working | Base case'!Q393*Inputs!$C$13)*Inputs!Q13 -> 217.8290778 | R52: =('Working | Base case'!R393*Inputs!$C$13)*Inputs!R13 -> 220.8127715 | S52: =('Working | Base case'!S529*Inputs!$C$13)*Inputs!S13 -> 225.6365111 | T52: =('Working | Base case'!T529*Inputs!$C$13)*Inputs!T13 -> 229.9962891 | U52: =('Working | Base case'!U529*Inputs!$C$13)*Inputs!U13 -> 233.133208 | V52: =('Working | Base case'!V529*Inputs!$C$13)*Inputs!V13 -> 238.3152956 | W52: =('Working | Base case'!W529*Inputs!$C$13)*Inputs!W13 -> 243.6125472 | X52: =('Working | Base case'!X529*Inputs!$C$13)*Inputs!$W$13 -> 246.9351061 | Y52: =('Working | Base case'!Y529*Inputs!$C$13)*Inputs!$W$13 -> 235.4630526 | Z52: =('Working | Base case'!Z529*Inputs!$C$13)*Inputs!$W$13 -> 223.9961298 | AA52: =('Working | Base case'!AA529*Inputs!$C$13)*Inputs!$W$13 -> 210.1101165 | AB52: =('Working | Base case'!AB529*Inputs!$C$13)*Inputs!$W$13 -> 195.858144 | AC52: =('Working | Base case'!AC529*Inputs!$C$13)*Inputs!$W$13 -> 184.3269914 | AD52: =('Working | Base case'!AD529*Inputs!$C$13)*Inputs!$W$13 -> 171.1646618 | AE52: =('Working | Base case'!AE529*Inputs!$C$13)*Inputs!$W$13 -> 155.7307183 | AF52: =('Working | Base case'!AF529*Inputs!$C$13)*Inputs!$W$13 -> 142.2852811 | AG52: =('Working | Base case'!AG529*Inputs!$C$13)*Inputs!$W$13 -> 127.3190192 | AH52: =('Working | Base case'!AH529*Inputs!$C$13)*Inputs!$W$13 -> 110.7433871 | AI52: =('Working | Base case'!AI529*Inputs!$C$13)*Inputs!$W$13 -> 105.7436149 | AJ52: =('Working | Base case'!AJ529*Inputs!$C$13)*Inputs!$W$13 -> 98.58685774 | AK52: =('Working | Base case'!AK529*Inputs!$C$13)*Inputs!$W$13 -> 91.82469111 | AL52: =('Working | Base case'!AL529*Inputs!$C$13)*Inputs!$W$13 -> 84.48218278 | AM52: =('Working | Base case'!AM529*Inputs!$C$13)*Inputs!$W$13 -> 76.89026301 | AN52: =('Working | Base case'!AN529*Inputs!$C$13)*Inputs!$W$13 -> 70.3702217 | AO52: =('Working | Base case'!AO529*Inputs!$C$13)*Inputs!$W$13 -> 63.61012694 | AP52: =('Working | Base case'!AP529*Inputs!$C$13)*Inputs!$W$13 -> 56.90462432 | AQ52: =('Working | Base case'!AQ529*Inputs!$C$13)*Inputs!$W$13 -> 50.47160461 | AR52: =('Working | Base case'!AR529*Inputs!$C$13)*Inputs!$W$13 -> 43.51378346 | AS52: =('Working | Base case'!AS529*Inputs!$C$13)*Inputs!$W$13 -> 37.01888694 | AT52: =('Working | Base case'!AT529*Inputs!$C$13)*Inputs!$W$13 -> 31.0605096 | AU52: =('Working | Base case'!AU529*Inputs!$C$13)*Inputs!$W$13 -> 25.29176331 | AV52: =('Working | Base case'!AV529*Inputs!$C$13)*Inputs!$W$13 -> 20.41647667 | AW52: =('Working | Base case'!AW529*Inputs!$C$13)*Inputs!$W$13 -> 15.50877737 | AX52: =('Working | Base case'!AX529*Inputs!$C$13)*Inputs!$W$13 -> 11.27701968 | AY52: =('Working | Base case'!AY529*Inputs!$C$13)*Inputs!$W$13 -> 7.725112747 | AZ52: =('Working | Base case'!AZ529*Inputs!$C$13)*Inputs!$W$13 -> 4.766595239 | BA52: =('Working | Base case'!BA529*Inputs!$C$13)*Inputs!$W$13 -> 2.762174328 | BB52: =('Working | Base case'!BB529*Inputs!$C$13)*Inputs!$W$13 -> 0.08092307601 | BC52: =('Working | Base case'!BC529*Inputs!$C$13)*Inputs!$W$13 -> 0.001074879568 | BD52: =('Working | Base case'!BD529*Inputs!$C$13)*Inputs!$W$13 -> 1.40901816e-05 | BE52: =('Working | Base case'!BE529*Inputs!$C$13)*Inputs!$W$13 -> 2.995140266e-07 | BF52: =('Working | Base case'!BF529*Inputs!$C$13)*Inputs!$W$13 -> 5.692121772e-09 | BG52: =('Working | Base case'!BG529*Inputs!$C$13)*Inputs!$W$13 -> 7.582755468e-11 | BH52: =('Working | Base case'!BH529*Inputs!$C$13)*Inputs!$W$13 -> 1.661427579e-12 | BI52: =('Working | Base case'!BI529*Inputs!$C$13)*Inputs!$W$13 -> 3.640288297e-14 | BJ52: =('Working | Base case'!BJ529*Inputs!$C$13)*Inputs!$W$13 -> 4.849407145e-16 | BK52: =('Working | Base case'!BK529*Inputs!$C$13)*Inputs!$W$13 -> 9.216067877e-18 | BL52: =('Working | Base case'!BL529*Inputs!$C$13)*Inputs!$W$13 -> 1.959053245e-19 | BM52: =('Working | Base case'!BM529*Inputs!$C$13)*Inputs!$W$13 -> 2.568047326e-21 | BN52: =('Working | Base case'!BN529*Inputs!$C$13)*Inputs!$W$13 -> 3.411068554e-23 | BO52: =('Working | Base case'!BO529*Inputs!$C$13)*Inputs!$W$13 -> 9.993364904e-25 | BP52: =('Working | Base case'!BP529*Inputs!$C$13)*Inputs!$W$13 -> 2.500842068e-26 | BQ52: =('Working | Base case'!BQ529*Inputs!$C$13)*Inputs!$W$13 -> 4.070546601e-28 | BR52: =('Working | Base case'!BR529*Inputs!$C$13)*Inputs!$W$13 -> 1.325493116e-29 | BS52: =('Working | Base case'!BS529*Inputs!$C$13)*Inputs!$W$13 -> 3.869006933e-31 | BT52: =('Working | Base case'!BT529*Inputs!$C$13)*Inputs!$W$13 -> 9.426151996e-33 | BU52: =('Working | Base case'!BU529*Inputs!$C$13)*Inputs!$W$13 -> 4.027339767e-34
A53: Repayment of Debt | C53: =('Working | Base case'!C121-'Working | Base case'!D121)*Inputs!$C$13 -> -3600 | D53: =('Working | Base case'!D121-'Working | Base case'!E121)*Inputs!$C$13 -> -118.2654402 | E53: =('Working | Base case'!E121-'Working | Base case'!F121)*Inputs!$C$13 -> -75.68988173 | F53: =('Working | Base case'!F121-'Working | Base case'!G121)*Inputs!$C$13 -> -89.88173456 | G53: =('Working | Base case'!G121-'Working | Base case'!H121)*Inputs!$C$13 -> -113.5348226 | H53: =('Working | Base case'!H121-'Working | Base case'!I257)*Inputs!$C$13 -> -99.34296978 | I53: =('Working | Base case'!I257-'Working | Base case'!J257)*Inputs!$C$13 -> -175.824068 | J53: =('Working | Base case'!J257-'Working | Base case'!K257)*Inputs!$C$13 -> -104.9178854 | K53: =('Working | Base case'!K257-'Working | Base case'!L257)*Inputs!$C$13 -> -128.6195363 | L53: =('Working | Base case'!L257-'Working | Base case'!M257)*Inputs!$C$13 -> -147.6012674 | M53: =('Working | Base case'!M257-'Working | Base case'!N393)*Inputs!$C$13 -> -76.64464573 | N53: =('Working | Base case'!N393-'Working | Base case'!O393)*Inputs!$C$13 -> -121.1664355 | O53: =('Working | Base case'!O393-'Working | Base case'!P393)*Inputs!$C$13 -> -144.9932802 | P53: =('Working | Base case'!P393-'Working | Base case'!Q393)*Inputs!$C$13 -> -69.31053963 | Q53: =('Working | Base case'!Q393-'Working | Base case'!R393)*Inputs!$C$13 -> -69.38822537 | R53: =('Working | Base case'!R393-'Working | Base case'!S529)*Inputs!$C$13 -> -112.1799904 | S53: =('Working | Base case'!S529-'Working | Base case'!T529)*Inputs!$C$13 -> -101.3901858 | T53: =('Working | Base case'!T529-'Working | Base case'!U529)*Inputs!$C$13 -> -72.95160352 | U53: =('Working | Base case'!U529-'Working | Base case'!V529)*Inputs!$C$13 -> -120.5136651 | V53: =('Working | Base case'!V529-'Working | Base case'!W529)*Inputs!$C$13 -> -123.191898 | W53: =('Working | Base case'!W529-'Working | Base case'!X529)*Inputs!$C$13 -> -77.26881019 | X53: =('Working | Base case'!X529-'Working | Base case'!Y529)*Inputs!$C$13 -> 266.7919418 | Y53: =('Working | Base case'!Y529-'Working | Base case'!Z529)*Inputs!$C$13 -> 266.6726239 | Z53: =('Working | Base case'!Z529-'Working | Base case'!AA529)*Inputs!$C$13 -> 322.9305403 | AA53: =('Working | Base case'!AA529-'Working | Base case'!AB529)*Inputs!$C$13 -> 331.4412224 | AB53: =('Working | Base case'!AB529-'Working | Base case'!AC529)*Inputs!$C$13 -> 268.166338 | AC53: =('Working | Base case'!AC529-'Working | Base case'!AD529)*Inputs!$C$13 -> 306.1006896 | AD53: =('Working | Base case'!AD529-'Working | Base case'!AE529)*Inputs!$C$13 -> 358.9289174 | AE53: =('Working | Base case'!AE529-'Working | Base case'!AF529)*Inputs!$C$13 -> 312.684587 | AF53: =('Working | Base case'!AF529-'Working | Base case'!AG529)*Inputs!$C$13 -> 348.0526008 | AG53: =('Working | Base case'!AG529-'Working | Base case'!AH529)*Inputs!$C$13 -> 385.4798177 | AH53: =('Working | Base case'!AH529-'Working | Base case'!AI529)*Inputs!$C$13 -> 116.2737728 | AI53: =('Working | Base case'!AI529-'Working | Base case'!AJ529)*Inputs!$C$13 -> 166.436212 | AJ53: =('Working | Base case'!AJ529-'Working | Base case'!AK529)*Inputs!$C$13 -> 157.259689 | AK53: =('Working | Base case'!AK529-'Working | Base case'!AL529)*Inputs!$C$13 -> 170.7560078 | AL53: =('Working | Base case'!AL529-'Working | Base case'!AM529)*Inputs!$C$13 -> 176.5562736 | AM53: =('Working | Base case'!AM529-'Working | Base case'!AN529)*Inputs!$C$13 -> 151.6288677 | AN53: =('Working | Base case'!AN529-'Working | Base case'!AO529)*Inputs!$C$13 -> 157.2115061 | AO53: =('Working | Base case'!AO529-'Working | Base case'!AP529)*Inputs!$C$13 -> 155.9419214 | AP53: =('Working | Base case'!AP529-'Working | Base case'!AQ529)*Inputs!$C$13 -> 149.6051094 | AQ53: =('Working | Base case'!AQ529-'Working | Base case'!AR529)*Inputs!$C$13 -> 161.8097942 | AR53: =('Working | Base case'!AR529-'Working | Base case'!AS529)*Inputs!$C$13 -> 151.0441051 | AS53: =('Working | Base case'!AS529-'Working | Base case'!AT529)*Inputs!$C$13 -> 138.5669149 | AT53: =('Working | Base case'!AT529-'Working | Base case'!AU529)*Inputs!$C$13 -> 134.1568905 | AU53: =('Working | Base case'!AU529-'Working | Base case'!AV529)*Inputs!$C$13 -> 113.3787591 | AV53: =('Working | Base case'!AV529-'Working | Base case'!AW529)*Inputs!$C$13 -> 114.1325419 | AW53: =('Working | Base case'!AW529-'Working | Base case'!AX529)*Inputs!$C$13 -> 98.41296955 | AX53: =('Working | Base case'!AX529-'Working | Base case'!AY529)*Inputs!$C$13 -> 82.60248675 | AY53: =('Working | Base case'!AY529-'Working | Base case'!AZ529)*Inputs!$C$13 -> 68.80273275 | AZ53: =('Working | Base case'!AZ529-'Working | Base case'!BA529)*Inputs!$C$13 -> 46.61443979 | BA53: =('Working | Base case'!BA529-'Working | Base case'!BB529)*Inputs!$C$13 -> 62.35468028 | BB53: =('Working | Base case'!BB529-'Working | Base case'!BC529)*Inputs!$C$13 -> 1.856934801 | BC53: =('Working | Base case'!BC529-'Working | Base case'!BD529)*Inputs!$C$13 -> 0.0246695206 | BD53: =('Working | Base case'!BD529-'Working | Base case'!BE529)*Inputs!$C$13 -> 0.0003207131993 | BE53: =('Working | Base case'!BE529-'Working | Base case'!BF529)*Inputs!$C$13 -> 6.833067553e-06 | BF53: =('Working | Base case'!BF529-'Working | Base case'!BG529)*Inputs!$C$13 -> 1.306114934e-07 | BG53: =('Working | Base case'!BG529-'Working | Base case'!BH529)*Inputs!$C$13 -> 1.724793654e-09 | BH53: =('Working | Base case'!BH529-'Working | Base case'!BI529)*Inputs!$C$13 -> 3.779127199e-11 | BI53: =('Working | Base case'!BI529-'Working | Base case'!BJ529)*Inputs!$C$13 -> 8.353009826e-13 | BJ53: =('Working | Base case'!BJ529-'Working | Base case'!BK529)*Inputs!$C$13 -> 1.106336387e-14 | BK53: =('Working | Base case'!BK529-'Working | Base case'!BL529)*Inputs!$C$13 -> 2.097712221e-16 | BL53: =('Working | Base case'!BL529-'Working | Base case'!BM529)*Inputs!$C$13 -> 4.496215749e-18 | BM53: =('Working | Base case'!BM529-'Working | Base case'!BN529)*Inputs!$C$13 -> 5.892875907e-20 | BN53: =('Working | Base case'!BN529-'Working | Base case'!BO529)*Inputs!$C$13 -> 7.700313732e-22 | BO53: =('Working | Base case'!BO529-'Working | Base case'!BP529)*Inputs!$C$13 -> 2.265879232e-23 | BP53: =('Working | Base case'!BP529-'Working | Base case'!BQ529)*Inputs!$C$13 -> 5.721247912e-25 | BQ53: =('Working | Base case'!BQ529-'Working | Base case'!BR529)*Inputs!$C$13 -> 9.158133231e-27 | BR53: =('Working | Base case'!BR529-'Working | Base case'!BS529)*Inputs!$C$13 -> 2.992565225e-28 | BS53: =('Working | Base case'!BS529-'Working | Base case'!BT529)*Inputs!$C$13 -> 8.778477704e-30 | BT53: =('Working | Base case'!BT529-'Working | Base case'!BU529)*Inputs!$C$13 -> 2.098469307e-31 | BU53: =('Working | Base case'!BU529-'Working | Base case'!BV529)*Inputs!$C$13 -> 9.365906436e-33
A54: Opex | C54: 0 | D54: ='Working | Base case'!D102/'Working | Base case'!D4*Inputs!D35 -> 51.48849797 | E54: ='Working | Base case'!E102/'Working | Base case'!E4*Inputs!E35 -> 53.17997294 | F54: ='Working | Base case'!F102/'Working | Base case'!F4*Inputs!F35 -> 54.26251691 | G54: ='Working | Base case'!G102/'Working | Base case'!G4*Inputs!G35 -> 55.54803789 | H54: ='Working | Base case'!H102/'Working | Base case'!H4*Inputs!H35 -> 57.17185386 | I54: ='Working | Base case'!I238/'Working | Base case'!I139*Inputs!I35 -> 58.59269283 | J54: ='Working | Base case'!J238/'Working | Base case'!J139*Inputs!J35 -> 61.09607578 | K54: ='Working | Base case'!K238/'Working | Base case'!K139*Inputs!K35 -> 62.58457375 | L54: ='Working | Base case'!L238/'Working | Base case'!L139*Inputs!L35 -> 64.41136671 | M54: ='Working | Base case'!M238/'Working | Base case'!M139*Inputs!M35 -> 66.50879567 | N54: ='Working | Base case'!N374/'Working | Base case'!N275*Inputs!N35 -> 67.59133965 | O54: ='Working | Base case'!O374/'Working | Base case'!O275*Inputs!O35 -> 69.28281461 | P54: ='Working | Base case'!P374/'Working | Base case'!P275*Inputs!P35 -> 71.31258457 | Q54: ='Working | Base case'!Q374/'Working | Base case'!Q275*Inputs!Q35 -> 72.25981055 | R54: ='Working | Base case'!R374/'Working | Base case'!R275*Inputs!R35 -> 73.20703654 | S54: ='Working | Base case'!S510/'Working | Base case'!S411*Inputs!S35 -> 74.7631935 | T54: ='Working | Base case'!T510/'Working | Base case'!T411*Inputs!T35 -> 76.18403248 | U54: ='Working | Base case'!U510/'Working | Base case'!U411*Inputs!U35 -> 77.19891746 | V54: ='Working | Base case'!V510/'Working | Base case'!V411*Inputs!V35 -> 78.89039242 | W54: ='Working | Base case'!W510/'Working | Base case'!W411*Inputs!W35 -> 80.61892863 | X54: 0 | Y54: 0 | Z54: 0 | AA54: 0 | AB54: 0 | AC54: 0 | AD54: 0 | AE54: 0 | AF54: 0 | AG54: 0 | AH54: 0 | AI54: 0 | AJ54: 0 | AK54: 0 | AL54: 0 | AM54: 0 | AN54: 0 | AO54: 0 | AP54: 0 | AQ54: 0 | AR54: 0 | AS54: 0 | AT54: 0 | AU54: 0 | AV54: 0 | AW54: 0 | AX54: 0 | AY54: 0 | AZ54: 0 | BA54: 0 | BB54: 0 | BC54: 0 | BD54: 0 | BE54: 0 | BF54: 0 | BG54: 0 | BH54: 0 | BI54: 0 | BJ54: 0 | BK54: 0 | BL54: 0 | BM54: 0 | BN54: 0 | BO54: 0 | BP54: 0 | BQ54: 0 | BR54: 0 | BS54: 0 | BT54: 0 | BU54: 0
A55: Tax payable+ gamma | C55: 0 | D55: ='Working | Base case'!D103*(D50/'Working | Base case'!D106) -> 0 | E55: ='Working | Base case'!E103*(E50/'Working | Base case'!E106) -> 0 | F55: ='Working | Base case'!F103*(F50/'Working | Base case'!F106) -> 0 | G55: ='Working | Base case'!G103*(G50/'Working | Base case'!G106) -> 0 | H55: ='Working | Base case'!H103*(H50/'Working | Base case'!H106) -> 0 | I55: ='Working | Base case'!I239*(I50/'Working | Base case'!I242) -> 0 | J55: ='Working | Base case'!J239*(J50/'Working | Base case'!J242) -> 0 | K55: ='Working | Base case'!K239*(K50/'Working | Base case'!K242) -> 0 | L55: ='Working | Base case'!L239*(L50/'Working | Base case'!L242) -> 0 | M55: ='Working | Base case'!M239*(M50/'Working | Base case'!M242) -> 0 | N55: ='Working | Base case'!N375*(N50/'Working | Base case'!N378) -> 1.620699196 | O55: ='Working | Base case'!O375*(O50/'Working | Base case'!O378) -> 2.36507247 | P55: ='Working | Base case'!P375*(P50/'Working | Base case'!P378) -> 3.245857797 | Q55: ='Working | Base case'!Q375*(Q50/'Working | Base case'!Q378) -> 4.194338516 | R55: ='Working | Base case'!R375*(R50/'Working | Base case'!R378) -> 5.246143267 | S55: ='Working | Base case'!S511*(S50/'Working | Base case'!S514) -> 5.994669962 | T55: ='Working | Base case'!T511*(T50/'Working | Base case'!T514) -> 7.328159562 | U55: ='Working | Base case'!U511*(U50/'Working | Base case'!U514) -> 8.731717857 | V55: ='Working | Base case'!V511*(V50/'Working | Base case'!V514) -> 10.3265958 | W55: ='Working | Base case'!W511*(W50/'Working | Base case'!W514) -> 12.05540133 | X55: =IFERROR(SUM('Working | Base case'!X477:X478)*(X50/'Working | Base case'!X519),0) -> 13.91387796 | Y55: =IFERROR(SUM('Working | Base case'!Y477:Y478)*(Y50/'Working | Base case'!Y519),0) -> 19.01395144 | Z55: =IFERROR(SUM('Working | Base case'!Z477:Z478)*(Z50/'Working | Base case'!Z519),0) -> 23.99034794 | AA55: =IFERROR(SUM('Working | Base case'!AA477:AA478)*(AA50/'Working | Base case'!AA519),0) -> 28.59750877 | AB55: =IFERROR(SUM('Working | Base case'!AB477:AB478)*(AB50/'Working | Base case'!AB519),0) -> 33.01226545 | AC55: =IFERROR(SUM('Working | Base case'!AC477:AC478)*(AC50/'Working | Base case'!AC519),0) -> 37.24870888 | AD55: =IFERROR(SUM('Working | Base case'!AD477:AD478)*(AD50/'Working | Base case'!AD519),0) -> 41.79852763 | AE55: =IFERROR(SUM('Working | Base case'!AE477:AE478)*(AE50/'Working | Base case'!AE519),0) -> 45.90040754 | AF55: =IFERROR(SUM('Working | Base case'!AF477:AF478)*(AF50/'Working | Base case'!AF519),0) -> 50.68681961 | AG55: =IFERROR(SUM('Working | Base case'!AG477:AG478)*(AG50/'Working | Base case'!AG519),0) -> 55.32672285 | AH55: =IFERROR(SUM('Working | Base case'!AH477:AH478)*(AH50/'Working | Base case'!AH519),0) -> 30.07097645 | AI55: =IFERROR(SUM('Working | Base case'!AI477:AI478)*(AI50/'Working | Base case'!AI519),0) -> 28.19979341 | AJ55: =IFERROR(SUM('Working | Base case'!AJ477:AJ478)*(AJ50/'Working | Base case'!AJ519),0) -> 28.85453182 | AK55: =IFERROR(SUM('Working | Base case'!AK477:AK478)*(AK50/'Working | Base case'!AK519),0) -> 29.46310219 | AL55: =IFERROR(SUM('Working | Base case'!AL477:AL478)*(AL50/'Working | Base case'!AL519),0) -> 29.65677747 | AM55: =IFERROR(SUM('Working | Base case'!AM477:AM478)*(AM50/'Working | Base case'!AM519),0) -> 29.57061568 | AN55: =IFERROR(SUM('Working | Base case'!AN477:AN478)*(AN50/'Working | Base case'!AN519),0) -> 29.51594598 | AO55: =IFERROR(SUM('Working | Base case'!AO477:AO478)*(AO50/'Working | Base case'!AO519),0) -> 28.92581495 | AP55: =IFERROR(SUM('Working | Base case'!AP477:AP478)*(AP50/'Working | Base case'!AP519),0) -> 28.18251214 | AQ55: =IFERROR(SUM('Working | Base case'!AQ477:AQ478)*(AQ50/'Working | Base case'!AQ519),0) -> 27.17898006 | AR55: =IFERROR(SUM('Working | Base case'!AR477:AR478)*(AR50/'Working | Base case'!AR519),0) -> 25.446902 | AS55: =IFERROR(SUM('Working | Base case'!AS477:AS478)*(AS50/'Working | Base case'!AS519),0) -> 23.61791409 | AT55: =IFERROR(SUM('Working | Base case'!AT477:AT478)*(AT50/'Working | Base case'!AT519),0) -> 21.49036427 | AU55: =IFERROR(SUM('Working | Base case'!AU477:AU478)*(AU50/'Working | Base case'!AU519),0) -> 18.79208616 | AV55: =IFERROR(SUM('Working | Base case'!AV477:AV478)*(AV50/'Working | Base case'!AV519),0) -> 81.3030612 | AW55: =IFERROR(SUM('Working | Base case'!AW477:AW478)*(AW50/'Working | Base case'!AW519),0) -> 12.75199422 | AX55: =IFERROR(SUM('Working | Base case'!AX477:AX478)*(AX50/'Working | Base case'!AX519),0) -> 8.843080345 | AY55: =IFERROR(SUM('Working | Base case'!AY477:AY478)*(AY50/'Working | Base case'!AY519),0) -> 4.541424926 | AZ55: =IFERROR(SUM('Working | Base case'!AZ477:AZ478)*(AZ50/'Working | Base case'!AZ519),0) -> 0 | BA55: =IFERROR(SUM('Working | Base case'!BA477:BA478)*(BA50/'Working | Base case'!BA519),0) -> 0 | BB55: =IFERROR(SUM('Working | Base case'!BB477:BB478)*(BB50/'Working | Base case'!BB519),0) -> 0 | BC55: =IFERROR(SUM('Working | Base case'!BC477:BC478)*(BC50/'Working | Base case'!BC519),0) -> 0 | BD55: =IFERROR(SUM('Working | Base case'!BD477:BD478)*(BD50/'Working | Base case'!BD519),0) -> 0 | BE55: =IFERROR(SUM('Working | Base case'!BE477:BE478)*(BE50/'Working | Base case'!BE519),0) -> 0 | BF55: =IFERROR(SUM('Working | Base case'!BF477:BF478)*(BF50/'Working | Base case'!BF519),0) -> 0 | BG55: =IFERROR(SUM('Working | Base case'!BG477:BG478)*(BG50/'Working | Base case'!BG519),0) -> 0 | BH55: =IFERROR(SUM('Working | Base case'!BH477:BH478)*(BH50/'Working | Base case'!BH519),0) -> 0 | BI55: =IFERROR(SUM('Working | Base case'!BI477:BI478)*(BI50/'Working | Base case'!BI519),0) -> 0 | BJ55: =IFERROR(SUM('Working | Base case'!BJ477:BJ478)*(BJ50/'Working | Base case'!BJ519),0) -> 0 | BK55: =IFERROR(SUM('Working | Base case'!BK477:BK478)*(BK50/'Working | Base case'!BK519),0) -> 0 | BL55: =IFERROR(SUM('Working | Base case'!BL477:BL478)*(BL50/'Working | Base case'!BL519),0) -> 0 | BM55: =IFERROR(SUM('Working | Base case'!BM477:BM478)*(BM50/'Working | Base case'!BM519),0) -> 0 | BN55: =IFERROR(SUM('Working | Base case'!BN477:BN478)*(BN50/'Working | Base case'!BN519),0) -> 0 | BO55: =IFERROR(SUM('Working | Base case'!BO477:BO478)*(BO50/'Working | Base case'!BO519),0) -> 0 | BP55: =IFERROR(SUM('Working | Base case'!BP477:BP478)*(BP50/'Working | Base case'!BP519),0) -> 0 | BQ55: =IFERROR(SUM('Working | Base case'!BQ477:BQ478)*(BQ50/'Working | Base case'!BQ519),0) -> 0 | BR55: =IFERROR(SUM('Working | Base case'!BR477:BR478)*(BR50/'Working | Base case'!BR519),0) -> 0 | BS55: =IFERROR(SUM('Working | Base case'!BS477:BS478)*(BS50/'Working | Base case'!BS519),0) -> 0 | BT55: =IFERROR(SUM('Working | Base case'!BT477:BT478)*(BT50/'Working | Base case'!BT519),0) -> 0 | BU55: =IFERROR(SUM('Working | Base case'!BU477:BU478)*(BU50/'Working | Base case'!BU519),0) -> 0
A56: Returns achieved
A57: Post-tax CF to Equity | B57: =IRR(C57:BU57) -> 0.05192686592 | C57: =C50-C51-C52-C53-C54-C55 -> -2400 | D57: =D50-D51-D52-D53-D54-D55 -> 98.62166145 | E57: 55.46424804 | F57: 69.19677054 | G57: 92.19013209 | H57: 77.06887894 | I57: 153.4743808 | J57: 81.72737751 | K57: 104.8435404 | L57: 122.962157 | M57: 50.8676578 | N57: 95.82705888 | O57: 119.3014704 | P57: 42.94238742 | Q57: 42.52546372 | R57: 84.5923721 | S57: 73.40273995 | T57: 44.65659257 | U57: 91.86317324 | V57: 93.71987399 | W57: 46.72459223 | X57: 338.8112476 | Y57: 352.2339562 | Z57: 310.9280135 | AA57: 312.6800197 | AB57: 386.4872964 | AC57: 356.1473735 | AD57: 322.0181751 | AE57: 381.6624457 | AF57: 370.9995299 | AG57: 356.7795444 | AH57: 247.0877451 | AI57: 199.3976184 | AJ57: 203.9420145 | AK57: 186.2841733 | AL57: 173.3401308 | AM57: 190.5211261 | AN57: 178.1596331 | AO57: 170.1818771 | AP57: 165.6746528 | AQ57: 141.7753512 | AR57: 135.4755821 | AS57: 129.807045 | AT57: 115.4017265 | AU57: 114.0736656 | AV57: 92.32164185 | AW57: 79.79616564 | AX57: 66.41530883 | AY57: 48.23866133 | AZ57: 33.58712319 | BA57: -21.3409145 | BB57: -1.937857877 | BC57: -0.02574440017 | BD57: -0.0003348033809 | BE57: -7.132581562e-06 | BF57: -1.36303597e-07 | BG57: -1.800602524e-09 | BH57: -3.943360637e-11 | BI57: -8.521923249e-13 | BJ57: 8.223158876e-15 | BK57: 1.992822344e-14 | BL57: 2.041090952e-14 | BM57: 2.068316039e-14 | BN57: 2.095795078e-14 | BO57: 2.157195405e-14 | BP57: =BP50-BP51-BP52-BP53-BP54-BP55 -> 2.211179277e-14 | BQ57: 2.258182163e-14 | BR57: 2.331715406e-14 | BS57: 2.399776288e-14 | BT57: 2.458242599e-14 | BU57: 2.56327144e-14
A58: Real post-tax CF to Equity | B58: =IRR(C58:BU58) -> 0.0272244714 | C58: =C57/Inputs!C35 -> -2400 | D58: =D57/Inputs!D35 -> 95.77057531 | E58: =E57/Inputs!E35 -> 52.14768359 | F58: =F57/Inputs!F35 -> 63.76111401 | G58: =G57/Inputs!G35 -> 82.98234788 | H58: =H57/Inputs!H35 -> 67.40106691 | I58: =I57/Inputs!I35 -> 130.9671679 | J58: =J57/Inputs!J35 -> 66.88431005 | K58: =K57/Inputs!K35 -> 83.76148795 | L58: =L57/Inputs!L35 -> 95.450666 | M58: =M57/Inputs!M35 -> 38.24130124 | N58: =N57/Inputs!N35 -> 70.88708359 | O58: =O57/Inputs!O35 -> 86.09744791 | P58: =P57/Inputs!P35 -> 30.10856196 | Q58: =Q57/Inputs!Q35 -> 29.42539109 | R58: =R57/Inputs!R35 -> 57.77612106 | S58: =S57/Inputs!S35 -> 49.09015821 | T58: =T57/Inputs!T35 -> 29.30836759 | U58: =U57/Inputs!U35 -> 59.49770817 | V58: =V57/Inputs!V35 -> 59.39878806 | W58: =W57/Inputs!W35 -> 28.97867351 | X58: =X57/Inputs!X35 -> 207.3688634 | Y58: =Y57/Inputs!Y35 -> 211.5635454 | Z58: =Z57/Inputs!Z35 -> 182.8666254 | AA58: =AA57/Inputs!AA35 -> 181.5175917 | AB58: =AB57/Inputs!AB35 -> 221.423225 | AC58: =AC57/Inputs!AC35 -> 198.2334959 | AD58: =AD57/Inputs!AD35 -> 174.8611017 | AE58: =AE57/Inputs!AE35 -> 203.929608 | AF58: =AF57/Inputs!AF35 -> 191.9807329 | AG58: =AG57/Inputs!AG35 -> 179.3861945 | AH58: =AH57/Inputs!AH35 -> 121.2791917 | AI58: =AI57/Inputs!AI35 -> 93.86100423 | AJ58: =AJ57/Inputs!AJ35 -> 93.6722067 | AK58: =AK57/Inputs!AK35 -> 83.13166013 | AL58: =AL57/Inputs!AL35 -> 75.56502421 | AM58: =AM57/Inputs!AM35 -> 81.3978668 | AN58: =AN57/Inputs!AN35 -> 73.69555672 | AO58: =AO57/Inputs!AO35 -> 68.36047718 | AP58: =AP57/Inputs!AP35 -> 64.62605215 | AQ58: =AQ57/Inputs!AQ35 -> 53.54444239 | AR58: =AR57/Inputs!AR35 -> 50.14444997 | AS58: =AS57/Inputs!AS35 -> 46.93440543 | AT58: =AT57/Inputs!AT35 -> 40.54075305 | AU58: =AU57/Inputs!AU35 -> 39.10242751 | AV58: =AV57/Inputs!AV35 -> 30.34953095 | AW58: =AW57/Inputs!AW35 -> 25.60804974 | AX58: =AX57/Inputs!AX35 -> 20.70939742 | AY58: =AY57/Inputs!AY35 -> 14.56726242 | AZ58: =AZ57/Inputs!AZ35 -> 9.980298558 | BA58: =BA57/Inputs!BA35 -> -6.186560774 | BB58: =BB57/Inputs!BB35 -> -0.5457798858 | BC58: =BC57/Inputs!BC35 -> -0.007155627742 | BD58: =BD57/Inputs!BD35 -> -9.185415123e-05 | BE58: =BE57/Inputs!BE35 -> -1.916111083e-06 | BF58: =BF57/Inputs!BF35 -> -3.593396503e-08 | BG58: =BG57/Inputs!BG35 -> -4.684555889e-10 | BH58: =BH57/Inputs!BH35 -> -1.003931684e-11 | BI58: =BI57/Inputs!BI35 -> -2.12306053e-13 | BJ58: =BJ57/Inputs!BJ35 -> 2.021697552e-15 | BK58: =BK57/Inputs!BK35 -> 4.808061073e-15 | BL58: =BL57/Inputs!BL35 -> 4.82201694e-15 | BM58: =BM57/Inputs!BM35 -> 4.8231111e-15 | BN58: =BN57/Inputs!BN35 -> 4.823125255e-15 | BO58: =BO57/Inputs!BO35 -> 4.823125435e-15 | BP58: =BP57/Inputs!BP35 -> 4.82312544e-15 | BQ58: =BQ57/Inputs!BQ35 -> 4.846760994e-15 | BR58: =BR57/Inputs!BR35 -> 4.846760994e-15 | BS58: =BS57/Inputs!BS35 -> 4.846760994e-15 | BT58: =BT57/Inputs!BT35 -> 4.846760994e-15 | BU58: =BU57/Inputs!BU35 -> 4.846760994e-15
A59: Nominal cash flows to assets | B59: =IRR(C59:BU59) -> 0.04818453244 | C59: =C50-C51-C54 -> -6000 | D59: =D50-D51-D54 -> 135.1562212 | E59: 139.6597802 | F59: 142.4551148 | G59: 145.6603029 | H59: 149.6129 | I59: 153.8090513 | J59: 160.5286656 | K59: 164.4546466 | L59: 169.1221722 | M59: 174.3311491 | N59: 179.6851794 | O59: 185.2872762 | P59: 191.7264302 | Q59: 195.1606547 | R59: 198.4712965 | S59: 203.6437352 | T59: 209.0294377 | U59: 213.214434 | V59: 219.1698674 | W59: 225.1237306 | X59: 866.4521734 | Y59: 873.3835841 | Z59: 881.8450315 | AA59: 882.8288674 | AB59: 883.5240439 | AC59: 883.8237633 | AD59: 893.9102819 | AE59: 895.9781586 | AF59: 912.0242314 | AG59: 924.9051042 | AH59: 504.1758814 | AI59: 499.7772387 | AJ59: 488.6430931 | AK59: 478.3279743 | AL59: 464.0353647 | AM59: 448.6108725 | AN59: 435.2573069 | AO59: 418.6597404 | AP59: 400.3668987 | AQ59: 381.2357301 | AR59: 355.4803727 | AS59: 329.0107609 | AT59: 302.1094908 | AU59: 271.5362742 | AV59: 308.1737216 | AW59: 206.4699068 | AX59: 169.1378956 | AY59: 129.3079318 | AZ59: 84.96815822 | BA59: 43.7759401 | BB59: 1.491554076e-14 | BC59: 1.721701899e-14 | BD59: 1.744271025e-14 | BE59: 1.781348875e-14 | BF59: 1.815202564e-14 | BG59: 1.868382327e-14 | BH59: 1.909319714e-14 | BI59: 1.951154063e-14 | BJ59: 1.977146346e-14 | BK59: 2.014721073e-14 | BL59: 2.041560164e-14 | BM59: 2.068322189e-14 | BN59: 2.095795159e-14 | BO59: 2.157195408e-14 | BP59: =BP50-BP51-BP54 -> 2.211179277e-14 | BQ59: 2.258182163e-14 | BR59: 2.331715406e-14 | BS59: 2.399776288e-14 | BT59: 2.458242599e-14 | BU59: 2.56327144e-14
A60: Nominal vanilla WACC | B60: =IRR(C60:BU60) -> 0.04648204417 | C60: =C59-C55 -> -6000 | D60: =D59-D55 -> 135.1562212 | E60: 139.6597802 | F60: 142.4551148 | G60: 145.6603029 | H60: 149.6129 | I60: 153.8090513 | J60: 160.5286656 | K60: 164.4546466 | L60: 169.1221722 | M60: 174.3311491 | N60: 178.0644802 | O60: 182.9222037 | P60: 188.4805724 | Q60: 190.9663162 | R60: 193.2251532 | S60: 197.6490653 | T60: 201.7012781 | U60: 204.4827161 | V60: 208.8432716 | W60: 213.0683293 | X60: 852.5382955 | Y60: 854.3696327 | Z60: 857.8546835 | AA60: 854.2313586 | AB60: 850.5117784 | AC60: 846.5750545 | AD60: 852.1117543 | AE60: 850.077751 | AF60: 861.3374118 | AG60: 869.5783814 | AH60: 474.1049049 | AI60: 471.5774453 | AJ60: 459.7885612 | AK60: 448.8648721 | AL60: 434.3785872 | AM60: 419.0402568 | AN60: 405.7413609 | AO60: 389.7339255 | AP60: 372.1843865 | AQ60: 354.0567501 | AR60: 330.0334707 | AS60: 305.3928468 | AT60: 280.6191266 | AU60: 252.744188 | AV60: 226.8706604 | AW60: 193.7179126 | AX60: 160.2948153 | AY60: 124.7665068 | AZ60: 84.96815822 | BA60: 43.7759401 | BB60: 1.491554076e-14 | BC60: 1.721701899e-14 | BD60: 1.744271025e-14 | BE60: 1.781348875e-14 | BF60: 1.815202564e-14 | BG60: 1.868382327e-14 | BH60: 1.909319714e-14 | BI60: 1.951154063e-14 | BJ60: 1.977146346e-14 | BK60: 2.014721073e-14 | BL60: 2.041560164e-14 | BM60: 2.068322189e-14 | BN60: 2.095795159e-14 | BO60: 2.157195408e-14 | BP60: =BP59-BP55 -> 2.211179277e-14 | BQ60: 2.258182163e-14 | BR60: 2.331715406e-14 | BS60: 2.399776288e-14 | BT60: 2.458242599e-14 | BU60: 2.56327144e-14
A61: Real WACC (real) | B61: =IRR(C61:BU61) -> 0.02199802532 | C61: =C60/Inputs!C35 -> -6000 | D61: =D60/Inputs!D35 -> 131.2489455 | E61: =E60/Inputs!E35 -> 131.3086229 | F61: =F60/Inputs!F35 -> 131.2647504 | G61: =G60/Inputs!G35 -> 131.1120144 | H61: =H60/Inputs!H35 -> 130.8448912 | I61: =I60/Inputs!I35 -> 131.2527586 | J61: =J60/Inputs!J35 -> 131.3739578 | K61: =K60/Inputs!K35 -> 131.3859284 | L61: =L60/Inputs!L35 -> 131.2828626 | M61: =M60/Inputs!M35 -> 131.0587174 | N61: =N60/Inputs!N35 -> 131.7213723 | O61: =O60/Inputs!O35 -> 132.0112388 | P61: =P60/Inputs!P35 -> 132.1509896 | Q61: =Q60/Inputs!Q35 -> 132.1386776 | R61: =R60/Inputs!R35 -> 131.9717082 | S61: =S60/Inputs!S35 -> 132.183402 | T61: =T60/Inputs!T35 -> 132.3776594 | U61: =U60/Inputs!U35 -> 132.4388494 | V61: =V60/Inputs!V35 -> 132.3629311 | W61: =W60/Inputs!W35 -> 132.1453491 | X61: =X60/Inputs!X35 -> 521.7946529 | Y61: =Y60/Inputs!Y35 -> 513.163099 | Z61: =Z60/Inputs!Z35 -> 504.531545 | AA61: =AA60/Inputs!AA35 -> 495.8999911 | AB61: =AB60/Inputs!AB35 -> 487.2684371 | AC61: =AC60/Inputs!AC35 -> 471.2081153 | AD61: =AD60/Inputs!AD35 -> 462.7105289 | AE61: =AE60/Inputs!AE35 -> 454.2129425 | AF61: =AF60/Inputs!AF35 -> 445.7153561 | AG61: =AG60/Inputs!AG35 -> 437.2177697 | AH61: =AH60/Inputs!AH35 -> 232.7070476 | AI61: =AI60/Inputs!AI35 -> 221.982253 | AJ61: =AJ60/Inputs!AJ35 -> 211.1845823 | AK61: =AK60/Inputs!AK35 -> 200.3116064 | AL61: =AL60/Inputs!AL35 -> 189.3608151 | AM61: =AM60/Inputs!AM35 -> 179.0299255 | AN61: =AN60/Inputs!AN35 -> 167.8345142 | AO61: =AO60/Inputs!AO35 -> 156.552493 | AP61: =AP60/Inputs!AP35 -> 145.1809747 | AQ61: =AQ60/Inputs!AQ35 -> 133.7169761 | AR61: =AR60/Inputs!AR35 -> 122.1574146 | AS61: =AS60/Inputs!AS35 -> 110.4210614 | AT61: =AT60/Inputs!AT35 -> 98.58180688 | AU61: =AU60/Inputs!AU35 -> 86.63622088 | AV61: =AV60/Inputs!AV35 -> 74.58075908 | AW61: =AW60/Inputs!AW35 -> 62.16762298 | AX61: =AX60/Inputs!AX35 -> 49.98258823 | AY61: =AY60/Inputs!AY35 -> 37.67738149 | AZ61: =AZ60/Inputs!AZ35 -> 25.24799704 | BA61: =BA60/Inputs!BA35 -> 12.69029562 | BB61: =BB60/Inputs!BB35 -> 4.200825164e-15 | BC61: =BC60/Inputs!BC35 -> 4.785451513e-15 | BD61: =BD60/Inputs!BD35 -> 4.785451513e-15 | BE61: =BE60/Inputs!BE35 -> 4.785451513e-15 | BF61: =BF60/Inputs!BF35 -> 4.785451513e-15 | BG61: =BG60/Inputs!BG35 -> 4.860895902e-15 | BH61: =BH60/Inputs!BH35 -> 4.860895902e-15 | BI61: =BI60/Inputs!BI35 -> 4.860895902e-15 | BJ61: =BJ60/Inputs!BJ35 -> 4.860895902e-15 | BK61: =BK60/Inputs!BK35 -> 4.860895902e-15 | BL61: =BL60/Inputs!BL35 -> 4.82312544e-15 | BM61: =BM60/Inputs!BM35 -> 4.82312544e-15 | BN61: =BN60/Inputs!BN35 -> 4.82312544e-15 | BO61: =BO60/Inputs!BO35 -> 4.82312544e-15 | BP61: =BP60/Inputs!BP35 -> 4.82312544e-15 | BQ61: =BQ60/Inputs!BQ35 -> 4.846760994e-15 | BR61: =BR60/Inputs!BR35 -> 4.846760994e-15 | BS61: =BS60/Inputs!BS35 -> 4.846760994e-15 | BT61: =BT60/Inputs!BT35 -> 4.846760994e-15 | BU61: =BU60/Inputs!BU35 -> 4.846760994e-15
A62: ="Nominal NPV at "&ROUND((GEOMEAN(1+Inputs!$D$15:$W$15)-1)*100,2)&"%" -> Nominal NPV at 4.58% | B62: =NPV((GEOMEAN(1+Inputs!$D$15:$W$15)-1),D60:BU60)+C60 -> 86.24840394
A63: ="Real NPV at "&ROUND((GEOMEAN(1+Inputs!$D$16:$W$16)-1)*100,2)&"%" -> Real NPV at 2.23% | B63: =NPV((GEOMEAN(1+Inputs!$D$16:$W$16)-1),D61:BU61)+C61 -> -38.22851527
A65: =RIGHT(Inputs!A4,LEN(Inputs!A4)-3)&" ("&Inputs!B4&")" -> Approach B (5 year)
A66: Revenue | C66: 0 | D66: ='Working | Approach B'!D111 -> 404.1247927 | E66: ='Working | Approach B'!E111 -> 424.5563914 | F66: ='Working | Approach B'!F111 -> 440.6250713 | G66: ='Working | Approach B'!G111 -> 458.7963906 | H66: ='Working | Approach B'!H111 -> 480.3032702 | I66: ='Working | Approach B'!I247 -> 501.6298516 | J66: ='Working | Approach B'!J247 -> 532.8111123 | K66: ='Working | Approach B'!K247 -> 555.9648038 | L66: ='Working | Approach B'!L247 -> 582.8577251 | M66: ='Working | Approach B'!M247 -> 613.0546189 | N66: ='Working | Approach B'!N383 -> 639.8195528 | O66: ='Working | Approach B'!O383 -> 669.682901 | P66: ='Working | Approach B'!P383 -> 703.861318 | Q66: ='Working | Approach B'!Q383 -> 728.2742826 | R66: ='Working | Approach B'!R383 -> 753.4045107 | S66: ='Working | Approach B'!S519 -> 786.5633209 | T66: ='Working | Approach B'!T519 -> 819.5390864 | U66: ='Working | Approach B'!U519 -> 849.1351004 | V66: ='Working | Approach B'!V519 -> 887.2572726 | W66: ='Working | Approach B'!W519 -> 927.0909511 | X66: ='Working | Approach B'!X551 -> 887.0530826 | Y66: ='Working | Approach B'!Y551 -> 892.822302 | Z66: ='Working | Approach B'!Z551 -> 900.1245044 | AA66: ='Working | Approach B'!AA551 -> 899.7675998 | AB66: ='Working | Approach B'!AB551 -> 899.0977177 | AC66: ='Working | Approach B'!AC551 -> 898.0037073 | AD66: ='Working | Approach B'!AD551 -> 906.8128269 | AE66: ='Working | Approach B'!AE551 -> 907.4399071 | AF66: ='Working | Approach B'!AF551 -> 922.1618772 | AG66: ='Working | Approach B'!AG551 -> 933.5982803 | AH66: ='Working | Approach B'!AH551 -> 513.0620133 | AI66: ='Working | Approach B'!AI551 -> 508.0760178 | AJ66: ='Working | Approach B'!AJ551 -> 496.2957075 | AK66: ='Working | Approach B'!AK551 -> 485.3666072 | AL66: ='Working | Approach B'!AL551 -> 470.4216605 | AM66: ='Working | Approach B'!AM551 -> 454.352458 | AN66: ='Working | Approach B'!AN551 -> 440.4064243 | AO66: ='Working | Approach B'!AO551 -> 423.1957257 | AP66: ='Working | Approach B'!AP551 -> 404.3027887 | AQ66: ='Working | Approach B'!AQ551 -> 384.5908762 | AR66: ='Working | Approach B'!AR551 -> 358.2285235 | AS66: ='Working | Approach B'!AS551 -> 331.1978475 | AT66: ='Working | Approach B'!AT551 -> 303.7723196 | AU66: ='Working | Approach B'!AU551 -> 272.6952865 | AV66: ='Working | Approach B'!AV551 -> 312.7052255 | AW66: ='Working | Approach B'!AW551 -> 206.7768363 | AX66: ='Working | Approach B'!AX551 -> 169.0967127 | AY66: ='Working | Approach B'!AY551 -> 128.9835352 | AZ66: ='Working | Approach B'!AZ551 -> 85.13346693 | BA66: ='Working | Approach B'!BA551 -> 43.81889237 | BB66: ='Working | Approach B'!BB551 -> -1.986789362e-14 | BC66: ='Working | Approach B'!BC551 -> -1.57838316e-14 | BD66: ='Working | Approach B'!BD551 -> -1.599073576e-14 | BE66: ='Working | Approach B'!BE551 -> -1.633064973e-14 | BF66: ='Working | Approach B'!BF551 -> -1.664100597e-14 | BG66: ='Working | Approach B'!BG551 -> -1.712853544e-14 | BH66: ='Working | Approach B'!BH551 -> -1.750383201e-14 | BI66: ='Working | Approach B'!BI551 -> -1.788735156e-14 | BJ66: ='Working | Approach B'!BJ551 -> -1.812563777e-14 | BK66: ='Working | Approach B'!BK551 -> -1.84701069e-14 | BL66: ='Working | Approach B'!BL551 -> -1.871615628e-14 | BM66: ='Working | Approach B'!BM551 -> -1.896149916e-14 | BN66: ='Working | Approach B'!BN551 -> -1.921335968e-14 | BO66: ='Working | Approach B'!BO551 -> -1.977625107e-14 | BP66: ='Working | Approach B'!BP551 -> -2.027115225e-14 | BQ66: ='Working | Approach B'!BQ551 -> -2.070205475e-14 | BR66: ='Working | Approach B'!BR551 -> -2.137617628e-14 | BS66: ='Working | Approach B'!BS551 -> -2.200012953e-14 | BT66: ='Working | Approach B'!BT551 -> -2.253612383e-14 | BU66: ='Working | Approach B'!BU551 -> -2.349898362e-14
A67: Capex | C67: ='Working | Approach B'!D121 -> 6000 | D67: ='Working | Approach B'!D122 -> 206.1560707 | E67: ='Working | Approach B'!E122 -> 220.0262295 | F67: ='Working | Approach B'!F122 -> 231.9886394 | G67: ='Working | Approach B'!G122 -> 245.400784 | H67: ='Working | Approach B'!H122 -> 260.9936474 | I67: ='Working | Approach B'!I258 -> 276.3958761 | J67: ='Working | Approach B'!J258 -> 297.811769 | K67: ='Working | Approach B'!K258 -> 315.2363409 | L67: ='Working | Approach B'!L258 -> 335.2524286 | M67: ='Working | Approach B'!M258 -> 357.7082373 | N67: ='Working | Approach B'!N394 -> 375.6482333 | O67: ='Working | Approach B'!O394 -> 397.8838011 | P67: ='Working | Approach B'!P394 -> 423.1919048 | Q67: ='Working | Approach B'!Q394 -> 443.106818 | R67: ='Working | Approach B'!R394 -> 463.8791788 | S67: ='Working | Approach B'!S530 -> 489.5311544 | T67: ='Working | Approach B'!T530 -> 515.4622768 | U67: ='Working | Approach B'!U530 -> 539.7399701 | V67: ='Working | Approach B'!V530 -> 569.9515326 | W67: ='Working | Approach B'!W530 -> 601.8541658 | X67: 0 | Y67: 0 | Z67: 0 | AA67: 0 | AB67: 0 | AC67: 0 | AD67: 0 | AE67: 0 | AF67: 0 | AG67: 0 | AH67: 0 | AI67: 0 | AJ67: 0 | AK67: 0 | AL67: 0 | AM67: 0 | AN67: 0 | AO67: 0 | AP67: 0 | AQ67: 0 | AR67: 0 | AS67: 0 | AT67: 0 | AU67: 0 | AV67: 0 | AW67: 0 | AX67: 0 | AY67: 0 | AZ67: 0 | BA67: 0 | BB67: 0 | BC67: 0 | BD67: 0 | BE67: 0 | BF67: 0 | BG67: 0 | BH67: 0 | BI67: 0 | BJ67: 0 | BK67: 0 | BL67: 0 | BM67: 0 | BN67: 0 | BO67: 0 | BP67: 0 | BQ67: 0 | BR67: 0 | BS67: 0 | BT67: 0 | BU67: 0
A68: Interest Payments | C68: 0 | D68: =('Working | Approach B'!D121*Inputs!$C$13)*Inputs!D13 -> 154.8 | E68: =('Working | Approach B'!E121*Inputs!$C$13)*Inputs!E13 -> 159.8906276 | F68: =('Working | Approach B'!F121*Inputs!$C$13)*Inputs!F13 -> 163.1507835 | G68: =('Working | Approach B'!G121*Inputs!$C$13)*Inputs!G13 -> 167.0214462 | H68: =('Working | Approach B'!H121*Inputs!$C$13)*Inputs!H13 -> 171.9095493 | I68: =('Working | Approach B'!I257*Inputs!$C$13)*Inputs!I13 -> 176.1876467 | J68: =('Working | Approach B'!J257*Inputs!$C$13)*Inputs!J13 -> 183.7552507 | K68: =('Working | Approach B'!K257*Inputs!$C$13)*Inputs!K13 -> 188.2737863 | L68: =('Working | Approach B'!L257*Inputs!$C$13)*Inputs!L13 -> 193.8120239 | M68: =('Working | Approach B'!M257*Inputs!$C$13)*Inputs!M13 -> 200.167054 | N68: =('Working | Approach B'!N393*Inputs!$C$13)*Inputs!N13 -> 203.4704684 | O68: =('Working | Approach B'!O393*Inputs!$C$13)*Inputs!O13 -> 208.6891659 | P68: =('Working | Approach B'!P393*Inputs!$C$13)*Inputs!P13 -> 214.9331244 | Q68: =('Working | Approach B'!Q393*Inputs!$C$13)*Inputs!Q13 -> 217.9218509 | R68: =('Working | Approach B'!R393*Inputs!$C$13)*Inputs!R13 -> 220.9141093 | S68: =('Working | Approach B'!S529*Inputs!$C$13)*Inputs!S13 -> 225.7474479 | T68: =('Working | Approach B'!T529*Inputs!$C$13)*Inputs!T13 -> 230.1169222 | U68: =('Working | Approach B'!U529*Inputs!$C$13)*Inputs!U13 -> 233.2631804 | V68: =('Working | Approach B'!V529*Inputs!$C$13)*Inputs!V13 -> 238.455951 | W68: =('Working | Approach B'!W529*Inputs!$C$13)*Inputs!W13 -> 243.7642914 | X68: =('Working | Approach B'!X529*Inputs!$C$13)*Inputs!$W$13 -> 247.097054 | Y68: =('Working | Approach B'!Y529*Inputs!$C$13)*Inputs!$W$13 -> 235.620432 | Z68: =('Working | Approach B'!Z529*Inputs!$C$13)*Inputs!$W$13 -> 224.1490629 | AA68: =('Working | Approach B'!AA529*Inputs!$C$13)*Inputs!$W$13 -> 210.2570972 | AB68: =('Working | Approach B'!AB529*Inputs!$C$13)*Inputs!$W$13 -> 195.9990155 | AC68: =('Working | Approach B'!AC529*Inputs!$C$13)*Inputs!$W$13 -> 184.4638214 | AD68: =('Working | Approach B'!AD529*Inputs!$C$13)*Inputs!$W$13 -> 171.296508 | AE68: =('Working | Approach B'!AE529*Inputs!$C$13)*Inputs!$W$13 -> 155.8560923 | AF68: =('Working | Approach B'!AF529*Inputs!$C$13)*Inputs!$W$13 -> 142.405979 | AG68: =('Working | Approach B'!AG529*Inputs!$C$13)*Inputs!$W$13 -> 127.4341964 | AH68: =('Working | Approach B'!AH529*Inputs!$C$13)*Inputs!$W$13 -> 110.8520625 | AI68: =('Working | Approach B'!AI529*Inputs!$C$13)*Inputs!$W$13 -> 105.8473913 | AJ68: =('Working | Approach B'!AJ529*Inputs!$C$13)*Inputs!$W$13 -> 98.68361855 | AK68: =('Working | Approach B'!AK529*Inputs!$C$13)*Inputs!$W$13 -> 91.91482366 | AL68: =('Working | Approach B'!AL529*Inputs!$C$13)*Inputs!$W$13 -> 84.5651175 | AM68: =('Working | Approach B'!AM529*Inputs!$C$13)*Inputs!$W$13 -> 76.96575503 | AN68: =('Working | Approach B'!AN529*Inputs!$C$13)*Inputs!$W$13 -> 70.43932323 | AO68: =('Working | Approach B'!AO529*Inputs!$C$13)*Inputs!$W$13 -> 63.67260203 | AP68: =('Working | Approach B'!AP529*Inputs!$C$13)*Inputs!$W$13 -> 56.96052619 | AQ68: =('Working | Approach B'!AQ529*Inputs!$C$13)*Inputs!$W$13 -> 50.52120042 | AR68: =('Working | Approach B'!AR529*Inputs!$C$13)*Inputs!$W$13 -> 43.5565569 | AS68: =('Working | Approach B'!AS529*Inputs!$C$13)*Inputs!$W$13 -> 37.05529182 | AT68: =('Working | Approach B'!AT529*Inputs!$C$13)*Inputs!$W$13 -> 31.09107252 | AU68: =('Working | Approach B'!AU529*Inputs!$C$13)*Inputs!$W$13 -> 25.31666967 | AV68: =('Working | Approach B'!AV529*Inputs!$C$13)*Inputs!$W$13 -> 20.43660437 | AW68: =('Working | Approach B'!AW529*Inputs!$C$13)*Inputs!$W$13 -> 15.52409258 | AX68: =('Working | Approach B'!AX529*Inputs!$C$13)*Inputs!$W$13 -> 11.28818562 | AY68: =('Working | Approach B'!AY529*Inputs!$C$13)*Inputs!$W$13 -> 7.732796906 | AZ68: =('Working | Approach B'!AZ529*Inputs!$C$13)*Inputs!$W$13 -> 4.771378246 | BA68: =('Working | Approach B'!BA529*Inputs!$C$13)*Inputs!$W$13 -> 2.764993283 | BB68: =('Working | Approach B'!BB529*Inputs!$C$13)*Inputs!$W$13 -> 0.0810056626 | BC68: =('Working | Approach B'!BC529*Inputs!$C$13)*Inputs!$W$13 -> 0.001075976543 | BD68: =('Working | Approach B'!BD529*Inputs!$C$13)*Inputs!$W$13 -> 1.410456143e-05 | BE68: =('Working | Approach B'!BE529*Inputs!$C$13)*Inputs!$W$13 -> 2.998196976e-07 | BF68: =('Working | Approach B'!BF529*Inputs!$C$13)*Inputs!$W$13 -> 5.697930904e-09 | BG68: =('Working | Approach B'!BG529*Inputs!$C$13)*Inputs!$W$13 -> 7.5904941e-11 | BH68: =('Working | Approach B'!BH529*Inputs!$C$13)*Inputs!$W$13 -> 1.66312316e-12 | BI68: =('Working | Approach B'!BI529*Inputs!$C$13)*Inputs!$W$13 -> 3.644003417e-14 | BJ68: =('Working | Approach B'!BJ529*Inputs!$C$13)*Inputs!$W$13 -> 4.854356239e-16 | BK68: =('Working | Approach B'!BK529*Inputs!$C$13)*Inputs!$W$13 -> 9.225473396e-18 | BL68: =('Working | Approach B'!BL529*Inputs!$C$13)*Inputs!$W$13 -> 1.96105257e-19 | BM68: =('Working | Approach B'!BM529*Inputs!$C$13)*Inputs!$W$13 -> 2.570668163e-21 | BN68: =('Working | Approach B'!BN529*Inputs!$C$13)*Inputs!$W$13 -> 3.414549743e-23 | BO68: =('Working | Approach B'!BO529*Inputs!$C$13)*Inputs!$W$13 -> 1.00035637e-24 | BP68: =('Working | Approach B'!BP529*Inputs!$C$13)*Inputs!$W$13 -> 2.503394319e-26 | BQ68: =('Working | Approach B'!BQ529*Inputs!$C$13)*Inputs!$W$13 -> 4.074700825e-28 | BR68: =('Working | Approach B'!BR529*Inputs!$C$13)*Inputs!$W$13 -> 1.326845857e-29 | BS68: =('Working | Approach B'!BS529*Inputs!$C$13)*Inputs!$W$13 -> 3.872955474e-31 | BT68: =('Working | Approach B'!BT529*Inputs!$C$13)*Inputs!$W$13 -> 9.435771918e-33 | BU68: =('Working | Approach B'!BU529*Inputs!$C$13)*Inputs!$W$13 -> 4.031449896e-34
A69: Repayment of Debt | C69: =('Working | Approach B'!C121-'Working | Approach B'!D121)*Inputs!$C$13 -> -3600 | D69: =('Working | Approach B'!D121-'Working | Approach B'!E121)*Inputs!$C$13 -> -118.3866875 | E69: =('Working | Approach B'!E121-'Working | Approach B'!F121)*Inputs!$C$13 -> -75.81758034 | F69: =('Working | Approach B'!F121-'Working | Approach B'!G121)*Inputs!$C$13 -> -90.01541196 | G69: =('Working | Approach B'!G121-'Working | Approach B'!H121)*Inputs!$C$13 -> -113.6768146 | H69: =('Working | Approach B'!H121-'Working | Approach B'!I257)*Inputs!$C$13 -> -99.49063827 | I69: =('Working | Approach B'!I257-'Working | Approach B'!J257)*Inputs!$C$13 -> -175.990791 | J69: =('Working | Approach B'!J257-'Working | Approach B'!K257)*Inputs!$C$13 -> -105.0822219 | K69: =('Working | Approach B'!K257-'Working | Approach B'!L257)*Inputs!$C$13 -> -128.7962245 | L69: =('Working | Approach B'!L257-'Working | Approach B'!M257)*Inputs!$C$13 -> -147.7913967 | M69: =('Working | Approach B'!M257-'Working | Approach B'!N393)*Inputs!$C$13 -> -76.8235913 | N69: =('Working | Approach B'!N393-'Working | Approach B'!O393)*Inputs!$C$13 -> -121.3650573 | O69: =('Working | Approach B'!O393-'Working | Approach B'!P393)*Inputs!$C$13 -> -145.208339 | P69: =('Working | Approach B'!P393-'Working | Approach B'!Q393)*Inputs!$C$13 -> -69.50526707 | Q69: =('Working | Approach B'!Q393-'Working | Approach B'!R393)*Inputs!$C$13 -> -69.58740388 | R69: =('Working | Approach B'!R393-'Working | Approach B'!S529)*Inputs!$C$13 -> -112.4032231 | S69: =('Working | Approach B'!S529-'Working | Approach B'!T529)*Inputs!$C$13 -> -101.6156816 | T69: =('Working | Approach B'!T529-'Working | Approach B'!U529)*Inputs!$C$13 -> -73.16879509 | U69: =('Working | Approach B'!U529-'Working | Approach B'!V529)*Inputs!$C$13 -> -120.762107 | V69: =('Working | Approach B'!V529-'Working | Approach B'!W529)*Inputs!$C$13 -> -123.4497759 | W69: =('Working | Approach B'!W529-'Working | Approach B'!X529)*Inputs!$C$13 -> -77.50610782 | X69: =('Working | Approach B'!X529-'Working | Approach B'!Y529)*Inputs!$C$13 -> 266.8981868 | Y69: =('Working | Approach B'!Y529-'Working | Approach B'!Z529)*Inputs!$C$13 -> 266.7760236 | Z69: =('Working | Approach B'!Z529-'Working | Approach B'!AA529)*Inputs!$C$13 -> 323.0689699 | AA69: =('Working | Approach B'!AA529-'Working | Approach B'!AB529)*Inputs!$C$13 -> 331.5832972 | AB69: =('Working | Approach B'!AB529-'Working | Approach B'!AC529)*Inputs!$C$13 -> 268.2603266 | AC69: =('Working | Approach B'!AC529-'Working | Approach B'!AD529)*Inputs!$C$13 -> 306.2165906 | AD69: =('Working | Approach B'!AD529-'Working | Approach B'!AE529)*Inputs!$C$13 -> 359.0794361 | AE69: =('Working | Approach B'!AE529-'Working | Approach B'!AF529)*Inputs!$C$13 -> 312.7933323 | AF69: =('Working | Approach B'!AF529-'Working | Approach B'!AG529)*Inputs!$C$13 -> 348.18099 | AG69: =('Working | Approach B'!AG529-'Working | Approach B'!AH529)*Inputs!$C$13 -> 385.6310201 | AH69: =('Working | Approach B'!AH529-'Working | Approach B'!AI529)*Inputs!$C$13 -> 116.3877044 | AI69: =('Working | Approach B'!AI529-'Working | Approach B'!AJ529)*Inputs!$C$13 -> 166.5993652 | AJ69: =('Working | Approach B'!AJ529-'Working | Approach B'!AK529)*Inputs!$C$13 -> 157.4138348 | AK69: =('Working | Approach B'!AK529-'Working | Approach B'!AL529)*Inputs!$C$13 -> 170.923399 | AL69: =('Working | Approach B'!AL529-'Working | Approach B'!AM529)*Inputs!$C$13 -> 176.7293599 | AM69: =('Working | Approach B'!AM529-'Working | Approach B'!AN529)*Inputs!$C$13 -> 151.7774837 | AN69: =('Working | Approach B'!AN529-'Working | Approach B'!AO529)*Inputs!$C$13 -> 157.3656093 | AO69: =('Working | Approach B'!AO529-'Working | Approach B'!AP529)*Inputs!$C$13 -> 156.0947869 | AP69: =('Working | Approach B'!AP529-'Working | Approach B'!AQ529)*Inputs!$C$13 -> 149.7517621 | AQ69: =('Working | Approach B'!AQ529-'Working | Approach B'!AR529)*Inputs!$C$13 -> 161.968454 | AR69: =('Working | Approach B'!AR529-'Working | Approach B'!AS529)*Inputs!$C$13 -> 151.1922111 | AS69: =('Working | Approach B'!AS529-'Working | Approach B'!AT529)*Inputs!$C$13 -> 138.7027744 | AT69: =('Working | Approach B'!AT529-'Working | Approach B'!AU529)*Inputs!$C$13 -> 134.2884384 | AU69: =('Working | Approach B'!AU529-'Working | Approach B'!AV529)*Inputs!$C$13 -> 113.4898907 | AV69: =('Working | Approach B'!AV529-'Working | Approach B'!AW529)*Inputs!$C$13 -> 114.2444602 | AW69: =('Working | Approach B'!AW529-'Working | Approach B'!AX529)*Inputs!$C$13 -> 98.50946414 | AX69: =('Working | Approach B'!AX529-'Working | Approach B'!AY529)*Inputs!$C$13 -> 82.68345846 | AY69: =('Working | Approach B'!AY529-'Working | Approach B'!AZ529)*Inputs!$C$13 -> 68.8702014 | AZ69: =('Working | Approach B'!AZ529-'Working | Approach B'!BA529)*Inputs!$C$13 -> 46.66011541 | BA69: =('Working | Approach B'!BA529-'Working | Approach B'!BB529)*Inputs!$C$13 -> 62.41831676 | BB69: =('Working | Approach B'!BB529-'Working | Approach B'!BC529)*Inputs!$C$13 -> 1.858829908 | BC69: =('Working | Approach B'!BC529-'Working | Approach B'!BD529)*Inputs!$C$13 -> 0.02469469725 | BD69: =('Working | Approach B'!BD529-'Working | Approach B'!BE529)*Inputs!$C$13 -> 0.0003210405053 | BE69: =('Working | Approach B'!BE529-'Working | Approach B'!BF529)*Inputs!$C$13 -> 6.840041086e-06 | BF69: =('Working | Approach B'!BF529-'Working | Approach B'!BG529)*Inputs!$C$13 -> 1.307447898e-07 | BG69: =('Working | Approach B'!BG529-'Working | Approach B'!BH529)*Inputs!$C$13 -> 1.726553903e-09 | BH69: =('Working | Approach B'!BH529-'Working | Approach B'!BI529)*Inputs!$C$13 -> 3.782984012e-11 | BI69: =('Working | Approach B'!BI529-'Working | Approach B'!BJ529)*Inputs!$C$13 -> 8.361534546e-13 | BJ69: =('Working | Approach B'!BJ529-'Working | Approach B'!BK529)*Inputs!$C$13 -> 1.107465466e-14 | BK69: =('Working | Approach B'!BK529-'Working | Approach B'!BL529)*Inputs!$C$13 -> 2.099853056e-16 | BL69: =('Working | Approach B'!BL529-'Working | Approach B'!BM529)*Inputs!$C$13 -> 4.500804392e-18 | BM69: =('Working | Approach B'!BM529-'Working | Approach B'!BN529)*Inputs!$C$13 -> 5.898889921e-20 | BN69: =('Working | Approach B'!BN529-'Working | Approach B'!BO529)*Inputs!$C$13 -> 7.708172339e-22 | BO69: =('Working | Approach B'!BO529-'Working | Approach B'!BP529)*Inputs!$C$13 -> 2.26819169e-23 | BP69: =('Working | Approach B'!BP529-'Working | Approach B'!BQ529)*Inputs!$C$13 -> 5.727086769e-25 | BQ69: =('Working | Approach B'!BQ529-'Working | Approach B'!BR529)*Inputs!$C$13 -> 9.167479625e-27 | BR69: =('Working | Approach B'!BR529-'Working | Approach B'!BS529)*Inputs!$C$13 -> 2.995619307e-28 | BS69: =('Working | Approach B'!BS529-'Working | Approach B'!BT529)*Inputs!$C$13 -> 8.787436638e-30 | BT69: =('Working | Approach B'!BT529-'Working | Approach B'!BU529)*Inputs!$C$13 -> 2.100610914e-31 | BU69: =('Working | Approach B'!BU529-'Working | Approach B'!BV529)*Inputs!$C$13 -> 9.375464874e-33
A70: Opex | C70: 0 | D70: ='Working | Approach B'!D102/'Working | Approach B'!D4*Inputs!D35 -> 51.48849797 | E70: ='Working | Approach B'!E102/'Working | Approach B'!E4*Inputs!E35 -> 53.17997294 | F70: ='Working | Approach B'!F102/'Working | Approach B'!F4*Inputs!F35 -> 54.26251691 | G70: ='Working | Approach B'!G102/'Working | Approach B'!G4*Inputs!G35 -> 55.54803789 | H70: ='Working | Approach B'!H102/'Working | Approach B'!H4*Inputs!H35 -> 57.17185386 | I70: ='Working | Approach B'!I238/'Working | Approach B'!I139*Inputs!I35 -> 58.59269283 | J70: ='Working | Approach B'!J238/'Working | Approach B'!J139*Inputs!J35 -> 61.09607578 | K70: ='Working | Approach B'!K238/'Working | Approach B'!K139*Inputs!K35 -> 62.58457375 | L70: ='Working | Approach B'!L238/'Working | Approach B'!L139*Inputs!L35 -> 64.41136671 | M70: ='Working | Approach B'!M238/'Working | Approach B'!M139*Inputs!M35 -> 66.50879567 | N70: ='Working | Approach B'!N374/'Working | Approach B'!N275*Inputs!N35 -> 67.59133965 | O70: ='Working | Approach B'!O374/'Working | Approach B'!O275*Inputs!O35 -> 69.28281461 | P70: ='Working | Approach B'!P374/'Working | Approach B'!P275*Inputs!P35 -> 71.31258457 | Q70: ='Working | Approach B'!Q374/'Working | Approach B'!Q275*Inputs!Q35 -> 72.25981055 | R70: ='Working | Approach B'!R374/'Working | Approach B'!R275*Inputs!R35 -> 73.20703654 | S70: ='Working | Approach B'!S510/'Working | Approach B'!S411*Inputs!S35 -> 74.7631935 | T70: ='Working | Approach B'!T510/'Working | Approach B'!T411*Inputs!T35 -> 76.18403248 | U70: ='Working | Approach B'!U510/'Working | Approach B'!U411*Inputs!U35 -> 77.19891746 | V70: ='Working | Approach B'!V510/'Working | Approach B'!V411*Inputs!V35 -> 78.89039242 | W70: ='Working | Approach B'!W510/'Working | Approach B'!W411*Inputs!W35 -> 80.61892863 | X70: 0 | Y70: 0 | Z70: 0 | AA70: 0 | AB70: 0 | AC70: 0 | AD70: 0 | AE70: 0 | AF70: 0 | AG70: 0 | AH70: 0 | AI70: 0 | AJ70: 0 | AK70: 0 | AL70: 0 | AM70: 0 | AN70: 0 | AO70: 0 | AP70: 0 | AQ70: 0 | AR70: 0 | AS70: 0 | AT70: 0 | AU70: 0 | AV70: 0 | AW70: 0 | AX70: 0 | AY70: 0 | AZ70: 0 | BA70: 0 | BB70: 0 | BC70: 0 | BD70: 0 | BE70: 0 | BF70: 0 | BG70: 0 | BH70: 0 | BI70: 0 | BJ70: 0 | BK70: 0 | BL70: 0 | BM70: 0 | BN70: 0 | BO70: 0 | BP70: 0 | BQ70: 0 | BR70: 0 | BS70: 0 | BT70: 0 | BU70: 0
A71: Tax payable+ gamma | C71: 0 | D71: ='Working | Approach B'!D103*(D66/'Working | Approach B'!D106) -> 0 | E71: ='Working | Approach B'!E103*(E66/'Working | Approach B'!E106) -> 0 | F71: ='Working | Approach B'!F103*(F66/'Working | Approach B'!F106) -> 0 | G71: ='Working | Approach B'!G103*(G66/'Working | Approach B'!G106) -> 0 | H71: ='Working | Approach B'!H103*(H66/'Working | Approach B'!H106) -> 0 | I71: ='Working | Approach B'!I239*(I66/'Working | Approach B'!I242) -> 0 | J71: ='Working | Approach B'!J239*(J66/'Working | Approach B'!J242) -> 0 | K71: ='Working | Approach B'!K239*(K66/'Working | Approach B'!K242) -> 0 | L71: ='Working | Approach B'!L239*(L66/'Working | Approach B'!L242) -> 0 | M71: ='Working | Approach B'!M239*(M66/'Working | Approach B'!M242) -> 0 | N71: ='Working | Approach B'!N375*(N66/'Working | Approach B'!N378) -> 3.778250209 | O71: ='Working | Approach B'!O375*(O66/'Working | Approach B'!O378) -> 4.48410933 | P71: ='Working | Approach B'!P375*(P66/'Working | Approach B'!P378) -> 5.334070569 | Q71: ='Working | Approach B'!Q375*(Q66/'Working | Approach B'!Q378) -> 6.218488873 | R71: ='Working | Approach B'!R375*(R66/'Working | Approach B'!R378) -> 7.206173465 | S71: ='Working | Approach B'!S511*(S66/'Working | Approach B'!S514) -> 8.377711594 | T71: ='Working | Approach B'!T511*(T66/'Working | Approach B'!T514) -> 9.64250965 | U71: ='Working | Approach B'!U511*(U66/'Working | Approach B'!U514) -> 10.9654258 | V71: ='Working | Approach B'!V511*(V66/'Working | Approach B'!V514) -> 12.49922366 | W71: ='Working | Approach B'!W511*(W66/'Working | Approach B'!W514) -> 14.16695693 | X71: =IFERROR(SUM('Working | Approach B'!X477:X478)*(X66/'Working | Approach B'!X519),0) -> 15.96294741 | Y71: =IFERROR(SUM('Working | Approach B'!Y477:Y478)*(Y66/'Working | Approach B'!Y519),0) -> 20.81863732 | Z71: =IFERROR(SUM('Working | Approach B'!Z477:Z478)*(Z66/'Working | Approach B'!Z519),0) -> 25.55832436 | AA71: =IFERROR(SUM('Working | Approach B'!AA477:AA478)*(AA66/'Working | Approach B'!AA519),0) -> 29.92006792 | AB71: =IFERROR(SUM('Working | Approach B'!AB477:AB478)*(AB66/'Working | Approach B'!AB519),0) -> 34.0941871 | AC71: =IFERROR(SUM('Working | Approach B'!AC477:AC478)*(AC66/'Working | Approach B'!AC519),0) -> 38.09343751 | AD71: =IFERROR(SUM('Working | Approach B'!AD477:AD478)*(AD66/'Working | Approach B'!AD519),0) -> 42.41550536 | AE71: =IFERROR(SUM('Working | Approach B'!AE477:AE478)*(AE66/'Working | Approach B'!AE519),0) -> 46.28249904 | AF71: =IFERROR(SUM('Working | Approach B'!AF477:AF478)*(AF66/'Working | Approach B'!AF519),0) -> 50.83567961 | AG71: =IFERROR(SUM('Working | Approach B'!AG477:AG478)*(AG66/'Working | Approach B'!AG519),0) -> 55.23357971 | AH71: =IFERROR(SUM('Working | Approach B'!AH477:AH478)*(AH66/'Working | Approach B'!AH519),0) -> 30.66012564 | AI71: =IFERROR(SUM('Working | Approach B'!AI477:AI478)*(AI66/'Working | Approach B'!AI519),0) -> 28.61231032 | AJ71: =IFERROR(SUM('Working | Approach B'!AJ477:AJ478)*(AJ66/'Working | Approach B'!AJ519),0) -> 29.18014195 | AK71: =IFERROR(SUM('Working | Approach B'!AK477:AK478)*(AK66/'Working | Approach B'!AK519),0) -> 29.70704776 | AL71: =IFERROR(SUM('Working | Approach B'!AL477:AL478)*(AL66/'Working | Approach B'!AL519),0) -> 29.8190017 | AM71: =IFERROR(SUM('Working | Approach B'!AM477:AM478)*(AM66/'Working | Approach B'!AM519),0) -> 29.65139139 | AN71: =IFERROR(SUM('Working | Approach B'!AN477:AN478)*(AN66/'Working | Approach B'!AN519),0) -> 29.51974119 | AO71: =IFERROR(SUM('Working | Approach B'!AO477:AO478)*(AO66/'Working | Approach B'!AO519),0) -> 28.84625678 | AP71: =IFERROR(SUM('Working | Approach B'!AP477:AP478)*(AP66/'Working | Approach B'!AP519),0) -> 28.02683494 | AQ71: =IFERROR(SUM('Working | Approach B'!AQ477:AQ478)*(AQ66/'Working | Approach B'!AQ519),0) -> 26.94652793 | AR71: =IFERROR(SUM('Working | Approach B'!AR477:AR478)*(AR66/'Working | Approach B'!AR519),0) -> 25.13864644 | AS71: =IFERROR(SUM('Working | Approach B'!AS477:AS478)*(AS66/'Working | Approach B'!AS519),0) -> 23.24464411 | AT71: =IFERROR(SUM('Working | Approach B'!AT477:AT478)*(AT66/'Working | Approach B'!AT519),0) -> 21.0495663 | AU71: =IFERROR(SUM('Working | Approach B'!AU477:AU478)*(AU66/'Working | Approach B'!AU519),0) -> 18.28332153 | AV71: =IFERROR(SUM('Working | Approach B'!AV477:AV478)*(AV66/'Working | Approach B'!AV519),0) -> 84.54346948 | AW71: =IFERROR(SUM('Working | Approach B'!AW477:AW478)*(AW66/'Working | Approach B'!AW519),0) -> 12.13423566 | AX71: =IFERROR(SUM('Working | Approach B'!AX477:AX478)*(AX66/'Working | Approach B'!AX519),0) -> 8.186107145 | AY71: =IFERROR(SUM('Working | Approach B'!AY477:AY478)*(AY66/'Working | Approach B'!AY519),0) -> 3.855329438 | AZ71: =IFERROR(SUM('Working | Approach B'!AZ477:AZ478)*(AZ66/'Working | Approach B'!AZ519),0) -> 0 | BA71: =IFERROR(SUM('Working | Approach B'!BA477:BA478)*(BA66/'Working | Approach B'!BA519),0) -> 0 | BB71: =IFERROR(SUM('Working | Approach B'!BB477:BB478)*(BB66/'Working | Approach B'!BB519),0) -> 0 | BC71: =IFERROR(SUM('Working | Approach B'!BC477:BC478)*(BC66/'Working | Approach B'!BC519),0) -> 0 | BD71: =IFERROR(SUM('Working | Approach B'!BD477:BD478)*(BD66/'Working | Approach B'!BD519),0) -> 0 | BE71: =IFERROR(SUM('Working | Approach B'!BE477:BE478)*(BE66/'Working | Approach B'!BE519),0) -> 0 | BF71: =IFERROR(SUM('Working | Approach B'!BF477:BF478)*(BF66/'Working | Approach B'!BF519),0) -> 0 | BG71: =IFERROR(SUM('Working | Approach B'!BG477:BG478)*(BG66/'Working | Approach B'!BG519),0) -> 0 | BH71: =IFERROR(SUM('Working | Approach B'!BH477:BH478)*(BH66/'Working | Approach B'!BH519),0) -> 0 | BI71: =IFERROR(SUM('Working | Approach B'!BI477:BI478)*(BI66/'Working | Approach B'!BI519),0) -> 0 | BJ71: =IFERROR(SUM('Working | Approach B'!BJ477:BJ478)*(BJ66/'Working | Approach B'!BJ519),0) -> 0 | BK71: =IFERROR(SUM('Working | Approach B'!BK477:BK478)*(BK66/'Working | Approach B'!BK519),0) -> 0 | BL71: =IFERROR(SUM('Working | Approach B'!BL477:BL478)*(BL66/'Working | Approach B'!BL519),0) -> 0 | BM71: =IFERROR(SUM('Working | Approach B'!BM477:BM478)*(BM66/'Working | Approach B'!BM519),0) -> 0 | BN71: =IFERROR(SUM('Working | Approach B'!BN477:BN478)*(BN66/'Working | Approach B'!BN519),0) -> 0 | BO71: =IFERROR(SUM('Working | Approach B'!BO477:BO478)*(BO66/'Working | Approach B'!BO519),0) -> 0 | BP71: =IFERROR(SUM('Working | Approach B'!BP477:BP478)*(BP66/'Working | Approach B'!BP519),0) -> 0 | BQ71: =IFERROR(SUM('Working | Approach B'!BQ477:BQ478)*(BQ66/'Working | Approach B'!BQ519),0) -> 0 | BR71: =IFERROR(SUM('Working | Approach B'!BR477:BR478)*(BR66/'Working | Approach B'!BR519),0) -> 0 | BS71: =IFERROR(SUM('Working | Approach B'!BS477:BS478)*(BS66/'Working | Approach B'!BS519),0) -> 0 | BT71: =IFERROR(SUM('Working | Approach B'!BT477:BT478)*(BT66/'Working | Approach B'!BT519),0) -> 0 | BU71: =IFERROR(SUM('Working | Approach B'!BU477:BU478)*(BU66/'Working | Approach B'!BU519),0) -> 0
A72: Returns achieved
A73: Post-tax CF to Equity | B73: =IRR(C73:BU73) -> 0.05682991909 | C73: =C66-C67-C68-C69-C70-C71 -> -2400 | D73: =D66-D67-D68-D69-D70-D71 -> 110.0669115 | E73: 67.27714171 | F73: 81.23854343 | G73: 104.5029371 | H73: 89.71885798 | I73: 166.4444271 | J73: 95.23023872 | K73: 118.6663274 | L73: 137.1733026 | M73: 65.49412325 | N73: 110.6963186 | O73: 134.5513492 | P73: 58.59490062 | Q73: 58.35471813 | R73: 100.6012357 | S73: 89.75949511 | T73: 61.30214046 | U73: 108.7297136 | V73: 110.9099489 | W73: 64.19271618 | X73: 357.0948945 | Y73: 369.6072092 | Z73: 327.3481472 | AA73: 328.0071374 | AB73: 400.7441886 | AC73: 369.2298578 | AD73: 334.0213774 | AE73: 392.5079835 | AF73: 380.7392286 | AG73: 365.2994841 | AH73: 255.1621207 | AI73: 207.0169511 | AJ73: 211.0181122 | AK73: 192.8213368 | AL73: 179.3081815 | AM73: 195.9578279 | AN73: 183.0817506 | AO73: 174.58208 | AP73: 169.5636655 | AQ73: 145.1546938 | AR73: 138.3411091 | AS73: 132.1951371 | AT73: 117.3432424 | AU73: 115.6054046 | AV73: 93.48069148 | AW73: 80.60904396 | AX73: 66.93896148 | AY73: 48.52520741 | AZ73: 33.70197328 | BA73: -21.36441767 | BB73: -1.939835571 | BC73: -0.02577067379 | BD73: -0.0003351450668 | BE73: -7.1398608e-06 | BF73: -1.364427374e-07 | BG73: -1.802475973e-09 | BH73: -3.951046712e-11 | BI73: -8.904808403e-13 | BJ73: -2.968572806e-14 | BK73: -1.868931768e-14 | BL73: -1.872085319e-14 | BM73: -1.896156072e-14 | BN73: -1.921336048e-14 | BO73: -1.97762511e-14 | BP73: =BP66-BP67-BP68-BP69-BP70-BP71 -> -2.027115225e-14 | BQ73: -2.070205475e-14 | BR73: -2.137617628e-14 | BS73: -2.200012953e-14 | BT73: -2.253612383e-14 | BU73: -2.349898362e-14
A74: Real post-tax CF to Equity | B74: =IRR(C74:BU74) -> 0.03191162189 | C74: =C73/Inputs!C35 -> -2400 | D74: =D73/Inputs!D35 -> 106.8849508 | E74: =E73/Inputs!E35 -> 63.2542083 | F74: =F73/Inputs!F35 -> 74.85696209 | G74: =G73/Inputs!G35 -> 94.06537216 | H74: =H73/Inputs!H35 -> 78.46418467 | I74: =I73/Inputs!I35 -> 142.0351404 | J74: =J73/Inputs!J35 -> 77.93482438 | K74: =K73/Inputs!K35 -> 94.804774 | L74: =L73/Inputs!L35 -> 106.482217 | M74: =M73/Inputs!M35 -> 49.2371893 | N74: =N73/Inputs!N35 -> 81.88646588 | O74: =O73/Inputs!O35 -> 97.10297561 | P74: =P73/Inputs!P35 -> 41.08314189 | Q74: =Q73/Inputs!Q35 -> 40.37840515 | R74: =R73/Inputs!R35 -> 68.71008615 | S74: =S73/Inputs!S35 -> 60.0292008 | T74: =T73/Inputs!T35 -> 40.23293233 | U74: =U73/Inputs!U35 -> 70.42178649 | V74: =V73/Inputs!V35 -> 70.2936983 | W74: =W73/Inputs!W35 -> 39.81243442 | X74: =X73/Inputs!X35 -> 218.5593392 | Y74: =Y73/Inputs!Y35 -> 221.9985047 | Z74: =Z73/Inputs!Z35 -> 192.5238267 | AA74: =AA73/Inputs!AA35 -> 190.4153188 | AB74: =AB73/Inputs!AB35 -> 229.5911702 | AC74: =AC73/Inputs!AC35 -> 205.5152753 | AD74: =AD73/Inputs!AD35 -> 181.3790356 | AE74: =AE73/Inputs!AE35 -> 209.724588 | AF74: =AF73/Inputs!AF35 -> 197.0207244 | AG74: =AG73/Inputs!AG35 -> 183.6699591 | AH74: =AH73/Inputs!AH35 -> 125.2423739 | AI74: =AI73/Inputs!AI35 -> 97.44759778 | AJ74: =AJ73/Inputs!AJ35 -> 96.92231527 | AK74: =AK73/Inputs!AK35 -> 86.04895173 | AL74: =AL73/Inputs!AL35 -> 78.16670617 | AM74: =AM73/Inputs!AM35 -> 83.72063245 | AN74: =AN73/Inputs!AN35 -> 75.73158575 | AO74: =AO73/Inputs!AO35 -> 70.12799774 | AP74: =AP73/Inputs!AP35 -> 66.14307079 | AQ74: =AQ73/Inputs!AQ35 -> 54.82072215 | AR74: =AR73/Inputs!AR35 -> 51.20508591 | AS74: =AS73/Inputs!AS35 -> 47.79786926 | AT74: =AT73/Inputs!AT35 -> 41.22280972 | AU74: =AU73/Inputs!AU35 -> 39.62748046 | AV74: =AV73/Inputs!AV35 -> 30.73055334 | AW74: =AW73/Inputs!AW35 -> 25.86891727 | AX74: =AX73/Inputs!AX35 -> 20.87268102 | AY74: =AY73/Inputs!AY35 -> 14.6537945 | AZ74: =AZ73/Inputs!AZ35 -> 10.01442587 | BA74: =BA73/Inputs!BA35 -> -6.193374155 | BB74: =BB73/Inputs!BB35 -> -0.5463368851 | BC74: =BC73/Inputs!BC35 -> -0.007162930466 | BD74: =BD73/Inputs!BD35 -> -9.194789361e-05 | BE74: =BE73/Inputs!BE35 -> -1.918066592e-06 | BF74: =BF73/Inputs!BF35 -> -3.597064685e-08 | BG74: =BG73/Inputs!BG35 -> -4.689429965e-10 | BH74: =BH73/Inputs!BH35 -> -1.005888465e-11 | BI74: =BI73/Inputs!BI35 -> -2.21844843e-13 | BJ74: =BJ73/Inputs!BJ35 -> -7.298358774e-15 | BK74: =BK73/Inputs!BK35 -> -4.509151611e-15 | BL74: =BL73/Inputs!BL35 -> -4.422746138e-15 | BM74: =BM73/Inputs!BM35 -> -4.421650862e-15 | BN74: =BN73/Inputs!BN35 -> -4.421636692e-15 | BO74: =BO73/Inputs!BO35 -> -4.421636512e-15 | BP74: =BP73/Inputs!BP35 -> -4.421636507e-15 | BQ74: =BQ73/Inputs!BQ35 -> -4.443304578e-15 | BR74: =BR73/Inputs!BR35 -> -4.443304578e-15 | BS74: =BS73/Inputs!BS35 -> -4.443304578e-15 | BT74: =BT73/Inputs!BT35 -> -4.443304578e-15 | BU74: =BU73/Inputs!BU35 -> -4.443304578e-15
A75: Nominal cash flows to assets | B75: =IRR(C75:BU75) -> 0.0501552725 | C75: =C66-C67-C70 -> -6000 | D75: =D66-D67-D70 -> 146.480224 | E75: 151.3501889 | F75: 154.373915 | G75: 157.8475688 | H75: 162.137769 | I75: 166.6412827 | J75: 173.9032675 | K75: 178.1438891 | L75: 183.1939298 | M75: 188.8375859 | N75: 196.5799799 | O75: 202.5162853 | P75: 209.3568286 | Q75: 212.9076541 | R75: 216.3182954 | S75: 222.268973 | T75: 227.8927772 | U75: 232.1962128 | V75: 238.4153476 | W75: 244.6178566 | X75: 887.0530826 | Y75: 892.822302 | Z75: 900.1245044 | AA75: 899.7675998 | AB75: 899.0977177 | AC75: 898.0037073 | AD75: 906.8128269 | AE75: 907.4399071 | AF75: 922.1618772 | AG75: 933.5982803 | AH75: 513.0620133 | AI75: 508.0760178 | AJ75: 496.2957075 | AK75: 485.3666072 | AL75: 470.4216605 | AM75: 454.352458 | AN75: 440.4064243 | AO75: 423.1957257 | AP75: 404.3027887 | AQ75: 384.5908762 | AR75: 358.2285235 | AS75: 331.1978475 | AT75: 303.7723196 | AU75: 272.6952865 | AV75: 312.7052255 | AW75: 206.7768363 | AX75: 169.0967127 | AY75: 128.9835352 | AZ75: 85.13346693 | BA75: 43.81889237 | BB75: -1.986789362e-14 | BC75: -1.57838316e-14 | BD75: -1.599073576e-14 | BE75: -1.633064973e-14 | BF75: -1.664100597e-14 | BG75: -1.712853544e-14 | BH75: -1.750383201e-14 | BI75: -1.788735156e-14 | BJ75: -1.812563777e-14 | BK75: -1.84701069e-14 | BL75: -1.871615628e-14 | BM75: -1.896149916e-14 | BN75: -1.921335968e-14 | BO75: -1.977625107e-14 | BP75: =BP66-BP67-BP70 -> -2.027115225e-14 | BQ75: -2.070205475e-14 | BR75: -2.137617628e-14 | BS75: -2.200012953e-14 | BT75: -2.253612383e-14 | BU75: -2.349898362e-14
A76: Nominal vanilla WACC | B76: =IRR(C76:BU76) -> 0.0483875651 | C76: =C75-C71 -> -6000 | D76: =D75-D71 -> 146.480224 | E76: 151.3501889 | F76: 154.373915 | G76: 157.8475688 | H76: 162.137769 | I76: 166.6412827 | J76: 173.9032675 | K76: 178.1438891 | L76: 183.1939298 | M76: 188.8375859 | N76: 192.8017297 | O76: 198.032176 | P76: 204.022758 | Q76: 206.6891652 | R76: 209.1121219 | S76: 213.8912614 | T76: 218.2502676 | U76: 221.230787 | V76: 225.916124 | W76: 230.4508997 | X76: 871.0901352 | Y76: 872.0036647 | Z76: 874.56618 | AA76: 869.8475318 | AB76: 865.0035306 | AC76: 859.9102697 | AD76: 864.3973215 | AE76: 861.1574081 | AF76: 871.3261976 | AG76: 878.3647006 | AH76: 482.4018876 | AI76: 479.4637075 | AJ76: 467.1155655 | AK76: 455.6595594 | AL76: 440.6026588 | AM76: 424.7010666 | AN76: 410.8866831 | AO76: 394.3494689 | AP76: 376.2759538 | AQ76: 357.6443482 | AR76: 333.0898771 | AS76: 307.9532034 | AT76: 282.7227533 | AU76: 254.411965 | AV76: 228.161756 | AW76: 194.6426007 | AX76: 160.9106056 | AY76: 125.1282057 | AZ76: 85.13346693 | BA76: 43.81889237 | BB76: -1.986789362e-14 | BC76: -1.57838316e-14 | BD76: -1.599073576e-14 | BE76: -1.633064973e-14 | BF76: -1.664100597e-14 | BG76: -1.712853544e-14 | BH76: -1.750383201e-14 | BI76: -1.788735156e-14 | BJ76: -1.812563777e-14 | BK76: -1.84701069e-14 | BL76: -1.871615628e-14 | BM76: -1.896149916e-14 | BN76: -1.921335968e-14 | BO76: -1.977625107e-14 | BP76: =BP75-BP71 -> -2.027115225e-14 | BQ76: -2.070205475e-14 | BR76: -2.137617628e-14 | BS76: -2.200012953e-14 | BT76: -2.253612383e-14 | BU76: -2.349898362e-14
A77: Real WACC (real) | B77: =IRR(C77:BU77) -> 0.02382376397 | C77: =C76/Inputs!C35 -> -6000 | D77: =D76/Inputs!D35 -> 142.2455789 | E77: =E76/Inputs!E35 -> 142.2999868 | F77: =F76/Inputs!F35 -> 142.2472858 | G77: =G76/Inputs!G35 -> 142.0820382 | H77: =H76/Inputs!H35 -> 141.7985932 | I77: =I76/Inputs!I35 -> 142.2031269 | J77: =J76/Inputs!J35 -> 142.3195069 | K77: =K76/Inputs!K35 -> 142.3225233 | L77: =L76/Inputs!L35 -> 142.2062123 | M77: =M76/Inputs!M35 -> 141.9643703 | N77: =N76/Inputs!N35 -> 142.6231013 | O77: =O76/Inputs!O35 -> 142.9157989 | P77: =P76/Inputs!P35 -> 143.0482146 | Q77: =Q76/Inputs!Q35 -> 143.0180647 | R77: =R76/Inputs!R35 -> 142.8224197 | S77: =S76/Inputs!S35 -> 143.04583 | T77: =T76/Inputs!T35 -> 143.2388523 | U77: =U76/Inputs!U35 -> 143.2861977 | V77: =V76/Inputs!V35 -> 143.1835468 | W77: =W76/Inputs!W35 -> 142.9260495 | X77: =X76/Inputs!X35 -> 533.1492758 | Y77: =Y76/Inputs!Y35 -> 523.7546909 | Z77: =Z76/Inputs!Z35 -> 514.3601061 | AA77: =AA76/Inputs!AA35 -> 504.9655212 | AB77: =AB76/Inputs!AB35 -> 495.5709364 | AC77: =AC76/Inputs!AC35 -> 478.6305661 | AD77: =AD76/Inputs!AD35 -> 469.3817915 | AE77: =AE76/Inputs!AE35 -> 460.133017 | AF77: =AF76/Inputs!AF35 -> 450.8842425 | AG77: =AG76/Inputs!AG35 -> 441.6354679 | AH77: =AH76/Inputs!AH35 -> 236.7794931 | AI77: =AI76/Inputs!AI35 -> 225.6944964 | AJ77: =AJ76/Inputs!AJ35 -> 214.5499343 | AK77: =AK76/Inputs!AK35 -> 203.3438212 | AL77: =AL76/Inputs!AL35 -> 192.0741055 | AM77: =AM76/Inputs!AM35 -> 181.4484386 | AN77: =AN76/Inputs!AN35 -> 169.9628717 | AO77: =AO76/Inputs!AO35 -> 158.4065138 | AP77: =AP76/Inputs!AP35 -> 146.7770054 | AQ77: =AQ76/Inputs!AQ35 -> 135.071908 | AR77: =AR76/Inputs!AR35 -> 123.288702 | AS77: =AS76/Inputs!AS35 -> 111.346811 | AT77: =AT76/Inputs!AT35 -> 99.32081327 | AU77: =AU76/Inputs!AU35 -> 87.20790522 | AV77: =AV76/Inputs!AV35 -> 75.00518987 | AW77: =AW76/Inputs!AW35 -> 62.46437232 | AX77: =AX76/Inputs!AX35 -> 50.17460188 | AY77: =AY76/Inputs!AY35 -> 37.78660846 | AZ77: =AZ76/Inputs!AZ35 -> 25.29711796 | BA77: =BA76/Inputs!BA35 -> 12.70274714 | BB77: =BB76/Inputs!BB35 -> -5.595609893e-15 | BC77: =BC76/Inputs!BC35 -> -4.387098651e-15 | BD77: =BD76/Inputs!BD35 -> -4.387098651e-15 | BE77: =BE76/Inputs!BE35 -> -4.387098651e-15 | BF77: =BF76/Inputs!BF35 -> -4.387098651e-15 | BG77: =BG76/Inputs!BG35 -> -4.456262861e-15 | BH77: =BH76/Inputs!BH35 -> -4.456262861e-15 | BI77: =BI76/Inputs!BI35 -> -4.456262861e-15 | BJ77: =BJ76/Inputs!BJ35 -> -4.456262861e-15 | BK77: =BK76/Inputs!BK35 -> -4.456262861e-15 | BL77: =BL76/Inputs!BL35 -> -4.421636507e-15 | BM77: =BM76/Inputs!BM35 -> -4.421636507e-15 | BN77: =BN76/Inputs!BN35 -> -4.421636507e-15 | BO77: =BO76/Inputs!BO35 -> -4.421636507e-15 | BP77: =BP76/Inputs!BP35 -> -4.421636507e-15 | BQ77: =BQ76/Inputs!BQ35 -> -4.443304578e-15 | BR77: =BR76/Inputs!BR35 -> -4.443304578e-15 | BS77: =BS76/Inputs!BS35 -> -4.443304578e-15 | BT77: =BT76/Inputs!BT35 -> -4.443304578e-15 | BU77: =BU76/Inputs!BU35 -> -4.443304578e-15
A78: ="Nominal NPV at "&ROUND((GEOMEAN(1+Inputs!$D$15:$W$15)-1)*100,2)&"%" -> Nominal NPV at 4.58% | B78: =NPV((GEOMEAN(1+Inputs!$D$15:$W$15)-1),D76:BU76)+C76 -> 327.154648
A79: ="Real NPV at "&ROUND((GEOMEAN(1+Inputs!$D$17:$W$17)-1)*100,2)&"%" -> Real NPV at 2.43% | B79: =NPV((GEOMEAN(1+Inputs!$D$17:$W$17)-1),D77:BU77)+C77 -> -59.83759624
A81: =RIGHT(Inputs!A5,LEN(Inputs!A5)-3)&" ("&Inputs!B5&")" -> Approach C (5 year + glide)
A82: Revenue | C82: 0 | D82: ='Working | Approach C'!D111 -> 413.7159315 | E82: ='Working | Approach C'!E111 -> 434.2130062 | F82: ='Working | Approach C'!F111 -> 450.2122874 | G82: ='Working | Approach C'!G111 -> 468.3266008 | H82: ='Working | Approach C'!H111 -> 489.8070949 | I82: ='Working | Approach C'!I247 -> 512.8487585 | J82: ='Working | Approach C'!J247 -> 544.7290481 | K82: ='Working | Approach C'!K247 -> 568.4023772 | L82: ='Working | Approach C'!L247 -> 595.8987432 | M82: ='Working | Approach C'!M247 -> 626.7731837 | N82: ='Working | Approach C'!N383 -> 652.7114862 | O82: ='Working | Approach C'!O383 -> 682.8406678 | P82: ='Working | Approach C'!P383 -> 717.3377516 | Q82: ='Working | Approach C'!Q383 -> 741.8532159 | R82: ='Working | Approach C'!R383 -> 767.0746778 | S82: ='Working | Approach C'!S519 -> 800.835226 | T82: ='Working | Approach C'!T519 -> 834.0077624 | U82: ='Working | Approach C'!U519 -> 863.7104197 | V82: ='Working | Approach C'!V519 -> 902.0526302 | W82: ='Working | Approach C'!W519 -> 942.0969448 | X82: ='Working | Approach C'!X551 -> 902.4432846 | Y82: ='Working | Approach C'!Y551 -> 907.3429574 | Z82: ='Working | Approach C'!Z551 -> 913.7775912 | AA82: ='Working | Approach C'!AA551 -> 912.4173711 | AB82: ='Working | Approach C'!AB551 -> 910.7258642 | AC82: ='Working | Approach C'!AC551 -> 908.5886911 | AD82: ='Working | Approach C'!AD551 -> 916.4413358 | AE82: ='Working | Approach C'!AE551 -> 915.9898486 | AF82: ='Working | Approach C'!AF551 -> 929.7201053 | AG82: ='Working | Approach C'!AG551 -> 940.0747792 | AH82: ='Working | Approach C'!AH551 -> 519.6956825 | AI82: ='Working | Approach C'!AI551 -> 514.2673797 | AJ82: ='Working | Approach C'!AJ551 -> 502.0028893 | AK82: ='Working | Approach C'!AK551 -> 490.6136795 | AL82: ='Working | Approach C'!AL551 -> 475.1800456 | AM82: ='Working | Approach C'!AM551 -> 458.6278274 | AN82: ='Working | Approach C'!AN551 -> 444.2377728 | AO82: ='Working | Approach C'!AO551 -> 426.5674562 | AP82: ='Working | Approach C'!AP551 -> 407.2248106 | AQ82: ='Working | Approach C'!AQ551 -> 387.0775397 | AR82: ='Working | Approach C'!AR551 -> 360.2603215 | AS82: ='Working | Approach C'!AS551 -> 332.8093143 | AT82: ='Working | Approach C'!AT551 -> 304.9907028 | AU82: ='Working | Approach C'!AU551 -> 273.5357256 | AV82: ='Working | Approach C'!AV551 -> 316.2106773 | AW82: ='Working | Approach C'!AW551 -> 206.977977 | AX82: ='Working | Approach C'!AX551 -> 169.0374111 | AY82: ='Working | Approach C'!AY551 -> 128.7124683 | AZ82: ='Working | Approach C'!AZ551 -> 85.25710943 | BA82: ='Working | Approach C'!BA551 -> 43.85103212 | BB82: ='Working | Approach C'!BB551 -> 2.034966513e-13 | BC82: ='Working | Approach C'!BC551 -> 2.043962669e-13 | BD82: ='Working | Approach C'!BD551 -> 2.070756187e-13 | BE82: ='Working | Approach C'!BE551 -> 2.11477411e-13 | BF82: ='Working | Approach C'!BF551 -> 2.154964387e-13 | BG82: ='Working | Approach C'!BG551 -> 2.218098109e-13 | BH82: ='Working | Approach C'!BH551 -> 2.26669798e-13 | BI82: ='Working | Approach C'!BI551 -> 2.316362703e-13 | BJ82: ='Working | Approach C'!BJ551 -> 2.347220111e-13 | BK82: ='Working | Approach C'!BK551 -> 2.391827914e-13 | BL82: ='Working | Approach C'!BL551 -> 2.42369063e-13 | BM82: ='Working | Approach C'!BM551 -> 2.455461856e-13 | BN82: ='Working | Approach C'!BN551 -> 2.488077099e-13 | BO82: ='Working | Approach C'!BO551 -> 2.560969982e-13 | BP82: ='Working | Approach C'!BP551 -> 2.62505832e-13 | BQ82: ='Working | Approach C'!BQ551 -> 2.680859005e-13 | BR82: ='Working | Approach C'!BR551 -> 2.768155885e-13 | BS82: ='Working | Approach C'!BS551 -> 2.848956111e-13 | BT82: ='Working | Approach C'!BT551 -> 2.918365894e-13 | BU82: ='Working | Approach C'!BU551 -> 3.043053582e-13
A83: Capex | C83: ='Working | Approach C'!D121 -> 6000 | D83: ='Working | Approach C'!D122 -> 206.3072796 | E83: ='Working | Approach C'!E122 -> 220.1876116 | F83: ='Working | Approach C'!F122 -> 232.1587956 | G83: ='Working | Approach C'!G122 -> 245.5807775 | H83: ='Working | Approach C'!H122 -> 261.1850778 | I83: ='Working | Approach C'!I258 -> 276.5986035 | J83: ='Working | Approach C'!J258 -> 298.0302043 | K83: ='Working | Approach C'!K258 -> 315.4675566 | L83: ='Working | Approach C'!L258 -> 335.4983255 | M83: ='Working | Approach C'!M258 -> 357.9706047 | N83: ='Working | Approach C'!N394 -> 375.9237592 | O83: ='Working | Approach C'!O394 -> 398.175636 | P83: ='Working | Approach C'!P394 -> 423.5023025 | Q83: ='Working | Approach C'!Q394 -> 443.4318226 | R83: ='Working | Approach C'!R394 -> 464.2194193 | S83: ='Working | Approach C'!S530 -> 489.8902097 | T83: ='Working | Approach C'!T530 -> 515.8403517 | U83: ='Working | Approach C'!U530 -> 540.135852 | V83: ='Working | Approach C'!V530 -> 570.3695737 | W83: ='Working | Approach C'!W530 -> 602.2956065 | X83: 0 | Y83: 0 | Z83: 0 | AA83: 0 | AB83: 0 | AC83: 0 | AD83: 0 | AE83: 0 | AF83: 0 | AG83: 0 | AH83: 0 | AI83: 0 | AJ83: 0 | AK83: 0 | AL83: 0 | AM83: 0 | AN83: 0 | AO83: 0 | AP83: 0 | AQ83: 0 | AR83: 0 | AS83: 0 | AT83: 0 | AU83: 0 | AV83: 0 | AW83: 0 | AX83: 0 | AY83: 0 | AZ83: 0 | BA83: 0 | BB83: 0 | BC83: 0 | BD83: 0 | BE83: 0 | BF83: 0 | BG83: 0 | BH83: 0 | BI83: 0 | BJ83: 0 | BK83: 0 | BL83: 0 | BM83: 0 | BN83: 0 | BO83: 0 | BP83: 0 | BQ83: 0 | BR83: 0 | BS83: 0 | BT83: 0 | BU83: 0
A84: Interest Payments | C84: 0 | D84: =('Working | Approach C'!D121*Inputs!$C$13)*Inputs!D13 -> 154.8 | E84: =('Working | Approach C'!E121*Inputs!$C$13)*Inputs!E13 -> 159.8945288 | F84: =('Working | Approach C'!F121*Inputs!$C$13)*Inputs!F13 -> 163.1587935 | G84: =('Working | Approach C'!G121*Inputs!$C$13)*Inputs!G13 -> 167.0337573 | H84: =('Working | Approach C'!H121*Inputs!$C$13)*Inputs!H13 -> 171.926429 | I84: =('Working | Approach C'!I257*Inputs!$C$13)*Inputs!I13 -> 176.2092777 | J84: =('Working | Approach C'!J257*Inputs!$C$13)*Inputs!J13 -> 183.7822461 | K84: =('Working | Approach C'!K257*Inputs!$C$13)*Inputs!K13 -> 188.3060693 | L84: =('Working | Approach C'!L257*Inputs!$C$13)*Inputs!L13 -> 193.849992 | M84: =('Working | Approach C'!M257*Inputs!$C$13)*Inputs!M13 -> 200.2111395 | N84: =('Working | Approach C'!N393*Inputs!$C$13)*Inputs!N13 -> 203.5203116 | O84: =('Working | Approach C'!O393*Inputs!$C$13)*Inputs!O13 -> 208.7453998 | P84: =('Working | Approach C'!P393*Inputs!$C$13)*Inputs!P13 -> 214.996278 | Q84: =('Working | Approach C'!Q393*Inputs!$C$13)*Inputs!Q13 -> 217.9912699 | R84: =('Working | Approach C'!R393*Inputs!$C$13)*Inputs!R13 -> 220.989937 | S84: =('Working | Approach C'!S529*Inputs!$C$13)*Inputs!S13 -> 225.8304582 | T84: =('Working | Approach C'!T529*Inputs!$C$13)*Inputs!T13 -> 230.2071879 | U84: =('Working | Approach C'!U529*Inputs!$C$13)*Inputs!U13 -> 233.3604343 | V84: =('Working | Approach C'!V529*Inputs!$C$13)*Inputs!V13 -> 238.5611987 | W84: =('Working | Approach C'!W529*Inputs!$C$13)*Inputs!W13 -> 243.8778364 | X84: =('Working | Approach C'!X529*Inputs!$C$13)*Inputs!$W$13 -> 247.2182342 | Y84: =('Working | Approach C'!Y529*Inputs!$C$13)*Inputs!$W$13 -> 235.7381937 | Z84: =('Working | Approach C'!Z529*Inputs!$C$13)*Inputs!$W$13 -> 224.2634977 | AA84: =('Working | Approach C'!AA529*Inputs!$C$13)*Inputs!$W$13 -> 210.367078 | AB84: =('Working | Approach C'!AB529*Inputs!$C$13)*Inputs!$W$13 -> 196.1044249 | AC84: =('Working | Approach C'!AC529*Inputs!$C$13)*Inputs!$W$13 -> 184.5662067 | AD84: =('Working | Approach C'!AD529*Inputs!$C$13)*Inputs!$W$13 -> 171.3951641 | AE84: =('Working | Approach C'!AE529*Inputs!$C$13)*Inputs!$W$13 -> 155.9499054 | AF84: =('Working | Approach C'!AF529*Inputs!$C$13)*Inputs!$W$13 -> 142.4962931 | AG84: =('Working | Approach C'!AG529*Inputs!$C$13)*Inputs!$W$13 -> 127.5203796 | AH84: =('Working | Approach C'!AH529*Inputs!$C$13)*Inputs!$W$13 -> 110.9333807 | AI84: =('Working | Approach C'!AI529*Inputs!$C$13)*Inputs!$W$13 -> 105.9250436 | AJ84: =('Working | Approach C'!AJ529*Inputs!$C$13)*Inputs!$W$13 -> 98.7560214 | AK84: =('Working | Approach C'!AK529*Inputs!$C$13)*Inputs!$W$13 -> 91.9822668 | AL84: =('Working | Approach C'!AL529*Inputs!$C$13)*Inputs!$W$13 -> 84.62717476 | AM84: =('Working | Approach C'!AM529*Inputs!$C$13)*Inputs!$W$13 -> 77.02224315 | AN84: =('Working | Approach C'!AN529*Inputs!$C$13)*Inputs!$W$13 -> 70.49102957 | AO84: =('Working | Approach C'!AO529*Inputs!$C$13)*Inputs!$W$13 -> 63.71935003 | AP84: =('Working | Approach C'!AP529*Inputs!$C$13)*Inputs!$W$13 -> 57.00235568 | AQ84: =('Working | Approach C'!AQ529*Inputs!$C$13)*Inputs!$W$13 -> 50.55831129 | AR84: =('Working | Approach C'!AR529*Inputs!$C$13)*Inputs!$W$13 -> 43.58856282 | AS84: =('Working | Approach C'!AS529*Inputs!$C$13)*Inputs!$W$13 -> 37.08253236 | AT84: =('Working | Approach C'!AT529*Inputs!$C$13)*Inputs!$W$13 -> 31.11394172 | AU84: =('Working | Approach C'!AU529*Inputs!$C$13)*Inputs!$W$13 -> 25.33530626 | AV84: =('Working | Approach C'!AV529*Inputs!$C$13)*Inputs!$W$13 -> 20.45166525 | AW84: =('Working | Approach C'!AW529*Inputs!$C$13)*Inputs!$W$13 -> 15.53555244 | AX84: =('Working | Approach C'!AX529*Inputs!$C$13)*Inputs!$W$13 -> 11.29654072 | AY84: =('Working | Approach C'!AY529*Inputs!$C$13)*Inputs!$W$13 -> 7.738546704 | AZ84: =('Working | Approach C'!AZ529*Inputs!$C$13)*Inputs!$W$13 -> 4.774957209 | BA84: =('Working | Approach C'!BA529*Inputs!$C$13)*Inputs!$W$13 -> 2.767102613 | BB84: =('Working | Approach C'!BB529*Inputs!$C$13)*Inputs!$W$13 -> 0.08106745936 | BC84: =('Working | Approach C'!BC529*Inputs!$C$13)*Inputs!$W$13 -> 0.001076797373 | BD84: =('Working | Approach C'!BD529*Inputs!$C$13)*Inputs!$W$13 -> 1.411532137e-05 | BE84: =('Working | Approach C'!BE529*Inputs!$C$13)*Inputs!$W$13 -> 3.000484209e-07 | BF84: =('Working | Approach C'!BF529*Inputs!$C$13)*Inputs!$W$13 -> 5.702277683e-09 | BG84: =('Working | Approach C'!BG529*Inputs!$C$13)*Inputs!$W$13 -> 7.596284658e-11 | BH84: =('Working | Approach C'!BH529*Inputs!$C$13)*Inputs!$W$13 -> 1.664391906e-12 | BI84: =('Working | Approach C'!BI529*Inputs!$C$13)*Inputs!$W$13 -> 3.646783317e-14 | BJ84: =('Working | Approach C'!BJ529*Inputs!$C$13)*Inputs!$W$13 -> 4.858059481e-16 | BK84: =('Working | Approach C'!BK529*Inputs!$C$13)*Inputs!$W$13 -> 9.23251123e-18 | BL84: =('Working | Approach C'!BL529*Inputs!$C$13)*Inputs!$W$13 -> 1.962548598e-19 | BM84: =('Working | Approach C'!BM529*Inputs!$C$13)*Inputs!$W$13 -> 2.572629248e-21 | BN84: =('Working | Approach C'!BN529*Inputs!$C$13)*Inputs!$W$13 -> 3.417154599e-23 | BO84: =('Working | Approach C'!BO529*Inputs!$C$13)*Inputs!$W$13 -> 1.001119511e-24 | BP84: =('Working | Approach C'!BP529*Inputs!$C$13)*Inputs!$W$13 -> 2.505304083e-26 | BQ84: =('Working | Approach C'!BQ529*Inputs!$C$13)*Inputs!$W$13 -> 4.07780929e-28 | BR84: =('Working | Approach C'!BR529*Inputs!$C$13)*Inputs!$W$13 -> 1.327858067e-29 | BS84: =('Working | Approach C'!BS529*Inputs!$C$13)*Inputs!$W$13 -> 3.875910034e-31 | BT84: =('Working | Approach C'!BT529*Inputs!$C$13)*Inputs!$W$13 -> 9.442970182e-33 | BU84: =('Working | Approach C'!BU529*Inputs!$C$13)*Inputs!$W$13 -> 4.034525367e-34
A85: Repayment of Debt | C85: =('Working | Approach C'!C121-'Working | Approach C'!D121)*Inputs!$C$13 -> -3600 | D85: =('Working | Approach C'!D121-'Working | Approach C'!E121)*Inputs!$C$13 -> -118.4774128 | E85: =('Working | Approach C'!E121-'Working | Approach C'!F121)*Inputs!$C$13 -> -75.91313292 | F85: =('Working | Approach C'!F121-'Working | Approach C'!G121)*Inputs!$C$13 -> -90.11543829 | G85: =('Working | Approach C'!G121-'Working | Approach C'!H121)*Inputs!$C$13 -> -113.7830624 | H85: =('Working | Approach C'!H121-'Working | Approach C'!I257)*Inputs!$C$13 -> -99.60113365 | I85: =('Working | Approach C'!I257-'Working | Approach C'!J257)*Inputs!$C$13 -> -176.1155443 | J85: =('Working | Approach C'!J257-'Working | Approach C'!K257)*Inputs!$C$13 -> -105.2051895 | K85: =('Working | Approach C'!K257-'Working | Approach C'!L257)*Inputs!$C$13 -> -128.9284344 | L85: =('Working | Approach C'!L257-'Working | Approach C'!M257)*Inputs!$C$13 -> -147.9336641 | M85: =('Working | Approach C'!M257-'Working | Approach C'!N393)*Inputs!$C$13 -> -76.95749027 | N85: =('Working | Approach C'!N393-'Working | Approach C'!O393)*Inputs!$C$13 -> -121.5136794 | O85: =('Working | Approach C'!O393-'Working | Approach C'!P393)*Inputs!$C$13 -> -145.3692603 | P85: =('Working | Approach C'!P393-'Working | Approach C'!Q393)*Inputs!$C$13 -> -69.65097508 | Q85: =('Working | Approach C'!Q393-'Working | Approach C'!R393)*Inputs!$C$13 -> -69.73644247 | R85: =('Working | Approach C'!R393-'Working | Approach C'!S529)*Inputs!$C$13 -> -112.5702607 | S85: =('Working | Approach C'!S529-'Working | Approach C'!T529)*Inputs!$C$13 -> -101.7844125 | T85: =('Working | Approach C'!T529-'Working | Approach C'!U529)*Inputs!$C$13 -> -73.33131224 | U85: =('Working | Approach C'!U529-'Working | Approach C'!V529)*Inputs!$C$13 -> -120.9480078 | V85: =('Working | Approach C'!V529-'Working | Approach C'!W529)*Inputs!$C$13 -> -123.6427372 | W85: =('Working | Approach C'!W529-'Working | Approach C'!X529)*Inputs!$C$13 -> -77.68366965 | X85: =('Working | Approach C'!X529-'Working | Approach C'!Y529)*Inputs!$C$13 -> 266.9776864 | Y85: =('Working | Approach C'!Y529-'Working | Approach C'!Z529)*Inputs!$C$13 -> 266.8533942 | Z85: =('Working | Approach C'!Z529-'Working | Approach C'!AA529)*Inputs!$C$13 -> 323.1725522 | AA85: =('Working | Approach C'!AA529-'Working | Approach C'!AB529)*Inputs!$C$13 -> 331.6896071 | AB85: =('Working | Approach C'!AB529-'Working | Approach C'!AC529)*Inputs!$C$13 -> 268.3306551 | AC85: =('Working | Approach C'!AC529-'Working | Approach C'!AD529)*Inputs!$C$13 -> 306.3033155 | AD85: =('Working | Approach C'!AD529-'Working | Approach C'!AE529)*Inputs!$C$13 -> 359.1920642 | AE85: =('Working | Approach C'!AE529-'Working | Approach C'!AF529)*Inputs!$C$13 -> 312.8747028 | AF85: =('Working | Approach C'!AF529-'Working | Approach C'!AG529)*Inputs!$C$13 -> 348.2770594 | AG85: =('Working | Approach C'!AG529-'Working | Approach C'!AH529)*Inputs!$C$13 -> 385.7441598 | AH85: =('Working | Approach C'!AH529-'Working | Approach C'!AI529)*Inputs!$C$13 -> 116.4729555 | AI85: =('Working | Approach C'!AI529-'Working | Approach C'!AJ529)*Inputs!$C$13 -> 166.7214472 | AJ85: =('Working | Approach C'!AJ529-'Working | Approach C'!AK529)*Inputs!$C$13 -> 157.5291768 | AK85: =('Working | Approach C'!AK529-'Working | Approach C'!AL529)*Inputs!$C$13 -> 171.0486522 | AL85: =('Working | Approach C'!AL529-'Working | Approach C'!AM529)*Inputs!$C$13 -> 176.8588745 | AM85: =('Working | Approach C'!AM529-'Working | Approach C'!AN529)*Inputs!$C$13 -> 151.888688 | AN85: =('Working | Approach C'!AN529-'Working | Approach C'!AO529)*Inputs!$C$13 -> 157.4809195 | AO85: =('Working | Approach C'!AO529-'Working | Approach C'!AP529)*Inputs!$C$13 -> 156.209171 | AP85: =('Working | Approach C'!AP529-'Working | Approach C'!AQ529)*Inputs!$C$13 -> 149.8614973 | AQ85: =('Working | Approach C'!AQ529-'Working | Approach C'!AR529)*Inputs!$C$13 -> 162.0871738 | AR85: =('Working | Approach C'!AR529-'Working | Approach C'!AS529)*Inputs!$C$13 -> 151.3030338 | AS85: =('Working | Approach C'!AS529-'Working | Approach C'!AT529)*Inputs!$C$13 -> 138.8044335 | AT85: =('Working | Approach C'!AT529-'Working | Approach C'!AU529)*Inputs!$C$13 -> 134.3868713 | AU85: =('Working | Approach C'!AU529-'Working | Approach C'!AV529)*Inputs!$C$13 -> 113.5730467 | AV85: =('Working | Approach C'!AV529-'Working | Approach C'!AW529)*Inputs!$C$13 -> 114.3282049 | AW85: =('Working | Approach C'!AW529-'Working | Approach C'!AX529)*Inputs!$C$13 -> 98.5816678 | AX85: =('Working | Approach C'!AX529-'Working | Approach C'!AY529)*Inputs!$C$13 -> 82.74404687 | AY85: =('Working | Approach C'!AY529-'Working | Approach C'!AZ529)*Inputs!$C$13 -> 68.92068593 | AZ85: =('Working | Approach C'!AZ529-'Working | Approach C'!BA529)*Inputs!$C$13 -> 46.69429294 | BA85: =('Working | Approach C'!BA529-'Working | Approach C'!BB529)*Inputs!$C$13 -> 62.4659338 | BB85: =('Working | Approach C'!BB529-'Working | Approach C'!BC529)*Inputs!$C$13 -> 1.860247953 | BC85: =('Working | Approach C'!BC529-'Working | Approach C'!BD529)*Inputs!$C$13 -> 0.02471353608 | BD85: =('Working | Approach C'!BD529-'Working | Approach C'!BE529)*Inputs!$C$13 -> 0.0003212854174 | BE85: =('Working | Approach C'!BE529-'Working | Approach C'!BF529)*Inputs!$C$13 -> 6.845259146e-06 | BF85: =('Working | Approach C'!BF529-'Working | Approach C'!BG529)*Inputs!$C$13 -> 1.308445311e-07 | BG85: =('Working | Approach C'!BG529-'Working | Approach C'!BH529)*Inputs!$C$13 -> 1.727871039e-09 | BH85: =('Working | Approach C'!BH529-'Working | Approach C'!BI529)*Inputs!$C$13 -> 3.785869936e-11 | BI85: =('Working | Approach C'!BI529-'Working | Approach C'!BJ529)*Inputs!$C$13 -> 8.367913307e-13 | BJ85: =('Working | Approach C'!BJ529-'Working | Approach C'!BK529)*Inputs!$C$13 -> 1.108310318e-14 | BK85: =('Working | Approach C'!BK529-'Working | Approach C'!BL529)*Inputs!$C$13 -> 2.10145497e-16 | BL85: =('Working | Approach C'!BL529-'Working | Approach C'!BM529)*Inputs!$C$13 -> 4.50423792e-18 | BM85: =('Working | Approach C'!BM529-'Working | Approach C'!BN529)*Inputs!$C$13 -> 5.903390005e-20 | BN85: =('Working | Approach C'!BN529-'Working | Approach C'!BO529)*Inputs!$C$13 -> 7.71405267e-22 | BO85: =('Working | Approach C'!BO529-'Working | Approach C'!BP529)*Inputs!$C$13 -> 2.269922025e-23 | BP85: =('Working | Approach C'!BP529-'Working | Approach C'!BQ529)*Inputs!$C$13 -> 5.73145579e-25 | BQ85: =('Working | Approach C'!BQ529-'Working | Approach C'!BR529)*Inputs!$C$13 -> 9.174473217e-27 | BR85: =('Working | Approach C'!BR529-'Working | Approach C'!BS529)*Inputs!$C$13 -> 2.997904574e-28 | BS85: =('Working | Approach C'!BS529-'Working | Approach C'!BT529)*Inputs!$C$13 -> 8.794140307e-30 | BT85: =('Working | Approach C'!BT529-'Working | Approach C'!BU529)*Inputs!$C$13 -> 2.102213406e-31 | BU85: =('Working | Approach C'!BU529-'Working | Approach C'!BV529)*Inputs!$C$13 -> 9.382617132e-33
A86: Opex | C86: 0 | D86: ='Working | Approach C'!D102/'Working | Approach C'!D4*Inputs!D35 -> 51.48849797 | E86: ='Working | Approach C'!E102/'Working | Approach C'!E4*Inputs!E35 -> 53.17997294 | F86: ='Working | Approach C'!F102/'Working | Approach C'!F4*Inputs!F35 -> 54.26251691 | G86: ='Working | Approach C'!G102/'Working | Approach C'!G4*Inputs!G35 -> 55.54803789 | H86: ='Working | Approach C'!H102/'Working | Approach C'!H4*Inputs!H35 -> 57.17185386 | I86: ='Working | Approach C'!I238/'Working | Approach C'!I139*Inputs!I35 -> 58.59269283 | J86: ='Working | Approach C'!J238/'Working | Approach C'!J139*Inputs!J35 -> 61.09607578 | K86: ='Working | Approach C'!K238/'Working | Approach C'!K139*Inputs!K35 -> 62.58457375 | L86: ='Working | Approach C'!L238/'Working | Approach C'!L139*Inputs!L35 -> 64.41136671 | M86: ='Working | Approach C'!M238/'Working | Approach C'!M139*Inputs!M35 -> 66.50879567 | N86: ='Working | Approach C'!N374/'Working | Approach C'!N275*Inputs!N35 -> 67.59133965 | O86: ='Working | Approach C'!O374/'Working | Approach C'!O275*Inputs!O35 -> 69.28281461 | P86: ='Working | Approach C'!P374/'Working | Approach C'!P275*Inputs!P35 -> 71.31258457 | Q86: ='Working | Approach C'!Q374/'Working | Approach C'!Q275*Inputs!Q35 -> 72.25981055 | R86: ='Working | Approach C'!R374/'Working | Approach C'!R275*Inputs!R35 -> 73.20703654 | S86: ='Working | Approach C'!S510/'Working | Approach C'!S411*Inputs!S35 -> 74.7631935 | T86: ='Working | Approach C'!T510/'Working | Approach C'!T411*Inputs!T35 -> 76.18403248 | U86: ='Working | Approach C'!U510/'Working | Approach C'!U411*Inputs!U35 -> 77.19891746 | V86: ='Working | Approach C'!V510/'Working | Approach C'!V411*Inputs!V35 -> 78.89039242 | W86: ='Working | Approach C'!W510/'Working | Approach C'!W411*Inputs!W35 -> 80.61892863 | X86: 0 | Y86: 0 | Z86: 0 | AA86: 0 | AB86: 0 | AC86: 0 | AD86: 0 | AE86: 0 | AF86: 0 | AG86: 0 | AH86: 0 | AI86: 0 | AJ86: 0 | AK86: 0 | AL86: 0 | AM86: 0 | AN86: 0 | AO86: 0 | AP86: 0 | AQ86: 0 | AR86: 0 | AS86: 0 | AT86: 0 | AU86: 0 | AV86: 0 | AW86: 0 | AX86: 0 | AY86: 0 | AZ86: 0 | BA86: 0 | BB86: 0 | BC86: 0 | BD86: 0 | BE86: 0 | BF86: 0 | BG86: 0 | BH86: 0 | BI86: 0 | BJ86: 0 | BK86: 0 | BL86: 0 | BM86: 0 | BN86: 0 | BO86: 0 | BP86: 0 | BQ86: 0 | BR86: 0 | BS86: 0 | BT86: 0 | BU86: 0
A87: Tax payable+ gamma | C87: 0 | D87: ='Working | Approach C'!D103*(D82/'Working | Approach C'!D106) -> 0.9887025125 | E87: ='Working | Approach C'!E103*(E82/'Working | Approach C'!E106) -> 0.6459088613 | F87: ='Working | Approach C'!F103*(F82/'Working | Approach C'!F106) -> 0.4003407247 | G87: ='Working | Approach C'!G103*(G82/'Working | Approach C'!G106) -> 0.2624956643 | H87: ='Working | Approach C'!H103*(H82/'Working | Approach C'!H106) -> 0.2304951423 | I87: ='Working | Approach C'!I239*(I82/'Working | Approach C'!I242) -> 1.436466955 | J87: ='Working | Approach C'!J239*(J82/'Working | Approach C'!J242) -> 1.628007021 | K87: ='Working | Approach C'!K239*(K82/'Working | Approach C'!K242) -> 1.901954397 | L87: ='Working | Approach C'!L239*(L82/'Working | Approach C'!L242) -> 2.295504757 | M87: ='Working | Approach C'!M239*(M82/'Working | Approach C'!M242) -> 2.812865109 | N87: ='Working | Approach C'!N375*(N82/'Working | Approach C'!N378) -> 5.389478461 | O87: ='Working | Approach C'!O375*(O82/'Working | Approach C'!O378) -> 6.066479442 | P87: ='Working | Approach C'!P375*(P82/'Working | Approach C'!P378) -> 6.89309292 | Q87: ='Working | Approach C'!Q375*(Q82/'Working | Approach C'!Q378) -> 7.729120898 | R87: ='Working | Approach C'!R375*(R82/'Working | Approach C'!R378) -> 8.668157175 | S87: ='Working | Approach C'!S511*(S82/'Working | Approach C'!S514) -> 10.15786465 | T87: ='Working | Approach C'!T511*(T82/'Working | Approach C'!T514) -> 11.37124466 | U87: ='Working | Approach C'!U511*(U82/'Working | Approach C'!U514) -> 12.63354389 | V87: ='Working | Approach C'!V511*(V82/'Working | Approach C'!V514) -> 14.12106995 | W87: ='Working | Approach C'!W511*(W82/'Working | Approach C'!W514) -> 15.74227602 | X87: =IFERROR(SUM('Working | Approach C'!X477:X478)*(X82/'Working | Approach C'!X519),0) -> 17.49042893 | Y87: =IFERROR(SUM('Working | Approach C'!Y477:Y478)*(Y82/'Working | Approach C'!Y519),0) -> 22.16205114 | Z87: =IFERROR(SUM('Working | Approach C'!Z477:Z478)*(Z82/'Working | Approach C'!Z519),0) -> 26.7231667 | AA87: =IFERROR(SUM('Working | Approach C'!AA477:AA478)*(AA82/'Working | Approach C'!AA519),0) -> 30.89969944 | AB87: =IFERROR(SUM('Working | Approach C'!AB477:AB478)*(AB82/'Working | Approach C'!AB519),0) -> 34.89203191 | AC87: =IFERROR(SUM('Working | Approach C'!AC477:AC478)*(AC82/'Working | Approach C'!AC519),0) -> 38.71194616 | AD87: =IFERROR(SUM('Working | Approach C'!AD477:AD478)*(AD82/'Working | Approach C'!AD519),0) -> 42.86145786 | AE87: =IFERROR(SUM('Working | Approach C'!AE477:AE478)*(AE82/'Working | Approach C'!AE519),0) -> 46.55057163 | AF87: =IFERROR(SUM('Working | Approach C'!AF477:AF478)*(AF82/'Working | Approach C'!AF519),0) -> 50.92670149 | AG87: =IFERROR(SUM('Working | Approach C'!AG477:AG478)*(AG82/'Working | Approach C'!AG519),0) -> 55.14090717 | AH87: =IFERROR(SUM('Working | Approach C'!AH477:AH478)*(AH82/'Working | Approach C'!AH519),0) -> 31.09046044 | AI87: =IFERROR(SUM('Working | Approach C'!AI477:AI478)*(AI82/'Working | Approach C'!AI519),0) -> 28.90740441 | AJ87: =IFERROR(SUM('Working | Approach C'!AJ477:AJ478)*(AJ82/'Working | Approach C'!AJ519),0) -> 29.40917867 | AK87: =IFERROR(SUM('Working | Approach C'!AK477:AK478)*(AK82/'Working | Approach C'!AK519),0) -> 29.87395549 | AL87: =IFERROR(SUM('Working | Approach C'!AL477:AL478)*(AL82/'Working | Approach C'!AL519),0) -> 29.92383798 | AM87: =IFERROR(SUM('Working | Approach C'!AM477:AM478)*(AM82/'Working | Approach C'!AM519),0) -> 29.69433042 | AN87: =IFERROR(SUM('Working | Approach C'!AN477:AN478)*(AN82/'Working | Approach C'!AN519),0) -> 29.5040593 | AO87: =IFERROR(SUM('Working | Approach C'!AO477:AO478)*(AO82/'Working | Approach C'!AO519),0) -> 28.76704294 | AP87: =IFERROR(SUM('Working | Approach C'!AP477:AP478)*(AP82/'Working | Approach C'!AP519),0) -> 27.88966154 | AQ87: =IFERROR(SUM('Working | Approach C'!AQ477:AQ478)*(AQ82/'Working | Approach C'!AQ519),0) -> 26.75078772 | AR87: =IFERROR(SUM('Working | Approach C'!AR477:AR478)*(AR82/'Working | Approach C'!AR519),0) -> 24.88518828 | AS87: =IFERROR(SUM('Working | Approach C'!AS477:AS478)*(AS82/'Working | Approach C'!AS519),0) -> 22.94172983 | AT87: =IFERROR(SUM('Working | Approach C'!AT477:AT478)*(AT82/'Working | Approach C'!AT519),0) -> 20.69504699 | AU87: =IFERROR(SUM('Working | Approach C'!AU477:AU478)*(AU82/'Working | Approach C'!AU519),0) -> 17.87672826 | AV87: =IFERROR(SUM('Working | Approach C'!AV477:AV478)*(AV82/'Working | Approach C'!AV519),0) -> 87.08352185 | AW87: =IFERROR(SUM('Working | Approach C'!AW477:AW478)*(AW82/'Working | Approach C'!AW519),0) -> 11.64393356 | AX87: =IFERROR(SUM('Working | Approach C'!AX477:AX478)*(AX82/'Working | Approach C'!AX519),0) -> 7.666323901 | AY87: =IFERROR(SUM('Working | Approach C'!AY477:AY478)*(AY82/'Working | Approach C'!AY519),0) -> 3.313768687 | AZ87: =IFERROR(SUM('Working | Approach C'!AZ477:AZ478)*(AZ82/'Working | Approach C'!AZ519),0) -> 0 | BA87: =IFERROR(SUM('Working | Approach C'!BA477:BA478)*(BA82/'Working | Approach C'!BA519),0) -> 0 | BB87: =IFERROR(SUM('Working | Approach C'!BB477:BB478)*(BB82/'Working | Approach C'!BB519),0) -> 0 | BC87: =IFERROR(SUM('Working | Approach C'!BC477:BC478)*(BC82/'Working | Approach C'!BC519),0) -> 0 | BD87: =IFERROR(SUM('Working | Approach C'!BD477:BD478)*(BD82/'Working | Approach C'!BD519),0) -> 0 | BE87: =IFERROR(SUM('Working | Approach C'!BE477:BE478)*(BE82/'Working | Approach C'!BE519),0) -> 0 | BF87: =IFERROR(SUM('Working | Approach C'!BF477:BF478)*(BF82/'Working | Approach C'!BF519),0) -> 0 | BG87: =IFERROR(SUM('Working | Approach C'!BG477:BG478)*(BG82/'Working | Approach C'!BG519),0) -> 0 | BH87: =IFERROR(SUM('Working | Approach C'!BH477:BH478)*(BH82/'Working | Approach C'!BH519),0) -> 0 | BI87: =IFERROR(SUM('Working | Approach C'!BI477:BI478)*(BI82/'Working | Approach C'!BI519),0) -> 0 | BJ87: =IFERROR(SUM('Working | Approach C'!BJ477:BJ478)*(BJ82/'Working | Approach C'!BJ519),0) -> 0 | BK87: =IFERROR(SUM('Working | Approach C'!BK477:BK478)*(BK82/'Working | Approach C'!BK519),0) -> 0 | BL87: =IFERROR(SUM('Working | Approach C'!BL477:BL478)*(BL82/'Working | Approach C'!BL519),0) -> 0 | BM87: =IFERROR(SUM('Working | Approach C'!BM477:BM478)*(BM82/'Working | Approach C'!BM519),0) -> 0 | BN87: =IFERROR(SUM('Working | Approach C'!BN477:BN478)*(BN82/'Working | Approach C'!BN519),0) -> 0 | BO87: =IFERROR(SUM('Working | Approach C'!BO477:BO478)*(BO82/'Working | Approach C'!BO519),0) -> 0 | BP87: =IFERROR(SUM('Working | Approach C'!BP477:BP478)*(BP82/'Working | Approach C'!BP519),0) -> 0 | BQ87: =IFERROR(SUM('Working | Approach C'!BQ477:BQ478)*(BQ82/'Working | Approach C'!BQ519),0) -> 0 | BR87: =IFERROR(SUM('Working | Approach C'!BR477:BR478)*(BR82/'Working | Approach C'!BR519),0) -> 0 | BS87: =IFERROR(SUM('Working | Approach C'!BS477:BS478)*(BS82/'Working | Approach C'!BS519),0) -> 0 | BT87: =IFERROR(SUM('Working | Approach C'!BT477:BT478)*(BT82/'Working | Approach C'!BT519),0) -> 0 | BU87: =IFERROR(SUM('Working | Approach C'!BU477:BU478)*(BU82/'Working | Approach C'!BU519),0) -> 0
A88: Returns achieved
A89: Post-tax CF to Equity | B89: =IRR(C89:BU89) -> 0.06049998172 | C89: =C82-C83-C84-C85-C86-C87 -> -2400 | D89: =D82-D83-D84-D85-D86-D87 -> 118.6088643 | E89: =E82-E83-E84-E85-E86-E87 -> 76.21811698 | F89: 90.34727901 | G89: 113.6845948 | H89: 98.89437276 | I89: 176.1272618 | J89: 105.3977043 | K89: 129.0706575 | L89: 147.7772184 | M89: 76.22726896 | N89: 121.8002767 | O89: 145.9395982 | P89: 70.28446874 | Q89: 70.17763436 | R89: 112.5603886 | S89: 101.9779125 | T89: 73.73625784 | U89: 121.3296798 | V89: 123.7531327 | W89: 77.24596699 | X89: 370.7569351 | Y89: 382.5893184 | Z89: 339.6183747 | AA89: 339.4609866 | AB89: 411.3987523 | AC89: 379.0072228 | AD89: 342.9926495 | AE89: 400.6146687 | AF89: 388.0200513 | AG89: 371.6693326 | AH89: 261.1988858 | AI89: 212.7134845 | AJ89: 216.3085124 | AK89: 197.708805 | AL89: 183.7701584 | AM89: 200.0225658 | AN89: 186.7617644 | AO89: 177.8718922 | AP89: 172.4712961 | AQ89: 147.6812669 | AR89: 140.4835365 | AS89: 133.9806185 | AT89: 118.7948428 | AU89: 116.7506444 | AV89: 94.34728526 | AW89: 81.21682316 | AX89: 67.3304996 | AY89: 48.73946702 | AZ89: 33.78785928 | BA89: -21.3820043 | BB89: -1.941315413 | BC89: -0.02579033346 | BD89: -0.0003354007385 | BE89: -7.145307355e-06 | BF89: -1.365465933e-07 | BG89: -1.803612076e-09 | BH89: -3.929642147e-11 | BI89: -6.416228935e-13 | BJ89: 2.231531019e-13 | BK89: 2.389634134e-13 | BL89: 2.423643625e-13 | BM89: 2.45546124e-13 | BN89: 2.48807709e-13 | BO89: 2.560969982e-13 | BP89: =BP82-BP83-BP84-BP85-BP86-BP87 -> 2.62505832e-13 | BQ89: 2.680859005e-13 | BR89: 2.768155885e-13 | BS89: 2.848956111e-13 | BT89: 2.918365894e-13 | BU89: 3.043053582e-13
A90: Real post-tax CF to Equity | B90: =IRR(C90:BU90) -> 0.03541754637 | C90: =C89/Inputs!C35 -> -2400 | D90: =D89/Inputs!D35 -> 115.1799615 | E90: =E89/Inputs!E35 -> 71.6605451 | F90: =F89/Inputs!F35 -> 83.25017355 | G90: =G89/Inputs!G35 -> 102.3299824 | H90: =H89/Inputs!H35 -> 86.48868813 | I90: =I89/Inputs!I35 -> 150.2979751 | J90: =J89/Inputs!J35 -> 86.25570706 | K90: =K89/Inputs!K35 -> 103.1169902 | L90: =L89/Inputs!L35 -> 114.7136181 | M90: =M89/Inputs!M35 -> 57.30615642 | N90: =N89/Inputs!N35 -> 90.10050498 | O90: =O89/Inputs!O35 -> 105.3216436 | P90: =P89/Inputs!P35 -> 49.27914838 | Q90: =Q89/Inputs!Q35 -> 48.55924325 | R90: =R89/Inputs!R35 -> 76.87812125 | S90: =S89/Inputs!S35 -> 68.20061297 | T90: =T89/Inputs!T35 -> 48.39351203 | U90: =U89/Inputs!U35 -> 78.58250077 | V90: =V89/Inputs!V35 -> 78.43358926 | W90: =W89/Inputs!W35 -> 47.90808331 | X90: =X89/Inputs!X35 -> 226.9211686 | Y90: =Y89/Inputs!Y35 -> 229.7959955 | Z90: =Z89/Inputs!Z35 -> 199.7403367 | AA90: =AA89/Inputs!AA35 -> 197.0645288 | AB90: =AB89/Inputs!AB35 -> 235.695298 | AC90: =AC89/Inputs!AC35 -> 210.957408 | AD90: =AD89/Inputs!AD35 -> 186.2505821 | AE90: =AE89/Inputs!AE35 -> 214.0561463 | AF90: =AF89/Inputs!AF35 -> 200.788324 | AG90: =AG89/Inputs!AG35 -> 186.8726732 | AH90: =AH89/Inputs!AH35 -> 128.2054265 | AI90: =AI89/Inputs!AI35 -> 100.1290859 | AJ90: =AJ89/Inputs!AJ35 -> 99.3522386 | AK90: =AK89/Inputs!AK35 -> 88.23004603 | AL90: =AL89/Inputs!AL35 -> 80.11183793 | AM90: =AM89/Inputs!AM35 -> 85.45724298 | AN90: =AN89/Inputs!AN35 -> 77.25381986 | AO90: =AO89/Inputs!AO35 -> 71.44948472 | AP90: =AP89/Inputs!AP35 -> 67.27727377 | AQ90: =AQ89/Inputs!AQ35 -> 55.77493561 | AR90: =AR89/Inputs!AR35 -> 51.99807639 | AS90: =AS89/Inputs!AS35 -> 48.44344675 | AT90: =AT89/Inputs!AT35 -> 41.73275853 | AU90: =AU89/Inputs!AU35 -> 40.02004832 | AV90: =AV89/Inputs!AV35 -> 31.01543469 | AW90: =AW89/Inputs!AW35 -> 26.06396474 | AX90: =AX89/Inputs!AX35 -> 20.99476912 | AY90: =AY89/Inputs!AY35 -> 14.71849729 | AZ90: =AZ89/Inputs!AZ35 -> 10.0399466 | BA90: =BA89/Inputs!BA35 -> -6.198472378 | BB90: =BB89/Inputs!BB35 -> -0.5467536689 | BC90: =BC89/Inputs!BC35 -> -0.007168394848 | BD90: =BD89/Inputs!BD35 -> -9.201803781e-05 | BE90: =BE89/Inputs!BE35 -> -1.919529766e-06 | BF90: =BF89/Inputs!BF35 -> -3.599802657e-08 | BG90: =BG89/Inputs!BG35 -> -4.692385718e-10 | BH90: =BH89/Inputs!BH35 -> -1.000439124e-11 | BI90: =BI89/Inputs!BI35 -> -1.59847044e-13 | BJ90: =BJ89/Inputs!BJ35 -> 5.48631112e-14 | BK90: =BK89/Inputs!BK35 -> 5.765444617e-14 | BL90: =BL89/Inputs!BL35 -> 5.725786304e-14 | BM90: =BM89/Inputs!BM35 -> 5.725895915e-14 | BN90: =BN89/Inputs!BN35 -> 5.725897333e-14 | BO90: =BO89/Inputs!BO35 -> 5.725897351e-14 | BP90: =BP89/Inputs!BP35 -> 5.725897352e-14 | BQ90: =BQ89/Inputs!BQ35 -> 5.753956907e-14 | BR90: =BR89/Inputs!BR35 -> 5.753956907e-14 | BS90: =BS89/Inputs!BS35 -> 5.753956907e-14 | BT90: =BT89/Inputs!BT35 -> 5.753956907e-14 | BU90: =BU89/Inputs!BU35 -> 5.753956907e-14
A91: Nominal cash flows to assets | B91: =IRR(C91:BU91) -> 0.0517012115 | C91: =C82-C83-C86 -> -6000 | D91: =D82-D83-D86 -> 155.920154 | E91: 160.8454217 | F91: 163.7909749 | G91: 167.1977854 | H91: 171.4501632 | I91: 177.6574622 | J91: 185.602768 | K91: 190.3502468 | L91: 195.989051 | M91: 202.2937833 | N91: 209.1963874 | O91: 215.3822171 | P91: 222.5228646 | Q91: 226.1615827 | R91: 229.648222 | S91: 236.1818228 | T91: 241.9833782 | U91: 246.3756503 | V91: 252.7926641 | W91: 259.1824097 | X91: 902.4432846 | Y91: 907.3429574 | Z91: 913.7775912 | AA91: 912.4173711 | AB91: 910.7258642 | AC91: 908.5886911 | AD91: 916.4413358 | AE91: 915.9898486 | AF91: 929.7201053 | AG91: 940.0747792 | AH91: 519.6956825 | AI91: 514.2673797 | AJ91: 502.0028893 | AK91: 490.6136795 | AL91: 475.1800456 | AM91: 458.6278274 | AN91: 444.2377728 | AO91: 426.5674562 | AP91: 407.2248106 | AQ91: 387.0775397 | AR91: 360.2603215 | AS91: 332.8093143 | AT91: 304.9907028 | AU91: 273.5357256 | AV91: 316.2106773 | AW91: 206.977977 | AX91: 169.0374111 | AY91: 128.7124683 | AZ91: 85.25710943 | BA91: 43.85103212 | BB91: 2.034966513e-13 | BC91: 2.043962669e-13 | BD91: 2.070756187e-13 | BE91: 2.11477411e-13 | BF91: 2.154964387e-13 | BG91: 2.218098109e-13 | BH91: 2.26669798e-13 | BI91: 2.316362703e-13 | BJ91: 2.347220111e-13 | BK91: 2.391827914e-13 | BL91: 2.42369063e-13 | BM91: 2.455461856e-13 | BN91: 2.488077099e-13 | BO91: 2.560969982e-13 | BP91: =BP82-BP83-BP86 -> 2.62505832e-13 | BQ91: 2.680859005e-13 | BR91: 2.768155885e-13 | BS91: 2.848956111e-13 | BT91: 2.918365894e-13 | BU91: 3.043053582e-13
A92: Nominal vanilla WACC | B92: =IRR(C92:BU92) -> 0.04981113939 | C92: =C91-C87 -> -6000 | D92: =D91-D87 -> 154.9314514 | E92: 160.1995128 | F92: 163.3906342 | G92: 166.9352897 | H92: 171.2196681 | I92: 176.2209952 | J92: 183.974761 | K92: 188.4482925 | L92: 193.6935462 | M92: 199.4809182 | N92: 203.8069089 | O92: 209.3157377 | P92: 215.6297717 | Q92: 218.4324618 | R92: 220.9800649 | S92: 226.0239582 | T92: 230.6121335 | U92: 233.7421064 | V92: 238.6715942 | W92: 243.4401337 | X92: 884.9528556 | Y92: 885.1809063 | Z92: 887.0544246 | AA92: 881.5176716 | AB92: 875.8338323 | AC92: 869.8767449 | AD92: 873.5798779 | AE92: 869.4392769 | AF92: 878.7934038 | AG92: 884.933872 | AH92: 488.605222 | AI92: 485.3599753 | AJ92: 472.5937106 | AK92: 460.739724 | AL92: 445.2562076 | AM92: 428.933497 | AN92: 414.7337135 | AO92: 397.8004132 | AP92: 379.3351491 | AQ92: 360.326752 | AR92: 335.3751332 | AS92: 309.8675844 | AT92: 284.2956558 | AU92: 255.6589974 | AV92: 229.1271554 | AW92: 195.3340434 | AX92: 161.3710872 | AY92: 125.3986997 | AZ92: 85.25710943 | BA92: 43.85103212 | BB92: 2.034966513e-13 | BC92: 2.043962669e-13 | BD92: 2.070756187e-13 | BE92: 2.11477411e-13 | BF92: 2.154964387e-13 | BG92: 2.218098109e-13 | BH92: 2.26669798e-13 | BI92: 2.316362703e-13 | BJ92: 2.347220111e-13 | BK92: 2.391827914e-13 | BL92: 2.42369063e-13 | BM92: 2.455461856e-13 | BN92: 2.488077099e-13 | BO92: 2.560969982e-13 | BP92: =BP91-BP87 -> 2.62505832e-13 | BQ92: 2.680859005e-13 | BR92: 2.768155885e-13 | BS92: 2.848956111e-13 | BT92: 2.918365894e-13 | BU92: 3.043053582e-13
A93: Real WACC (real) | B93: =IRR(C93:BU93) -> 0.02518727525 | C93: =C92/Inputs!C35 -> -6000 | D93: =D92/Inputs!D35 -> 150.452487 | E93: =E92/Inputs!E35 -> 150.6201526 | F93: =F92/Inputs!F35 -> 150.5557091 | G93: =G92/Inputs!G35 -> 150.2620939 | H93: =H92/Inputs!H35 -> 149.7412245 | I93: =I92/Inputs!I35 -> 150.3779624 | J93: =J92/Inputs!J35 -> 150.5618476 | K93: =K92/Inputs!K35 -> 150.5549061 | L93: =L92/Inputs!L35 -> 150.3566499 | M93: =M92/Inputs!M35 -> 149.9658175 | N93: =N92/Inputs!N35 -> 150.7640698 | O93: =O92/Inputs!O35 -> 151.0589162 | P93: =P92/Inputs!P35 -> 151.186339 | Q93: =Q92/Inputs!Q35 -> 151.1438102 | R93: =R92/Inputs!R35 -> 150.9281589 | S93: =S92/Inputs!S35 -> 151.1599141 | T93: =T92/Inputs!T35 -> 151.352013 | U93: =U92/Inputs!U35 -> 151.3894975 | V93: =V92/Inputs!V35 -> 151.2678457 | W93: =W92/Inputs!W35 -> 150.9819951 | X93: =X92/Inputs!X35 -> 541.6339309 | Y93: =Y92/Inputs!Y35 -> 531.6693848 | Z93: =Z92/Inputs!Z35 -> 521.7048388 | AA93: =AA92/Inputs!AA35 -> 511.7402927 | AB93: =AB92/Inputs!AB35 -> 501.7757466 | AC93: =AC92/Inputs!AC35 -> 484.1779584 | AD93: =AD92/Inputs!AD35 -> 474.3680689 | AE93: =AE92/Inputs!AE35 -> 464.5581793 | AF93: =AF92/Inputs!AF35 -> 454.7482897 | AG93: =AG92/Inputs!AG35 -> 444.9384002 | AH93: =AH92/Inputs!AH35 -> 239.8243036 | AI93: =AI92/Inputs!AI35 -> 228.4700041 | AJ93: =AJ92/Inputs!AJ35 -> 217.0660904 | AK93: =AK92/Inputs!AK35 -> 205.6109087 | AL93: =AL92/Inputs!AL35 -> 194.1027502 | AM93: =AM92/Inputs!AM35 -> 183.2566937 | AN93: =AN92/Inputs!AN35 -> 171.554192 | AO93: =AO92/Inputs!AO35 -> 159.7927261 | AP93: =AP92/Inputs!AP35 -> 147.9703305 | AQ93: =AQ92/Inputs!AQ35 -> 136.0849742 | AR93: =AR92/Inputs!AR35 -> 124.1345586 | AS93: =AS92/Inputs!AS35 -> 112.0389948 | AT93: =AT92/Inputs!AT35 -> 99.87337562 | AU93: =AU92/Inputs!AU35 -> 87.63536578 | AV93: =AV92/Inputs!AV35 -> 75.32255227 | AW93: =AW92/Inputs!AW35 -> 62.68626894 | AX93: =AX92/Inputs!AX35 -> 50.31818771 | AY93: =AY92/Inputs!AY35 -> 37.86829307 | AZ93: =AZ92/Inputs!AZ35 -> 25.3338579 | BA93: =BA92/Inputs!BA35 -> 12.7120642 | BB93: =BB92/Inputs!BB35 -> 5.731296419e-14 | BC93: =BC92/Inputs!BC35 -> 5.681171781e-14 | BD93: =BD92/Inputs!BD35 -> 5.681171781e-14 | BE93: =BE92/Inputs!BE35 -> 5.681171781e-14 | BF93: =BF92/Inputs!BF35 -> 5.681171781e-14 | BG93: =BG92/Inputs!BG35 -> 5.770737526e-14 | BH93: =BH92/Inputs!BH35 -> 5.770737526e-14 | BI93: =BI92/Inputs!BI35 -> 5.770737526e-14 | BJ93: =BJ92/Inputs!BJ35 -> 5.770737526e-14 | BK93: =BK92/Inputs!BK35 -> 5.770737526e-14 | BL93: =BL92/Inputs!BL35 -> 5.725897352e-14 | BM93: =BM92/Inputs!BM35 -> 5.725897352e-14 | BN93: =BN92/Inputs!BN35 -> 5.725897352e-14 | BO93: =BO92/Inputs!BO35 -> 5.725897352e-14 | BP93: =BP92/Inputs!BP35 -> 5.725897352e-14 | BQ93: =BQ92/Inputs!BQ35 -> 5.753956907e-14 | BR93: =BR92/Inputs!BR35 -> 5.753956907e-14 | BS93: =BS92/Inputs!BS35 -> 5.753956907e-14 | BT93: =BT92/Inputs!BT35 -> 5.753956907e-14 | BU93: =BU92/Inputs!BU35 -> 5.753956907e-14
A94: ="Nominal NPV at "&ROUND((GEOMEAN(1+Inputs!$D$15:$W$15)-1)*100,2)&"%" -> Nominal NPV at 4.58% | B94: =NPV((GEOMEAN(1+Inputs!$D$15:$W$15)-1),D92:BU92)+C92 -> 507.0771952
A95: ="Real NPV at "&ROUND((GEOMEAN(1+Inputs!$D$18:$W$18)-1)*100,2)&"%" -> Real NPV at 2.58% | B95: =NPV((GEOMEAN(1+Inputs!$D$18:$W$18)-1),D93:BU93)+C93 -> -75.71499201
A97: =RIGHT(Inputs!A6,LEN(Inputs!A6)-3)&" ("&Inputs!B6&")" -> Approach D (unindexed RAB)
A98: Revenue | C98: 0 | D98: ='Working | Approach D'!D111 -> 543.014111 | E98: ='Working | Approach D'!E111 -> 556.208042 | F98: ='Working | Approach D'!F111 -> 562.8301387 | G98: ='Working | Approach D'!G111 -> 571.3923126 | H98: ='Working | Approach D'!H111 -> 583.2250972 | I98: ='Working | Approach D'!I247 -> 589.6948962 | J98: ='Working | Approach D'!J247 -> 613.6604662 | K98: ='Working | Approach D'!K247 -> 627.3545418 | L98: ='Working | Approach D'!L247 -> 644.3757386 | M98: ='Working | Approach D'!M247 -> 664.0284214 | N98: ='Working | Approach D'!N383 -> 663.8789481 | O98: ='Working | Approach D'!O383 -> 683.8469364 | P98: ='Working | Approach D'!P383 -> 707.3512087 | Q98: ='Working | Approach D'!Q383 -> 720.2798773 | R98: ='Working | Approach D'!R383 -> 733.3188186 | S98: ='Working | Approach D'!S519 -> 763.6566982 | T98: ='Working | Approach D'!T519 -> 785.4471938 | U98: ='Working | Approach D'!U519 -> 803.3540008 | V98: ='Working | Approach D'!V519 -> 828.6336801 | W98: ='Working | Approach D'!W519 -> 854.7088521 | X98: ='Working | Approach D'!X551 -> 813.4439913 | Y98: ='Working | Approach D'!Y551 -> 791.3588003 | Z98: ='Working | Approach D'!Z551 -> 770.9372469 | AA98: ='Working | Approach D'!AA551 -> 744.4119796 | AB98: ='Working | Approach D'!AB551 -> 718.2824639 | AC98: ='Working | Approach D'!AC551 -> 716.647068 | AD98: ='Working | Approach D'!AD551 -> 698.1766764 | AE98: ='Working | Approach D'!AE551 -> 673.6899565 | AF98: ='Working | Approach D'!AF551 -> 659.7715619 | AG98: ='Working | Approach D'!AG551 -> 643.3010085 | AH98: ='Working | Approach D'!AH551 -> 415.4721286 | AI98: ='Working | Approach D'!AI551 -> 401.1949464 | AJ98: ='Working | Approach D'!AJ551 -> 382.7653195 | AK98: ='Working | Approach D'!AK551 -> 365.6670651 | AL98: ='Working | Approach D'!AL551 -> 346.2296195 | AM98: ='Working | Approach D'!AM551 -> 317.3544755 | AN98: ='Working | Approach D'!AN551 -> 300.4560224 | AO98: ='Working | Approach D'!AO551 -> 281.9510944 | AP98: ='Working | Approach D'!AP551 -> 263.0869343 | AQ98: ='Working | Approach D'!AQ551 -> 244.4081361 | AR98: ='Working | Approach D'!AR551 -> 215.7537595 | AS98: ='Working | Approach D'!AS551 -> 194.4847163 | AT98: ='Working | Approach D'!AT551 -> 173.7841105 | AU98: ='Working | Approach D'!AU551 -> 151.7939506 | AV98: ='Working | Approach D'!AV551 -> 195.1887002 | AW98: ='Working | Approach D'!AW551 -> 105.755051 | AX98: ='Working | Approach D'!AX551 -> 84.19518881 | AY98: ='Working | Approach D'!AY551 -> 64.04428084 | AZ98: ='Working | Approach D'!AZ551 -> 42.62686036 | BA98: ='Working | Approach D'!BA551 -> 21.46541696 | BB98: ='Working | Approach D'!BB551 -> 1.365241946e-13 | BC98: ='Working | Approach D'!BC551 -> 1.345020282e-13 | BD98: ='Working | Approach D'!BD551 -> 1.332026313e-13 | BE98: ='Working | Approach D'!BE551 -> 1.329767713e-13 | BF98: ='Working | Approach D'!BF551 -> 1.324585081e-13 | BG98: ='Working | Approach D'!BG551 -> 1.35790763e-13 | BH98: ='Working | Approach D'!BH551 -> 1.356472824e-13 | BI98: ='Working | Approach D'!BI551 -> 1.355039534e-13 | BJ98: ='Working | Approach D'!BJ551 -> 1.342230746e-13 | BK98: ='Working | Approach D'!BK551 -> 1.33699954e-13 | BL98: ='Working | Approach D'!BL551 -> 1.35790763e-13 | BM98: ='Working | Approach D'!BM551 -> 1.344789159e-13 | BN98: ='Working | Approach D'!BN551 -> 1.332026313e-13 | BO98: ='Working | Approach D'!BO551 -> 1.340236437e-13 | BP98: ='Working | Approach D'!BP551 -> 1.342900551e-13 | BQ98: ='Working | Approach D'!BQ551 -> 1.35790763e-13 | BR98: ='Working | Approach D'!BR551 -> 1.370612729e-13 | BS98: ='Working | Approach D'!BS551 -> 1.378916407e-13 | BT98: ='Working | Approach D'!BT551 -> 1.380765364e-13 | BU98: ='Working | Approach D'!BU551 -> 1.407400514e-13
A99: Capex | C99: ='Working | Approach D'!D121 -> 6000 | D99: ='Working | Approach D'!D122 -> 205.9539919 | E99: ='Working | Approach D'!E122 -> 219.8105548 | F99: ='Working | Approach D'!F122 -> 231.7612389 | G99: ='Working | Approach D'!G122 -> 245.1602366 | H99: ='Working | Approach D'!H122 -> 260.7378155 | I99: ='Working | Approach D'!I258 -> 276.1249466 | J99: ='Working | Approach D'!J258 -> 297.5198472 | K99: ='Working | Approach D'!K258 -> 314.9273392 | L99: ='Working | Approach D'!L258 -> 334.9238066 | M99: ='Working | Approach D'!M258 -> 357.3576036 | N99: ='Working | Approach D'!N394 -> 375.2800144 | O99: ='Working | Approach D'!O394 -> 397.4937864 | P99: ='Working | Approach D'!P394 -> 422.7770826 | Q99: ='Working | Approach D'!Q394 -> 442.6724747 | R99: ='Working | Approach D'!R394 -> 463.424474 | S99: ='Working | Approach D'!S530 -> 489.0513049 | T99: ='Working | Approach D'!T530 -> 514.957009 | U99: ='Working | Approach D'!U530 -> 539.2109048 | V99: ='Working | Approach D'!V530 -> 569.3928532 | W99: ='Working | Approach D'!W530 -> 601.2642148 | X99: 0 | Y99: 0 | Z99: 0 | AA99: 0 | AB99: 0 | AC99: 0 | AD99: 0 | AE99: 0 | AF99: 0 | AG99: 0 | AH99: 0 | AI99: 0 | AJ99: 0 | AK99: 0 | AL99: 0 | AM99: 0 | AN99: 0 | AO99: 0 | AP99: 0 | AQ99: 0 | AR99: 0 | AS99: 0 | AT99: 0 | AU99: 0 | AV99: 0 | AW99: 0 | AX99: 0 | AY99: 0 | AZ99: 0 | BA99: 0 | BB99: 0 | BC99: 0 | BD99: 0 | BE99: 0 | BF99: 0 | BG99: 0 | BH99: 0 | BI99: 0 | BJ99: 0 | BK99: 0 | BL99: 0 | BM99: 0 | BN99: 0 | BO99: 0 | BP99: 0 | BQ99: 0 | BR99: 0 | BS99: 0 | BT99: 0 | BU99: 0
A100: Interest Payments | C100: 0 | D100: =('Working | Approach D'!D121*Inputs!$C$13)*Inputs!D13 -> 154.8 | E100: =('Working | Approach D'!E121*Inputs!$C$13)*Inputs!E13 -> 154.953613 | F100: =('Working | Approach D'!F121*Inputs!$C$13)*Inputs!F13 -> 155.2887708 | G100: =('Working | Approach D'!G121*Inputs!$C$13)*Inputs!G13 -> 155.7462562 | H100: =('Working | Approach D'!H121*Inputs!$C$13)*Inputs!H13 -> 156.3528167 | I100: =('Working | Approach D'!I257*Inputs!$C$13)*Inputs!I13 -> 157.1534347 | J100: =('Working | Approach D'!J257*Inputs!$C$13)*Inputs!J13 -> 158.1143691 | K100: =('Working | Approach D'!K257*Inputs!$C$13)*Inputs!K13 -> 159.3902557 | L100: =('Working | Approach D'!L257*Inputs!$C$13)*Inputs!L13 -> 160.8646865 | M100: =('Working | Approach D'!M257*Inputs!$C$13)*Inputs!M13 -> 162.5901518 | N100: =('Working | Approach D'!N393*Inputs!$C$13)*Inputs!N13 -> 164.6144127 | O100: =('Working | Approach D'!O393*Inputs!$C$13)*Inputs!O13 -> 166.7624203 | P100: =('Working | Approach D'!P393*Inputs!$C$13)*Inputs!P13 -> 169.1586701 | Q100: =('Working | Approach D'!Q393*Inputs!$C$13)*Inputs!Q13 -> 171.8638082 | R100: =('Working | Approach D'!R393*Inputs!$C$13)*Inputs!R13 -> 174.7192204 | S100: =('Working | Approach D'!S529*Inputs!$C$13)*Inputs!S13 -> 177.7262816 | T100: =('Working | Approach D'!T529*Inputs!$C$13)*Inputs!T13 -> 181.0098367 | U100: =('Working | Approach D'!U529*Inputs!$C$13)*Inputs!U13 -> 184.5404606 | V100: =('Working | Approach D'!V529*Inputs!$C$13)*Inputs!V13 -> 188.251484 | W100: =('Working | Approach D'!W529*Inputs!$C$13)*Inputs!W13 -> 192.2704251 | X100: =('Working | Approach D'!X529*Inputs!$C$13)*Inputs!$W$13 -> 196.6139936 | Y100: =('Working | Approach D'!Y529*Inputs!$C$13)*Inputs!$W$13 -> 184.9672376 | Z100: =('Working | Approach D'!Z529*Inputs!$C$13)*Inputs!$W$13 -> 173.3204817 | AA100: =('Working | Approach D'!AA529*Inputs!$C$13)*Inputs!$W$13 -> 161.6737258 | AB100: =('Working | Approach D'!AB529*Inputs!$C$13)*Inputs!$W$13 -> 150.0269698 | AC100: =('Working | Approach D'!AC529*Inputs!$C$13)*Inputs!$W$13 -> 138.3802139 | AD100: =('Working | Approach D'!AD529*Inputs!$C$13)*Inputs!$W$13 -> 126.733458 | AE100: =('Working | Approach D'!AE529*Inputs!$C$13)*Inputs!$W$13 -> 115.086702 | AF100: =('Working | Approach D'!AF529*Inputs!$C$13)*Inputs!$W$13 -> 103.4399461 | AG100: =('Working | Approach D'!AG529*Inputs!$C$13)*Inputs!$W$13 -> 91.79319016 | AH100: =('Working | Approach D'!AH529*Inputs!$C$13)*Inputs!$W$13 -> 80.14643423 | AI100: =('Working | Approach D'!AI529*Inputs!$C$13)*Inputs!$W$13 -> 73.67024864 | AJ100: =('Working | Approach D'!AJ529*Inputs!$C$13)*Inputs!$W$13 -> 67.37037805 | AK100: =('Working | Approach D'!AK529*Inputs!$C$13)*Inputs!$W$13 -> 61.25688848 | AL100: =('Working | Approach D'!AL529*Inputs!$C$13)*Inputs!$W$13 -> 55.34042067 | AM100: =('Working | Approach D'!AM529*Inputs!$C$13)*Inputs!$W$13 -> 49.63222283 | AN100: =('Working | Approach D'!AN529*Inputs!$C$13)*Inputs!$W$13 -> 44.14418536 | AO100: =('Working | Approach D'!AO529*Inputs!$C$13)*Inputs!$W$13 -> 38.89301614 | AP100: =('Working | Approach D'!AP529*Inputs!$C$13)*Inputs!$W$13 -> 33.89223828 | AQ100: =('Working | Approach D'!AQ529*Inputs!$C$13)*Inputs!$W$13 -> 29.15614692 | AR100: =('Working | Approach D'!AR529*Inputs!$C$13)*Inputs!$W$13 -> 24.69985335 | AS100: =('Working | Approach D'!AS529*Inputs!$C$13)*Inputs!$W$13 -> 20.53933158 | AT100: =('Working | Approach D'!AT529*Inputs!$C$13)*Inputs!$W$13 -> 16.70161406 | AU100: =('Working | Approach D'!AU529*Inputs!$C$13)*Inputs!$W$13 -> 13.2051301 | AV100: =('Working | Approach D'!AV529*Inputs!$C$13)*Inputs!$W$13 -> 10.06936114 | AW100: =('Working | Approach D'!AW529*Inputs!$C$13)*Inputs!$W$13 -> 7.314900856 | AX100: =('Working | Approach D'!AX529*Inputs!$C$13)*Inputs!$W$13 -> 4.963518631 | AY100: =('Working | Approach D'!AY529*Inputs!$C$13)*Inputs!$W$13 -> 3.031692872 | AZ100: =('Working | Approach D'!AZ529*Inputs!$C$13)*Inputs!$W$13 -> 1.543376578 | BA100: =('Working | Approach D'!BA529*Inputs!$C$13)*Inputs!$W$13 -> 0.5238902582 | BB100: =('Working | Approach D'!BB529*Inputs!$C$13)*Inputs!$W$13 -> 1.191580168e-15 | BC100: =('Working | Approach D'!BC529*Inputs!$C$13)*Inputs!$W$13 -> 1.191580168e-15 | BD100: =('Working | Approach D'!BD529*Inputs!$C$13)*Inputs!$W$13 -> 1.191580168e-15 | BE100: =('Working | Approach D'!BE529*Inputs!$C$13)*Inputs!$W$13 -> 1.191580168e-15 | BF100: =('Working | Approach D'!BF529*Inputs!$C$13)*Inputs!$W$13 -> 1.191580168e-15 | BG100: =('Working | Approach D'!BG529*Inputs!$C$13)*Inputs!$W$13 -> 1.191580168e-15 | BH100: =('Working | Approach D'!BH529*Inputs!$C$13)*Inputs!$W$13 -> 1.191580168e-15 | BI100: =('Working | Approach D'!BI529*Inputs!$C$13)*Inputs!$W$13 -> 1.191580168e-15 | BJ100: =('Working | Approach D'!BJ529*Inputs!$C$13)*Inputs!$W$13 -> 1.191580168e-15 | BK100: =('Working | Approach D'!BK529*Inputs!$C$13)*Inputs!$W$13 -> 1.191580168e-15 | BL100: =('Working | Approach D'!BL529*Inputs!$C$13)*Inputs!$W$13 -> 1.191580168e-15 | BM100: =('Working | Approach D'!BM529*Inputs!$C$13)*Inputs!$W$13 -> 1.191580168e-15 | BN100: =('Working | Approach D'!BN529*Inputs!$C$13)*Inputs!$W$13 -> 1.191580168e-15 | BO100: =('Working | Approach D'!BO529*Inputs!$C$13)*Inputs!$W$13 -> 1.191580168e-15 | BP100: =('Working | Approach D'!BP529*Inputs!$C$13)*Inputs!$W$13 -> 1.191580168e-15 | BQ100: =('Working | Approach D'!BQ529*Inputs!$C$13)*Inputs!$W$13 -> 1.191580168e-15 | BR100: =('Working | Approach D'!BR529*Inputs!$C$13)*Inputs!$W$13 -> 1.191580168e-15 | BS100: =('Working | Approach D'!BS529*Inputs!$C$13)*Inputs!$W$13 -> 1.191580168e-15 | BT100: =('Working | Approach D'!BT529*Inputs!$C$13)*Inputs!$W$13 -> 1.191580168e-15 | BU100: =('Working | Approach D'!BU529*Inputs!$C$13)*Inputs!$W$13 -> 1.191580168e-15
A101: Repayment of Debt | C101: =('Working | Approach D'!C121-'Working | Approach D'!D121)*Inputs!$C$13 -> -3600 | D101: =('Working | Approach D'!D121-'Working | Approach D'!E121)*Inputs!$C$13 -> -3.572395129 | E101: =('Working | Approach D'!E121-'Working | Approach D'!F121)*Inputs!$C$13 -> -7.794366768 | F101: =('Working | Approach D'!F121-'Working | Approach D'!G121)*Inputs!$C$13 -> -10.63919567 | G101: =('Working | Approach D'!G121-'Working | Approach D'!H121)*Inputs!$C$13 -> -14.10605986 | H101: =('Working | Approach D'!H121-'Working | Approach D'!I257)*Inputs!$C$13 -> -18.61902116 | I101: =('Working | Approach D'!I257-'Working | Approach D'!J257)*Inputs!$C$13 -> -22.34731302 | J101: =('Working | Approach D'!J257-'Working | Approach D'!K257)*Inputs!$C$13 -> -29.67178013 | K101: =('Working | Approach D'!K257-'Working | Approach D'!L257)*Inputs!$C$13 -> -34.28908811 | L101: =('Working | Approach D'!L257-'Working | Approach D'!M257)*Inputs!$C$13 -> -40.12709998 | M101: =('Working | Approach D'!M257-'Working | Approach D'!N393)*Inputs!$C$13 -> -47.07583501 | N101: =('Working | Approach D'!N393-'Working | Approach D'!O393)*Inputs!$C$13 -> -49.95366661 | O101: =('Working | Approach D'!O393-'Working | Approach D'!P393)*Inputs!$C$13 -> -55.72673789 | P101: =('Working | Approach D'!P393-'Working | Approach D'!Q393)*Inputs!$C$13 -> -62.91018839 | Q101: =('Working | Approach D'!Q393-'Working | Approach D'!R393)*Inputs!$C$13 -> -66.40493566 | R101: =('Working | Approach D'!R393-'Working | Approach D'!S529)*Inputs!$C$13 -> -69.93165507 | S101: =('Working | Approach D'!S529-'Working | Approach D'!T529)*Inputs!$C$13 -> -76.36174805 | T101: =('Working | Approach D'!T529-'Working | Approach D'!U529)*Inputs!$C$13 -> -82.10753142 | U101: =('Working | Approach D'!U529-'Working | Approach D'!V529)*Inputs!$C$13 -> -86.3028704 | V101: =('Working | Approach D'!V529-'Working | Approach D'!W529)*Inputs!$C$13 -> -93.46374697 | W101: =('Working | Approach D'!W529-'Working | Approach D'!X529)*Inputs!$C$13 -> -101.0132198 | X101: =('Working | Approach D'!X529-'Working | Approach D'!Y529)*Inputs!$C$13 -> 270.8547892 | Y101: =('Working | Approach D'!Y529-'Working | Approach D'!Z529)*Inputs!$C$13 -> 270.8547892 | Z101: =('Working | Approach D'!Z529-'Working | Approach D'!AA529)*Inputs!$C$13 -> 270.8547892 | AA101: =('Working | Approach D'!AA529-'Working | Approach D'!AB529)*Inputs!$C$13 -> 270.8547892 | AB101: =('Working | Approach D'!AB529-'Working | Approach D'!AC529)*Inputs!$C$13 -> 270.8547892 | AC101: =('Working | Approach D'!AC529-'Working | Approach D'!AD529)*Inputs!$C$13 -> 270.8547892 | AD101: =('Working | Approach D'!AD529-'Working | Approach D'!AE529)*Inputs!$C$13 -> 270.8547892 | AE101: =('Working | Approach D'!AE529-'Working | Approach D'!AF529)*Inputs!$C$13 -> 270.8547892 | AF101: =('Working | Approach D'!AF529-'Working | Approach D'!AG529)*Inputs!$C$13 -> 270.8547892 | AG101: =('Working | Approach D'!AG529-'Working | Approach D'!AH529)*Inputs!$C$13 -> 270.8547892 | AH101: =('Working | Approach D'!AH529-'Working | Approach D'!AI529)*Inputs!$C$13 -> 150.6089671 | AI101: =('Working | Approach D'!AI529-'Working | Approach D'!AJ529)*Inputs!$C$13 -> 146.5086186 | AJ101: =('Working | Approach D'!AJ529-'Working | Approach D'!AK529)*Inputs!$C$13 -> 142.174176 | AK101: =('Working | Approach D'!AK529-'Working | Approach D'!AL529)*Inputs!$C$13 -> 137.5922747 | AL101: =('Working | Approach D'!AL529-'Working | Approach D'!AM529)*Inputs!$C$13 -> 132.7487869 | AM101: =('Working | Approach D'!AM529-'Working | Approach D'!AN529)*Inputs!$C$13 -> 127.6287784 | AN101: =('Working | Approach D'!AN529-'Working | Approach D'!AO529)*Inputs!$C$13 -> 122.1202144 | AO101: =('Working | Approach D'!AO529-'Working | Approach D'!AP529)*Inputs!$C$13 -> 116.2971597 | AP101: =('Working | Approach D'!AP529-'Working | Approach D'!AQ529)*Inputs!$C$13 -> 110.1416595 | AQ101: =('Working | Approach D'!AQ529-'Working | Approach D'!AR529)*Inputs!$C$13 -> 103.6347342 | AR101: =('Working | Approach D'!AR529-'Working | Approach D'!AS529)*Inputs!$C$13 -> 96.75632032 | AS101: =('Working | Approach D'!AS529-'Working | Approach D'!AT529)*Inputs!$C$13 -> 89.24924456 | AT101: =('Working | Approach D'!AT529-'Working | Approach D'!AU529)*Inputs!$C$13 -> 81.31358049 | AU101: =('Working | Approach D'!AU529-'Working | Approach D'!AV529)*Inputs!$C$13 -> 72.92485947 | AV101: =('Working | Approach D'!AV529-'Working | Approach D'!AW529)*Inputs!$C$13 -> 64.05721592 | AW101: =('Working | Approach D'!AW529-'Working | Approach D'!AX529)*Inputs!$C$13 -> 54.68330754 | AX101: =('Working | Approach D'!AX529-'Working | Approach D'!AY529)*Inputs!$C$13 -> 44.92618046 | AY101: =('Working | Approach D'!AY529-'Working | Approach D'!AZ529)*Inputs!$C$13 -> 34.61200683 | AZ101: =('Working | Approach D'!AZ529-'Working | Approach D'!BA529)*Inputs!$C$13 -> 23.70898418 | BA101: =('Working | Approach D'!BA529-'Working | Approach D'!BB529)*Inputs!$C$13 -> 12.18349438 | BB101: =('Working | Approach D'!BB529-'Working | Approach D'!BC529)*Inputs!$C$13 -> 0 | BC101: =('Working | Approach D'!BC529-'Working | Approach D'!BD529)*Inputs!$C$13 -> 0 | BD101: =('Working | Approach D'!BD529-'Working | Approach D'!BE529)*Inputs!$C$13 -> 0 | BE101: =('Working | Approach D'!BE529-'Working | Approach D'!BF529)*Inputs!$C$13 -> 0 | BF101: =('Working | Approach D'!BF529-'Working | Approach D'!BG529)*Inputs!$C$13 -> 0 | BG101: =('Working | Approach D'!BG529-'Working | Approach D'!BH529)*Inputs!$C$13 -> 0 | BH101: =('Working | Approach D'!BH529-'Working | Approach D'!BI529)*Inputs!$C$13 -> 0 | BI101: =('Working | Approach D'!BI529-'Working | Approach D'!BJ529)*Inputs!$C$13 -> 0 | BJ101: =('Working | Approach D'!BJ529-'Working | Approach D'!BK529)*Inputs!$C$13 -> 0 | BK101: =('Working | Approach D'!BK529-'Working | Approach D'!BL529)*Inputs!$C$13 -> 0 | BL101: =('Working | Approach D'!BL529-'Working | Approach D'!BM529)*Inputs!$C$13 -> 0 | BM101: =('Working | Approach D'!BM529-'Working | Approach D'!BN529)*Inputs!$C$13 -> 0 | BN101: =('Working | Approach D'!BN529-'Working | Approach D'!BO529)*Inputs!$C$13 -> 0 | BO101: =('Working | Approach D'!BO529-'Working | Approach D'!BP529)*Inputs!$C$13 -> 0 | BP101: =('Working | Approach D'!BP529-'Working | Approach D'!BQ529)*Inputs!$C$13 -> 0 | BQ101: =('Working | Approach D'!BQ529-'Working | Approach D'!BR529)*Inputs!$C$13 -> 0 | BR101: =('Working | Approach D'!BR529-'Working | Approach D'!BS529)*Inputs!$C$13 -> 0 | BS101: =('Working | Approach D'!BS529-'Working | Approach D'!BT529)*Inputs!$C$13 -> 0 | BT101: =('Working | Approach D'!BT529-'Working | Approach D'!BU529)*Inputs!$C$13 -> 0 | BU101: =('Working | Approach D'!BU529-'Working | Approach D'!BV529)*Inputs!$C$13 -> 2.771116669e-14
A102: Opex | C102: 0 | D102: ='Working | Approach D'!D102/'Working | Approach D'!D4*Inputs!D35 -> 51.48849797 | E102: ='Working | Approach D'!E102/'Working | Approach D'!E4*Inputs!E35 -> 53.17997294 | F102: ='Working | Approach D'!F102/'Working | Approach D'!F4*Inputs!F35 -> 54.26251691 | G102: ='Working | Approach D'!G102/'Working | Approach D'!G4*Inputs!G35 -> 55.54803789 | H102: ='Working | Approach D'!H102/'Working | Approach D'!H4*Inputs!H35 -> 57.17185386 | I102: ='Working | Approach D'!I238/'Working | Approach D'!I139*Inputs!I35 -> 58.59269283 | J102: ='Working | Approach D'!J238/'Working | Approach D'!J139*Inputs!J35 -> 61.09607578 | K102: ='Working | Approach D'!K238/'Working | Approach D'!K139*Inputs!K35 -> 62.58457375 | L102: ='Working | Approach D'!L238/'Working | Approach D'!L139*Inputs!L35 -> 64.41136671 | M102: ='Working | Approach D'!M238/'Working | Approach D'!M139*Inputs!M35 -> 66.50879567 | N102: ='Working | Approach D'!N374/'Working | Approach D'!N275*Inputs!N35 -> 67.59133965 | O102: ='Working | Approach D'!O374/'Working | Approach D'!O275*Inputs!O35 -> 69.28281461 | P102: ='Working | Approach D'!P374/'Working | Approach D'!P275*Inputs!P35 -> 71.31258457 | Q102: ='Working | Approach D'!Q374/'Working | Approach D'!Q275*Inputs!Q35 -> 72.25981055 | R102: ='Working | Approach D'!R374/'Working | Approach D'!R275*Inputs!R35 -> 73.20703654 | S102: ='Working | Approach D'!S510/'Working | Approach D'!S411*Inputs!S35 -> 74.7631935 | T102: ='Working | Approach D'!T510/'Working | Approach D'!T411*Inputs!T35 -> 76.18403248 | U102: ='Working | Approach D'!U510/'Working | Approach D'!U411*Inputs!U35 -> 77.19891746 | V102: ='Working | Approach D'!V510/'Working | Approach D'!V411*Inputs!V35 -> 78.89039242 | W102: ='Working | Approach D'!W510/'Working | Approach D'!W411*Inputs!W35 -> 80.61892863 | X102: 0 | Y102: 0 | Z102: 0 | AA102: 0 | AB102: 0 | AC102: 0 | AD102: 0 | AE102: 0 | AF102: 0 | AG102: 0 | AH102: 0 | AI102: 0 | AJ102: 0 | AK102: 0 | AL102: 0 | AM102: 0 | AN102: 0 | AO102: 0 | AP102: 0 | AQ102: 0 | AR102: 0 | AS102: 0 | AT102: 0 | AU102: 0 | AV102: 0 | AW102: 0 | AX102: 0 | AY102: 0 | AZ102: 0 | BA102: 0 | BB102: 0 | BC102: 0 | BD102: 0 | BE102: 0 | BF102: 0 | BG102: 0 | BH102: 0 | BI102: 0 | BJ102: 0 | BK102: 0 | BL102: 0 | BM102: 0 | BN102: 0 | BO102: 0 | BP102: 0 | BQ102: 0 | BR102: 0 | BS102: 0 | BT102: 0 | BU102: 0
A103: Tax payable+ gamma | C103: 0 | D103: ='Working | Approach D'!D103/'Working | Approach D'!D4*Inputs!D35 -> 17.17760564 | E103: ='Working | Approach D'!E103/'Working | Approach D'!E4*Inputs!E35 -> 16.39241489 | F103: ='Working | Approach D'!F103/'Working | Approach D'!F4*Inputs!F35 -> 15.49064413 | G103: ='Working | Approach D'!G103/'Working | Approach D'!G4*Inputs!G35 -> 14.72634796 | H103: ='Working | Approach D'!H103/'Working | Approach D'!H4*Inputs!H35 -> 14.11912 | I103: ='Working | Approach D'!I239/'Working | Approach D'!I139*Inputs!I35 -> 13.37562903 | J103: ='Working | Approach D'!J239/'Working | Approach D'!J139*Inputs!J35 -> 13.08231881 | K103: ='Working | Approach D'!K239/'Working | Approach D'!K139*Inputs!K35 -> 12.62522919 | L103: ='Working | Approach D'!L239/'Working | Approach D'!L139*Inputs!L35 -> 12.30012367 | M103: ='Working | Approach D'!M239/'Working | Approach D'!M139*Inputs!M35 -> 12.08478838 | N103: ='Working | Approach D'!N375/'Working | Approach D'!N275*Inputs!N35 -> 11.51851952 | O103: ='Working | Approach D'!O375/'Working | Approach D'!O275*Inputs!O35 -> 11.34399915 | P103: ='Working | Approach D'!P375/'Working | Approach D'!P275*Inputs!P35 -> 11.28979166 | Q103: ='Working | Approach D'!Q375/'Working | Approach D'!Q275*Inputs!Q35 -> 11.13280583 | R103: ='Working | Approach D'!R375/'Working | Approach D'!R275*Inputs!R35 -> 11.0479042 | S103: ='Working | Approach D'!S511/'Working | Approach D'!S411*Inputs!S35 -> 11.46672624 | T103: ='Working | Approach D'!T511/'Working | Approach D'!T411*Inputs!T35 -> 11.5883547 | U103: ='Working | Approach D'!U511/'Working | Approach D'!U411*Inputs!U35 -> 11.71387232 | V103: ='Working | Approach D'!V511/'Working | Approach D'!V411*Inputs!V35 -> 12.00730433 | W103: ='Working | Approach D'!W511/'Working | Approach D'!W411*Inputs!W35 -> 12.37204656 | X103: =IFERROR(SUM('Working | Approach D'!X477:X478)*(X98/SUM('Working | Approach D'!X519)),0) -> 12.99140061 | Y103: =IFERROR(SUM('Working | Approach D'!Y477:Y478)*(Y98/SUM('Working | Approach D'!Y519)),0) -> 14.62056004 | Z103: =IFERROR(SUM('Working | Approach D'!Z477:Z478)*(Z98/SUM('Working | Approach D'!Z519)),0) -> 16.07580215 | AA103: =IFERROR(SUM('Working | Approach D'!AA477:AA478)*(AA98/SUM('Working | Approach D'!AA519)),0) -> 17.20422368 | AB103: =IFERROR(SUM('Working | Approach D'!AB477:AB478)*(AB98/SUM('Working | Approach D'!AB519)),0) -> 18.14422674 | AC103: =IFERROR(SUM('Working | Approach D'!AC477:AC478)*(AC98/SUM('Working | Approach D'!AC519)),0) -> 19.57072187 | AD103: =IFERROR(SUM('Working | Approach D'!AD477:AD478)*(AD98/SUM('Working | Approach D'!AD519)),0) -> 20.4310331 | AE103: =IFERROR(SUM('Working | Approach D'!AE477:AE478)*(AE98/SUM('Working | Approach D'!AE519)),0) -> 20.97334152 | AF103: =IFERROR(SUM('Working | Approach D'!AF477:AF478)*(AF98/SUM('Working | Approach D'!AF519)),0) -> 21.72080728 | AG103: =IFERROR(SUM('Working | Approach D'!AG477:AG478)*(AG98/SUM('Working | Approach D'!AG519)),0) -> 22.28348118 | AH103: =IFERROR(SUM('Working | Approach D'!AH477:AH478)*(AH98/SUM('Working | Approach D'!AH519)),0) -> 22.18173042 | AI103: =IFERROR(SUM('Working | Approach D'!AI477:AI478)*(AI98/SUM('Working | Approach D'!AI519)),0) -> 19.00191794 | AJ103: =IFERROR(SUM('Working | Approach D'!AJ477:AJ478)*(AJ98/SUM('Working | Approach D'!AJ519)),0) -> 18.6739569 | AK103: =IFERROR(SUM('Working | Approach D'!AK477:AK478)*(AK98/SUM('Working | Approach D'!AK519)),0) -> 18.34968538 | AL103: =IFERROR(SUM('Working | Approach D'!AL477:AL478)*(AL98/SUM('Working | Approach D'!AL519)),0) -> 17.77171706 | AM103: =IFERROR(SUM('Working | Approach D'!AM477:AM478)*(AM98/SUM('Working | Approach D'!AM519)),0) -> 16.53303068 | AN103: =IFERROR(SUM('Working | Approach D'!AN477:AN478)*(AN98/SUM('Working | Approach D'!AN519)),0) -> 15.84080543 | AO103: =IFERROR(SUM('Working | Approach D'!AO477:AO478)*(AO98/SUM('Working | Approach D'!AO519)),0) -> 14.78760466 | AP103: =IFERROR(SUM('Working | Approach D'!AP477:AP478)*(AP98/SUM('Working | Approach D'!AP519)),0) -> 13.73105088 | AQ103: =IFERROR(SUM('Working | Approach D'!AQ477:AQ478)*(AQ98/SUM('Working | Approach D'!AQ519)),0) -> 12.5350719 | AR103: =IFERROR(SUM('Working | Approach D'!AR477:AR478)*(AR98/SUM('Working | Approach D'!AR519)),0) -> 10.6461991 | AS103: =IFERROR(SUM('Working | Approach D'!AS477:AS478)*(AS98/SUM('Working | Approach D'!AS519)),0) -> 9.148084855 | AT103: =IFERROR(SUM('Working | Approach D'!AT477:AT478)*(AT98/SUM('Working | Approach D'!AT519)),0) -> 7.491602049 | AU103: =IFERROR(SUM('Working | Approach D'!AU477:AU478)*(AU98/SUM('Working | Approach D'!AU519)),0) -> 5.561153927 | AV103: =IFERROR(SUM('Working | Approach D'!AV477:AV478)*(AV98/SUM('Working | Approach D'!AV519)),0) -> 67.05229163 | AW103: =IFERROR(SUM('Working | Approach D'!AW477:AW478)*(AW98/SUM('Working | Approach D'!AW519)),0) -> 1.630838412 | AX103: =IFERROR(SUM('Working | Approach D'!AX477:AX478)*(AX98/SUM('Working | Approach D'!AX519)),0) -> 0 | AY103: =IFERROR(SUM('Working | Approach D'!AY477:AY478)*(AY98/SUM('Working | Approach D'!AY519)),0) -> 0 | AZ103: =IFERROR(SUM('Working | Approach D'!AZ477:AZ478)*(AZ98/SUM('Working | Approach D'!AZ519)),0) -> 0 | BA103: =IFERROR(SUM('Working | Approach D'!BA477:BA478)*(BA98/SUM('Working | Approach D'!BA519)),0) -> 0 | BB103: =IFERROR(SUM('Working | Approach D'!BB477:BB478)*(BB98/SUM('Working | Approach D'!BB519)),0) -> 0 | BC103: =IFERROR(SUM('Working | Approach D'!BC477:BC478)*(BC98/SUM('Working | Approach D'!BC519)),0) -> 0 | BD103: =IFERROR(SUM('Working | Approach D'!BD477:BD478)*(BD98/SUM('Working | Approach D'!BD519)),0) -> 0 | BE103: =IFERROR(SUM('Working | Approach D'!BE477:BE478)*(BE98/SUM('Working | Approach D'!BE519)),0) -> 0 | BF103: =IFERROR(SUM('Working | Approach D'!BF477:BF478)*(BF98/SUM('Working | Approach D'!BF519)),0) -> 0 | BG103: =IFERROR(SUM('Working | Approach D'!BG477:BG478)*(BG98/SUM('Working | Approach D'!BG519)),0) -> 0 | BH103: =IFERROR(SUM('Working | Approach D'!BH477:BH478)*(BH98/SUM('Working | Approach D'!BH519)),0) -> 0 | BI103: =IFERROR(SUM('Working | Approach D'!BI477:BI478)*(BI98/SUM('Working | Approach D'!BI519)),0) -> 0 | BJ103: =IFERROR(SUM('Working | Approach D'!BJ477:BJ478)*(BJ98/SUM('Working | Approach D'!BJ519)),0) -> 0 | BK103: =IFERROR(SUM('Working | Approach D'!BK477:BK478)*(BK98/SUM('Working | Approach D'!BK519)),0) -> 0 | BL103: =IFERROR(SUM('Working | Approach D'!BL477:BL478)*(BL98/SUM('Working | Approach D'!BL519)),0) -> 0 | BM103: =IFERROR(SUM('Working | Approach D'!BM477:BM478)*(BM98/SUM('Working | Approach D'!BM519)),0) -> 0 | BN103: =IFERROR(SUM('Working | Approach D'!BN477:BN478)*(BN98/SUM('Working | Approach D'!BN519)),0) -> 0 | BO103: =IFERROR(SUM('Working | Approach D'!BO477:BO478)*(BO98/SUM('Working | Approach D'!BO519)),0) -> 0 | BP103: =IFERROR(SUM('Working | Approach D'!BP477:BP478)*(BP98/SUM('Working | Approach D'!BP519)),0) -> 0 | BQ103: =IFERROR(SUM('Working | Approach D'!BQ477:BQ478)*(BQ98/SUM('Working | Approach D'!BQ519)),0) -> 0 | BR103: =IFERROR(SUM('Working | Approach D'!BR477:BR478)*(BR98/SUM('Working | Approach D'!BR519)),0) -> 0 | BS103: =IFERROR(SUM('Working | Approach D'!BS477:BS478)*(BS98/SUM('Working | Approach D'!BS519)),0) -> 0 | BT103: =IFERROR(SUM('Working | Approach D'!BT477:BT478)*(BT98/SUM('Working | Approach D'!BT519)),0) -> 0 | BU103: =IFERROR(SUM('Working | Approach D'!BU477:BU478)*(BU98/SUM('Working | Approach D'!BU519)),0) -> 0
A104: Returns achieved
A105: Post-tax CF to Equity | B105: =IRR(C105:BU105) -> 0.05094044154 | C105: =C98-C99-C100-C101-C102-C103 -> -2400 | D105: =D98-D99-D100-D101-D102-D103 -> 117.1664106 | E105: 119.6658531 | F105: 116.6661637 | G105: 114.3174939 | H105: 113.4625122 | I105: 106.7955062 | J105: 113.5196354 | K105: 112.1162321 | L105: 112.0028552 | M105: 112.5629171 | N105: 94.8283284 | O105: 94.69065386 | P105: 95.72326828 | Q105: 88.75591373 | R105: 80.85183854 | S105: 87.01094009 | T105: 83.81549237 | U105: 76.99271602 | V105: 73.55539314 | W105: 69.1964568 | X105: 332.9838079 | Y105: 320.9162135 | Z105: 310.6861739 | AA105: 294.679241 | AB105: 279.2564782 | AC105: 287.8413431 | AD105: 280.1573962 | AE105: 266.7751238 | AF105: 263.7560194 | AG105: 258.369548 | AH105: 162.5349969 | AI105: 162.0141613 | AJ105: 154.5468086 | AK105: 148.4682166 | AL105: 140.3686949 | AM105: 123.5604436 | AN105: 118.3508172 | AO105: 111.9733139 | AP105: 105.3219856 | AQ105: 99.08218316 | AR105: 83.65138669 | AS105: 75.5480553 | AT105: 68.27731385 | AU105: 60.10280712 | AV105: 54.00983152 | AW105: 42.12600414 | AX105: 34.30548972 | AY105: 26.40058113 | AZ105: 17.3744996 | BA105: 8.758032329 | BB105: 1.353326144e-13 | BC105: 1.33310448e-13 | BD105: 1.320110511e-13 | BE105: 1.317851911e-13 | BF105: 1.312669279e-13 | BG105: 1.345991828e-13 | BH105: 1.344557022e-13 | BI105: 1.343123732e-13 | BJ105: 1.330314944e-13 | BK105: 1.325083738e-13 | BL105: 1.345991828e-13 | BM105: 1.332873357e-13 | BN105: 1.320110511e-13 | BO105: 1.328320635e-13 | BP105: =BP98-BP99-BP100-BP101-BP102-BP103 -> 1.330984749e-13 | BQ105: 1.345991828e-13 | BR105: 1.358696927e-13 | BS105: 1.367000606e-13 | BT105: 1.368849562e-13 | BU105: 1.118373045e-13
A106: Real post-tax CF to Equity | B106: =IRR(C106:BU106) -> 0.02603125824 | C106: =C105/Inputs!C35 -> -2400 | D106: =D105/Inputs!D35 -> 113.7792082 | E106: =E105/Inputs!E35 -> 112.5102614 | F106: =F105/Inputs!F35 -> 107.5016147 | G106: =G105/Inputs!G35 -> 102.8996687 | H106: =H105/Inputs!H35 -> 99.22934498 | I106: =I105/Inputs!I35 -> 91.13380952 | J106: =J105/Inputs!J35 -> 92.90255879 | K106: =K105/Inputs!K35 -> 89.57177895 | L106: =L105/Inputs!L35 -> 86.94339282 | M106: =M105/Inputs!M35 -> 84.62257955 | N106: =N105/Inputs!N35 -> 70.14828297 | O106: =O105/Inputs!O35 -> 68.33632149 | P106: =P105/Inputs!P35 -> 67.11527065 | Q106: =Q105/Inputs!Q35 -> 61.41443843 | R106: =R105/Inputs!R35 -> 55.22135738 | S106: =S105/Inputs!S35 -> 58.1910269 | T106: =T105/Inputs!T35 -> 55.00856915 | U106: =U105/Inputs!U35 -> 49.86644797 | V106: =V105/Inputs!V35 -> 46.61872687 | W106: =W105/Inputs!W35 -> 42.91576307 | X106: =X105/Inputs!X35 -> 203.8021886 | Y106: =Y105/Inputs!Y35 -> 192.7530571 | Z106: =Z105/Inputs!Z35 -> 182.7243918 | AA106: =AA105/Inputs!AA35 -> 171.0677459 | AB106: =AB105/Inputs!AB35 -> 159.9893983 | AC106: =AC105/Inputs!AC35 -> 160.2140012 | AD106: =AD105/Inputs!AD35 -> 152.1300185 | AE106: =AE105/Inputs!AE35 -> 142.5430954 | AF106: =AF105/Inputs!AF35 -> 136.4855474 | AG106: =AG105/Inputs!AG35 -> 129.9063546 | AH106: =AH105/Inputs!AH35 -> 79.77778518 | AI106: =AI105/Inputs!AI35 -> 76.26375879 | AJ106: =AJ105/Inputs!AJ35 -> 70.98459156 | AK106: =AK105/Inputs!AK35 -> 66.25581286 | AL106: =AL105/Inputs!AL35 -> 61.19162239 | AM106: =AM105/Inputs!AM35 -> 52.78971804 | AN106: =AN105/Inputs!AN35 -> 48.95569893 | AO106: =AO105/Inputs!AO35 -> 44.97863875 | AP106: =AP105/Inputs!AP35 -> 41.083799 | AQ106: =AQ105/Inputs!AQ35 -> 37.42046979 | AR106: =AR105/Inputs!AR35 -> 30.96242665 | AS106: =AS105/Inputs!AS35 -> 27.31595237 | AT106: =AT105/Inputs!AT35 -> 23.98589523 | AU106: =AU105/Inputs!AU35 -> 20.60217532 | AV106: =AV105/Inputs!AV35 -> 17.75502493 | AW106: =AW105/Inputs!AW35 -> 13.51900559 | AX106: =AX105/Inputs!AX35 -> 10.69702201 | AY106: =AY105/Inputs!AY35 -> 7.972530387 | AZ106: =AZ105/Inputs!AZ35 -> 5.162773017 | BA106: =BA105/Inputs!BA35 -> 2.538883667 | BB106: =BB105/Inputs!BB35 -> 3.81151888e-14 | BC106: =BC105/Inputs!BC35 -> 3.705349255e-14 | BD106: =BD105/Inputs!BD35 -> 3.621756453e-14 | BE106: =BE105/Inputs!BE35 -> 3.540303929e-14 | BF106: =BF105/Inputs!BF35 -> 3.460613879e-14 | BG106: =BG105/Inputs!BG35 -> 3.501813343e-14 | BH106: =BH105/Inputs!BH35 -> 3.42307874e-14 | BI106: =BI105/Inputs!BI35 -> 3.346114368e-14 | BJ106: =BJ105/Inputs!BJ35 -> 3.2706342e-14 | BK106: =BK105/Inputs!BK35 -> 3.197015308e-14 | BL106: =BL105/Inputs!BL35 -> 3.179865842e-14 | BM106: =BM105/Inputs!BM35 -> 3.108130558e-14 | BN106: =BN105/Inputs!BN35 -> 3.038015697e-14 | BO106: =BO105/Inputs!BO35 -> 2.969901116e-14 | BP106: =BP105/Inputs!BP35 -> 2.903204852e-14 | BQ106: =BQ105/Inputs!BQ35 -> 2.888916934e-14 | BR106: =BR105/Inputs!BR35 -> 2.824220851e-14 | BS106: =BS105/Inputs!BS35 -> 2.760892857e-14 | BT106: =BT105/Inputs!BT35 -> 2.698873849e-14 | BU106: =BU105/Inputs!BU35 -> 2.11467532e-14
A107: Nominal cash flows to assets | B107: =IRR(C107:BU107) -> 0.04877620011 | C107: =C98-C99-C102 -> -6000 | D107: =D98-D99-D102 -> 285.5716211 | E107: 283.2175143 | F107: 276.8063829 | G107: 270.6840382 | H107: 265.3154278 | I107: 254.9772568 | J107: 255.0445432 | K107: 249.8426289 | L107: 245.0405653 | M107: 240.1620222 | N107: 221.007594 | O107: 217.0703354 | P107: 213.2615416 | Q107: 205.3475921 | R107: 196.6873081 | S107: 199.8421998 | T107: 194.3061524 | U107: 186.9441785 | V107: 180.3504345 | W107: 172.8257087 | X107: 813.4439913 | Y107: 791.3588003 | Z107: 770.9372469 | AA107: 744.4119796 | AB107: 718.2824639 | AC107: 716.647068 | AD107: 698.1766764 | AE107: 673.6899565 | AF107: 659.7715619 | AG107: 643.3010085 | AH107: 415.4721286 | AI107: 401.1949464 | AJ107: 382.7653195 | AK107: 365.6670651 | AL107: 346.2296195 | AM107: 317.3544755 | AN107: 300.4560224 | AO107: 281.9510944 | AP107: 263.0869343 | AQ107: 244.4081361 | AR107: 215.7537595 | AS107: 194.4847163 | AT107: 173.7841105 | AU107: 151.7939506 | AV107: 195.1887002 | AW107: 105.755051 | AX107: 84.19518881 | AY107: 64.04428084 | AZ107: 42.62686036 | BA107: 21.46541696 | BB107: 1.365241946e-13 | BC107: 1.345020282e-13 | BD107: 1.332026313e-13 | BE107: 1.329767713e-13 | BF107: 1.324585081e-13 | BG107: 1.35790763e-13 | BH107: 1.356472824e-13 | BI107: 1.355039534e-13 | BJ107: 1.342230746e-13 | BK107: 1.33699954e-13 | BL107: 1.35790763e-13 | BM107: 1.344789159e-13 | BN107: 1.332026313e-13 | BO107: 1.340236437e-13 | BP107: =BP98-BP99-BP102 -> 1.342900551e-13 | BQ107: 1.35790763e-13 | BR107: 1.370612729e-13 | BS107: 1.378916407e-13 | BT107: 1.380765364e-13 | BU107: 1.407400514e-13
A108: Nominal vanilla WACC | B108: =IRR(C108:BU108) -> 0.04616666797 | C108: =C107-C103 -> -6000 | D108: =D107-D103 -> 268.3940155 | E108: 266.8250994 | F108: 261.3157388 | G108: 255.9576902 | H108: 251.1963078 | I108: 241.6016278 | J108: 241.9622244 | K108: 237.2173997 | L108: 232.7404416 | M108: 228.0772338 | N108: 209.4890745 | O108: 205.7263363 | P108: 201.9717499 | Q108: 194.2147862 | R108: 185.6394039 | S108: 188.3754736 | T108: 182.7177977 | U108: 175.2303062 | V108: 168.3431302 | W108: 160.4536621 | X108: 800.4525907 | Y108: 776.7382403 | Z108: 754.8614448 | AA108: 727.2077559 | AB108: 700.1382372 | AC108: 697.0763461 | AD108: 677.7456433 | AE108: 652.716615 | AF108: 638.0507547 | AG108: 621.0175273 | AH108: 393.2903982 | AI108: 382.1930285 | AJ108: 364.0913626 | AK108: 347.3173797 | AL108: 328.4579025 | AM108: 300.8214448 | AN108: 284.6152169 | AO108: 267.1634898 | AP108: 249.3558834 | AQ108: 231.8730642 | AR108: 205.1075604 | AS108: 185.3366314 | AT108: 166.2925084 | AU108: 146.2327967 | AV108: 128.1364086 | AW108: 104.1242125 | AX108: 84.19518881 | AY108: 64.04428084 | AZ108: 42.62686036 | BA108: 21.46541696 | BB108: 1.365241946e-13 | BC108: 1.345020282e-13 | BD108: 1.332026313e-13 | BE108: 1.329767713e-13 | BF108: 1.324585081e-13 | BG108: 1.35790763e-13 | BH108: 1.356472824e-13 | BI108: 1.355039534e-13 | BJ108: 1.342230746e-13 | BK108: 1.33699954e-13 | BL108: 1.35790763e-13 | BM108: 1.344789159e-13 | BN108: 1.332026313e-13 | BO108: 1.340236437e-13 | BP108: =BP107-BP103 -> 1.342900551e-13 | BQ108: 1.35790763e-13 | BR108: 1.370612729e-13 | BS108: 1.378916407e-13 | BT108: 1.380765364e-13 | BU108: 1.407400514e-13
A109: Real WACC (real) | B109: =IRR(C109:BU109) -> 0.02148965917 | C109: =C108/Inputs!C35 -> -6000 | D109: =D108/Inputs!D35 -> 260.6349244 | E109: =E108/Inputs!E35 -> 250.8699089 | F109: =F108/Inputs!F35 -> 240.7884426 | G109: =G108/Inputs!G35 -> 230.3930975 | H109: =H108/Inputs!H35 -> 219.6852917 | I109: =I108/Inputs!I35 -> 206.1704422 | J109: =J108/Inputs!J35 -> 198.0178116 | K109: =K108/Inputs!K35 -> 189.5174685 | L109: =L108/Inputs!L35 -> 180.6672126 | M109: =M108/Inputs!M35 -> 171.4639632 | N109: =N108/Inputs!N35 -> 154.9673934 | O109: =O108/Inputs!O35 -> 148.4685181 | P109: =P108/Inputs!P35 -> 141.6101738 | Q109: =Q108/Inputs!Q35 -> 134.3864485 | R109: =R108/Inputs!R35 -> 126.7906834 | S109: =S108/Inputs!S35 -> 125.9814253 | T109: =T108/Inputs!T35 -> 119.9186967 | U109: =U108/Inputs!U35 -> 113.4927224 | V109: =V108/Inputs!V35 -> 106.6943166 | W109: =W108/Inputs!W35 -> 99.51364082 | X109: =X108/Inputs!X35 -> 489.9156835 | Y109: =Y108/Inputs!Y35 -> 466.5350771 | Z109: =Z108/Inputs!Z35 -> 443.957955 | AA109: =AA108/Inputs!AA35 -> 422.1600109 | AB109: =AB108/Inputs!AB35 -> 401.117625 | AC109: =AC108/Inputs!AC35 -> 387.9963502 | AD109: =AD108/Inputs!AD35 -> 368.0268973 | AE109: =AE108/Inputs!AE35 -> 348.7590799 | AF109: =AF108/Inputs!AF35 -> 330.1714467 | AG109: =AG108/Inputs!AG35 -> 312.243156 | AH109: =AH108/Inputs!AH35 -> 193.040499 | AI109: =AI108/Inputs!AI35 -> 179.9069705 | AJ109: =AJ108/Inputs!AJ35 -> 167.2300897 | AK109: =AK108/Inputs!AK35 -> 154.9947581 | AL109: =AL108/Inputs!AL35 -> 143.1862849 | AM109: =AM108/Inputs!AM35 -> 128.5223555 | AN109: =AN108/Inputs!AN35 -> 117.7308041 | AO109: =AO108/Inputs!AO35 -> 107.317089 | AP109: =AP108/Inputs!AP35 -> 97.26826676 | AQ109: =AQ108/Inputs!AQ35 -> 87.57173811 | AR109: =AR108/Inputs!AR35 -> 75.91778264 | AS109: =AS108/Inputs!AS35 -> 67.0122689 | AT109: =AT108/Inputs!AT35 -> 58.41874055 | AU109: =AU108/Inputs!AU35 -> 50.12600675 | AV109: =AV108/Inputs!AV35 -> 42.12316657 | AW109: =AW108/Inputs!AW35 -> 33.41536517 | AX109: =AX108/Inputs!AX35 -> 26.25345958 | AY109: =AY108/Inputs!AY35 -> 19.34029302 | AZ109: =AZ108/Inputs!AZ35 -> 12.66642548 | BA109: =BA108/Inputs!BA35 -> 6.222653044 | BB109: =BB108/Inputs!BB35 -> 3.845078641e-14 | BC109: =BC108/Inputs!BC35 -> 3.738469095e-14 | BD109: =BD108/Inputs!BD35 -> 3.654447755e-14 | BE109: =BE108/Inputs!BE35 -> 3.572314778e-14 | BF109: =BF108/Inputs!BF35 -> 3.492027723e-14 | BG109: =BG108/Inputs!BG35 -> 3.53281421e-14 | BH109: =BH108/Inputs!BH35 -> 3.453414922e-14 | BI109: =BI108/Inputs!BI35 -> 3.375800118e-14 | BJ109: =BJ108/Inputs!BJ35 -> 3.29992969e-14 | BK109: =BK108/Inputs!BK35 -> 3.225764435e-14 | BL109: =BL108/Inputs!BL35 -> 3.20801657e-14 | BM109: =BM108/Inputs!BM35 -> 3.135917044e-14 | BN109: =BN108/Inputs!BN35 -> 3.065437941e-14 | BO109: =BO108/Inputs!BO35 -> 2.99654284e-14 | BP109: =BP108/Inputs!BP35 -> 2.929196144e-14 | BQ109: =BQ108/Inputs!BQ35 -> 2.914491949e-14 | BR109: =BR108/Inputs!BR35 -> 2.84898933e-14 | BS109: =BS108/Inputs!BS35 -> 2.784958868e-14 | BT109: =BT108/Inputs!BT35 -> 2.722367479e-14 | BU109: =BU108/Inputs!BU35 -> 2.661182818e-14
A110: ="Nominal NPV at "&ROUND((GEOMEAN(1+Inputs!$D$15:$W$15)-1)*100,2)&"%" -> Nominal NPV at 4.58% | B110: =NPV((GEOMEAN(1+Inputs!$D$15:$W$15)-1),D108:BU108)+C108 -> 38.75488723
A111: ="Real NPV at "&ROUND((GEOMEAN(1+Inputs!$D$19:$W$19)-1)*100,2)&"%" -> Real NPV at 2.23% | B111: =NPV((GEOMEAN(1+Inputs!$D$19:$W$19)-1),D109:BU109)+C109 -> -86.7255552
A113: =RIGHT(Inputs!A7,LEN(Inputs!A7)-3)&" ("&Inputs!B7&")" -> Approach E (nominal - updated)
A114: Revenue | C114: 0 | D114: ='Working | Approach E'!D111 -> 353.6227334 | E114: ='Working | Approach E'!E111 -> 380.1665187 | F114: ='Working | Approach E'!F111 -> 403.758323 | G114: ='Working | Approach E'!G111 -> 430.215523 | H114: ='Working | Approach E'!H111 -> 460.8880291 | I114: ='Working | Approach E'!I247 -> 478.3026924 | J114: ='Working | Approach E'!J247 -> 486.7633047 | K114: ='Working | Approach E'!K247 -> 486.6502609 | L114: ='Working | Approach E'!L247 -> 488.8294059 | M114: ='Working | Approach E'!M247 -> 492.6279402 | N114: ='Working | Approach E'!N383 -> 687.4382642 | O114: ='Working | Approach E'!O383 -> 703.097432 | P114: ='Working | Approach E'!P383 -> 722.1102458 | Q114: ='Working | Approach E'!Q383 -> 730.0985569 | R114: ='Working | Approach E'!R383 -> 738.0483934 | S114: ='Working | Approach E'!S519 -> 787.5353161 | T114: ='Working | Approach E'!T519 -> 829.5037237 | U114: ='Working | Approach E'!U519 -> 868.8359509 | V114: ='Working | Approach E'!V519 -> 917.7467983 | W114: ='Working | Approach E'!W519 -> 969.4110666 | X114: ='Working | Approach E'!X551 -> 969.5990109 | Y114: ='Working | Approach E'!Y551 -> 909.9327322 | Z114: ='Working | Approach E'!Z551 -> 893.2873113 | AA114: ='Working | Approach E'!AA551 -> 970.9027557 | AB114: ='Working | Approach E'!AB551 -> 963.1425246 | AC114: ='Working | Approach E'!AC551 -> 838.7071115 | AD114: ='Working | Approach E'!AD551 -> 885.589521 | AE114: ='Working | Approach E'!AE551 -> 950.6351778 | AF114: ='Working | Approach E'!AF551 -> 858.9705798 | AG114: ='Working | Approach E'!AG551 -> 897.8799764 | AH114: ='Working | Approach E'!AH551 -> 497.8363379 | AI114: ='Working | Approach E'!AI551 -> 408.6934339 | AJ114: ='Working | Approach E'!AJ551 -> 481.2236881 | AK114: ='Working | Approach E'!AK551 -> 453.5358334 | AL114: ='Working | Approach E'!AL551 -> 461.9464292 | AM114: ='Working | Approach E'!AM551 -> 456.3301035 | AN114: ='Working | Approach E'!AN551 -> 403.3513193 | AO114: ='Working | Approach E'!AO551 -> 398.7178544 | AP114: ='Working | Approach E'!AP551 -> 382.502676 | AQ114: ='Working | Approach E'!AQ551 -> 358.7777557 | AR114: ='Working | Approach E'!AR551 -> 359.9351066 | AS114: ='Working | Approach E'!AS551 -> 327.3029504 | AT114: ='Working | Approach E'!AT551 -> 293.5056049 | AU114: ='Working | Approach E'!AU551 -> 269.6967366 | AV114: ='Working | Approach E'!AV551 -> 288.7018 | AW114: ='Working | Approach E'!AW551 -> 206.9003463 | AX114: ='Working | Approach E'!AX551 -> 167.7512388 | AY114: ='Working | Approach E'!AY551 -> 128.0132066 | AZ114: ='Working | Approach E'!AZ551 -> 86.63198134 | BA114: ='Working | Approach E'!BA551 -> 43.77080775 | BB114: ='Working | Approach E'!BB551 -> 1.250476268e-13 | BC114: ='Working | Approach E'!BC551 -> 2.526983256e-13 | BD114: ='Working | Approach E'!BD551 -> 2.57425931e-13 | BE114: ='Working | Approach E'!BE551 -> 1.957960055e-13 | BF114: ='Working | Approach E'!BF551 -> 2.183089038e-13 | BG114: ='Working | Approach E'!BG551 -> 2.696386659e-13 | BH114: ='Working | Approach E'!BH551 -> 2.009733675e-13 | BI114: ='Working | Approach E'!BI551 -> 2.053768155e-13 | BJ114: ='Working | Approach E'!BJ551 -> 2.853351241e-13 | BK114: ='Working | Approach E'!BK551 -> 2.385436616e-13 | BL114: ='Working | Approach E'!BL551 -> 2.226442017e-13 | BM114: ='Working | Approach E'!BM551 -> 3.028662494e-13 | BN114: ='Working | Approach E'!BN551 -> 3.05202159e-13 | BO114: ='Working | Approach E'!BO551 -> 1.569532771e-13 | BP114: ='Working | Approach E'!BP551 -> 2.033692853e-13 | BQ114: ='Working | Approach E'!BQ551 -> 2.962403164e-13 | BR114: ='Working | Approach E'!BR551 -> 1.349832976e-13 | BS114: ='Working | Approach E'!BS551 -> 1.749035777e-13 | BT114: ='Working | Approach E'!BT551 -> 2.323070293e-13 | BU114: ='Working | Approach E'!BU551 -> 3.413325583e-14
A115: Capex | C115: ='Working | Approach E'!D121 -> 6000 | D115: ='Working | Approach E'!D122 -> 205.2750296 | E115: ='Working | Approach E'!E122 -> 218.7588423 | F115: ='Working | Approach E'!F122 -> 232.0603331 | G115: ='Working | Approach E'!G122 -> 245.0764924 | H115: ='Working | Approach E'!H122 -> 259.9460757 | I115: ='Working | Approach E'!I258 -> 275.8741906 | J115: ='Working | Approach E'!J258 -> 294.6911081 | K115: ='Working | Approach E'!K258 -> 314.7164119 | L115: ='Working | Approach E'!L258 -> 333.9138472 | M115: ='Working | Approach E'!M258 -> 355.6974576 | N115: ='Working | Approach E'!N394 -> 376.5177633 | O115: ='Working | Approach E'!O394 -> 397.0993065 | P115: ='Working | Approach E'!P394 -> 421.480153 | Q115: ='Working | Approach E'!Q394 -> 444.7881581 | R115: ='Working | Approach E'!R394 -> 465.6793502 | S115: ='Working | Approach E'!S530 -> 489.4664536 | T115: ='Working | Approach E'!T530 -> 515.9634476 | U115: ='Working | Approach E'!U530 -> 541.7776166 | V115: ='Working | Approach E'!V530 -> 569.6939107 | W115: ='Working | Approach E'!W530 -> 601.5821237 | X115: 0 | Y115: 0 | Z115: 0 | AA115: 0 | AB115: 0 | AC115: 0 | AD115: 0 | AE115: 0 | AF115: 0 | AG115: 0 | AH115: 0 | AI115: 0 | AJ115: 0 | AK115: 0 | AL115: 0 | AM115: 0 | AN115: 0 | AO115: 0 | AP115: 0 | AQ115: 0 | AR115: 0 | AS115: 0 | AT115: 0 | AU115: 0 | AV115: 0 | AW115: 0 | AX115: 0 | AY115: 0 | AZ115: 0 | BA115: 0 | BB115: 0 | BC115: 0 | BD115: 0 | BE115: 0 | BF115: 0 | BG115: 0 | BH115: 0 | BI115: 0 | BJ115: 0 | BK115: 0 | BL115: 0 | BM115: 0 | BN115: 0 | BO115: 0 | BP115: 0 | BQ115: 0 | BR115: 0 | BS115: 0 | BT115: 0 | BU115: 0
A116: Interest Payments | C116: 0 | D116: =('Working | Approach E'!D121*Inputs!$C$13)*Inputs!D13 -> 154.8 | E116: =('Working | Approach E'!E121*Inputs!$C$13)*Inputs!E13 -> 159.3908725 | F116: =('Working | Approach E'!F121*Inputs!$C$13)*Inputs!F13 -> 164.6005724 | G116: =('Working | Approach E'!G121*Inputs!$C$13)*Inputs!G13 -> 167.9604751 | H116: =('Working | Approach E'!H121*Inputs!$C$13)*Inputs!H13 -> 171.9387394 | I116: =('Working | Approach E'!I257*Inputs!$C$13)*Inputs!I13 -> 176.9459601 | J116: =('Working | Approach E'!J257*Inputs!$C$13)*Inputs!J13 -> 181.3391212 | K116: =('Working | Approach E'!K257*Inputs!$C$13)*Inputs!K13 -> 189.0163592 | L116: =('Working | Approach E'!L257*Inputs!$C$13)*Inputs!L13 -> 193.6209933 | M116: =('Working | Approach E'!M257*Inputs!$C$13)*Inputs!M13 -> 199.2519359 | N116: =('Working | Approach E'!N393*Inputs!$C$13)*Inputs!N13 -> 205.7037811 | O116: =('Working | Approach E'!O393*Inputs!$C$13)*Inputs!O13 -> 209.0918813 | P116: =('Working | Approach E'!P393*Inputs!$C$13)*Inputs!P13 -> 214.3213288 | Q116: =('Working | Approach E'!Q393*Inputs!$C$13)*Inputs!Q13 -> 220.5744658 | R116: =('Working | Approach E'!R393*Inputs!$C$13)*Inputs!R13 -> 223.5677664 | S116: =('Working | Approach E'!S529*Inputs!$C$13)*Inputs!S13 -> 226.5637634 | T116: =('Working | Approach E'!T529*Inputs!$C$13)*Inputs!T13 -> 231.3958539 | U116: =('Working | Approach E'!U529*Inputs!$C$13)*Inputs!U13 -> 235.824455 | V116: =('Working | Approach E'!V529*Inputs!$C$13)*Inputs!V13 -> 239.0364669 | W116: =('Working | Approach E'!W529*Inputs!$C$13)*Inputs!W13 -> 244.2837624 | X116: =('Working | Approach E'!X529*Inputs!$C$13)*Inputs!$W$13 -> 249.6462455 | Y116: =('Working | Approach E'!Y529*Inputs!$C$13)*Inputs!$W$13 -> 238.1490342 | Z116: =('Working | Approach E'!Z529*Inputs!$C$13)*Inputs!$W$13 -> 226.6610681 | AA116: =('Working | Approach E'!AA529*Inputs!$C$13)*Inputs!$W$13 -> 212.7301885 | AB116: =('Working | Approach E'!AB529*Inputs!$C$13)*Inputs!$W$13 -> 198.4321716 | AC116: =('Working | Approach E'!AC529*Inputs!$C$13)*Inputs!$W$13 -> 186.8945101 | AD116: =('Working | Approach E'!AD529*Inputs!$C$13)*Inputs!$W$13 -> 173.7121127 | AE116: =('Working | Approach E'!AE529*Inputs!$C$13)*Inputs!$W$13 -> 158.2332033 | AF116: =('Working | Approach E'!AF529*Inputs!$C$13)*Inputs!$W$13 -> 144.7814177 | AG116: =('Working | Approach E'!AG529*Inputs!$C$13)*Inputs!$W$13 -> 129.797319 | AH116: =('Working | Approach E'!AH529*Inputs!$C$13)*Inputs!$W$13 -> 113.1887218 | AI116: =('Working | Approach E'!AI529*Inputs!$C$13)*Inputs!$W$13 -> 108.2848757 | AJ116: =('Working | Approach E'!AJ529*Inputs!$C$13)*Inputs!$W$13 -> 101.1841792 | AK116: =('Working | Approach E'!AK529*Inputs!$C$13)*Inputs!$W$13 -> 94.49202125 | AL116: =('Working | Approach E'!AL529*Inputs!$C$13)*Inputs!$W$13 -> 87.21055272 | AM116: =('Working | Approach E'!AM529*Inputs!$C$13)*Inputs!$W$13 -> 79.67542683 | AN116: =('Working | Approach E'!AN529*Inputs!$C$13)*Inputs!$W$13 -> 73.25057019 | AO116: =('Working | Approach E'!AO529*Inputs!$C$13)*Inputs!$W$13 -> 66.58131338 | AP116: =('Working | Approach E'!AP529*Inputs!$C$13)*Inputs!$W$13 -> 59.96638481 | AQ116: =('Working | Approach E'!AQ529*Inputs!$C$13)*Inputs!$W$13 -> 53.6377165 | AR116: =('Working | Approach E'!AR529*Inputs!$C$13)*Inputs!$W$13 -> 46.74853778 | AS116: =('Working | Approach E'!AS529*Inputs!$C$13)*Inputs!$W$13 -> 40.33385212 | AT116: =('Working | Approach E'!AT529*Inputs!$C$13)*Inputs!$W$13 -> 34.47499145 | AU116: =('Working | Approach E'!AU529*Inputs!$C$13)*Inputs!$W$13 -> 28.78965979 | AV116: =('Working | Approach E'!AV529*Inputs!$C$13)*Inputs!$W$13 -> 24.05642601 | AW116: =('Working | Approach E'!AW529*Inputs!$C$13)*Inputs!$W$13 -> 19.22960856 | AX116: =('Working | Approach E'!AX529*Inputs!$C$13)*Inputs!$W$13 -> 15.09845017 | AY116: =('Working | Approach E'!AY529*Inputs!$C$13)*Inputs!$W$13 -> 11.6635038 | AZ116: =('Working | Approach E'!AZ529*Inputs!$C$13)*Inputs!$W$13 -> 8.763251174 | BA116: =('Working | Approach E'!BA529*Inputs!$C$13)*Inputs!$W$13 -> 6.857723802 | BB116: =('Working | Approach E'!BB529*Inputs!$C$13)*Inputs!$W$13 -> 0.200909877 | BC116: =('Working | Approach E'!BC529*Inputs!$C$13)*Inputs!$W$13 -> 0.002668632143 | BD116: =('Working | Approach E'!BD529*Inputs!$C$13)*Inputs!$W$13 -> 3.498206928e-05 | BE116: =('Working | Approach E'!BE529*Inputs!$C$13)*Inputs!$W$13 -> 7.436114543e-07 | BF116: =('Working | Approach E'!BF529*Inputs!$C$13)*Inputs!$W$13 -> 1.413198239e-08 | BG116: =('Working | Approach E'!BG529*Inputs!$C$13)*Inputs!$W$13 -> 1.882590904e-10 | BH116: =('Working | Approach E'!BH529*Inputs!$C$13)*Inputs!$W$13 -> 4.124870518e-12 | BI116: =('Working | Approach E'!BI529*Inputs!$C$13)*Inputs!$W$13 -> 9.037840749e-14 | BJ116: =('Working | Approach E'!BJ529*Inputs!$C$13)*Inputs!$W$13 -> 1.203975233e-15 | BK116: =('Working | Approach E'!BK529*Inputs!$C$13)*Inputs!$W$13 -> 2.288097728e-17 | BL116: =('Working | Approach E'!BL529*Inputs!$C$13)*Inputs!$W$13 -> 4.863793692e-19 | BM116: =('Working | Approach E'!BM529*Inputs!$C$13)*Inputs!$W$13 -> 6.375759521e-21 | BN116: =('Working | Approach E'!BN529*Inputs!$C$13)*Inputs!$W$13 -> 8.468750787e-23 | BO116: =('Working | Approach E'!BO529*Inputs!$C$13)*Inputs!$W$13 -> 2.481079332e-24 | BP116: =('Working | Approach E'!BP529*Inputs!$C$13)*Inputs!$W$13 -> 6.208907237e-26 | BQ116: =('Working | Approach E'!BQ529*Inputs!$C$13)*Inputs!$W$13 -> 1.010605451e-27 | BR116: =('Working | Approach E'!BR529*Inputs!$C$13)*Inputs!$W$13 -> 3.290837077e-29 | BS116: =('Working | Approach E'!BS529*Inputs!$C$13)*Inputs!$W$13 -> 9.605686602e-31 | BT116: =('Working | Approach E'!BT529*Inputs!$C$13)*Inputs!$W$13 -> 2.340255872e-32 | BU116: =('Working | Approach E'!BU529*Inputs!$C$13)*Inputs!$W$13 -> 9.998783749e-34
A117: Repayment of Debt | C117: =('Working | Approach E'!C121-'Working | Approach E'!D121)*Inputs!$C$13 -> -3600 | D117: =('Working | Approach E'!D121-'Working | Approach E'!E121)*Inputs!$C$13 -> -106.7644765 | E117: =('Working | Approach E'!E121-'Working | Approach E'!F121)*Inputs!$C$13 -> -121.1558125 | F117: =('Working | Approach E'!F121-'Working | Approach E'!G121)*Inputs!$C$13 -> -78.1372713 | G117: =('Working | Approach E'!G121-'Working | Approach E'!H121)*Inputs!$C$13 -> -92.51777392 | H117: =('Working | Approach E'!H121-'Working | Approach E'!I257)*Inputs!$C$13 -> -116.4469943 | I117: =('Working | Approach E'!I257-'Working | Approach E'!J257)*Inputs!$C$13 -> -102.1665373 | J117: =('Working | Approach E'!J257-'Working | Approach E'!K257)*Inputs!$C$13 -> -178.5404177 | K117: =('Working | Approach E'!K257-'Working | Approach E'!L257)*Inputs!$C$13 -> -107.0845147 | L117: =('Working | Approach E'!L257-'Working | Approach E'!M257)*Inputs!$C$13 -> -130.9521532 | M117: =('Working | Approach E'!M257-'Working | Approach E'!N393)*Inputs!$C$13 -> -150.0429106 | N117: =('Working | Approach E'!N393-'Working | Approach E'!O393)*Inputs!$C$13 -> -78.79302842 | O117: =('Working | Approach E'!O393-'Working | Approach E'!P393)*Inputs!$C$13 -> -121.6150581 | P117: =('Working | Approach E'!P393-'Working | Approach E'!Q393)*Inputs!$C$13 -> -145.4217903 | Q117: =('Working | Approach E'!Q393-'Working | Approach E'!R393)*Inputs!$C$13 -> -69.6116431 | R117: =('Working | Approach E'!R393-'Working | Approach E'!S529)*Inputs!$C$13 -> -69.67434751 | S117: =('Working | Approach E'!S529-'Working | Approach E'!T529)*Inputs!$C$13 -> -112.3741982 | T117: =('Working | Approach E'!T529-'Working | Approach E'!U529)*Inputs!$C$13 -> -102.9907235 | U117: =('Working | Approach E'!U529-'Working | Approach E'!V529)*Inputs!$C$13 -> -74.69795157 | V117: =('Working | Approach E'!V529-'Working | Approach E'!W529)*Inputs!$C$13 -> -122.0301285 | W117: =('Working | Approach E'!W529-'Working | Approach E'!X529)*Inputs!$C$13 -> -124.7089076 | X117: =('Working | Approach E'!X529-'Working | Approach E'!Y529)*Inputs!$C$13 -> 267.3770068 | Y117: =('Working | Approach E'!Y529-'Working | Approach E'!Z529)*Inputs!$C$13 -> 267.1620025 | Z117: =('Working | Approach E'!Z529-'Working | Approach E'!AA529)*Inputs!$C$13 -> 323.973944 | AA117: =('Working | Approach E'!AA529-'Working | Approach E'!AB529)*Inputs!$C$13 -> 332.5120214 | AB117: =('Working | Approach E'!AB529-'Working | Approach E'!AC529)*Inputs!$C$13 -> 268.3177093 | AC117: =('Working | Approach E'!AC529-'Working | Approach E'!AD529)*Inputs!$C$13 -> 306.5673805 | AD117: =('Working | Approach E'!AD529-'Working | Approach E'!AE529)*Inputs!$C$13 -> 359.9746368 | AE117: =('Working | Approach E'!AE529-'Working | Approach E'!AF529)*Inputs!$C$13 -> 312.8322231 | AF117: =('Working | Approach E'!AF529-'Working | Approach E'!AG529)*Inputs!$C$13 -> 348.4674115 | AG117: =('Working | Approach E'!AG529-'Working | Approach E'!AH529)*Inputs!$C$13 -> 386.2464466 | AH117: =('Working | Approach E'!AH529-'Working | Approach E'!AI529)*Inputs!$C$13 -> 114.0429334 | AI117: =('Working | Approach E'!AI529-'Working | Approach E'!AJ529)*Inputs!$C$13 -> 165.1324762 | AJ117: =('Working | Approach E'!AJ529-'Working | Approach E'!AK529)*Inputs!$C$13 -> 155.6315804 | AK117: =('Working | Approach E'!AK529-'Working | Approach E'!AL529)*Inputs!$C$13 -> 169.3364776 | AL117: =('Working | Approach E'!AL529-'Working | Approach E'!AM529)*Inputs!$C$13 -> 175.2354858 | AM117: =('Working | Approach E'!AM529-'Working | Approach E'!AN529)*Inputs!$C$13 -> 149.4152706 | AN117: =('Working | Approach E'!AN529-'Working | Approach E'!AO529)*Inputs!$C$13 -> 155.0989957 | AO117: =('Working | Approach E'!AO529-'Working | Approach E'!AP529)*Inputs!$C$13 -> 153.8355481 | AP117: =('Working | Approach E'!AP529-'Working | Approach E'!AQ529)*Inputs!$C$13 -> 147.1783327 | AQ117: =('Working | Approach E'!AQ529-'Working | Approach E'!AR529)*Inputs!$C$13 -> 160.2134588 | AR117: =('Working | Approach E'!AR529-'Working | Approach E'!AS529)*Inputs!$C$13 -> 149.1787362 | AS117: =('Working | Approach E'!AS529-'Working | Approach E'!AT529)*Inputs!$C$13 -> 136.2525737 | AT117: =('Working | Approach E'!AT529-'Working | Approach E'!AU529)*Inputs!$C$13 -> 132.2170155 | AU117: =('Working | Approach E'!AU529-'Working | Approach E'!AV529)*Inputs!$C$13 -> 110.0752042 | AV117: =('Working | Approach E'!AV529-'Working | Approach E'!AW529)*Inputs!$C$13 -> 112.2515686 | AW117: =('Working | Approach E'!AW529-'Working | Approach E'!AX529)*Inputs!$C$13 -> 96.07345096 | AX117: =('Working | Approach E'!AX529-'Working | Approach E'!AY529)*Inputs!$C$13 -> 79.88247352 | AY117: =('Working | Approach E'!AY529-'Working | Approach E'!AZ529)*Inputs!$C$13 -> 67.44773557 | AZ117: =('Working | Approach E'!AZ529-'Working | Approach E'!BA529)*Inputs!$C$13 -> 44.31459004 | BA117: =('Working | Approach E'!BA529-'Working | Approach E'!BB529)*Inputs!$C$13 -> 154.8096262 | BB117: =('Working | Approach E'!BB529-'Working | Approach E'!BC529)*Inputs!$C$13 -> 4.610261509 | BC117: =('Working | Approach E'!BC529-'Working | Approach E'!BD529)*Inputs!$C$13 -> 0.06124767612 | BD117: =('Working | Approach E'!BD529-'Working | Approach E'!BE529)*Inputs!$C$13 -> 0.0007962432054 | BE117: =('Working | Approach E'!BE529-'Working | Approach E'!BF529)*Inputs!$C$13 -> 1.696463888e-05 | BF117: =('Working | Approach E'!BF529-'Working | Approach E'!BG529)*Inputs!$C$13 -> 3.242726349e-07 | BG117: =('Working | Approach E'!BG529-'Working | Approach E'!BH529)*Inputs!$C$13 -> 4.282191161e-09 | BH117: =('Working | Approach E'!BH529-'Working | Approach E'!BI529)*Inputs!$C$13 -> 9.382539792e-11 | BI117: =('Working | Approach E'!BI529-'Working | Approach E'!BJ529)*Inputs!$C$13 -> 2.073824006e-12 | BJ117: =('Working | Approach E'!BJ529-'Working | Approach E'!BK529)*Inputs!$C$13 -> 2.746730827e-14 | BK117: =('Working | Approach E'!BK529-'Working | Approach E'!BL529)*Inputs!$C$13 -> 5.208046026e-16 | BL117: =('Working | Approach E'!BL529-'Working | Approach E'!BM529)*Inputs!$C$13 -> 1.116287464e-17 | BM117: =('Working | Approach E'!BM529-'Working | Approach E'!BN529)*Inputs!$C$13 -> 1.463040003e-19 | BN117: =('Working | Approach E'!BN529-'Working | Approach E'!BO529)*Inputs!$C$13 -> 1.911777408e-21 | BO117: =('Working | Approach E'!BO529-'Working | Approach E'!BP529)*Inputs!$C$13 -> 5.625558743e-23 | BP117: =('Working | Approach E'!BP529-'Working | Approach E'!BQ529)*Inputs!$C$13 -> 1.420429463e-24 | BQ117: =('Working | Approach E'!BQ529-'Working | Approach E'!BR529)*Inputs!$C$13 -> 2.273714139e-26 | BR117: =('Working | Approach E'!BR529-'Working | Approach E'!BS529)*Inputs!$C$13 -> 7.42972142e-28 | BS117: =('Working | Approach E'!BS529-'Working | Approach E'!BT529)*Inputs!$C$13 -> 2.17945605e-29 | BT117: =('Working | Approach E'!BT529-'Working | Approach E'!BU529)*Inputs!$C$13 -> 5.209925662e-31 | BU117: =('Working | Approach E'!BU529-'Working | Approach E'!BV529)*Inputs!$C$13 -> 2.325298546e-32
A118: Opex | C118: 0 | D118: ='Working | Approach E'!D102/'Working | Approach E'!D4*Inputs!D35 -> 51.48849797 | E118: ='Working | Approach E'!E102/'Working | Approach E'!E4*Inputs!E35 -> 53.17997294 | F118: ='Working | Approach E'!F102/'Working | Approach E'!F4*Inputs!F35 -> 54.26251691 | G118: ='Working | Approach E'!G102/'Working | Approach E'!G4*Inputs!G35 -> 55.54803789 | H118: ='Working | Approach E'!H102/'Working | Approach E'!H4*Inputs!H35 -> 57.17185386 | I118: ='Working | Approach E'!I238/'Working | Approach E'!I139*Inputs!I35 -> 58.59269283 | J118: ='Working | Approach E'!J238/'Working | Approach E'!J139*Inputs!J35 -> 61.09607578 | K118: ='Working | Approach E'!K238/'Working | Approach E'!K139*Inputs!K35 -> 62.58457375 | L118: ='Working | Approach E'!L238/'Working | Approach E'!L139*Inputs!L35 -> 64.41136671 | M118: ='Working | Approach E'!M238/'Working | Approach E'!M139*Inputs!M35 -> 66.50879567 | N118: ='Working | Approach E'!N374/'Working | Approach E'!N275*Inputs!N35 -> 67.59133965 | O118: ='Working | Approach E'!O374/'Working | Approach E'!O275*Inputs!O35 -> 69.28281461 | P118: ='Working | Approach E'!P374/'Working | Approach E'!P275*Inputs!P35 -> 71.31258457 | Q118: ='Working | Approach E'!Q374/'Working | Approach E'!Q275*Inputs!Q35 -> 72.25981055 | R118: ='Working | Approach E'!R374/'Working | Approach E'!R275*Inputs!R35 -> 73.20703654 | S118: ='Working | Approach E'!S510/'Working | Approach E'!S411*Inputs!S35 -> 74.7631935 | T118: ='Working | Approach E'!T510/'Working | Approach E'!T411*Inputs!T35 -> 76.18403248 | U118: ='Working | Approach E'!U510/'Working | Approach E'!U411*Inputs!U35 -> 77.19891746 | V118: ='Working | Approach E'!V510/'Working | Approach E'!V411*Inputs!V35 -> 78.89039242 | W118: ='Working | Approach E'!W510/'Working | Approach E'!W411*Inputs!W35 -> 80.61892863 | X118: 0 | Y118: 0 | Z118: 0 | AA118: 0 | AB118: 0 | AC118: 0 | AD118: 0 | AE118: 0 | AF118: 0 | AG118: 0 | AH118: 0 | AI118: 0 | AJ118: 0 | AK118: 0 | AL118: 0 | AM118: 0 | AN118: 0 | AO118: 0 | AP118: 0 | AQ118: 0 | AR118: 0 | AS118: 0 | AT118: 0 | AU118: 0 | AV118: 0 | AW118: 0 | AX118: 0 | AY118: 0 | AZ118: 0 | BA118: 0 | BB118: 0 | BC118: 0 | BD118: 0 | BE118: 0 | BF118: 0 | BG118: 0 | BH118: 0 | BI118: 0 | BJ118: 0 | BK118: 0 | BL118: 0 | BM118: 0 | BN118: 0 | BO118: 0 | BP118: 0 | BQ118: 0 | BR118: 0 | BS118: 0 | BT118: 0 | BU118: 0
A119: Tax payable+ gamma | C119: 0 | D119: ='Working | Approach E'!D103*(D114/'Working | Approach E'!D106) -> 0 | E119: ='Working | Approach E'!E103*(E114/'Working | Approach E'!E106) -> 0 | F119: ='Working | Approach E'!F103*(F114/'Working | Approach E'!F106) -> 0 | G119: ='Working | Approach E'!G103*(G114/'Working | Approach E'!G106) -> 0 | H119: ='Working | Approach E'!H103*(H114/'Working | Approach E'!H106) -> 0 | I119: ='Working | Approach E'!I239*(I114/'Working | Approach E'!I242) -> 0 | J119: ='Working | Approach E'!J239*(J114/'Working | Approach E'!J242) -> 0 | K119: ='Working | Approach E'!K239*(K114/'Working | Approach E'!K242) -> 0 | L119: ='Working | Approach E'!L239*(L114/'Working | Approach E'!L242) -> 0 | M119: ='Working | Approach E'!M239*(M114/'Working | Approach E'!M242) -> 0 | N119: ='Working | Approach E'!N375*(N114/'Working | Approach E'!N378) -> 9.486798857 | O119: ='Working | Approach E'!O375*(O114/'Working | Approach E'!O378) -> 0.4269319441 | P119: ='Working | Approach E'!P375*(P114/'Working | Approach E'!P378) -> 0 | Q119: ='Working | Approach E'!Q375*(Q114/'Working | Approach E'!Q378) -> 12.72631316 | R119: ='Working | Approach E'!R375*(R114/'Working | Approach E'!R378) -> 17.06915837 | S119: ='Working | Approach E'!S511*(S114/'Working | Approach E'!S514) -> 8.40141168 | T119: ='Working | Approach E'!T511*(T114/'Working | Approach E'!T514) -> 12.41410965 | U119: ='Working | Approach E'!U511*(U114/'Working | Approach E'!U514) -> 20.69143186 | V119: ='Working | Approach E'!V511*(V114/'Working | Approach E'!V514) -> 11.15497678 | W119: ='Working | Approach E'!W511*(W114/'Working | Approach E'!W514) -> 12.88405014 | X119: =IFERROR(SUM('Working | Approach E'!X477:X478)*(X114/'Working | Approach E'!X519),0) -> 25.80997377 | Y119: =IFERROR(SUM('Working | Approach E'!Y477:Y478)*(Y114/'Working | Approach E'!Y519),0) -> 22.58450202 | Z119: =IFERROR(SUM('Working | Approach E'!Z477:Z478)*(Z114/'Working | Approach E'!Z519),0) -> 24.43448544 | AA119: =IFERROR(SUM('Working | Approach E'!AA477:AA478)*(AA114/'Working | Approach E'!AA519),0) -> 37.8677923 | AB119: =IFERROR(SUM('Working | Approach E'!AB477:AB478)*(AB114/'Working | Approach E'!AB519),0) -> 40.79643237 | AC119: =IFERROR(SUM('Working | Approach E'!AC477:AC478)*(AC114/'Working | Approach E'!AC519),0) -> 29.10577942 | AD119: =IFERROR(SUM('Working | Approach E'!AD477:AD478)*(AD114/'Working | Approach E'!AD519),0) -> 38.33469745 | AE119: =IFERROR(SUM('Working | Approach E'!AE477:AE478)*(AE114/'Working | Approach E'!AE519),0) -> 49.89454515 | AF119: =IFERROR(SUM('Working | Approach E'!AF477:AF478)*(AF114/'Working | Approach E'!AF519),0) -> 42.08139427 | AG119: =IFERROR(SUM('Working | Approach E'!AG477:AG478)*(AG114/'Working | Approach E'!AG519),0) -> 50.24014827 | AH119: =IFERROR(SUM('Working | Approach E'!AH477:AH478)*(AH114/'Working | Approach E'!AH519),0) -> 28.73177635 | AI119: =IFERROR(SUM('Working | Approach E'!AI477:AI478)*(AI114/'Working | Approach E'!AI519),0) -> 16.86950117 | AJ119: =IFERROR(SUM('Working | Approach E'!AJ477:AJ478)*(AJ114/'Working | Approach E'!AJ519),0) -> 27.78752093 | AK119: =IFERROR(SUM('Working | Approach E'!AK477:AK478)*(AK114/'Working | Approach E'!AK519),0) -> 26.37841837 | AL119: =IFERROR(SUM('Working | Approach E'!AL477:AL478)*(AL114/'Working | Approach E'!AL519),0) -> 29.34847568 | AM119: =IFERROR(SUM('Working | Approach E'!AM477:AM478)*(AM114/'Working | Approach E'!AM519),0) -> 30.53110704 | AN119: =IFERROR(SUM('Working | Approach E'!AN477:AN478)*(AN114/'Working | Approach E'!AN519),0) -> 25.7572342 | AO119: =IFERROR(SUM('Working | Approach E'!AO477:AO478)*(AO114/'Working | Approach E'!AO519),0) -> 26.7894619 | AP119: =IFERROR(SUM('Working | Approach E'!AP477:AP478)*(AP114/'Working | Approach E'!AP519),0) -> 26.32919427 | AQ119: =IFERROR(SUM('Working | Approach E'!AQ477:AQ478)*(AQ114/'Working | Approach E'!AQ519),0) -> 24.88573532 | AR119: =IFERROR(SUM('Working | Approach E'!AR477:AR478)*(AR114/'Working | Approach E'!AR519),0) -> 26.42381286 | AS119: =IFERROR(SUM('Working | Approach E'!AS477:AS478)*(AS114/'Working | Approach E'!AS519),0) -> 23.76400724 | AT119: =IFERROR(SUM('Working | Approach E'!AT477:AT478)*(AT114/'Working | Approach E'!AT519),0) -> 20.86596013 | AU119: =IFERROR(SUM('Working | Approach E'!AU477:AU478)*(AU114/'Working | Approach E'!AU519),0) -> 19.05706754 | AV119: =IFERROR(SUM('Working | Approach E'!AV477:AV478)*(AV114/'Working | Approach E'!AV519),0) -> 76.67562976 | AW119: =IFERROR(SUM('Working | Approach E'!AW477:AW478)*(AW114/'Working | Approach E'!AW519),0) -> 13.35610476 | AX119: =IFERROR(SUM('Working | Approach E'!AX477:AX478)*(AX114/'Working | Approach E'!AX519),0) -> 9.318641662 | AY119: =IFERROR(SUM('Working | Approach E'!AY477:AY478)*(AY114/'Working | Approach E'!AY519),0) -> 5.139801041 | AZ119: =IFERROR(SUM('Working | Approach E'!AZ477:AZ478)*(AZ114/'Working | Approach E'!AZ519),0) -> 0.6659066777 | BA119: =IFERROR(SUM('Working | Approach E'!BA477:BA478)*(BA114/'Working | Approach E'!BA519),0) -> 0 | BB119: =IFERROR(SUM('Working | Approach E'!BB477:BB478)*(BB114/'Working | Approach E'!BB519),0) -> 0 | BC119: =IFERROR(SUM('Working | Approach E'!BC477:BC478)*(BC114/'Working | Approach E'!BC519),0) -> 0 | BD119: =IFERROR(SUM('Working | Approach E'!BD477:BD478)*(BD114/'Working | Approach E'!BD519),0) -> 0 | BE119: =IFERROR(SUM('Working | Approach E'!BE477:BE478)*(BE114/'Working | Approach E'!BE519),0) -> 0 | BF119: =IFERROR(SUM('Working | Approach E'!BF477:BF478)*(BF114/'Working | Approach E'!BF519),0) -> 0 | BG119: =IFERROR(SUM('Working | Approach E'!BG477:BG478)*(BG114/'Working | Approach E'!BG519),0) -> 0 | BH119: =IFERROR(SUM('Working | Approach E'!BH477:BH478)*(BH114/'Working | Approach E'!BH519),0) -> 0 | BI119: =IFERROR(SUM('Working | Approach E'!BI477:BI478)*(BI114/'Working | Approach E'!BI519),0) -> 0 | BJ119: =IFERROR(SUM('Working | Approach E'!BJ477:BJ478)*(BJ114/'Working | Approach E'!BJ519),0) -> 0 | BK119: =IFERROR(SUM('Working | Approach E'!BK477:BK478)*(BK114/'Working | Approach E'!BK519),0) -> 0 | BL119: =IFERROR(SUM('Working | Approach E'!BL477:BL478)*(BL114/'Working | Approach E'!BL519),0) -> 0 | BM119: =IFERROR(SUM('Working | Approach E'!BM477:BM478)*(BM114/'Working | Approach E'!BM519),0) -> 0 | BN119: =IFERROR(SUM('Working | Approach E'!BN477:BN478)*(BN114/'Working | Approach E'!BN519),0) -> 0 | BO119: =IFERROR(SUM('Working | Approach E'!BO477:BO478)*(BO114/'Working | Approach E'!BO519),0) -> 0 | BP119: =IFERROR(SUM('Working | Approach E'!BP477:BP478)*(BP114/'Working | Approach E'!BP519),0) -> 0 | BQ119: =IFERROR(SUM('Working | Approach E'!BQ477:BQ478)*(BQ114/'Working | Approach E'!BQ519),0) -> 0 | BR119: =IFERROR(SUM('Working | Approach E'!BR477:BR478)*(BR114/'Working | Approach E'!BR519),0) -> 0 | BS119: =IFERROR(SUM('Working | Approach E'!BS477:BS478)*(BS114/'Working | Approach E'!BS519),0) -> 0 | BT119: =IFERROR(SUM('Working | Approach E'!BT477:BT478)*(BT114/'Working | Approach E'!BT519),0) -> 0 | BU119: =IFERROR(SUM('Working | Approach E'!BU477:BU478)*(BU114/'Working | Approach E'!BU519),0) -> 0
A120: Returns achieved
A121: Post-tax CF to Equity | B121: =IRR(C121:BU121) -> 0.05007939148 | C121: =C114-C115-C116-C117-C118-C119 -> -2400 | D121: =D114-D115-D116-D117-D118-D119 -> 48.82368233 | E121: =E114-E115-E116-E117-E118-E119 -> 69.99264341 | F121: =F114-F115-F116-F117-F118-F119 -> 30.97217184 | G121: 54.14829154 | H121: 88.27835455 | I121: 69.0563861 | J121: 128.1774174 | K121: 27.41743065 | L121: 27.83535178 | M121: 21.21266158 | N121: 106.9316098 | O121: 148.8115558 | P121: 160.4179697 | Q121: 49.36145243 | R121: 28.19942943 | S121: 100.7146922 | T121: 96.53700358 | U121: 68.04148154 | V121: 141.0011801 | W121: 154.7511092 | X121: 426.7657848 | Y121: 382.0371934 | Z121: 318.2178139 | AA121: 387.7927535 | AB121: 455.5962114 | AC121: 316.1394415 | AD121: 313.5680741 | AE121: 429.6752063 | AF121: 323.6403563 | AG121: 331.5960626 | AH121: 241.8729063 | AI121: 118.4065809 | AJ121: 196.6204075 | AK121: 163.3289162 | AL121: 170.1519151 | AM121: 196.708299 | AN121: 149.2445193 | AO121: 151.5115311 | AP121: 149.0287643 | AQ121: 120.0408451 | AR121: 137.5840198 | AS121: 126.9525174 | AT121: 105.9476379 | AU121: 111.774805 | AV121: 75.71817557 | AW121: 78.24118206 | AX121: 63.45167341 | AY121: 43.76216615 | AZ121: 32.88823344 | BA121: -117.8965422 | BB121: -4.811171386 | BC121: -0.06391630827 | BD121: -0.0008312252744 | BE121: -1.770825014e-05 | BF121: -3.384043989e-07 | BG121: -4.470180613e-09 | BH121: -9.774929507e-11 | BI121: -1.958825598e-12 | BJ121: 2.566638406e-13 | BK121: 2.37999976e-13 | BL121: 2.226325525e-13 | BM121: 3.028660968e-13 | BN121: 3.05202157e-13 | BO121: 1.569532771e-13 | BP121: 2.033692853e-13 | BQ121: =BQ114-BQ115-BQ116-BQ117-BQ118-BQ119 -> 2.962403164e-13 | BR121: =BR114-BR115-BR116-BR117-BR118-BR119 -> 1.349832976e-13 | BS121: =BS114-BS115-BS116-BS117-BS118-BS119 -> 1.749035777e-13 | BT121: =BT114-BT115-BT116-BT117-BT118-BT119 -> 2.323070293e-13 | BU121: =BU114-BU115-BU116-BU117-BU118-BU119 -> 3.413325583e-14
A122: Real post-tax CF to Equity | B122: =IRR(C122:BU122) -> 0.025502724 | C122: =C121/Inputs!C35 -> -2400 | D122: =D121/Inputs!D35 -> 47.41222239 | E122: =E121/Inputs!E35 -> 65.80733267 | F122: =F121/Inputs!F35 -> 28.53919575 | G122: =G121/Inputs!G35 -> 48.74005779 | H122: =H121/Inputs!H35 -> 77.20438344 | I122: =I121/Inputs!I35 -> 58.92917936 | J122: =J121/Inputs!J35 -> 104.8982408 | K122: =K121/Inputs!K35 -> 21.90430405 | L122: =L121/Inputs!L35 -> 21.60748421 | M122: =M121/Inputs!M35 -> 15.94726033 | N122: =N121/Inputs!N35 -> 79.10156119 | O122: =O121/Inputs!O35 -> 107.3942771 | P122: =P121/Inputs!P35 -> 112.4752178 | Q122: =Q121/Inputs!Q35 -> 34.15553684 | R122: =R121/Inputs!R35 -> 19.26005393 | S122: =S121/Inputs!S35 -> 67.35579865 | T122: =T121/Inputs!T35 -> 63.357767 | U122: =U121/Inputs!U35 -> 44.06893502 | V122: =V121/Inputs!V35 -> 89.36524191 | W122: =W121/Inputs!W35 -> 95.97690758 | X122: =X121/Inputs!X35 -> 261.2012924 | Y122: =Y121/Inputs!Y35 -> 229.4643707 | Z122: =Z121/Inputs!Z35 -> 187.1539882 | AA122: =AA121/Inputs!AA35 -> 225.1221768 | AB122: =AB121/Inputs!AB35 -> 261.0165544 | AC122: =AC121/Inputs!AC35 -> 175.9648712 | AD122: =AD121/Inputs!AD35 -> 170.2725595 | AE122: =AE121/Inputs!AE35 -> 229.5837522 | AF122: =AF121/Inputs!AF35 -> 167.4738316 | AG122: =AG121/Inputs!AG35 -> 166.7241206 | AH122: =AH121/Inputs!AH35 -> 118.7195689 | AI122: =AI121/Inputs!AI35 -> 55.73667666 | AJ122: =AJ121/Inputs!AJ35 -> 90.30933377 | AK122: =AK121/Inputs!AK35 -> 72.88758735 | AL122: =AL121/Inputs!AL35 -> 74.17516948 | AM122: =AM121/Inputs!AM35 -> 84.04126221 | AN122: =AN121/Inputs!AN35 -> 61.73484836 | AO122: =AO121/Inputs!AO35 -> 60.86077283 | AP122: =AP121/Inputs!AP35 -> 58.13285575 | AQ122: =AQ121/Inputs!AQ35 -> 45.33594915 | AR122: =AR121/Inputs!AR35 -> 50.9248596 | AS122: =AS121/Inputs!AS35 -> 45.9022923 | AT122: =AT121/Inputs!AT35 -> 37.21952136 | AU122: =AU121/Inputs!AU35 -> 38.31441892 | AV122: =AV121/Inputs!AV35 -> 24.8913588 | AW122: =AW121/Inputs!AW35 -> 25.10902706 | AX122: =AX121/Inputs!AX35 -> 19.78528663 | AY122: =AY121/Inputs!AY35 -> 13.21543635 | AZ122: =AZ121/Inputs!AZ35 -> 9.772625864 | BA122: =BA121/Inputs!BA35 -> -34.17726656 | BB122: =BB121/Inputs!BB35 -> -1.355022265 | BC122: =BC121/Inputs!BC35 -> -0.01776546766 | BD122: =BD121/Inputs!BD35 -> -0.0002280487487 | BE122: =BE121/Inputs!BE35 -> -4.75718e-06 | BF122: =BF121/Inputs!BF35 -> -8.921416676e-08 | BG122: =BG121/Inputs!BG35 -> -1.16298909e-09 | BH122: =BH121/Inputs!BH35 -> -2.488578232e-11 | BI122: =BI121/Inputs!BI35 -> -4.880007941e-13 | BJ122: =BJ121/Inputs!BJ35 -> 6.310186463e-14 | BK122: =BK121/Inputs!BK35 -> 5.742199867e-14 | BL122: =BL121/Inputs!BL35 -> 5.259628134e-14 | BM122: =BM121/Inputs!BM35 -> 7.062541727e-14 | BN122: =BN121/Inputs!BN35 -> 7.023722149e-14 | BO122: =BO121/Inputs!BO35 -> 3.509210806e-14 | BP122: =BP121/Inputs!BP35 -> 4.43598393e-14 | BQ122: =BQ121/Inputs!BQ35 -> 6.358238203e-14 | BR122: =BR121/Inputs!BR35 -> 2.805796025e-14 | BS122: =BS121/Inputs!BS35 -> 3.5324786e-14 | BT122: =BT121/Inputs!BT35 -> 4.580250333e-14 | BU122: =BU121/Inputs!BU35 -> 6.454085602e-15
A123: Nominal cash flows to assets | B123: =IRR(C123:BU123) -> 0.047659668 | C123: =C114-C115-C118 -> -6000 | D123: =D114-D115-D118 -> 96.85920582 | E123: 108.2277034 | F123: 117.435473 | G123: 129.5909927 | H123: 143.7700996 | I123: 143.8358089 | J123: 130.9761209 | K123: 109.3492752 | L123: 90.50419193 | M123: 70.42168686 | N123: 243.3291613 | O123: 236.7153109 | P123: 229.3175082 | Q123: 213.0505882 | R123: 199.1620067 | S123: 223.305669 | T123: 237.3562436 | U123: 249.8594168 | V123: 269.1624953 | W123: 287.2100143 | X123: 969.5990109 | Y123: 909.9327322 | Z123: 893.2873113 | AA123: 970.9027557 | AB123: 963.1425246 | AC123: 838.7071115 | AD123: 885.589521 | AE123: 950.6351778 | AF123: 858.9705798 | AG123: 897.8799764 | AH123: 497.8363379 | AI123: 408.6934339 | AJ123: 481.2236881 | AK123: 453.5358334 | AL123: 461.9464292 | AM123: 456.3301035 | AN123: 403.3513193 | AO123: 398.7178544 | AP123: 382.502676 | AQ123: 358.7777557 | AR123: 359.9351066 | AS123: 327.3029504 | AT123: 293.5056049 | AU123: 269.6967366 | AV123: 288.7018 | AW123: 206.9003463 | AX123: 167.7512388 | AY123: 128.0132066 | AZ123: 86.63198134 | BA123: 43.77080775 | BB123: 1.250476268e-13 | BC123: 2.526983256e-13 | BD123: 2.57425931e-13 | BE123: 1.957960055e-13 | BF123: 2.183089038e-13 | BG123: 2.696386659e-13 | BH123: 2.009733675e-13 | BI123: 2.053768155e-13 | BJ123: 2.853351241e-13 | BK123: 2.385436616e-13 | BL123: 2.226442017e-13 | BM123: 3.028662494e-13 | BN123: 3.05202159e-13 | BO123: 1.569532771e-13 | BP123: =BP114-BP115-BP118 -> 2.033692853e-13 | BQ123: 2.962403164e-13 | BR123: 1.349832976e-13 | BS123: 1.749035777e-13 | BT123: 2.323070293e-13 | BU123: 3.413325583e-14
A124: Nominal vanilla WACC | B124: =IRR(C124:BU124) -> 0.04580000272 | C124: =C123-C119 -> -6000 | D124: =D123-D119 -> 96.85920582 | E124: 108.2277034 | F124: 117.435473 | G124: 129.5909927 | H124: 143.7700996 | I124: 143.8358089 | J124: 130.9761209 | K124: 109.3492752 | L124: 90.50419193 | M124: 70.42168686 | N124: 233.8423624 | O124: 236.288379 | P124: 229.3175082 | Q124: 200.3242751 | R124: 182.0928483 | S124: 214.9042573 | T124: 224.9421339 | U124: 229.167985 | V124: 258.0075185 | W124: 274.3259641 | X124: 943.7890371 | Y124: 887.3482301 | Z124: 868.8528259 | AA124: 933.0349634 | AB124: 922.3460922 | AC124: 809.6013321 | AD124: 847.2548236 | AE124: 900.7406327 | AF124: 816.8891855 | AG124: 847.6398282 | AH124: 469.1045616 | AI124: 391.8239327 | AJ124: 453.4361671 | AK124: 427.1574151 | AL124: 432.5979536 | AM124: 425.7989964 | AN124: 377.5940852 | AO124: 371.9283925 | AP124: 356.1734818 | AQ124: 333.8920204 | AR124: 333.5112938 | AS124: 303.5389432 | AT124: 272.6396448 | AU124: 250.639669 | AV124: 212.0261702 | AW124: 193.5442416 | AX124: 158.4325971 | AY124: 122.8734055 | AZ124: 85.96607466 | BA124: 43.77080775 | BB124: 1.250476268e-13 | BC124: 2.526983256e-13 | BD124: 2.57425931e-13 | BE124: 1.957960055e-13 | BF124: 2.183089038e-13 | BG124: 2.696386659e-13 | BH124: 2.009733675e-13 | BI124: 2.053768155e-13 | BJ124: 2.853351241e-13 | BK124: 2.385436616e-13 | BL124: 2.226442017e-13 | BM124: 3.028662494e-13 | BN124: 3.05202159e-13 | BO124: 1.569532771e-13 | BP124: =BP123-BP119 -> 2.033692853e-13 | BQ124: 2.962403164e-13 | BR124: 1.349832976e-13 | BS124: 1.749035777e-13 | BT124: 2.323070293e-13 | BU124: 3.413325583e-14
A125: Real WACC (real) | B125: =IRR(C125:BU125) -> 0.02137920647 | C125: =C124/Inputs!C35 -> -6000 | D125: =D124/Inputs!D35 -> 94.05907109 | E125: =E124/Inputs!E35 -> 101.7560723 | F125: =F124/Inputs!F35 -> 108.2104919 | G125: =G124/Inputs!G35 -> 116.647678 | H125: =H124/Inputs!H35 -> 125.7350338 | I125: =I124/Inputs!I35 -> 122.7421049 | J125: =J124/Inputs!J35 -> 107.1886526 | K125: =K124/Inputs!K35 -> 87.36120472 | L125: =L124/Inputs!L35 -> 70.25482966 | M125: =M124/Inputs!M35 -> 52.94163437 | N125: =N124/Inputs!N35 -> 172.9824883 | O125: =O124/Inputs!O35 -> 170.5245235 | P125: =P124/Inputs!P35 -> 160.7833383 | Q125: =Q124/Inputs!Q35 -> 138.6138945 | R125: =R124/Inputs!R35 -> 124.3684057 | S125: =S124/Inputs!S35 -> 143.7232997 | T125: =T124/Inputs!T35 -> 147.6307611 | U125: =U124/Inputs!U35 -> 148.4269421 | V125: =V124/Inputs!V35 -> 163.5227754 | W125: =W124/Inputs!W35 -> 170.1374409 | X125: =X124/Inputs!X35 -> 577.6445184 | Y125: =Y124/Inputs!Y35 -> 532.9711523 | Z125: =Z124/Inputs!Z35 -> 510.9999013 | AA125: =AA124/Inputs!AA35 -> 541.6472076 | AB125: =AB124/Inputs!AB35 -> 528.4231803 | AC125: =AC124/Inputs!AC35 -> 450.6283475 | AD125: =AD124/Inputs!AD35 -> 460.0731366 | AE125: =AE124/Inputs!AE35 -> 481.2830975 | AF125: =AF124/Inputs!AF35 -> 422.7147796 | AG125: =AG124/Inputs!AG35 -> 426.1872226 | AH125: =AH124/Inputs!AH35 -> 230.2527066 | AI125: =AI124/Inputs!AI35 -> 184.4404567 | AJ125: =AJ124/Inputs!AJ35 -> 208.2668767 | AK125: =AK124/Inputs!AK35 -> 190.6243801 | AL125: =AL124/Inputs!AL35 -> 188.5845746 | AM125: =AM124/Inputs!AM35 -> 181.9175159 | AN125: =AN124/Inputs!AN35 -> 156.1914213 | AO125: =AO124/Inputs!AO35 -> 149.400176 | AP125: =AP124/Inputs!AP35 -> 138.9354715 | AQ125: =AQ124/Inputs!AQ35 -> 126.101342 | AR125: =AR124/Inputs!AR35 -> 123.4446837 | AS125: =AS124/Inputs!AS35 -> 109.7507445 | AT125: =AT124/Inputs!AT35 -> 95.77860618 | AU125: =AU124/Inputs!AU35 -> 85.91482913 | AV125: =AV124/Inputs!AV35 -> 69.7008273 | AW125: =AW124/Inputs!AW35 -> 62.11188879 | AX125: =AX124/Inputs!AX35 -> 49.40191765 | AY125: =AY124/Inputs!AY35 -> 37.10569682 | AZ125: =AZ124/Inputs!AZ35 -> 25.54452449 | BA125: =BA124/Inputs!BA35 -> 12.68880779 | BB125: =BB124/Inputs!BB35 -> 3.521851642e-14 | BC125: =BC124/Inputs!BC35 -> 7.023722195e-14 | BD125: =BD124/Inputs!BD35 -> 7.062545287e-14 | BE125: =BE124/Inputs!BE35 -> 5.259903344e-14 | BF125: =BF124/Inputs!BF35 -> 5.75531731e-14 | BG125: =BG124/Inputs!BG35 -> 7.015081802e-14 | BH125: =BH124/Inputs!BH35 -> 5.116537642e-14 | BI125: =BI124/Inputs!BI35 -> 5.116537642e-14 | BJ125: =BJ124/Inputs!BJ35 -> 7.015081802e-14 | BK125: =BK124/Inputs!BK35 -> 5.75531731e-14 | BL125: =BL124/Inputs!BL35 -> 5.259903344e-14 | BM125: =BM124/Inputs!BM35 -> 7.062545287e-14 | BN125: =BN124/Inputs!BN35 -> 7.023722195e-14 | BO125: =BO124/Inputs!BO35 -> 3.509210808e-14 | BP125: =BP124/Inputs!BP35 -> 4.43598393e-14 | BQ125: =BQ124/Inputs!BQ35 -> 6.358238203e-14 | BR125: =BR124/Inputs!BR35 -> 2.805796025e-14 | BS125: =BS124/Inputs!BS35 -> 3.5324786e-14 | BT125: =BT124/Inputs!BT35 -> 4.580250333e-14 | BU125: =BU124/Inputs!BU35 -> 6.454085602e-15
A126: ="Nominal NPV at "&ROUND((GEOMEAN(1+Inputs!$D$15:$W$15)-1)*100,2)&"%" -> Nominal NPV at 4.58% | B126: =NPV((GEOMEAN(1+Inputs!$D$15:$W$15)-1),D124:BU124)+C124 -> 0.000349055058
A127: ="Real NPV at "&ROUND((GEOMEAN(1+Inputs!$D$20:$W$20)-1)*100,2)&"%" -> Real NPV at 2.11% | B127: =NPV((GEOMEAN(1+Inputs!$D$20:$W$20)-1),D125:BU125)+C125 -> 34.82389054
A129: =RIGHT(Inputs!A8,LEN(Inputs!A8)-3)&" ("&Inputs!B8&")" -> Approach F (nominal - indexed)
A130: Revenue | C130: 0 | D130: ='Working | Approach F'!D111 -> 392.5987111 | E130: ='Working | Approach F'!E111 -> 412.650308 | F130: ='Working | Approach F'!F111 -> 428.4788707 | G130: ='Working | Approach F'!G111 -> 446.3685774 | H130: ='Working | Approach F'!H111 -> 467.5225694 | I130: ='Working | Approach F'!I247 -> 481.8720135 | J130: ='Working | Approach F'!J247 -> 512.2980622 | K130: ='Working | Approach F'!K247 -> 535.0542853 | L130: ='Working | Approach F'!L247 -> 561.4540429 | M130: ='Working | Approach F'!M247 -> 591.0877161 | N130: ='Working | Approach F'!N383 -> 598.1417499 | O130: ='Working | Approach F'!O383 -> 627.3089883 | P130: ='Working | Approach F'!P383 -> 660.6403407 | Q130: ='Working | Approach F'!Q383 -> 684.9181205 | R130: ='Working | Approach F'!R383 -> 709.9660625 | S130: ='Working | Approach F'!S519 -> 751.3001123 | T130: ='Working | Approach F'!T519 -> 783.9201723 | U130: ='Working | Approach F'!U519 -> 813.3947555 | V130: ='Working | Approach F'!V519 -> 851.1312725 | W130: ='Working | Approach F'!W519 -> 890.6185319 | X130: ='Working | Approach F'!X551 -> 864.612642 | Y130: ='Working | Approach F'!Y551 -> 871.6113332 | Z130: ='Working | Approach F'!Z551 -> 880.1340753 | AA130: ='Working | Approach F'!AA551 -> 881.1906974 | AB130: ='Working | Approach F'!AB551 -> 881.955908 | AC130: ='Working | Approach F'!AC551 -> 913.1517442 | AD130: ='Working | Approach F'!AD551 -> 923.6416639 | AE130: ='Working | Approach F'!AE551 -> 925.844712 | AF130: ='Working | Approach F'!AF551 -> 942.4910646 | AG130: ='Working | Approach F'!AG551 -> 955.866647 | AH130: ='Working | Approach F'!AH551 -> 519.1606909 | AI130: ='Working | Approach F'!AI551 -> 515.0848279 | AJ130: ='Working | Approach F'!AJ551 -> 504.1318513 | AK130: ='Working | Approach F'!AK551 -> 494.0128541 | AL130: ='Working | Approach F'!AL551 -> 479.8361486 | AM130: ='Working | Approach F'!AM551 -> 451.2597025 | AN130: ='Working | Approach F'!AN551 -> 438.1044481 | AO130: ='Working | Approach F'!AO551 -> 421.8912271 | AP130: ='Working | Approach F'!AP551 -> 403.9141923 | AQ130: ='Working | Approach F'!AQ551 -> 385.1565587 | AR130: ='Working | Approach F'!AR551 -> 349.2010934 | AS130: ='Working | Approach F'!AS551 -> 322.7370621 | AT130: ='Working | Approach F'!AT551 -> 296.1211706 | AU130: ='Working | Approach F'!AU551 -> 265.9181165 | AV130: ='Working | Approach F'!AV551 -> 301.6902367 | AW130: ='Working | Approach F'!AW551 -> 196.3768021 | AX130: ='Working | Approach F'!AX551 -> 160.9887972 | AY130: ='Working | Approach F'!AY551 -> 123.0778491 | AZ130: ='Working | Approach F'!AZ551 -> 80.87437497 | BA130: ='Working | Approach F'!BA551 -> 41.66680635 | BB130: ='Working | Approach F'!BB551 -> 2.271505113e-13 | BC130: ='Working | Approach F'!BC551 -> 2.315789436e-13 | BD130: ='Working | Approach F'!BD551 -> 2.346146226e-13 | BE130: ='Working | Approach F'!BE551 -> 2.396018096e-13 | BF130: ='Working | Approach F'!BF551 -> 2.441553282e-13 | BG130: ='Working | Approach F'!BG551 -> 2.560522598e-13 | BH130: ='Working | Approach F'!BH551 -> 2.616625197e-13 | BI130: ='Working | Approach F'!BI551 -> 2.673957037e-13 | BJ130: ='Working | Approach F'!BJ551 -> 2.709578134e-13 | BK130: ='Working | Approach F'!BK551 -> 2.761072379e-13 | BL130: ='Working | Approach F'!BL551 -> 2.868724217e-13 | BM130: ='Working | Approach F'!BM551 -> 2.906329216e-13 | BN130: ='Working | Approach F'!BN551 -> 2.944933209e-13 | BO130: ='Working | Approach F'!BO551 -> 3.031210549e-13 | BP130: ='Working | Approach F'!BP551 -> 3.107066669e-13 | BQ130: ='Working | Approach F'!BQ551 -> 3.214023042e-13 | BR130: ='Working | Approach F'!BR551 -> 3.318681356e-13 | BS130: ='Working | Approach F'!BS551 -> 3.415550973e-13 | BT130: ='Working | Approach F'!BT551 -> 3.49876484e-13 | BU130: ='Working | Approach F'!BU551 -> 3.648250174e-13
A131: Capex | C131: ='Working | Approach F'!D121 -> 6000 | D131: ='Working | Approach F'!D122 -> 205.9539919 | E131: ='Working | Approach F'!E122 -> 219.8105548 | F131: ='Working | Approach F'!F122 -> 231.7612389 | G131: ='Working | Approach F'!G122 -> 245.1602366 | H131: ='Working | Approach F'!H122 -> 260.7378155 | I131: ='Working | Approach F'!I258 -> 276.1249466 | J131: ='Working | Approach F'!J258 -> 297.5198472 | K131: ='Working | Approach F'!K258 -> 314.9273392 | L131: ='Working | Approach F'!L258 -> 334.9238066 | M131: ='Working | Approach F'!M258 -> 357.3576036 | N131: ='Working | Approach F'!N394 -> 375.2800144 | O131: ='Working | Approach F'!O394 -> 397.4937864 | P131: ='Working | Approach F'!P394 -> 422.7770826 | Q131: ='Working | Approach F'!Q394 -> 442.6724747 | R131: ='Working | Approach F'!R394 -> 463.424474 | S131: ='Working | Approach F'!S530 -> 489.0513049 | T131: ='Working | Approach F'!T530 -> 514.957009 | U131: ='Working | Approach F'!U530 -> 539.2109048 | V131: ='Working | Approach F'!V530 -> 569.3928532 | W131: ='Working | Approach F'!W530 -> 601.2642148 | X131: 0 | Y131: 0 | Z131: 0 | AA131: 0 | AB131: 0 | AC131: 0 | AD131: 0 | AE131: 0 | AF131: 0 | AG131: 0 | AH131: 0 | AI131: 0 | AJ131: 0 | AK131: 0 | AL131: 0 | AM131: 0 | AN131: 0 | AO131: 0 | AP131: 0 | AQ131: 0 | AR131: 0 | AS131: 0 | AT131: 0 | AU131: 0 | AV131: 0 | AW131: 0 | AX131: 0 | AY131: 0 | AZ131: 0 | BA131: 0 | BB131: 0 | BC131: 0 | BD131: 0 | BE131: 0 | BF131: 0 | BG131: 0 | BH131: 0 | BI131: 0 | BJ131: 0 | BK131: 0 | BL131: 0 | BM131: 0 | BN131: 0 | BO131: 0 | BP131: 0 | BQ131: 0 | BR131: 0 | BS131: 0 | BT131: 0 | BU131: 0
A132: Interest Payments | C132: 0 | D132: =('Working | Approach F'!D121*Inputs!$C$13)*Inputs!D13 -> 154.8 | E132: =('Working | Approach F'!E121*Inputs!$C$13)*Inputs!E13 -> 159.8854139 | F132: =('Working | Approach F'!F121*Inputs!$C$13)*Inputs!F13 -> 163.1400788 | G132: =('Working | Approach F'!G121*Inputs!$C$13)*Inputs!G13 -> 167.0049934 | H132: =('Working | Approach F'!H121*Inputs!$C$13)*Inputs!H13 -> 171.8869908 | I132: =('Working | Approach F'!I257*Inputs!$C$13)*Inputs!I13 -> 176.1587385 | J132: =('Working | Approach F'!J257*Inputs!$C$13)*Inputs!J13 -> 183.8288879 | K132: =('Working | Approach F'!K257*Inputs!$C$13)*Inputs!K13 -> 188.4574321 | L132: =('Working | Approach F'!L257*Inputs!$C$13)*Inputs!L13 -> 194.1118813 | M132: =('Working | Approach F'!M257*Inputs!$C$13)*Inputs!M13 -> 200.5907623 | N132: =('Working | Approach F'!N393*Inputs!$C$13)*Inputs!N13 -> 204.0188749 | O132: =('Working | Approach F'!O393*Inputs!$C$13)*Inputs!O13 -> 209.6407583 | P132: =('Working | Approach F'!P393*Inputs!$C$13)*Inputs!P13 -> 216.3118038 | Q132: =('Working | Approach F'!Q393*Inputs!$C$13)*Inputs!Q13 -> 219.7297467 | R132: =('Working | Approach F'!R393*Inputs!$C$13)*Inputs!R13 -> 223.1620659 | S132: =('Working | Approach F'!S529*Inputs!$C$13)*Inputs!S13 -> 228.4650088 | T132: =('Working | Approach F'!T529*Inputs!$C$13)*Inputs!T13 -> 233.1639693 | U132: =('Working | Approach F'!U529*Inputs!$C$13)*Inputs!U13 -> 236.6339391 | V132: =('Working | Approach F'!V529*Inputs!$C$13)*Inputs!V13 -> 242.1874572 | W132: =('Working | Approach F'!W529*Inputs!$C$13)*Inputs!W13 -> 247.8707351 | X132: =('Working | Approach F'!X529*Inputs!$C$13)*Inputs!$W$13 -> 251.5578035 | Y132: =('Working | Approach F'!Y529*Inputs!$C$13)*Inputs!$W$13 -> 240.3342021 | Z132: =('Working | Approach F'!Z529*Inputs!$C$13)*Inputs!$W$13 -> 229.0706677 | AA132: =('Working | Approach F'!AA529*Inputs!$C$13)*Inputs!$W$13 -> 215.3247403 | AB132: =('Working | Approach F'!AB529*Inputs!$C$13)*Inputs!$W$13 -> 201.051036 | AC132: =('Working | Approach F'!AC529*Inputs!$C$13)*Inputs!$W$13 -> 189.4134656 | AD132: =('Working | Approach F'!AD529*Inputs!$C$13)*Inputs!$W$13 -> 176.2228153 | AE132: =('Working | Approach F'!AE529*Inputs!$C$13)*Inputs!$W$13 -> 160.74816 | AF132: =('Working | Approach F'!AF529*Inputs!$C$13)*Inputs!$W$13 -> 147.2178913 | AG132: =('Working | Approach F'!AG529*Inputs!$C$13)*Inputs!$W$13 -> 132.3189177 | AH132: =('Working | Approach F'!AH529*Inputs!$C$13)*Inputs!$W$13 -> 115.9051412 | AI132: =('Working | Approach F'!AI529*Inputs!$C$13)*Inputs!$W$13 -> 111.0296289 | AJ132: =('Working | Approach F'!AJ529*Inputs!$C$13)*Inputs!$W$13 -> 104.0853258 | AK132: =('Working | Approach F'!AK529*Inputs!$C$13)*Inputs!$W$13 -> 97.57118256 | AL132: =('Working | Approach F'!AL529*Inputs!$C$13)*Inputs!$W$13 -> 90.49716613 | AM132: =('Working | Approach F'!AM529*Inputs!$C$13)*Inputs!$W$13 -> 83.15133464 | AN132: =('Working | Approach F'!AN529*Inputs!$C$13)*Inputs!$W$13 -> 76.92064802 | AO132: =('Working | Approach F'!AO529*Inputs!$C$13)*Inputs!$W$13 -> 70.51356243 | AP132: =('Working | Approach F'!AP529*Inputs!$C$13)*Inputs!$W$13 -> 64.21407358 | AQ132: =('Working | Approach F'!AQ529*Inputs!$C$13)*Inputs!$W$13 -> 58.25857095 | AR132: =('Working | Approach F'!AR529*Inputs!$C$13)*Inputs!$W$13 -> 51.75085009 | AS132: =('Working | Approach F'!AS529*Inputs!$C$13)*Inputs!$W$13 -> 45.69493571 | AT132: =('Working | Approach F'!AT529*Inputs!$C$13)*Inputs!$W$13 -> 40.22736379 | AU132: =('Working | Approach F'!AU529*Inputs!$C$13)*Inputs!$W$13 -> 34.9502019 | AV132: =('Working | Approach F'!AV529*Inputs!$C$13)*Inputs!$W$13 -> 30.74411121 | AW132: =('Working | Approach F'!AW529*Inputs!$C$13)*Inputs!$W$13 -> 26.42583516 | AX132: =('Working | Approach F'!AX529*Inputs!$C$13)*Inputs!$W$13 -> 22.82002069 | AY132: =('Working | Approach F'!AY529*Inputs!$C$13)*Inputs!$W$13 -> 19.92312168 | AZ132: =('Working | Approach F'!AZ529*Inputs!$C$13)*Inputs!$W$13 -> 17.40937235 | BA132: =('Working | Approach F'!BA529*Inputs!$C$13)*Inputs!$W$13 -> 15.87796682 | BB132: =('Working | Approach F'!BB529*Inputs!$C$13)*Inputs!$W$13 -> 0.4651748093 | BC132: =('Working | Approach F'!BC529*Inputs!$C$13)*Inputs!$W$13 -> 0.006178792533 | BD132: =('Working | Approach F'!BD529*Inputs!$C$13)*Inputs!$W$13 -> 8.099540774e-05 | BE132: =('Working | Approach F'!BE529*Inputs!$C$13)*Inputs!$W$13 -> 1.721713843e-06 | BF132: =('Working | Approach F'!BF529*Inputs!$C$13)*Inputs!$W$13 -> 3.272035357e-08 | BG132: =('Working | Approach F'!BG529*Inputs!$C$13)*Inputs!$W$13 -> 4.358839286e-10 | BH132: =('Working | Approach F'!BH529*Inputs!$C$13)*Inputs!$W$13 -> 9.550480469e-12 | BI132: =('Working | Approach F'!BI529*Inputs!$C$13)*Inputs!$W$13 -> 2.092568026e-13 | BJ132: =('Working | Approach F'!BJ529*Inputs!$C$13)*Inputs!$W$13 -> 2.787612823e-15 | BK132: =('Working | Approach F'!BK529*Inputs!$C$13)*Inputs!$W$13 -> 5.297725727e-17 | BL132: =('Working | Approach F'!BL529*Inputs!$C$13)*Inputs!$W$13 -> 1.126133935e-18 | BM132: =('Working | Approach F'!BM529*Inputs!$C$13)*Inputs!$W$13 -> 1.476205532e-20 | BN132: =('Working | Approach F'!BN529*Inputs!$C$13)*Inputs!$W$13 -> 1.960804312e-22 | BO132: =('Working | Approach F'!BO529*Inputs!$C$13)*Inputs!$W$13 -> 5.744543883e-24 | BP132: =('Working | Approach F'!BP529*Inputs!$C$13)*Inputs!$W$13 -> 1.437573544e-25 | BQ132: =('Working | Approach F'!BQ529*Inputs!$C$13)*Inputs!$W$13 -> 2.339895901e-27 | BR132: =('Working | Approach F'!BR529*Inputs!$C$13)*Inputs!$W$13 -> 7.619408922e-29 | BS132: =('Working | Approach F'!BS529*Inputs!$C$13)*Inputs!$W$13 -> 2.224043685e-30 | BT132: =('Working | Approach F'!BT529*Inputs!$C$13)*Inputs!$W$13 -> 5.418489599e-32 | BU132: =('Working | Approach F'!BU529*Inputs!$C$13)*Inputs!$W$13 -> 2.315059067e-33
A133: Repayment of Debt | C133: =('Working | Approach F'!C121-'Working | Approach F'!D121)*Inputs!$C$13 -> -3600 | D133: =('Working | Approach F'!D121-'Working | Approach F'!E121)*Inputs!$C$13 -> -118.2654402 | E133: =('Working | Approach F'!E121-'Working | Approach F'!F121)*Inputs!$C$13 -> -75.68988173 | F133: =('Working | Approach F'!F121-'Working | Approach F'!G121)*Inputs!$C$13 -> -89.88173456 | G133: =('Working | Approach F'!G121-'Working | Approach F'!H121)*Inputs!$C$13 -> -113.5348226 | H133: =('Working | Approach F'!H121-'Working | Approach F'!I257)*Inputs!$C$13 -> -99.34296978 | I133: =('Working | Approach F'!I257-'Working | Approach F'!J257)*Inputs!$C$13 -> -178.3755684 | J133: =('Working | Approach F'!J257-'Working | Approach F'!K257)*Inputs!$C$13 -> -107.6405618 | K133: =('Working | Approach F'!K257-'Working | Approach F'!L257)*Inputs!$C$13 -> -131.4988176 | L133: =('Working | Approach F'!L257-'Working | Approach F'!M257)*Inputs!$C$13 -> -150.6716512 | M133: =('Working | Approach F'!M257-'Working | Approach F'!N393)*Inputs!$C$13 -> -79.72355093 | N133: =('Working | Approach F'!N393-'Working | Approach F'!O393)*Inputs!$C$13 -> -130.7414726 | O133: =('Working | Approach F'!O393-'Working | Approach F'!P393)*Inputs!$C$13 -> -155.1405937 | P133: =('Working | Approach F'!P393-'Working | Approach F'!Q393)*Inputs!$C$13 -> -79.48704495 | Q133: =('Working | Approach F'!Q393-'Working | Approach F'!R393)*Inputs!$C$13 -> -79.8213749 | R133: =('Working | Approach F'!R393-'Working | Approach F'!S529)*Inputs!$C$13 -> -123.3242541 | S133: =('Working | Approach F'!S529-'Working | Approach F'!T529)*Inputs!$C$13 -> -109.2781513 | T133: =('Working | Approach F'!T529-'Working | Approach F'!U529)*Inputs!$C$13 -> -80.6969737 | U133: =('Working | Approach F'!U529-'Working | Approach F'!V529)*Inputs!$C$13 -> -129.1515819 | V133: =('Working | Approach F'!V529-'Working | Approach F'!W529)*Inputs!$C$13 -> -132.1692547 | W133: =('Working | Approach F'!W529-'Working | Approach F'!X529)*Inputs!$C$13 -> -85.74577521 | X133: =('Working | Approach F'!X529-'Working | Approach F'!Y529)*Inputs!$C$13 -> 261.0139857 | Y133: =('Working | Approach F'!Y529-'Working | Approach F'!Z529)*Inputs!$C$13 -> 261.9426608 | Z133: =('Working | Approach F'!Z529-'Working | Approach F'!AA529)*Inputs!$C$13 -> 319.672729 | AA133: =('Working | Approach F'!AA529-'Working | Approach F'!AB529)*Inputs!$C$13 -> 331.9466108 | AB133: =('Working | Approach F'!AB529-'Working | Approach F'!AC529)*Inputs!$C$13 -> 270.6411739 | AC133: =('Working | Approach F'!AC529-'Working | Approach F'!AD529)*Inputs!$C$13 -> 306.7593096 | AD133: =('Working | Approach F'!AD529-'Working | Approach F'!AE529)*Inputs!$C$13 -> 359.8757036 | AE133: =('Working | Approach F'!AE529-'Working | Approach F'!AF529)*Inputs!$C$13 -> 314.6574106 | AF133: =('Working | Approach F'!AF529-'Working | Approach F'!AG529)*Inputs!$C$13 -> 346.487759 | AG133: =('Working | Approach F'!AG529-'Working | Approach F'!AH529)*Inputs!$C$13 -> 381.7157329 | AH133: =('Working | Approach F'!AH529-'Working | Approach F'!AI529)*Inputs!$C$13 -> 113.384006 | AI133: =('Working | Approach F'!AI529-'Working | Approach F'!AJ529)*Inputs!$C$13 -> 161.4954225 | AJ133: =('Working | Approach F'!AJ529-'Working | Approach F'!AK529)*Inputs!$C$13 -> 151.4917026 | AK133: =('Working | Approach F'!AK529-'Working | Approach F'!AL529)*Inputs!$C$13 -> 164.5120099 | AL133: =('Working | Approach F'!AL529-'Working | Approach F'!AM529)*Inputs!$C$13 -> 170.8332905 | AM133: =('Working | Approach F'!AM529-'Working | Approach F'!AN529)*Inputs!$C$13 -> 144.899689 | AN133: =('Working | Approach F'!AN529-'Working | Approach F'!AO529)*Inputs!$C$13 -> 149.0019903 | AO133: =('Working | Approach F'!AO529-'Working | Approach F'!AP529)*Inputs!$C$13 -> 146.4997408 | AP133: =('Working | Approach F'!AP529-'Working | Approach F'!AQ529)*Inputs!$C$13 -> 138.5000612 | AQ133: =('Working | Approach F'!AQ529-'Working | Approach F'!AR529)*Inputs!$C$13 -> 151.3423455 | AR133: =('Working | Approach F'!AR529-'Working | Approach F'!AS529)*Inputs!$C$13 -> 140.8352183 | AS133: =('Working | Approach F'!AS529-'Working | Approach F'!AT529)*Inputs!$C$13 -> 127.1528352 | AT133: =('Working | Approach F'!AT529-'Working | Approach F'!AU529)*Inputs!$C$13 -> 122.7246952 | AU133: =('Working | Approach F'!AU529-'Working | Approach F'!AV529)*Inputs!$C$13 -> 97.81606262 | AV133: =('Working | Approach F'!AV529-'Working | Approach F'!AW529)*Inputs!$C$13 -> 100.4250244 | AW133: =('Working | Approach F'!AW529-'Working | Approach F'!AX529)*Inputs!$C$13 -> 83.85615047 | AX133: =('Working | Approach F'!AX529-'Working | Approach F'!AY529)*Inputs!$C$13 -> 67.3697443 | AY133: =('Working | Approach F'!AY529-'Working | Approach F'!AZ529)*Inputs!$C$13 -> 58.45928679 | AZ133: =('Working | Approach F'!AZ529-'Working | Approach F'!BA529)*Inputs!$C$13 -> 35.61408205 | BA133: =('Working | Approach F'!BA529-'Working | Approach F'!BB529)*Inputs!$C$13 -> 358.4370236 | BB133: =('Working | Approach F'!BB529-'Working | Approach F'!BC529)*Inputs!$C$13 -> 10.67432597 | BC133: =('Working | Approach F'!BC529-'Working | Approach F'!BD529)*Inputs!$C$13 -> 0.1418092355 | BD133: =('Working | Approach F'!BD529-'Working | Approach F'!BE529)*Inputs!$C$13 -> 0.001843574277 | BE133: =('Working | Approach F'!BE529-'Working | Approach F'!BF529)*Inputs!$C$13 -> 3.927891836e-05 | BF133: =('Working | Approach F'!BF529-'Working | Approach F'!BG529)*Inputs!$C$13 -> 7.508016197e-07 | BG133: =('Working | Approach F'!BG529-'Working | Approach F'!BH529)*Inputs!$C$13 -> 9.914731352e-09 | BH133: =('Working | Approach F'!BH529-'Working | Approach F'!BI529)*Inputs!$C$13 -> 2.172377597e-10 | BI133: =('Working | Approach F'!BI529-'Working | Approach F'!BJ529)*Inputs!$C$13 -> 4.801609064e-12 | BJ133: =('Working | Approach F'!BJ529-'Working | Approach F'!BK529)*Inputs!$C$13 -> 6.359617594e-14 | BK133: =('Working | Approach F'!BK529-'Working | Approach F'!BL529)*Inputs!$C$13 -> 1.205840077e-15 | BL133: =('Working | Approach F'!BL529-'Working | Approach F'!BM529)*Inputs!$C$13 -> 2.584585766e-17 | BM133: =('Working | Approach F'!BM529-'Working | Approach F'!BN529)*Inputs!$C$13 -> 3.387436021e-19 | BN133: =('Working | Approach F'!BN529-'Working | Approach F'!BO529)*Inputs!$C$13 -> 4.426415984e-21 | BO133: =('Working | Approach F'!BO529-'Working | Approach F'!BP529)*Inputs!$C$13 -> 1.302508495e-22 | BP133: =('Working | Approach F'!BP529-'Working | Approach F'!BQ529)*Inputs!$C$13 -> 3.288778105e-24 | BQ133: =('Working | Approach F'!BQ529-'Working | Approach F'!BR529)*Inputs!$C$13 -> 5.264422819e-26 | BR133: =('Working | Approach F'!BR529-'Working | Approach F'!BS529)*Inputs!$C$13 -> 1.720233617e-27 | BS133: =('Working | Approach F'!BS529-'Working | Approach F'!BT529)*Inputs!$C$13 -> 5.046183231e-29 | BT133: =('Working | Approach F'!BT529-'Working | Approach F'!BU529)*Inputs!$C$13 -> 1.206275277e-30 | BU133: =('Working | Approach F'!BU529-'Working | Approach F'!BV529)*Inputs!$C$13 -> 5.383858294e-32
A134: Opex | C134: 0 | D134: ='Working | Approach F'!D102/'Working | Approach F'!D4*Inputs!D35 -> 51.48849797 | E134: ='Working | Approach F'!E102/'Working | Approach F'!E4*Inputs!E35 -> 53.17997294 | F134: ='Working | Approach F'!F102/'Working | Approach F'!F4*Inputs!F35 -> 54.26251691 | G134: ='Working | Approach F'!G102/'Working | Approach F'!G4*Inputs!G35 -> 55.54803789 | H134: ='Working | Approach F'!H102/'Working | Approach F'!H4*Inputs!H35 -> 57.17185386 | I134: ='Working | Approach F'!I238/'Working | Approach F'!I139*Inputs!I35 -> 58.59269283 | J134: ='Working | Approach F'!J238/'Working | Approach F'!J139*Inputs!J35 -> 61.09607578 | K134: ='Working | Approach F'!K238/'Working | Approach F'!K139*Inputs!K35 -> 62.58457375 | L134: ='Working | Approach F'!L238/'Working | Approach F'!L139*Inputs!L35 -> 64.41136671 | M134: ='Working | Approach F'!M238/'Working | Approach F'!M139*Inputs!M35 -> 66.50879567 | N134: ='Working | Approach F'!N374/'Working | Approach F'!N275*Inputs!N35 -> 67.59133965 | O134: ='Working | Approach F'!O374/'Working | Approach F'!O275*Inputs!O35 -> 69.28281461 | P134: ='Working | Approach F'!P374/'Working | Approach F'!P275*Inputs!P35 -> 71.31258457 | Q134: ='Working | Approach F'!Q374/'Working | Approach F'!Q275*Inputs!Q35 -> 72.25981055 | R134: ='Working | Approach F'!R374/'Working | Approach F'!R275*Inputs!R35 -> 73.20703654 | S134: ='Working | Approach F'!S510/'Working | Approach F'!S411*Inputs!S35 -> 74.7631935 | T134: ='Working | Approach F'!T510/'Working | Approach F'!T411*Inputs!T35 -> 76.18403248 | U134: ='Working | Approach F'!U510/'Working | Approach F'!U411*Inputs!U35 -> 77.19891746 | V134: ='Working | Approach F'!V510/'Working | Approach F'!V411*Inputs!V35 -> 78.89039242 | W134: ='Working | Approach F'!W510/'Working | Approach F'!W411*Inputs!W35 -> 80.61892863 | X134: 0 | Y134: 0 | Z134: 0 | AA134: 0 | AB134: 0 | AC134: 0 | AD134: 0 | AE134: 0 | AF134: 0 | AG134: 0 | AH134: 0 | AI134: 0 | AJ134: 0 | AK134: 0 | AL134: 0 | AM134: 0 | AN134: 0 | AO134: 0 | AP134: 0 | AQ134: 0 | AR134: 0 | AS134: 0 | AT134: 0 | AU134: 0 | AV134: 0 | AW134: 0 | AX134: 0 | AY134: 0 | AZ134: 0 | BA134: 0 | BB134: 0 | BC134: 0 | BD134: 0 | BE134: 0 | BF134: 0 | BG134: 0 | BH134: 0 | BI134: 0 | BJ134: 0 | BK134: 0 | BL134: 0 | BM134: 0 | BN134: 0 | BO134: 0 | BP134: 0 | BQ134: 0 | BR134: 0 | BS134: 0 | BT134: 0 | BU134: 0
A135: Tax payable+ gamma | C135: 0 | D135: ='Working | Approach F'!D103*(D130/'Working | Approach F'!D106) -> 0 | E135: ='Working | Approach F'!E103*(E130/'Working | Approach F'!E106) -> 0 | F135: ='Working | Approach F'!F103*(F130/'Working | Approach F'!F106) -> 0 | G135: ='Working | Approach F'!G103*(G130/'Working | Approach F'!G106) -> 0 | H135: ='Working | Approach F'!H103*(H130/'Working | Approach F'!H106) -> 0 | I135: ='Working | Approach F'!I239*(I130/'Working | Approach F'!I242) -> 0 | J135: ='Working | Approach F'!J239*(J130/'Working | Approach F'!J242) -> 0 | K135: ='Working | Approach F'!K239*(K130/'Working | Approach F'!K242) -> 0 | L135: ='Working | Approach F'!L239*(L130/'Working | Approach F'!L242) -> 0 | M135: ='Working | Approach F'!M239*(M130/'Working | Approach F'!M242) -> 0 | N135: ='Working | Approach F'!N375*(N130/'Working | Approach F'!N378) -> 0 | O135: ='Working | Approach F'!O375*(O130/'Working | Approach F'!O378) -> 0.5930240235 | P135: ='Working | Approach F'!P375*(P130/'Working | Approach F'!P378) -> 1.415028406 | Q135: ='Working | Approach F'!Q375*(Q130/'Working | Approach F'!Q378) -> 2.300478316 | R135: ='Working | Approach F'!R375*(R130/'Working | Approach F'!R378) -> 3.291064273 | S135: ='Working | Approach F'!S511*(S130/'Working | Approach F'!S514) -> 4.643818668 | T135: ='Working | Approach F'!T511*(T130/'Working | Approach F'!T514) -> 5.933047027 | U135: ='Working | Approach F'!U511*(U130/'Working | Approach F'!U514) -> 7.300417601 | V135: ='Working | Approach F'!V511*(V130/'Working | Approach F'!V514) -> 8.847096834 | W135: ='Working | Approach F'!W511*(W130/'Working | Approach F'!W514) -> 10.52735121 | X135: =IFERROR(SUM('Working | Approach F'!X477:X478)*(X130/'Working | Approach F'!X519),0) -> 12.55100325 | Y135: =IFERROR(SUM('Working | Approach F'!Y477:Y478)*(Y130/'Working | Approach F'!Y519),0) -> 17.6936116 | Z135: =IFERROR(SUM('Working | Approach F'!Z477:Z478)*(Z130/'Working | Approach F'!Z519),0) -> 22.70638635 | AA135: =IFERROR(SUM('Working | Approach F'!AA477:AA478)*(AA130/'Working | Approach F'!AA519),0) -> 27.35695525 | AB135: =IFERROR(SUM('Working | Approach F'!AB477:AB478)*(AB130/'Working | Approach F'!AB519),0) -> 31.81158762 | AC135: =IFERROR(SUM('Working | Approach F'!AC477:AC478)*(AC130/'Working | Approach F'!AC519),0) -> 37.34559323 | AD135: =IFERROR(SUM('Working | Approach F'!AD477:AD478)*(AD130/'Working | Approach F'!AD519),0) -> 42.07597781 | AE135: =IFERROR(SUM('Working | Approach F'!AE477:AE478)*(AE130/'Working | Approach F'!AE519),0) -> 46.35056937 | AF135: =IFERROR(SUM('Working | Approach F'!AF477:AF478)*(AF130/'Working | Approach F'!AF519),0) -> 51.31316121 | AG135: =IFERROR(SUM('Working | Approach F'!AG477:AG478)*(AG130/'Working | Approach F'!AG519),0) -> 56.12612174 | AH135: =IFERROR(SUM('Working | Approach F'!AH477:AH478)*(AH130/'Working | Approach F'!AH519),0) -> 30.83849761 | AI135: =IFERROR(SUM('Working | Approach F'!AI477:AI478)*(AI130/'Working | Approach F'!AI519),0) -> 28.97050242 | AJ135: =IFERROR(SUM('Working | Approach F'!AJ477:AJ478)*(AJ130/'Working | Approach F'!AJ519),0) -> 29.74054743 | AK135: =IFERROR(SUM('Working | Approach F'!AK477:AK478)*(AK130/'Working | Approach F'!AK519),0) -> 30.42284472 | AL135: =IFERROR(SUM('Working | Approach F'!AL477:AL478)*(AL130/'Working | Approach F'!AL519),0) -> 30.69573275 | AM135: =IFERROR(SUM('Working | Approach F'!AM477:AM478)*(AM130/'Working | Approach F'!AM519),0) -> 29.83121169 | AN135: =IFERROR(SUM('Working | Approach F'!AN477:AN478)*(AN130/'Working | Approach F'!AN519),0) -> 29.7344491 | AO135: =IFERROR(SUM('Working | Approach F'!AO477:AO478)*(AO130/'Working | Approach F'!AO519),0) -> 29.28131549 | AP135: =IFERROR(SUM('Working | Approach F'!AP477:AP478)*(AP130/'Working | Approach F'!AP519),0) -> 28.59159948 | AQ135: =IFERROR(SUM('Working | Approach F'!AQ477:AQ478)*(AQ130/'Working | Approach F'!AQ519),0) -> 27.67346258 | AR135: =IFERROR(SUM('Working | Approach F'!AR477:AR478)*(AR130/'Working | Approach F'!AR519),0) -> 25.28248777 | AS135: =IFERROR(SUM('Working | Approach F'!AS477:AS478)*(AS130/'Working | Approach F'!AS519),0) -> 23.18652268 | AT135: =IFERROR(SUM('Working | Approach F'!AT477:AT478)*(AT130/'Working | Approach F'!AT519),0) -> 21.08215109 | AU135: =IFERROR(SUM('Working | Approach F'!AU477:AU478)*(AU130/'Working | Approach F'!AU519),0) -> 18.4454072 | AV135: =IFERROR(SUM('Working | Approach F'!AV477:AV478)*(AV130/'Working | Approach F'!AV519),0) -> 79.84602877 | AW135: =IFERROR(SUM('Working | Approach F'!AW477:AW478)*(AW130/'Working | Approach F'!AW519),0) -> 11.99225824 | AX135: =IFERROR(SUM('Working | Approach F'!AX477:AX478)*(AX130/'Working | Approach F'!AX519),0) -> 8.417018924 | AY135: =IFERROR(SUM('Working | Approach F'!AY477:AY478)*(AY130/'Working | Approach F'!AY519),0) -> 4.322618143 | AZ135: =IFERROR(SUM('Working | Approach F'!AZ477:AZ478)*(AZ130/'Working | Approach F'!AZ519),0) -> 0 | BA135: =IFERROR(SUM('Working | Approach F'!BA477:BA478)*(BA130/'Working | Approach F'!BA519),0) -> 0 | BB135: =IFERROR(SUM('Working | Approach F'!BB477:BB478)*(BB130/'Working | Approach F'!BB519),0) -> 0 | BC135: =IFERROR(SUM('Working | Approach F'!BC477:BC478)*(BC130/'Working | Approach F'!BC519),0) -> 0 | BD135: =IFERROR(SUM('Working | Approach F'!BD477:BD478)*(BD130/'Working | Approach F'!BD519),0) -> 0 | BE135: =IFERROR(SUM('Working | Approach F'!BE477:BE478)*(BE130/'Working | Approach F'!BE519),0) -> 0 | BF135: =IFERROR(SUM('Working | Approach F'!BF477:BF478)*(BF130/'Working | Approach F'!BF519),0) -> 0 | BG135: =IFERROR(SUM('Working | Approach F'!BG477:BG478)*(BG130/'Working | Approach F'!BG519),0) -> 0 | BH135: =IFERROR(SUM('Working | Approach F'!BH477:BH478)*(BH130/'Working | Approach F'!BH519),0) -> 0 | BI135: =IFERROR(SUM('Working | Approach F'!BI477:BI478)*(BI130/'Working | Approach F'!BI519),0) -> 0 | BJ135: =IFERROR(SUM('Working | Approach F'!BJ477:BJ478)*(BJ130/'Working | Approach F'!BJ519),0) -> 0 | BK135: =IFERROR(SUM('Working | Approach F'!BK477:BK478)*(BK130/'Working | Approach F'!BK519),0) -> 0 | BL135: =IFERROR(SUM('Working | Approach F'!BL477:BL478)*(BL130/'Working | Approach F'!BL519),0) -> 0 | BM135: =IFERROR(SUM('Working | Approach F'!BM477:BM478)*(BM130/'Working | Approach F'!BM519),0) -> 0 | BN135: =IFERROR(SUM('Working | Approach F'!BN477:BN478)*(BN130/'Working | Approach F'!BN519),0) -> 0 | BO135: =IFERROR(SUM('Working | Approach F'!BO477:BO478)*(BO130/'Working | Approach F'!BO519),0) -> 0 | BP135: =IFERROR(SUM('Working | Approach F'!BP477:BP478)*(BP130/'Working | Approach F'!BP519),0) -> 0 | BQ135: =IFERROR(SUM('Working | Approach F'!BQ477:BQ478)*(BQ130/'Working | Approach F'!BQ519),0) -> 0 | BR135: =IFERROR(SUM('Working | Approach F'!BR477:BR478)*(BR130/'Working | Approach F'!BR519),0) -> 0 | BS135: =IFERROR(SUM('Working | Approach F'!BS477:BS478)*(BS130/'Working | Approach F'!BS519),0) -> 0 | BT135: =IFERROR(SUM('Working | Approach F'!BT477:BT478)*(BT130/'Working | Approach F'!BT519),0) -> 0 | BU135: =IFERROR(SUM('Working | Approach F'!BU477:BU478)*(BU130/'Working | Approach F'!BU519),0) -> 0
A136: Returns achieved
A137: Post-tax CF to Equity | B137: =IRR(C137:BU137) -> 0.05064075206 | C137: =C130-C131-C132-C133-C134-C135 -> -2400 | D137: =D130-D131-D132-D133-D134-D135 -> 98.62166145 | E137: =E130-E131-E132-E133-E134-E135 -> 55.46424804 | F137: =F130-F131-F132-F133-F134-F135 -> 69.19677054 | G137: 92.19013209 | H137: 77.06887894 | I137: 149.3712039 | J137: 77.49381313 | K137: 100.5837579 | L137: 118.6786396 | M137: 46.35410551 | N137: 81.99299349 | O137: 105.4391987 | P137: 28.31088631 | Q137: 27.77698513 | R137: 70.20567598 | S137: 63.6549378 | T137: 34.37908826 | U137: 82.20215834 | V137: 83.98272755 | W137: 36.08307735 | X137: 339.4898497 | Y137: 351.6408587 | Z137: 308.6842923 | AA137: 306.562391 | AB137: 378.4521104 | AC137: 379.6333758 | AD137: 345.4671672 | AE137: 404.0885721 | AF137: 397.472253 | AG137: 385.7058746 | AH137: 259.0330461 | AI137: 213.5892741 | AJ137: 218.8142756 | AK137: 201.5068169 | AL137: 187.8099593 | AM137: 193.3774672 | AN137: 182.4473607 | AO137: 175.5966084 | AP137: 172.6084581 | AQ137: 147.8821797 | AR137: 131.3325372 | AS137: 126.7027685 | AT137: 112.0869605 | AU137: 114.7064447 | AV137: 90.67507237 | AW137: 74.10255826 | AX137: 62.38201327 | AY137: 40.37282252 | AZ137: 27.85092057 | BA137: -332.6481841 | BB137: -11.13950078 | BC137: -0.147988028 | BD137: -0.001924569684 | BE137: -4.100063196e-05 | BF137: -7.835217291e-07 | BG137: -1.035035923e-08 | BH137: -2.265265776e-10 | BI137: -4.743470163e-12 | BJ137: 2.045740247e-13 | BK137: 2.748484206e-13 | BL137: 2.868454497e-13 | BM137: 2.906325681e-13 | BN137: 2.944933163e-13 | BO137: 3.031210548e-13 | BP137: 3.107066669e-13 | BQ137: 3.214023042e-13 | BR137: =BR130-BR131-BR132-BR133-BR134-BR135 -> 3.318681356e-13 | BS137: =BS130-BS131-BS132-BS133-BS134-BS135 -> 3.415550973e-13 | BT137: =BT130-BT131-BT132-BT133-BT134-BT135 -> 3.49876484e-13 | BU137: =BU130-BU131-BU132-BU133-BU134-BU135 -> 3.648250174e-13
